Workbook

Sheet README
B3: FRAME Report: 2021/22 Budget
B5: All pages of the FRAME report containing the tables of financial and statistical data are included in this file.
B7: In most cases, formulas have been left intact to show how statistics such as percentages and average costs per pupil are derived.
B10: Each worksheet tab is numbered to match the corresponding page found in the published document so for example to see page 15, click the worksheet tab - 15 - .
B13: This file is unprotected for data analysis by the user. Data can also be copied to other files or additional data copied to this one. In cases of dispute however, the published FRAME reports and the corresponding files located on the Manitoba Govenment web site remain the final authority.
B20: http://www.edu.gov.mb.ca/k12/finance/frame_report/index.html

Sheet - 3 -
A2: =IF(Lang=1,BA2,BB2) -> RECONCILIATION OF EXPENSES | BA2: RECONCILIATION OF EXPENSES | BB2: CONCILIATION DES DÉPENSES
A3: =IF(Lang=1,BA3,BB3) -> OPERATING FUND 2021/2022 BUDGET | BA3: ="OPERATING FUND "&YEAR&"/"&YEAR+1&" BUDGET" -> OPERATING FUND 2021/2022 BUDGET | BB3: ="FONDS DE FONCTIONNEMENT – BUDGET "&YEAR&" - "&YEAR+1 -> FONDS DE FONCTIONNEMENT – BUDGET 2021 - 2022
C6: LESS OPERATING FUND TRANSFERS (2) | D6: EXPENSES NET OF TRANSFERS (3) | E6: LESS NON K-12 EDUCATION & SERVICES (4) | F6: TOTAL EXPENSES FOR PER PUPIL COSTS (5)
B8: TOTAL EXPENSES (1)
A9: DIVISION / DISTRICT
A11: BEAUTIFUL PLAINS | B11: 23423417 | C11: =-Data!L11 -> -95100 | D11: =B11+C11 -> 23328317 | E11: =-'- 15 -'!H11-'- 16 -'!B11 -> -27540 | F11: =D11+E11 -> 23300777
A12: BORDER LAND | B12: 35500354 | C12: =-Data!L12 -> -553000 | D12: =B12+C12 -> 34947354 | E12: =-'- 15 -'!H12-'- 16 -'!B12 -> -614257 | F12: =D12+E12 -> 34333097
A13: BRANDON | B13: 109772700 | C13: =-Data!L13 -> -89100 | D13: 109683600 | E13: =-'- 15 -'!H13-'- 16 -'!B13 -> -422400 | F13: 109261200
A14: DSFM | B14: 101264742 | C14: =-Data!L14 -> -965931 | D14: 100298811 | E14: =-'- 15 -'!H14-'- 16 -'!B14 -> -1773236 | F14: 98525575
A15: EVERGREEN | B15: 21510524 | C15: =-Data!L15 -> -52500 | D15: 21458024 | E15: =-'- 15 -'!H15-'- 16 -'!B15 -> -59850 | F15: 21398174
A16: FLIN FLON | B16: 15568737 | C16: =-Data!L16 -> -1300 | D16: 15567437 | E16: =-'- 15 -'!H16-'- 16 -'!B16 -> -110442 | F16: 15456995
A17: FORT LA BOSSE | B17: 19659771 | C17: =-Data!L17 -> -99650 | D17: 19560121 | E17: =-'- 15 -'!H17-'- 16 -'!B17 -> -296810 | F17: 19263311
A18: FRONTIER | B18: 150043577 | C18: =-Data!L18 -> -4935559 | D18: 145108018 | E18: =-'- 15 -'!H18-'- 16 -'!B18 -> -4401348 | F18: 140706670
A19: GARDEN VALLEY | B19: 52786330 | C19: =-Data!L19 -> -528600 | D19: 52257730 | E19: =-'- 15 -'!H19-'- 16 -'!B19 -> -85800 | F19: 52171930
A20: HANOVER | B20: 96261300 | C20: =-Data!L20 -> -2315500 | D20: 93945800 | E20: =-'- 15 -'!H20-'- 16 -'!B20 -> -110900 | F20: 93834900
A21: INTERLAKE | B21: 38895000 | C21: =-Data!L21 -> -300300 | D21: 38594700 | E21: =-'- 15 -'!H21-'- 16 -'!B21 -> 0 | F21: 38594700
A22: KELSEY | B22: 20620953 | C22: =-Data!L22 -> -22500 | D22: 20598453 | E22: =-'- 15 -'!H22-'- 16 -'!B22 -> -724563 | F22: 19873890
A23: LAKESHORE | B23: 16485165 | C23: =-Data!L23 -> -80700 | D23: 16404465 | E23: =-'- 15 -'!H23-'- 16 -'!B23 -> -564650 | F23: 15839815
A24: LORD SELKIRK | B24: 59392102 | C24: =-Data!L24 -> -182000 | D24: 59210102 | E24: =-'- 15 -'!H24-'- 16 -'!B24 -> -771410 | F24: 58438692
A25: LOUIS RIEL | B25: 198456210 | C25: =-Data!L25 -> -916000 | D25: 197540210 | E25: =-'- 15 -'!H25-'- 16 -'!B25 -> -2256249 | F25: 195283961
A26: MOUNTAIN VIEW | B26: 42846379 | C26: =-Data!L26 -> -5000 | D26: 42841379 | E26: =-'- 15 -'!H26-'- 16 -'!B26 -> -101641 | F26: 42739738
A27: MYSTERY LAKE | B27: 43997548 | C27: =-Data!L27 -> -8300 | D27: 43989248 | E27: =-'- 15 -'!H27-'- 16 -'!B27 -> -63098 | F27: 43926150
A28: PARK WEST | B28: 29074448 | C28: =-Data!L28 -> -155000 | D28: 28919448 | E28: =-'- 15 -'!H28-'- 16 -'!B28 -> -188237 | F28: 28731211
A29: PEMBINA TRAILS | B29: 183482080 | C29: =-Data!L29 -> -2295000 | D29: 181187080 | E29: =-'- 15 -'!H29-'- 16 -'!B29 -> -225375 | F29: 180961705
A30: PINE CREEK | B30: 15813753 | C30: =-Data!L30 -> -35084 | D30: 15778669 | E30: =-'- 15 -'!H30-'- 16 -'!B30 -> -14790 | F30: 15763879
A31: PORTAGE LA PRAIRIE | B31: 41639671 | C31: =-Data!L31 -> -52000 | D31: 41587671 | E31: =-'- 15 -'!H31-'- 16 -'!B31 -> -61455 | F31: 41526216
A32: PRAIRIE ROSE | B32: 32339990 | C32: =-Data!L32 -> -233200 | D32: 32106790 | E32: =-'- 15 -'!H32-'- 16 -'!B32 -> -318697 | F32: 31788093
A33: PRAIRIE SPIRIT | B33: 29263256 | C33: =-Data!L33 -> -116000 | D33: 29147256 | E33: =-'- 15 -'!H33-'- 16 -'!B33 -> -30896 | F33: 29116360
A34: RED RIVER VALLEY | B34: 33064528 | C34: =-Data!L34 -> -417128 | D34: 32647400 | E34: =-'- 15 -'!H34-'- 16 -'!B34 -> -62343 | F34: 32585057
A35: RIVER EAST TRANSCONA | B35: 201242690 | C35: =-Data!L35 -> -58800 | D35: 201183890 | E35: =-'- 15 -'!H35-'- 16 -'!B35 -> -2422930 | F35: 198760960
A36: ROLLING RIVER | B36: 25017895 | C36: =-Data!L36 -> -392500 | D36: 24625395 | E36: =-'- 15 -'!H36-'- 16 -'!B36 -> -31245 | F36: 24594150
A37: SEINE RIVER | B37: 56647666 | C37: =-Data!L37 -> -456600 | D37: 56191066 | E37: =-'- 15 -'!H37-'- 16 -'!B37 -> -718089 | F37: 55472977
A38: SEVEN OAKS | B38: 154651499 | C38: =-Data!L38 -> -1165250 | D38: 153486249 | E38: =-'- 15 -'!H38-'- 16 -'!B38 -> -4904915 | F38: 148581334
A39: SOUTHWEST HORIZON | B39: 24138600 | C39: =-Data!L39 -> -279000 | D39: 23859600 | E39: =-'- 15 -'!H39-'- 16 -'!B39 -> -168200 | F39: 23691400
A40: ST. JAMES-ASSINIBOIA | B40: 112349742 | C40: =-Data!L40 -> -364500 | D40: 111985242 | E40: =-'- 15 -'!H40-'- 16 -'!B40 -> -1044430 | F40: 110940812
A41: SUNRISE | B41: 69093442 | C41: =-Data!L41 -> -774000 | D41: 68319442 | E41: =-'- 15 -'!H41-'- 16 -'!B41 -> -1056074 | F41: 67263368
A42: SWAN VALLEY | B42: 21882804 | C42: =-Data!L42 -> -62600 | D42: 21820204 | E42: =-'- 15 -'!H42-'- 16 -'!B42 -> -59448 | F42: 21760756
A43: TURTLE MOUNTAIN | B43: 14009347 | C43: =-Data!L43 -> -33000 | D43: 13976347 | E43: =-'- 15 -'!H43-'- 16 -'!B43 -> -219072 | F43: 13757275
A44: TURTLE RIVER | B44: 11629887 | C44: =-Data!L44 -> -126337 | D44: 11503550 | E44: =-'- 15 -'!H44-'- 16 -'!B44 -> -27522 | F44: 11476028
A45: WESTERN | B45: 23800164 | C45: =-Data!L45 -> -122300 | D45: 23677864 | E45: =-'- 15 -'!H45-'- 16 -'!B45 -> -442204 | F45: 23235660
A46: WINNIPEG | B46: 419665400 | C46: =-Data!L46 -> -2406650 | D46: 417258750 | E46: =-'- 15 -'!H46-'- 16 -'!B46 -> -8998404 | F46: 408260346
A48: PROVINCE | B48: =SUM(B11:B46) -> 2545291671 | C48: =SUM(C11:C46) -> -20695989 | D48: =SUM(D11:D46) -> 2524595682 | E48: =SUM(E11:E46) -> -33378520 | F48: =SUM(F11:F46) -> 2491217162
A50: WHITESHELL | B50: 3622983.31 | C50: =-Data!L50 -> -22500 | D50: =B50+C50 -> 3600483.31 | E50: =-'- 15 -'!H50-'- 16 -'!B50 -> -184542 | F50: =D50+E50 -> 3415941.31
A51: MITT | B51: 33569930 | C51: =-Data!L51 -> -279043 | D51: =B51+C51 -> 33290887 | E51: =-'- 15 -'!H51-'- 16 -'!B51 -> -13616478 | F51: =D51+E51 -> 19674409
A53: (1) Total operating expenses as reported on the Schedule of Revenues and Expenses in each school division's budget.
A54: (2) Operating fund transfers are payments to other school divisions, organizations and individuals. These are removed to provide more accurate
A55: per pupil costs.
A56: (3) As reported on pages 10 and 13 (on a provincial basis).
A57: (4) Expenses for Adult Learning Centres and Community Education and Services (Functions 300 and 400).
A58: (5) As reported on page 4.
B64: 113092994
B65536: 113092994

Sheet - 4 -
A2: =IF(Lang=1,BA2,BB2) -> OPERATING FUND EXPENSE PER PUPIL | BA2: OPERATING FUND EXPENSE PER PUPIL | BB2: DÉPENSES DU FONDS DE FONCTIONNEMENT PAR ÉLÈVE
B7: 2020/2021 BUDGET | D7: 2021/2022 BUDGET
A9: DIVISION / DISTRICT | B9: EXPENSES (1) | C9: PER PUPIL | D9: EXPENSES (1) | E9: PER PUPIL
A11: BEAUTIFUL PLAINS | B11: 22186031 | C11: 11124 | D11: ='- 3 -'!F11 -> 23300777 | E11: =ROUND(D11/'- 7 -'!E11,0) -> 11246 | F11: =IF(B11=D11,"Check","") -> 
A12: BORDER LAND | B12: 34017880 | C12: 15793 | D12: ='- 3 -'!F12 -> 34333097 | E12: =ROUND(D12/'- 7 -'!E12,0) -> 15896 | F12: =IF(B12=D12,"Check","") -> 
A13: BRANDON | B13: 107118700 | C13: 12254 | D13: ='- 3 -'!F13 -> 109261200 | E13: =ROUND(D13/'- 7 -'!E13,0) -> 12491
A14: DSFM | B14: 95237624 | C14: 15891 | D14: ='- 3 -'!F14 -> 98525575 | E14: =ROUND(D14/'- 7 -'!E14,0) -> 16250
A15: EVERGREEN | B15: 21065981 | C15: 15101 | D15: ='- 3 -'!F15 -> 21398174 | E15: =ROUND(D15/'- 7 -'!E15,0) -> 15909
A16: FLIN FLON | B16: 14848684 | C16: 15663 | D16: ='- 3 -'!F16 -> 15456995 | E16: =ROUND(D16/'- 7 -'!E16,0) -> 16305
A17: FORT LA BOSSE | B17: 18515455 | C17: 12805 | D17: ='- 3 -'!F17 -> 19263311 | E17: =ROUND(D17/'- 7 -'!E17,0) -> 13628
A18: FRONTIER | B18: 134920377 | C18: 22528 | D18: ='- 3 -'!F18 -> 140706670 | E18: =ROUND(D18/'- 7 -'!E18,0) -> 23877
A19: GARDEN VALLEY | B19: 51461800 | C19: 11568 | D19: ='- 3 -'!F19 -> 52171930 | E19: =ROUND(D19/'- 7 -'!E19,0) -> 12241
A20: HANOVER | B20: 91821700 | C20: 11278 | D20: ='- 3 -'!F20 -> 93834900 | E20: =ROUND(D20/'- 7 -'!E20,0) -> 11509
A21: INTERLAKE | B21: 37869750 | C21: 13520 | D21: ='- 3 -'!F21 -> 38594700 | E21: =ROUND(D21/'- 7 -'!E21,0) -> 13514
A22: KELSEY | B22: 19754120 | C22: 13771 | D22: ='- 3 -'!F22 -> 19873890 | E22: =ROUND(D22/'- 7 -'!E22,0) -> 13716
A23: LAKESHORE | B23: 15403065 | C23: 16527 | D23: ='- 3 -'!F23 -> 15839815 | E23: =ROUND(D23/'- 7 -'!E23,0) -> 16996
A24: LORD SELKIRK | B24: 58113400 | C24: 15622 | D24: ='- 3 -'!F24 -> 58438692 | E24: =ROUND(D24/'- 7 -'!E24,0) -> 15709
A25: LOUIS RIEL | B25: 192224805 | C25: 12691 | D25: ='- 3 -'!F25 -> 195283961 | E25: =ROUND(D25/'- 7 -'!E25,0) -> 12637
A26: MOUNTAIN VIEW | B26: 41971778 | C26: 13614 | D26: ='- 3 -'!F26 -> 42739738 | E26: =ROUND(D26/'- 7 -'!E26,0) -> 14096
A27: MYSTERY LAKE | B27: 42716883 | C27: 14211 | D27: ='- 3 -'!F27 -> 43926150 | E27: =ROUND(D27/'- 7 -'!E27,0) -> 15633
A28: PARK WEST | B28: 28600167 | C28: 14166 | D28: ='- 3 -'!F28 -> 28731211 | E28: =ROUND(D28/'- 7 -'!E28,0) -> 14136
A29: PEMBINA TRAILS | B29: 177562621 | C29: 12344 | D29: ='- 3 -'!F29 -> 180961705 | E29: =ROUND(D29/'- 7 -'!E29,0) -> 12328
A30: PINE CREEK | B30: 15706810 | C30: 15009 | D30: ='- 3 -'!F30 -> 15763879 | E30: =ROUND(D30/'- 7 -'!E30,0) -> 14830
A31: PORTAGE LA PRAIRIE | B31: 40786727 | C31: 12168 | D31: ='- 3 -'!F31 -> 41526216 | E31: =ROUND(D31/'- 7 -'!E31,0) -> 12363
A32: PRAIRIE ROSE | B32: 31370045 | C32: 13432 | D32: ='- 3 -'!F32 -> 31788093 | E32: =ROUND(D32/'- 7 -'!E32,0) -> 13424
A33: PRAIRIE SPIRIT | B33: 28698836 | C33: 13896 | D33: ='- 3 -'!F33 -> 29116360 | E33: =ROUND(D33/'- 7 -'!E33,0) -> 13875
A34: RED RIVER VALLEY | B34: 31910320 | C34: 13998 | D34: ='- 3 -'!F34 -> 32585057 | E34: =ROUND(D34/'- 7 -'!E34,0) -> 14458
A35: RIVER EAST TRANSCONA | B35: 195891460 | C35: 12019 | D35: ='- 3 -'!F35 -> 198760960 | E35: =ROUND(D35/'- 7 -'!E35,0) -> 12197
A36: ROLLING RIVER | B36: 24148370 | C36: 13835 | D36: ='- 3 -'!F36 -> 24594150 | E36: =ROUND(D36/'- 7 -'!E36,0) -> 13562
A37: SEINE RIVER | B37: 54406871 | C37: 12467 | D37: ='- 3 -'!F37 -> 55472977 | E37: =ROUND(D37/'- 7 -'!E37,0) -> 12711
A38: SEVEN OAKS | B38: 146437415 | C38: 12565 | D38: ='- 3 -'!F38 -> 148581334 | E38: =ROUND(D38/'- 7 -'!E38,0) -> 12705
A39: SOUTHWEST HORIZON | B39: 23319600 | C39: 15644 | D39: ='- 3 -'!F39 -> 23691400 | E39: =ROUND(D39/'- 7 -'!E39,0) -> 15705
A40: ST. JAMES-ASSINIBOIA | B40: 108740149 | C40: 13225 | D40: ='- 3 -'!F40 -> 110940812 | E40: =ROUND(D40/'- 7 -'!E40,0) -> 13549
A41: SUNRISE | B41: 65341470 | C41: 14540 | D41: ='- 3 -'!F41 -> 67263368 | E41: =ROUND(D41/'- 7 -'!E41,0) -> 14875
A42: SWAN VALLEY | B42: 21280382 | C42: 15550 | D42: ='- 3 -'!F42 -> 21760756 | E42: =ROUND(D42/'- 7 -'!E42,0) -> 16060
A43: TURTLE MOUNTAIN | B43: 13660582 | C43: 13593 | D43: ='- 3 -'!F43 -> 13757275 | E43: =ROUND(D43/'- 7 -'!E43,0) -> 13917
A44: TURTLE RIVER | B44: 11209188 | C44: 16163 | D44: ='- 3 -'!F44 -> 11476028 | E44: =ROUND(D44/'- 7 -'!E44,0) -> 17052
A45: WESTERN | B45: 21880615 | C45: 10545 | D45: ='- 3 -'!F45 -> 23235660 | E45: =ROUND(D45/'- 7 -'!E45,0) -> 11429
A46: WINNIPEG | B46: 407643450 | C46: 13626 | D46: ='- 3 -'!F46 -> 408260346 | E46: =ROUND(D46/'- 7 -'!E46,0) -> 13399
A48: PROVINCE | B48: 2447843111 | C48: 13436 | D48: =SUM(D11:D46) -> 2491217162 | E48: =ROUND(D48/'- 7 -'!E48,0) -> 13608
A50: WHITESHELL | B50: 3385611 | C50: 19684 | D50: ='- 3 -'!F50 -> 3415941.31 | E50: =ROUND(D50/'- 7 -'!E50,0) -> 19409
A51: MITT | B51: 21242642 | C51: 11974 | D51: ='- 3 -'!F51 -> 19674409 | E51: =ROUND(D51/'- 7 -'!E51,0) -> 11090
A53: (1) Operating fund transfers (i.e. payments to other school divisions, organizations and individuals) are excluded to provide more accurate per pupil costs. Also excluded are expenditures on educational services not provided to K-12 pupils: Function 300 (Adult Learning Centres) and Function 400 (Community Education and Services).

Sheet - 6 -
B2: =IF(Lang=1,BA2,BB2) -> FRAME STUDENT STATISTICS | H2: PAGE 1 OF 2 | BA2: FRAME STUDENT STATISTICS | BB2: STATISTIQUES SUR LES ÉLÈVES (SYSTÈME COMPTABLE FRAME)
B3: =IF(Lang=1,BA3,BB3) -> ESTIMATE SEPTEMBER 30, 2021 | BA3: ="ESTIMATE SEPTEMBER 30, "&YEAR -> ESTIMATE SEPTEMBER 30, 2021 | BB3: ="PRÉVISIONS AU 30 SEPTEMBRE "&YEAR -> PRÉVISIONS AU 30 SEPTEMBRE 2021
B6: REGULAR INSTRUCTION
B7: SINGLE TRACK (1) | E7: DUAL TRACK (2)
B8: ENGLISH LANGUAGE | C8: FRANÇAIS | D8: FRENCH IMMERSION | E8: ENGLISH LANGUAGE | F8: FRANÇAIS | G8: FRENCH IMMERSION | H8: OTHER BILINGUAL
A9: DIVISION / DISTRICT
A11: BEAUTIFUL PLAINS | B11: 2072 | C11: 0 | D11: 0 | E11: 0 | F11: 0 | G11: 0 | H11: 0
A12: BORDER LAND | B12: 1338.65 | C12: 0 | D12: 0 | E12: 523.5 | F12: 0 | G12: 130.5 | H12: 0
A13: BRANDON | B13: 6884 | C13: 0 | D13: 327 | E13: 648.5 | F13: 0 | G13: 497 | H13: 0
A14: DSFM | B14: 0 | C14: 6043 | D14: 0 | E14: 0 | F14: 0 | G14: 0 | H14: 0
A15: EVERGREEN | B15: 1325 | C15: 0 | D15: 0 | E15: 0 | F15: 0 | G15: 0 | H15: 0
A16: FLIN FLON | B16: 572 | C16: 0 | D16: 0 | E16: 258 | F16: 0 | G16: 118 | H16: 0
A17: FORT LA BOSSE | B17: 1390.5 | C17: 0 | D17: 0 | E17: 0 | F17: 0 | G17: 0 | H17: 0
A18: FRONTIER | B18: 5834 | C18: 0 | D18: 0 | E18: 0 | F18: 0 | G18: 0 | H18: 0
A19: GARDEN VALLEY | B19: 4136 | C19: 0 | D19: 0 | E19: 0 | F19: 0 | G19: 0 | H19: 0
A20: HANOVER | B20: 7640.1 | C20: 0 | D20: 0 | E20: 0 | F20: 0 | G20: 0 | H20: 0
A21: INTERLAKE | B21: 1596 | C21: 0 | D21: 0 | E21: 868 | F21: 0 | G21: 392 | H21: 0
A22: KELSEY | B22: 820 | C22: 0 | D22: 0 | E22: 509 | F22: 0 | G22: 120 | H22: 0
A23: LAKESHORE | B23: 918 | C23: 0 | D23: 0 | E23: 0 | F23: 0 | G23: 0 | H23: 0
A24: LORD SELKIRK | B24: 2584 | C24: 0 | D24: 220 | E24: 529.5 | F24: 0 | G24: 96 | H24: 86.5
A25: LOUIS RIEL | B25: 9392.5 | C25: 0 | D25: 5081 | E25: 418 | F25: 0 | G25: 389 | H25: 0
A26: MOUNTAIN VIEW | B26: 2213.8 | C26: 0 | D26: 133.5 | E26: 386 | F26: 0 | G26: 78 | H26: 65
A27: MYSTERY LAKE | B27: 2274.3 | C27: 0 | D27: 0 | E27: 153.5 | F27: 0 | G27: 222 | H27: 0
A28: PARK WEST | B28: 2032.5 | C28: 0 | D28: 0 | E28: 0 | F28: 0 | G28: 0 | H28: 0
A29: PEMBINA TRAILS | B29: 8646.5 | C29: 0 | D29: 1356.5 | E29: 2628.5 | F29: 0 | G29: 2047.5 | H29: 0
A30: PINE CREEK | B30: 1051 | C30: 0 | D30: 0 | E30: 0 | F30: 0 | G30: 0 | H30: 0
A31: PORTAGE LA PRAIRIE | B31: 2392 | C31: 0 | D31: 0 | E31: 503 | F31: 0 | G31: 363 | H31: 0
A32: PRAIRIE ROSE | B32: 1766 | C32: 0 | D32: 132 | E32: 356 | F32: 0 | G32: 114 | H32: 0
A33: PRAIRIE SPIRIT | B33: 1657.5 | C33: 0 | D33: 0 | E33: 214.5 | F33: 108.5 | G33: 118 | H33: 0
A34: RED RIVER VALLEY | B34: 1665.5 | C34: 0 | D34: 341.5 | E34: 72 | F34: 149 | G34: 0 | H34: 0
A35: RIVER EAST TRANSCONA | B35: 7990 | C35: 0 | D35: 1455 | E35: 3622 | F35: 0 | G35: 2058.5 | H35: 534.5
A36: ROLLING RIVER | B36: 1804.9 | C36: 0 | D36: 0 | E36: 0 | F36: 0 | G36: 0 | H36: 0
A37: SEINE RIVER | B37: 2179 | C37: 0 | D37: 795 | E37: 751 | F37: 0 | G37: 639 | H37: 0
A38: SEVEN OAKS | B38: 6749.7 | C38: 0 | D38: 1010.9 | E38: 2301.9 | F38: 0 | G38: 1213.1 | H38: 255.1
A39: SOUTHWEST HORIZON | B39: 1508.5 | C39: 0 | D39: 0 | E39: 0 | F39: 0 | G39: 0 | H39: 0
A40: ST. JAMES-ASSINIBOIA | B40: 5531.7 | C40: 0 | D40: 1464 | E40: 579.1 | F40: 0 | G40: 379 | H40: 0
A41: SUNRISE | B41: 2087 | C41: 0 | D41: 0 | E41: 1579.5 | F41: 0 | G41: 777.5 | H41: 78
A42: SWAN VALLEY | B42: 957.9 | C42: 0 | D42: 0 | E42: 217 | F42: 0 | G42: 53 | H42: 0
A43: TURTLE MOUNTAIN | B43: 958.5 | C43: 0 | D43: 0 | E43: 0 | F43: 0 | G43: 0 | H43: 0
A44: TURTLE RIVER | B44: 634 | C44: 0 | D44: 39 | E44: 0 | F44: 0 | G44: 0 | H44: 0
A45: WESTERN | B45: 881.5 | C45: 0 | D45: 0 | E45: 826 | F45: 0 | G45: 295.5 | H45: 0
A46: WINNIPEG | B46: 19570.5 | C46: 0 | D46: 1422.5 | E46: 5136.5 | F46: 0 | G46: 3285 | H46: 357
A48: PROVINCE | B48: =SUM(B11:B46) -> 121055.05 | C48: =SUM(C11:C46) -> 6043 | D48: 13777.9 | E48: 23081 | F48: 257.5 | G48: 13385.6 | H48: 1376.1
A50: WHITESHELL | B50: 176 | C50: 0 | D50: 0 | E50: 0 | F50: 0 | G50: 0 | H50: 0
A51: MITT | B51: 131 | C51: 18 | D51: 0 | E51: 0 | F51: 0 | G51: 0 | H51: 0
A53: (1) 90% or more of Regular Instruction enrolment is in one language program.
A54: (2) No one language program comprises 90% or more of Regular Instruction enrolment.

Sheet - 7 -
B2: =+'- 6 -'!B2 -> FRAME STUDENT STATISTICS | F2: PAGE 2 OF 2
B3: =+STATDATE -> ESTIMATE SEPTEMBER 30, 2021
B6: REGULAR INSTRUCTION (1) | E6: TOTAL
B8: SENIOR YEARS TECHNOLOGY | C8: TOTAL | E8: K-12 FTE ENROLMENT
A9: DIVISION / DISTRICT
A11: BEAUTIFUL PLAINS | B11: 0 | C11: =SUM('- 6 -'!$B11:H11,B11) -> 2072 | E11: =C11 -> 2072
A12: BORDER LAND | B12: 167.21 | C12: =SUM('- 6 -'!$B12:H12,B12) -> 2159.86 | E12: =C12 -> 2159.86
A13: BRANDON | B13: 391 | C13: =SUM('- 6 -'!$B13:H13,B13) -> 8747.5 | E13: 8747.5
A14: DSFM | B14: 20 | C14: =SUM('- 6 -'!$B14:H14,B14) -> 6063 | E14: 6063
A15: EVERGREEN | B15: 20 | C15: =SUM('- 6 -'!$B15:H15,B15) -> 1345 | E15: 1345
A16: FLIN FLON | B16: 0 | C16: =SUM('- 6 -'!$B16:H16,B16) -> 948 | E16: 948
A17: FORT LA BOSSE | B17: 23 | C17: =SUM('- 6 -'!$B17:H17,B17) -> 1413.5 | E17: 1413.5
A18: FRONTIER | B18: 59 | C18: =SUM('- 6 -'!$B18:H18,B18) -> 5893 | E18: 5893
A19: GARDEN VALLEY | B19: 126 | C19: =SUM('- 6 -'!$B19:H19,B19) -> 4262 | E19: 4262
A20: HANOVER | B20: 512.9 | C20: =SUM('- 6 -'!$B20:H20,B20) -> 8153 | E20: 8153
A21: INTERLAKE | B21: 0 | C21: =SUM('- 6 -'!$B21:H21,B21) -> 2856 | E21: 2856
A22: KELSEY | B22: 0 | C22: =SUM('- 6 -'!$B22:H22,B22) -> 1449 | E22: 1449
A23: LAKESHORE | B23: 14 | C23: =SUM('- 6 -'!$B23:H23,B23) -> 932 | E23: 932
A24: LORD SELKIRK | B24: 204 | C24: =SUM('- 6 -'!$B24:H24,B24) -> 3720 | E24: 3720
A25: LOUIS RIEL | B25: 172.5 | C25: =SUM('- 6 -'!$B25:H25,B25) -> 15453 | E25: 15453
A26: MOUNTAIN VIEW | B26: 155.7 | C26: =SUM('- 6 -'!$B26:H26,B26) -> 3032 | E26: 3032
A27: MYSTERY LAKE | B27: 160 | C27: =SUM('- 6 -'!$B27:H27,B27) -> 2809.8 | E27: 2809.8
A28: PARK WEST | B28: 0 | C28: =SUM('- 6 -'!$B28:H28,B28) -> 2032.5 | E28: 2032.5
A29: PEMBINA TRAILS | B29: 0 | C29: =SUM('- 6 -'!$B29:H29,B29) -> 14679 | E29: 14679
A30: PINE CREEK | B30: 12 | C30: =SUM('- 6 -'!$B30:H30,B30) -> 1063 | E30: 1063
A31: PORTAGE LA PRAIRIE | B31: 101 | C31: =SUM('- 6 -'!$B31:H31,B31) -> 3359 | E31: 3359
A32: PRAIRIE ROSE | B32: 0 | C32: =SUM('- 6 -'!$B32:H32,B32) -> 2368 | E32: 2368
A33: PRAIRIE SPIRIT | B33: 0 | C33: =SUM('- 6 -'!$B33:H33,B33) -> 2098.5 | E33: 2098.5
A34: RED RIVER VALLEY | B34: 25.7 | C34: =SUM('- 6 -'!$B34:H34,B34) -> 2253.7 | E34: 2253.7
A35: RIVER EAST TRANSCONA | B35: 636 | C35: =SUM('- 6 -'!$B35:H35,B35) -> 16296 | E35: 16296
A36: ROLLING RIVER | B36: 8.6 | C36: =SUM('- 6 -'!$B36:H36,B36) -> 1813.5 | E36: 1813.5
A37: SEINE RIVER | B37: 0 | C37: =SUM('- 6 -'!$B37:H37,B37) -> 4364 | E37: 4364
A38: SEVEN OAKS | B38: 164.2 | C38: =SUM('- 6 -'!$B38:H38,B38) -> 11694.9 | E38: 11694.9
A39: SOUTHWEST HORIZON | B39: 0 | C39: =SUM('- 6 -'!$B39:H39,B39) -> 1508.5 | E39: 1508.5
A40: ST. JAMES-ASSINIBOIA | B40: 234.1 | C40: =SUM('- 6 -'!$B40:H40,B40) -> 8187.9 | E40: 8187.9
A41: SUNRISE | B41: 0 | C41: =SUM('- 6 -'!$B41:H41,B41) -> 4522 | E41: 4522
A42: SWAN VALLEY | B42: 127.1 | C42: =SUM('- 6 -'!$B42:H42,B42) -> 1355 | E42: 1355
A43: TURTLE MOUNTAIN | B43: 30 | C43: =SUM('- 6 -'!$B43:H43,B43) -> 988.5 | E43: 988.5
A44: TURTLE RIVER | B44: 0 | C44: =SUM('- 6 -'!$B44:H44,B44) -> 673 | E44: 673
A45: WESTERN | B45: 30 | C45: =SUM('- 6 -'!$B45:H45,B45) -> 2033 | E45: 2033
A46: WINNIPEG | B46: 698 | C46: =SUM('- 6 -'!$B46:H46,B46) -> 30469.5 | E46: 30469.5
A48: PROVINCE | B48: =SUM(B11:B46) -> 4092.01 | C48: =SUM(C11:C46) -> 183068.16 | E48: =SUM(E11:E46) -> 183068.16
A50: WHITESHELL | B50: 0 | C50: =SUM('- 6 -'!$B50:H50,B50) -> 176 | E50: =C50 -> 176
A51: MITT | B51: 1625 | C51: =SUM('- 6 -'!$B51:H51,B51) -> 1774 | E51: 1774
A53: (1) Special Placement students are not reported separately. They are included in Regular Instruction Enrolment. As a result, total enrolment in Regular Instruction is equal to Total K-12 FTE enrolment.

Sheet - 8 -
B2: =IF(Lang=1,BA2,BB2) -> ENROLMENTS - HEADCOUNT, FRAME AND ELIGIBLE | BA2: ENROLMENTS - HEADCOUNT, FRAME AND ELIGIBLE | BB2: INSCRIPTIONS – ÉLÈVES PRÉSENTS, SELON LE SYSTÈME COMPTABLE FRAME, ET ADMISSIBLES
B3: =IF(Lang=1,BA3,BB3) -> ACTUAL AND ESTIMATES AS OF SEPTEMBER 30 | BA3: ACTUAL AND ESTIMATES AS OF SEPTEMBER 30 | BB3: CHIFFRES RÉELS ET PRÉVISIONS AU 30 SEPTEMBRE
B5: HEADCOUNT (1) | E5: FRAME (2) | F5: ELIGIBLE (3) | G5: ELIGIBLE (3)
B6: ACTUAL SEP. 30, 2020 | E6: ESTIMATE SEP. 30, 2021 | F6: ACTUAL SEP. 30, 2020 | G6: ACTUAL SEP. 30, 2019
B8: N-12 ENROLMENT | C8: NURSERY ENROLMENT | D8: K-12 ENROLMENT | E8: K-12 FTE ENROLMENT | F8: K-12 ENROLMENT | G8: K-12 ENROLMENT
A9: DIVISION / DISTRICT
A11: BEAUTIFUL PLAINS | B11: 1975 | C11: 0 | D11: =+B11-C11 -> 1975 | E11: ='- 7 -'!E11 -> 2072 | F11: 1900.3 | G11: 1957.3
A12: BORDER LAND | B12: 2051 | C12: 0 | D12: =+B12-C12 -> 2051 | E12: ='- 7 -'!E12 -> 2159.86 | F12: 1892 | G12: 2093.7
A13: BRANDON | B13: 8800 | C13: 0 | D13: 8800 | E13: ='- 7 -'!E13 -> 8747.5 | F13: 8478.9 | G13: 8620.8
A14: DSFM | B14: 5834 | C14: 33 | D14: 5801 | E14: ='- 7 -'!E14 -> 6063 | F14: 5514.5 | G14: 5512.2
A15: EVERGREEN | B15: 1386 | C15: 0 | D15: 1386 | E15: ='- 7 -'!E15 -> 1345 | F15: 1316 | G15: 1400.8
A16: FLIN FLON | B16: 905 | C16: 0 | D16: 905 | E16: ='- 7 -'!E16 -> 948 | F16: 845.1 | G16: 910.1
A17: FORT LA BOSSE | B17: 1437 | C17: 0 | D17: 1437 | E17: ='- 7 -'!E17 -> 1413.5 | F17: 1341.5 | G17: 1348.7
A18: FRONTIER | B18: 6020 | C18: 0 | D18: 6020 | E18: ='- 7 -'!E18 -> 5893 | F18: 2034.4 | G18: 2113.5
A19: GARDEN VALLEY | B19: 4100 | C19: 0 | D19: 4100 | E19: ='- 7 -'!E19 -> 4262 | F19: 3953.1 | G19: 4362.9
A20: HANOVER | B20: 7760 | C20: 0 | D20: 7760 | E20: ='- 7 -'!E20 -> 8153 | F20: 7470.9 | G20: 8017.5
A21: INTERLAKE | B21: 2921 | C21: 0 | D21: 2921 | E21: ='- 7 -'!E21 -> 2856 | F21: 2805.6 | G21: 2824
A22: KELSEY | B22: 1462 | C22: 0 | D22: 1462 | E22: ='- 7 -'!E22 -> 1449 | F22: 1410.6 | G22: 1464.5
A23: LAKESHORE | B23: 933 | C23: 0 | D23: 933 | E23: ='- 7 -'!E23 -> 932 | F23: 874.5 | G23: 914.8
A24: LORD SELKIRK | B24: 3757 | C24: 0 | D24: 3757 | E24: ='- 7 -'!E24 -> 3720 | F24: 3578.8 | G24: 3680.8
A25: LOUIS RIEL | B25: 15198 | C25: 0 | D25: 15198 | E25: ='- 7 -'!E25 -> 15453 | F25: 14512.9 | G25: 14713.9
A26: MOUNTAIN VIEW | B26: 3003 | C26: 0 | D26: 3003 | E26: ='- 7 -'!E26 -> 3032 | F26: 2847.7 | G26: 2962
A27: MYSTERY LAKE | B27: 2958 | C27: 0 | D27: 2958 | E27: ='- 7 -'!E27 -> 2809.8 | F27: 2803.3 | G27: 2961.7
A28: PARK WEST | B28: 2032 | C28: 25 | D28: 2007 | E28: ='- 7 -'!E28 -> 2032.5 | F28: 1440.5 | G28: 1487.2
A29: PEMBINA TRAILS | B29: 14740 | C29: 0 | D29: 14740 | E29: ='- 7 -'!E29 -> 14679 | F29: 14171.3 | G29: 14142.8
A30: PINE CREEK | B30: 1043 | C30: 0 | D30: 1043 | E30: ='- 7 -'!E30 -> 1063 | F30: 997.5 | G30: 1025.5
A31: PORTAGE LA PRAIRIE | B31: 3306 | C31: 0 | D31: 3306 | E31: ='- 7 -'!E31 -> 3359 | F31: 2957.7 | G31: 3017.1
A32: PRAIRIE ROSE | B32: 2304 | C32: 0 | D32: 2304 | E32: ='- 7 -'!E32 -> 2368 | F32: 2214.9 | G32: 2275.4
A33: PRAIRIE SPIRIT | B33: 2085 | C33: 0 | D33: 2085 | E33: ='- 7 -'!E33 -> 2098.5 | F33: 1958 | G33: 2010.2
A34: RED RIVER VALLEY | B34: 2242 | C34: 0 | D34: 2242 | E34: ='- 7 -'!E34 -> 2253.7 | F34: 2156.9 | G34: 2222
A35: RIVER EAST TRANSCONA | B35: 16399 | C35: 0 | D35: 16399 | E35: ='- 7 -'!E35 -> 16296 | F35: 15756.1 | G35: 16052.3
A36: ROLLING RIVER | B36: 1763 | C36: 0 | D36: 1763 | E36: ='- 7 -'!E36 -> 1813.5 | F36: 1603.5 | G36: 1621.5
A37: SEINE RIVER | B37: 4258 | C37: 0 | D37: 4258 | E37: ='- 7 -'!E37 -> 4364 | F37: 4073.7 | G37: 4275.4
A38: SEVEN OAKS | B38: 11473 | C38: 0 | D38: 11473 | E38: ='- 7 -'!E38 -> 11694.9 | F38: 11004.6 | G38: 11265.7
A39: SOUTHWEST HORIZON | B39: 1521 | C39: 0 | D39: 1521 | E39: ='- 7 -'!E39 -> 1508.5 | F39: 1460.3 | G39: 1485.7
A40: ST. JAMES-ASSINIBOIA | B40: 8234 | C40: 0 | D40: 8234 | E40: ='- 7 -'!E40 -> 8187.9 | F40: 7881.9 | G40: 8017
A41: SUNRISE | B41: 4497 | C41: 0 | D41: 4497 | E41: ='- 7 -'!E41 -> 4522 | F41: 4308.5 | G41: 4474.9
A42: SWAN VALLEY | B42: 1343 | C42: 0 | D42: 1343 | E42: ='- 7 -'!E42 -> 1355 | F42: 1267.2 | G42: 1332.6
A43: TURTLE MOUNTAIN | B43: 1002 | C43: 0 | D43: 1002 | E43: ='- 7 -'!E43 -> 988.5 | F43: 965.9 | G43: 1002.5
A44: TURTLE RIVER | B44: 671 | C44: 2 | D44: 669 | E44: ='- 7 -'!E44 -> 673 | F44: 648 | G44: 688.2
A45: WESTERN | B45: 1870 | C45: 0 | D45: 1870 | E45: ='- 7 -'!E45 -> 2033 | F45: 1783.9 | G45: 1918.4
A46: WINNIPEG | B46: 29595 | C46: 1134 | D46: 28461 | E46: ='- 7 -'!E46 -> 30469.5 | F46: 26997.7 | G46: 29272.1
A48: PROVINCE | B48: =SUM(B11:B46) -> 180878 | C48: 1194 | D48: 179684 | E48: 183068.16 | F48: 167228.2 | G48: 173445.7
A50: WHITESHELL | B50: 200 | C50: 8 | D50: =+B50-C50 -> 192 | E50: ='- 7 -'!E50 -> 176 | F50: 184 | G50: 184
B51: 0 | C51: 0 | D51: 0
A53: (1) Pupils taught in schools, whether or not they are counted for grant purposes.
A54: (2) The total number of pupils enrolled in schools adjusted for full time equivalence (FTE). Full time equivalent means pupils are counted on the basis of time attending school - eg. Kindergarten as 1/2. This total is the same as reported on page 7.
A56: (3) Provincially supported pupils (actual September 30, 2020 for 2021/22 and actual September 30, 2019 for 2020/21).

Sheet - 9 -
B2: =IF(Lang=1,BA2,BB2) -> PUPIL / TEACHER RATIOS | BA2: PUPIL / TEACHER RATIOS | BB2: RAPPORTS ÉLÈVES-ENSEIGNANT
B3: =STATDATE -> ESTIMATE SEPTEMBER 30, 2021
B7: FRAME PUPIL / TEACHER RATIOS
B8: REGULAR INSTRUCTION (1) | C8: EDUCATOR (2)
A9: DIVISION / DISTRICT
A11: BEAUTIFUL PLAINS | B11: 17.02827087 | C11: 14.71068513
A12: BORDER LAND | B12: 14.18627258 | C12: 11.50728576
A13: BRANDON | B13: 16.80531007 | C13: 12.79210903
A14: DSFM | B14: 15.20310933 | C14: 12.08973081
A15: EVERGREEN | B15: 14.96106785 | C15: 11.97684773
A16: FLIN FLON | B16: 15.35222672 | C16: 12
A17: FORT LA BOSSE | B17: 14.51828266 | C17: 12.55663143
A18: FRONTIER | B18: 14.08730159 | C18: 11.03289461
A19: GARDEN VALLEY | B19: 18.12151877 | C19: 14.42984832
A20: HANOVER | B20: 17.720446 | C20: 14.35614798
A21: INTERLAKE | B21: 15.89315526 | C21: 12.0126183
A22: KELSEY | B22: 16.11970186 | C22: 12.43349923
A23: LAKESHORE | B23: 14.97188755 | C23: 11.60647572
A24: LORD SELKIRK | B24: 14.70355731 | C24: 11.66144201
A25: LOUIS RIEL | B25: 18.27114075 | C25: 14.16601733
A26: MOUNTAIN VIEW | B26: 15.68952135 | C26: 13.00896726
A27: MYSTERY LAKE | B27: 14.87768718 | C27: 11.76337604
A28: PARK WEST | B28: 14.61809551 | C28: 12.0344603
A29: PEMBINA TRAILS | B29: 17.9680519 | C29: 14.40855149
A30: PINE CREEK | B30: 14.95077356 | C30: 12.46189918
A31: PORTAGE LA PRAIRIE | B31: 16.32325785 | C31: 12.92270996
A32: PRAIRIE ROSE | B32: 15.00253421 | C32: 12.1541857
A33: PRAIRIE SPIRIT | B33: 15.51571165 | C33: 12.74715262
A34: RED RIVER VALLEY | B34: 16.14976711 | C34: 12.69332582
A35: RIVER EAST TRANSCONA | B35: 17.43111415 | C35: 13.67825547
A36: ROLLING RIVER | B36: 16.34741065 | C36: 13.3951324
A37: SEINE RIVER | B37: 18.33998739 | C37: 13.93136472
A38: SEVEN OAKS | B38: 17.19458943 | C38: 14.08854355
A39: SOUTHWEST HORIZON | B39: 13.96500648 | C39: 11.78607704
A40: ST. JAMES-ASSINIBOIA | B40: 17.65508765 | C40: 13.44504836
A41: SUNRISE | B41: 16.45799971 | C41: 12.75383574
A42: SWAN VALLEY | B42: 14.89993402 | C42: 12.19512195
A43: TURTLE MOUNTAIN | B43: 15.51805338 | C43: 12.6633359
A44: TURTLE RIVER | B44: 12.9672447 | C44: 10.65716548
A45: WESTERN | B45: 17.04821803 | C45: 14.15984677
A46: WINNIPEG | B46: 17.56936756 | C46: 13.40573812
A48: PROVINCE | B48: 16.78819761 | C48: 13.2352908
A50: WHITESHELL | B50: 10.66666667 | C50: 9.389170445
A51: MITT | B51: 45.48717949 | C51: 37.74468085
A53: (1) Based on object code 330 instructional-teaching personnel and FTE students in Function 100. Included are teachers in physical education, music, EAL, etc. in addition to regular classroom teachers. School-based administrative personnel and Special Placement classroom teachers are excluded.
A56: (2) Based on total instructional-teaching (excluding Community Education and Adult Learning Centres) as well as school-based administrative staff - eg. department heads, coordinators, principals and vice-principals - and K-12 FTE enrolment. Division administrators (Function 500) are excluded.

Sheet - 10 -
C2: =OPYEAR -> OPERATING FUND 2021/2022 BUDGET
C5: =IF(Lang=1,BA5,BB5) -> EXPENSE BY FUNCTION AND OBJECT | BA5: EXPENSE BY FUNCTION AND OBJECT | BB5: DÉPENSES PAR FONCTION ET PAR OBJET
C10: OBJECT
C12: SALARIES | D12: EMPLOYEE BENEFITS | E12: SERVICES | F12: SUPPLIES AND MATERIALS | G12: DEBT SERVICES | H12: BAD DEBT EXPENSE | I12: TRANSFERS | K12: TOTALS
A13: FUNCTION | N13: =IF($N$27=0,"","Variance") -> 
A15: 100 | B15: REGULAR INSTRUCTION | C15: ='- 12 -'!B22 -> 1229396281 | D15: ='- 12 -'!B23 -> 77616348 | E15: ='- 12 -'!B40 -> 32177553 | F15: ='- 12 -'!B46 -> 80245769 | K15: =SUM(C15:F15) -> 1419435951 | N15: =IF($N$27=0,"",K15-'- 12 -'!$B$51) -> 
A16: 200 | B16: STUDENT SUPPORT SERVICES | C16: ='- 12 -'!D22 -> 411704089 | D16: ='- 12 -'!D23 -> 43290840 | E16: ='- 12 -'!D40 -> 11799652 | F16: ='- 12 -'!D46 -> 5249739 | K16: =SUM(C16:F16) -> 472044320 | N16: =IF($N$27=0,"",K16-'- 12 -'!$D$51) -> 
A17: 300 | B17: ADULT LEARNING CENTRES | C17: ='- 12 -'!F22 -> 9377483 | D17: ='- 12 -'!F23 -> 650870 | E17: ='- 12 -'!F40 -> 1115327 | F17: ='- 12 -'!F46 -> 427014 | I17: ='- 12 -'!F48 -> 27000 | J17: (1) | K17: =SUM(C17:F17,I17) -> 11597694 | N17: =IF($N$27=0,"",K17-'- 12 -'!$F$51) -> 
A18: 400 | B18: COMMUNITY EDUCATION & SERVICES | C18: ='- 12 -'!H22 -> 16256362 | D18: ='- 12 -'!H23 -> 1755640 | E18: ='- 12 -'!H40 -> 2066674 | F18: ='- 12 -'!H46 -> 1702150 | K18: =SUM(C18:F18) -> 21780826 | N18: =IF($N$27=0,"",K18-'- 12 -'!$H$51) -> 
A19: 500 | B19: DIVISIONAL ADMINISTRATION | C19: ='- 12 -'!J22 -> 49933329 | D19: ='- 12 -'!J23 -> 7421104 | E19: ='- 12 -'!J40 -> 17845938 | F19: ='- 12 -'!J46 -> 2326532 | I19: ='- 12 -'!J48 -> -27000 | J19: (1) | K19: =SUM(C19:F19,I19) -> 77499903 | N19: =IF($N$27=0,"",K19-'- 12 -'!$J$51) -> 
L20: - 10 -
A21: 600 | B21: INSTRUCTIONAL AND OTHER SUPPORT SERVICES | C21: ='- 13 -'!B22 -> 54592134 | D21: ='- 13 -'!B23 -> 5624822 | E21: ='- 13 -'!B40 -> 15265899 | F21: ='- 13 -'!B46 -> 7623333 | K21: =SUM(C21:F21) -> 83106188 | N21: =IF($N$27=0,"",K21-'- 13 -'!$B$54) -> 
A22: 700 | B22: TRANSPORTATION OF PUPILS | C22: ='- 13 -'!D22 -> 50455998 | D22: ='- 13 -'!D23 -> 8058120 | E22: ='- 13 -'!D40 -> 31541525 | F22: ='- 13 -'!D46 -> 20432491 | K22: =SUM(C22:F22) -> 110488134 | N22: =IF($N$27=0,"",K22-'- 13 -'!$D$54) -> 
A23: 800 | B23: OPERATIONS AND MAINTENANCE | C23: ='- 13 -'!F22 -> 126807018 | D23: ='- 13 -'!F23 -> 22432795 | E23: ='- 13 -'!F40 -> 108207836 | F23: ='- 13 -'!F46 -> 27421434 | I23: ='- 13 -'!F52 -> 0 | K23: =SUM(C23:F23,I23) -> 284869083 | N23: =IF($N$27=0,"",K23-'- 13 -'!$F$54) -> 
A24: 900 | B24: FISCAL | G24: 2594201 | H24: 8000 | I24: 41171382 | J24: (2) | K24: =SUM(G24:I24) -> 43773583 | N24: =IF($N$27=0,"",K24-'- 13 -'!$H$54) -> 
B27: TOTALS | C27: =SUM(C15:C24) -> 1948522694 | D27: =SUM(D15:D24) -> 166850539 | E27: =SUM(E15:E24) -> 220020404 | F27: =SUM(F15:F24) -> 145428462 | G27: =G24 -> 2594201 | H27: =H24 -> 8000 | I27: =SUM(I15:I24) -> 41171382 | K27: =SUM(K15:K24) -> 2524595682 | N27: =K27-'- 3 -'!D48 -> 0
A30: (1) | B30: Reallocation of administration costs associated with Adult Learning Centre operations from Function 500 to Function 300.
A31: (2) | B31: Reallocation of school building costs associated with Adult Learning Centre operations to Function 300
A32: (2) | B32: Health and Education Levy.

Sheet - 12 -
D2: =OPYEAR -> OPERATING FUND 2021/2022 BUDGET | K2: PAGE 1 OF 2
B4: =IF(Lang=1,BA4,BB4) -> EXPENSE BY 2ND LEVEL OBJECT | BA4: EXPENSE BY 2ND LEVEL OBJECT | BB4: DÉPENSES PAR OBJET DE DEUXIÈME CATÉGORIE EXPRIMÉES
B5: =IF(Lang=1,BA5,BB5) -> AS A PERCENTAGE OF TOTAL OPERATING FUND EXPENSES | BA5: AS A PERCENTAGE OF TOTAL OPERATING FUND EXPENSES | BB5: EN POURCENTAGE DU TOTAL DES DÉPENSES DU FONDS DE FONCTIONNEMENT
B7: FUNCTION
B9: REGULAR INSTRUCTION | D9: STUDENT SUPPORTSERVICES | F9: ADULT LEARNING CENTRES | H9: COMMUNITY EDUCATION | J9: DIVISIONAL ADMINISTRATION
A11: OBJECT | B11: AMOUNT | C11: % | D11: AMOUNT | E11: % | F11: AMOUNT | G11: % | H11: AMOUNT | I11: % | J11: AMOUNT | K11: %
A13: SALARIES
A14: TRUSTEES REMUNERATION | J14: 4158398
A15: EXECUTIVE MANAGERIAL, & SUPERVISORY | B15: 101411659 | C15: =B15/'- 13 -'!$J$54*100 -> 4.016946544 | D15: 7113768 | E15: =D15/'- 13 -'!$J$54*100 -> 0.2817785062 | F15: 1071758 | G15: =F15/'- 13 -'!$J$54*100 -> 0.04245265916 | H15: 754959 | I15: =H15/'- 13 -'!$J$54*100 -> 0.02990415477 | J15: 20350462 | K15: =J15/'- 13 -'!$J$54*100 -> 0.8060879667
A16: INSTRUCTIONAL - TEACHING | B16: 1038917084 | C16: =B16/'- 13 -'!$J$54*100 -> 41.15182052 | D16: 170482619 | E16: =D16/'- 13 -'!$J$54*100 -> 6.7528682 | F16: 7219778 | G16: =F16/'- 13 -'!$J$54*100 -> 0.2859775944 | H16: 7731170 | I16: =H16/'- 13 -'!$J$54*100 -> 0.3062339865 | K16: =J16/'- 13 -'!$J$54*100 -> 0
A17: INSTRUCTIONAL - OTHER | B17: 25003549 | C17: =B17/'- 13 -'!$J$54*100 -> 0.9903981528 | D17: 182494374 | E17: =D17/'- 13 -'!$J$54*100 -> 7.228657456 | F17: 418632 | G17: =F17/'- 13 -'!$J$54*100 -> 0.01658214038 | H17: 4658426 | I17: =H17/'- 13 -'!$J$54*100 -> 0.1845216655 | K17: =J17/'- 13 -'!$J$54*100 -> 0
A18: TECHNICAL, SPECIALIZED AND SERVICE | B18: 8485098 | C18: =B18/'- 13 -'!$J$54*100 -> 0.336097303 | D18: 2094864 | E18: =D18/'- 13 -'!$J$54*100 -> 0.08297819785 | F18: 170667 | G18: =F18/'- 13 -'!$J$54*100 -> 0.006760171588 | H18: 1727971 | I18: =H18/'- 13 -'!$J$54*100 -> 0.06844545494 | J18: 7446772 | K18: =J18/'- 13 -'!$J$54*100 -> 0.2949688955
A19: SECRETARIAL, CLERICAL AND OTHER | B19: 41834112 | C19: =B19/'- 13 -'!$J$54*100 -> 1.657061853 | D19: 2765674 | E19: =D19/'- 13 -'!$J$54*100 -> 0.1095491852 | F19: 496648 | G19: =F19/'- 13 -'!$J$54*100 -> 0.01967237778 | H19: 817914 | I19: =H19/'- 13 -'!$J$54*100 -> 0.03239782139 | J19: 15998576 | K19: =J19/'- 13 -'!$J$54*100 -> 0.6337084435
A20: CLINICIAN | D20: 46601836 | E20: =D20/'- 13 -'!$J$54*100 -> 1.845912846 | H20: 550566
A21: INFORMATION TECHNOLOGY | B21: 13744779 | C21: =B21/'- 13 -'!$J$54*100 -> 0.5444348613 | D21: 150954 | E21: =D21/'- 13 -'!$J$54*100 -> 0.005979333684 | F21: 0 | G21: =F21/'- 13 -'!$J$54*100 -> 0 | H21: 15356 | I21: =H21/'- 13 -'!$J$54*100 -> 0.0006082558134 | J21: 1979121 | K21: =J21/'- 13 -'!$J$54*100 -> 0.07839358255
A22: TOTAL SALARIES | B22: =SUM(B14:B21) -> 1229396281 | C22: =B22/'- 13 -'!$J$54*100 -> 48.69675924 | D22: =SUM(D14:D21) -> 411704089 | E22: =D22/'- 13 -'!$J$54*100 -> 16.30772373 | F22: =SUM(F14:F21) -> 9377483 | G22: =F22/'- 13 -'!$J$54*100 -> 0.3714449433 | H22: =SUM(H14:H21) -> 16256362 | I22: =H22/'- 13 -'!$J$54*100 -> 0.643919425 | J22: =SUM(J14:J21) -> 49933329 | K22: =J22/'- 13 -'!$J$54*100 -> 1.977874293
A23: EMPLOYEE BENEFITS AND ALLOWANCES | B23: 77616348 | C23: =B23/'- 13 -'!$J$54*100 -> 3.074407065 | D23: 43290840 | E23: =D23/'- 13 -'!$J$54*100 -> 1.714763291 | F23: 650870 | G23: =F23/'- 13 -'!$J$54*100 -> 0.02578115794 | H23: 1755640 | I23: =H23/'- 13 -'!$J$54*100 -> 0.06954143242 | J23: 7421104 | K23: =J23/'- 13 -'!$J$54*100 -> 0.2939521783
A24: SERVICES
A25: PROFESSIONAL, TECHNICAL & SPECIALIZED | B25: 4831284 | C25: =B25/'- 13 -'!$J$54*100 -> 0.1913686233 | D25: 7073056 | E25: =D25/'- 13 -'!$J$54*100 -> 0.2801658915 | F25: 53572 | G25: =F25/'- 13 -'!$J$54*100 -> 0.002122003154 | H25: 1212772 | I25: =H25/'- 13 -'!$J$54*100 -> 0.04803826643 | J25: 4286853 | K25: =J25/'- 13 -'!$J$54*100 -> 0.1698035464
A26: COMMUNICATIONS | B26: 3715476 | C26: =B26/'- 13 -'!$J$54*100 -> 0.1471711303 | D26: 332334 | E26: =D26/'- 13 -'!$J$54*100 -> 0.01316385045 | F26: 66233 | G26: =F26/'- 13 -'!$J$54*100 -> 0.002623509201 | H26: 19993 | I26: =H26/'- 13 -'!$J$54*100 -> 0.0007919287885 | J26: 1161229 | K26: =J26/'- 13 -'!$J$54*100 -> 0.04599663258 | L26: - 12 -
A27: UTILITY SERVICES | C27: =B27/'- 13 -'!$J$54*100 -> 0 | E27: =D27/'- 13 -'!$J$54*100 -> 0 | F27: 62110 | G27: =F27/'- 13 -'!$J$54*100 -> 0.002460195921 | I27: =H27/'- 13 -'!$J$54*100 -> 0 | K27: =J27/'- 13 -'!$J$54*100 -> 0
A28: TRAVEL AND MEETINGS | B28: 2653740 | C28: =B28/'- 13 -'!$J$54*100 -> 0.1051154456 | D28: 2412774 | E28: =D28/'- 13 -'!$J$54*100 -> 0.09557070929 | F28: 75054 | G28: =F28/'- 13 -'!$J$54*100 -> 0.002972911684 | H28: 87460 | I28: =H28/'- 13 -'!$J$54*100 -> 0.003464317103 | J28: 2114733 | K28: =J28/'- 13 -'!$J$54*100 -> 0.08376521496
A29: TRANSPORTATION OF PUPILS | C29: =B29/'- 13 -'!$J$54*100 -> 0 | E29: =D29/'- 13 -'!$J$54*100 -> 0 | G29: =F29/'- 13 -'!$J$54*100 -> 0 | I29: =H29/'- 13 -'!$J$54*100 -> 0 | K29: =J29/'- 13 -'!$J$54*100 -> 0
A30: TUITION | B30: 1180678 | C30: =B30/'- 13 -'!$J$54*100 -> 0.04676701336 | D30: 1110620 | E30: =D30/'- 13 -'!$J$54*100 -> 0.04399199475 | F30: 0 | G30: =F30/'- 13 -'!$J$54*100 -> 0 | I30: =H30/'- 13 -'!$J$54*100 -> 0 | K30: =J30/'- 13 -'!$J$54*100 -> 0
A31: PRINTING AND BINDING | B31: 439995 | C31: =B31/'- 13 -'!$J$54*100 -> 0.01742833528 | D31: 26250 | E31: =D31/'- 13 -'!$J$54*100 -> 0.001039770455 | F31: 2943 | G31: =F31/'- 13 -'!$J$54*100 -> 0.0001165731218 | H31: 46900 | I31: =H31/'- 13 -'!$J$54*100 -> 0.001857723212 | J31: 193950 | K31: =J31/'- 13 -'!$J$54*100 -> 0.007682418273
A32: INSURANCE AND BOND PREMIUMS | B32: 138637 | C32: =B32/'- 13 -'!$J$54*100 -> 0.005491453582 | D32: 21693 | E32: =D32/'- 13 -'!$J$54*100 -> 0.0008592663037 | F32: 8366 | G32: =F32/'- 13 -'!$J$54*100 -> 0.0003313797952 | H32: 0 | I32: =H32/'- 13 -'!$J$54*100 -> 0 | J32: 1845256 | K32: =J32/'- 13 -'!$J$54*100 -> 0.07309114933
A33: MAINTENANCE AND REPAIR SERVICES | B33: 2715140 | C33: =B33/'- 13 -'!$J$54*100 -> 0.1075475182 | D33: 102243 | E33: =D33/'- 13 -'!$J$54*100 -> 0.004049876213 | F33: 221055 | G33: =F33/'- 13 -'!$J$54*100 -> 0.008756055537 | H33: 7100 | I33: =H33/'- 13 -'!$J$54*100 -> 0.0002812331515 | J33: 177660 | K33: =J33/'- 13 -'!$J$54*100 -> 0.007037166437
A34: RENTALS | B34: 3141784 | C34: =B34/'- 13 -'!$J$54*100 -> 0.1244470163 | D34: 181234 | E34: =D34/'- 13 -'!$J$54*100 -> 0.00717873366 | F34: 515866 | G34: =F34/'- 13 -'!$J$54*100 -> 0.02043360858 | H34: 587040 | I34: =H34/'- 13 -'!$J$54*100 -> 0.02325283229 | J34: 385848 | K34: =J34/'- 13 -'!$J$54*100 -> 0.0152835562
A35: PROPERTY TAXES | C35: =B35/'- 13 -'!$J$54*100 -> 0 | E35: =D35/'- 13 -'!$J$54*100 -> 0 | F35: 19091 | G35: =F35/'- 13 -'!$J$54*100 -> 0.0007562002952 | I35: =H35/'- 13 -'!$J$54*100 -> 0 | K35: =J35/'- 13 -'!$J$54*100 -> 0
A36: ADVERTISING | B36: 299191 | C36: =B36/'- 13 -'!$J$54*100 -> 0.01185104617 | D36: 28030 | E36: =D36/'- 13 -'!$J$54*100 -> 0.001110276794 | F36: 32636 | G36: =F36/'- 13 -'!$J$54*100 -> 0.00129272185 | H36: 60560 | I36: =H36/'- 13 -'!$J$54*100 -> 0.002398799952 | J36: 627950 | K36: =J36/'- 13 -'!$J$54*100 -> 0.02487328979
A37: DUES AND FEES | B37: 833517 | C37: =B37/'- 13 -'!$J$54*100 -> 0.03301586095 | D37: 122047 | E37: =D37/'- 13 -'!$J$54*100 -> 0.004834318654 | F37: 270 | G37: =F37/'- 13 -'!$J$54*100 -> 1.069478182e-05 | H37: 9555 | I37: =H37/'- 13 -'!$J$54*100 -> 0.0003784764455 | J37: 3094123 | K37: =J37/'- 13 -'!$J$54*100 -> 0.1225591497
A38: PROFESSIONAL AND STAFF DEVELOPMENT | B38: 459063 | C38: =B38/'- 13 -'!$J$54*100 -> 0.01818362454 | D38: 182132 | E38: =D38/'- 13 -'!$J$54*100 -> 0.007214303712 | F38: 41279 | G38: =F38/'- 13 -'!$J$54*100 -> 0.001635073699 | H38: 28494 | I38: =H38/'- 13 -'!$J$54*100 -> 0.001128655975 | J38: 1307652 | K38: =J38/'- 13 -'!$J$54*100 -> 0.05179649198
A39: INFORMATION TECHNOLOGY SERVICES | B39: 11769048 | C39: =B39/'- 13 -'!$J$54*100 -> 0.4661755577 | D39: 207239 | E39: =D39/'- 13 -'!$J$54*100 -> 0.00820879959 | F39: 16852 | G39: =F39/'- 13 -'!$J$54*100 -> 0.0006675128267 | H39: 6800 | I39: =H39/'- 13 -'!$J$54*100 -> 0.0002693500606 | J39: 2650684 | K39: =J39/'- 13 -'!$J$54*100 -> 0.1049943965
A40: TOTAL SERVICES | B40: =SUM(B25:B39) -> 32177553 | C40: =B40/'- 13 -'!$J$54*100 -> 1.274562625 | D40: =SUM(D25:D39) -> 11799652 | E40: =D40/'- 13 -'!$J$54*100 -> 0.4673877914 | F40: =SUM(F25:F39) -> 1115327 | G40: =F40/'- 13 -'!$J$54*100 -> 0.04417844045 | H40: =SUM(H25:H39) -> 2066674 | I40: =H40/'- 13 -'!$J$54*100 -> 0.08186158341 | J40: =SUM(J25:J39) -> 17845938 | K40: =J40/'- 13 -'!$J$54*100 -> 0.7068830121
A41: SUPPLIES AND EQUIPMENT
A42: SUPPLIES | B42: 39357870 | C42: =B42/'- 13 -'!$J$54*100 -> 1.558977157 | D42: 3426417 | E42: =D42/'- 13 -'!$J$54*100 -> 0.1357214157 | F42: 243034 | G42: =F42/'- 13 -'!$J$54*100 -> 0.009626650387 | H42: 1596026 | I42: =H42/'- 13 -'!$J$54*100 -> 0.06321907351 | J42: 1106231 | K42: =J42/'- 13 -'!$J$54*100 -> 0.04381814513
A43: CURRICULAR AND MEDIA MATERIALS | B43: 11236313 | C43: =B43/'- 13 -'!$J$54*100 -> 0.4450737629 | D43: 655156 | E43: =D43/'- 13 -'!$J$54*100 -> 0.02595092769 | F43: 59961 | G43: =F43/'- 13 -'!$J$54*100 -> 0.00237507338 | H43: 74690 | I43: =H43/'- 13 -'!$J$54*100 -> 0.002958493534 | J43: 84260 | K43: =J43/'- 13 -'!$J$54*100 -> 0.003337564134
A44: MINOR EQUIPMENT | B44: 9177021 | C44: =B44/'- 13 -'!$J$54*100 -> 0.3635045828 | D44: 383510 | E44: =D44/'- 13 -'!$J$54*100 -> 0.01519094732 | F44: 36630 | G44: =F44/'- 13 -'!$J$54*100 -> 0.0014509254 | H44: 15456 | I44: =H44/'- 13 -'!$J$54*100 -> 0.0006122168437 | J44: 311447 | K44: =J44/'- 13 -'!$J$54*100 -> 0.01233651005
A45: INFORMATION TECHNOLOGY EQUIPMENT | B45: 20474565 | C45: =B45/'- 13 -'!$J$54*100 -> 0.8110037241 | D45: 784656 | E45: =D45/'- 13 -'!$J$54*100 -> 0.03108046194 | F45: 87389 | G45: =F45/'- 13 -'!$J$54*100 -> 0.003461504772 | H45: 15978 | I45: =H45/'- 13 -'!$J$54*100 -> 0.0006328934219 | J45: 824594 | K45: =J45/'- 13 -'!$J$54*100 -> 0.03266241822
A46: TOTAL SUPPLIES AND EQUIPMENT | B46: =SUM(B42:B45) -> 80245769 | C46: =B46/'- 13 -'!$J$54*100 -> 3.178559227 | D46: =SUM(D42:D45) -> 5249739 | E46: =D46/'- 13 -'!$J$54*100 -> 0.2079437526 | F46: =SUM(F42:F45) -> 427014 | G46: =F46/'- 13 -'!$J$54*100 -> 0.01691415394 | H46: =SUM(H42:H45) -> 1702150 | I46: =H46/'- 13 -'!$J$54*100 -> 0.06742267731 | J46: =SUM(J42:J45) -> 2326532 | K46: =J46/'- 13 -'!$J$54*100 -> 0.09215463754
A47: TRANSFERS
A48: RECHARGE (1) | F48: 27000 | J48: -27000 | M48: =F48+J48+'- 13 -'!F48 -> 0
A49: TOTAL TRANSFERS | F49: =F48 -> 27000 | J49: =J48 -> -27000
A51: PROVINCE | B51: =SUM(B47,B46,B40,B23,B22) -> 1419435951 | C51: =B51/'- 13 -'!$J$54*100 -> 56.22428816 | D51: =SUM(D47,D46,D40,D23,D22) -> 472044320 | E51: =D51/'- 13 -'!$J$54*100 -> 18.69781856 | F51: =SUM(F49,F46,F40,F23,F22) -> 11597694 | G51: =F51/'- 13 -'!$J$54*100 -> 0.4593881738 | H51: =SUM(H47,H46,H40,H23,H22) -> 21780826 | I51: =H51/'- 13 -'!$J$54*100 -> 0.8627451182 | J51: =SUM(J49,J46,J40,J23,J22) -> 77499903 | K51: =J51/'- 13 -'!$J$54*100 -> 3.069794643
A52: (1) Reallocation of administration costs associated with Adult Learning Centre operations from Function 500 to Function 300.

Sheet - 13 -
C2: =OPYEAR -> OPERATING FUND 2021/2022 BUDGET | K2: PAGE 2 OF 2
B4: =+'- 12 -'!B4 -> EXPENSE BY 2ND LEVEL OBJECT
B5: =+'- 12 -'!B5 -> AS A PERCENTAGE OF TOTAL OPERATING FUND EXPENSES
B7: FUNCTION
B9: INSTRUCTIONAL & OTHER SUPPORT SERVICES | D9: TRANSPORTATION OF PUPILS | F9: OPERATIONS AND MAINTENANCE | H9: FISCAL | J9: TOTAL
A11: OBJECT | B11: AMOUNT | C11: % | D11: AMOUNT | E11: % | F11: AMOUNT | G11: % | H11: AMOUNT | I11: % | J11: AMOUNT | K11: %
A13: SALARIES | M13: SALARIES | N13: =K22 -> 77.18157438
A14: TRUSTEES REMUNERATION | J14: =SUM(F14,D14,B14,'- 12 -'!J14,'- 12 -'!H14,'- 12 -'!F14,'- 12 -'!D14,'- 12 -'!B14) -> 4158398 | K14: =J14/$J$54*100 -> 0.1647154049 | M14: EMPLOYEE BENEFITS | N14: =K23 -> 6.609000411
A15: EXECUTIVE MANAGERIAL, & SUPERVISORY | B15: 5262599 | C15: =B15/$J$54*100 -> 0.2084531411 | D15: 3257916 | E15: =D15/$J$54*100 -> 0.12904704 | F15: 5201546 | G15: =F15/$J$54*100 -> 0.2060348133 | J15: =SUM(F15,D15,B15,'- 12 -'!J15,'- 12 -'!H15,'- 12 -'!F15,'- 12 -'!D15,'- 12 -'!B15) -> 144424667 | K15: 5.720704825 | M15: SERVICES | N15: =K40 -> 8.715074876
A16: INSTRUCTIONAL - TEACHING | B16: 26108248 | C16: =B16/$J$54*100 -> 1.034155615 | E16: =D16/$J$54*100 -> 0 | G16: =F16/$J$54*100 -> 0 | J16: =SUM(F16,D16,B16,'- 12 -'!J16,'- 12 -'!H16,'- 12 -'!F16,'- 12 -'!D16,'- 12 -'!B16) -> 1250458899 | K16: 49.53105592 | M16: SUPPLIES & MATERIALS | N16: =K46 -> 5.760465449
A17: INSTRUCTIONAL - OTHER | B17: 15298812 | C17: =B17/$J$54*100 -> 0.6059905794 | D17: 464586 | E17: =D17/$J$54*100 -> 0.01840239224 | G17: =F17/$J$54*100 -> 0 | J17: =SUM(F17,D17,B17,'- 12 -'!J17,'- 12 -'!H17,'- 12 -'!F17,'- 12 -'!D17,'- 12 -'!B17) -> 228338379 | K17: 9.044552386 | M17: DEBT SERVICES | N17: =K49 -> 0.1027570877
A18: TECHNICAL, SPECIALIZED AND SERVICE | B18: 5176319 | C18: =B18/$J$54*100 -> 0.2050355642 | D18: 44637728 | E18: =D18/$J$54*100 -> 1.768113933 | F18: 119648028 | G18: =F18/$J$54*100 -> 4.739294646 | J18: =SUM(F18,D18,B18,'- 12 -'!J18,'- 12 -'!H18,'- 12 -'!F18,'- 12 -'!D18,'- 12 -'!B18) -> 189387447 | K18: 7.501694166 | M18: TRANSFERS | N18: =K52-N17 -> 1.6311278
A19: SECRETARIAL, CLERICAL AND OTHER | B19: 2547917 | C19: =B19/$J$54*100 -> 0.1009237645 | D19: 2095768 | E19: =D19/$J$54*100 -> 0.08301400557 | F19: 1957444 | G19: =F19/$J$54*100 -> 0.07753495001 | J19: =SUM(F19,D19,B19,'- 12 -'!J19,'- 12 -'!H19,'- 12 -'!F19,'- 12 -'!D19,'- 12 -'!B19) -> 68514053 | K19: 2.713862401
A20: CLINICIAN | J20: =SUM(F20,D20,B20,'- 12 -'!J20,'- 12 -'!H20,'- 12 -'!F20,'- 12 -'!D20,'- 12 -'!B20) -> 47152402 | K20: 1.867720932 | N20: =SUM(N13:N18) -> 100
A21: INFORMATION TECHNOLOGY | B21: 198239 | C21: =B21/'- 13 -'!$J$54*100 -> 0.007852306863 | D21: 0 | E21: =D21/'- 13 -'!$J$54*100 -> 0 | F21: 0 | G21: =F21/'- 13 -'!$J$54*100 -> 0 | J21: =SUM(F21,D21,B21,'- 12 -'!J21,'- 12 -'!H21,'- 12 -'!F21,'- 12 -'!D21,'- 12 -'!B21) -> 16088449 | K21: 0.6372683402
A22: TOTAL SALARIES | B22: =SUM(B14:B21) -> 54592134 | C22: =B22/$J$54*100 -> 2.162410971 | D22: =SUM(D14:D21) -> 50455998 | E22: =D22/$J$54*100 -> 1.998577371 | F22: =SUM(F14:F21) -> 126807018 | G22: =F22/$J$54*100 -> 5.02286441 | J22: =SUM(F22,D22,B22,'- 12 -'!J22,'- 12 -'!H22,'- 12 -'!F22,'- 12 -'!D22,'- 12 -'!B22) -> 1948522694 | K22: 77.18157438
A23: EMPLOYEE BENEFITS AND ALLOWANCES | B23: 5624822 | C23: =B23/$J$54*100 -> 0.2228009039 | D23: 8058120 | E23: =D23/$J$54*100 -> 0.3191845751 | F23: 22432795 | G23: =F23/$J$54*100 -> 0.8885698078 | J23: =SUM(F23,D23,B23,'- 12 -'!J23,'- 12 -'!H23,'- 12 -'!F23,'- 12 -'!D23,'- 12 -'!B23) -> 166850539 | K23: 6.609000411
A24: SERVICES | M24: REGULAR INSTRUCTION | N24: ='- 12 -'!C51 -> 56.22428816
A25: PROFESSIONAL, TECHNICAL & SPECIALIZED | B25: 2415237 | C25: =B25/$J$54*100 -> 0.09566826947 | D25: 344800 | E25: =D25/$J$54*100 -> 0.01365763249 | F25: 5671068 | G25: =F25/$J$54*100 -> 0.224632722 | J25: =SUM(F25,D25,B25,'- 12 -'!J25,'- 12 -'!H25,'- 12 -'!F25,'- 12 -'!D25,'- 12 -'!B25) -> 25888642 | K25: =J25/$J$54*100 -> 1.025456955 | L25: - 13 - | M25: STUDENT SUPPORT SERVICES | N25: ='- 12 -'!E51 -> 18.69781856
A26: COMMUNICATIONS | B26: 90760 | C26: 0.003595031103 | D26: 434670 | E26: 0.01721741042 | F26: 699358 | G26: 0.02770178231 | J26: =SUM(F26,D26,B26,'- 12 -'!J26,'- 12 -'!H26,'- 12 -'!F26,'- 12 -'!D26,'- 12 -'!B26) -> 6520053 | K26: 0.2582612751 | M26: ADULT LEARNING CENTRES | N26: ='- 12 -'!G51 -> 0.4593881738
A27: UTILITY SERVICES | C27: 0 | E27: 0 | F27: 48116471 | G27: 1.905907997 | J27: =SUM(F27,D27,B27,'- 12 -'!J27,'- 12 -'!H27,'- 12 -'!F27,'- 12 -'!D27,'- 12 -'!B27) -> 48178581 | K27: 1.908368193 | M27: COMMUNITY EDUCATION | N27: ='- 12 -'!I51 -> 0.8627451182
A28: TRAVEL AND MEETINGS | B28: 1099786 | C28: 0.04356285673 | D28: 1749370 | E28: 0.06929307582 | F28: 894337 | G28: 0.03542495958 | J28: =SUM(F28,D28,B28,'- 12 -'!J28,'- 12 -'!H28,'- 12 -'!F28,'- 12 -'!D28,'- 12 -'!B28) -> 11087254 | K28: 0.4391694907 | M28: DIVISIONAL ADMINISTRATION | N28: ='- 12 -'!K51 -> 3.069794643
A29: TRANSPORTATION OF PUPILS | C29: 0 | D29: 21971857 | E29: 0.870311914 | G29: 0 | J29: =SUM(F29,D29,B29,'- 12 -'!J29,'- 12 -'!H29,'- 12 -'!F29,'- 12 -'!D29,'- 12 -'!B29) -> 21971857 | K29: 0.870311914 | M29: INSTRUCTIONAL & PUPIL SUPPORT SERVICES | N29: =C54 -> 3.291861291
A30: TUITION | B30: 4100 | C30: 0.0001624022424 | E30: 0 | G30: 0 | J30: =SUM(F30,D30,B30,'- 12 -'!J30,'- 12 -'!H30,'- 12 -'!F30,'- 12 -'!D30,'- 12 -'!B30) -> 2295398 | K30: 0.09092141036 | M30: TRANSPORTATION OF PUPILS | N30: =E54 -> 4.376468469
A31: PRINTING AND BINDING | B31: 25975 | C31: 0.001028877621 | D31: 7300 | E31: 0.0002891552121 | F31: 10100 | G31: 0.0004000640606 | J31: =SUM(F31,D31,B31,'- 12 -'!J31,'- 12 -'!H31,'- 12 -'!F31,'- 12 -'!D31,'- 12 -'!B31) -> 753413 | K31: 0.02984291724 | M31: OPERATIONS & MAINTENANCE | N31: =G54 -> 11.2837507
A32: INSURANCE AND BOND PREMIUMS | B32: 143830 | C32: 0.005697149885 | D32: 1495949 | E32: 0.05925499321 | F32: 10399975 | G32: 0.4119461613 | J32: =SUM(F32,D32,B32,'- 12 -'!J32,'- 12 -'!H32,'- 12 -'!F32,'- 12 -'!D32,'- 12 -'!B32) -> 14053706 | K32: 0.5566715534 | M32: FISCAL | N32: =I54 -> 1.733884887
A33: MAINTENANCE AND REPAIR SERVICES | B33: 48460 | C33: 0.001919515285 | D33: 3412608 | E33: 0.135174437 | F33: 32423179 | G33: 1.284291945 | J33: =SUM(F33,D33,B33,'- 12 -'!J33,'- 12 -'!H33,'- 12 -'!F33,'- 12 -'!D33,'- 12 -'!B33) -> 39107445 | K33: 1.549057747
A34: RENTALS | B34: 197577 | C34: 0.007826084842 | D34: 1139046 | E34: 0.04511795723 | F34: 3467166 | G34: 0.1373354959 | J34: =SUM(F34,D34,B34,'- 12 -'!J34,'- 12 -'!H34,'- 12 -'!F34,'- 12 -'!D34,'- 12 -'!B34) -> 9615561 | K34: 0.380875285 | N34: =SUM(N24:N32) -> 100
A35: PROPERTY TAXES | C35: 0 | E35: 0 | F35: 5626932 | G35: 0.2228844817 | J35: =SUM(F35,D35,B35,'- 12 -'!J35,'- 12 -'!H35,'- 12 -'!F35,'- 12 -'!D35,'- 12 -'!B35) -> 5646023 | K35: 0.223640682
A36: ADVERTISING | B36: 15100 | C36: =B36/J54 -> 5.981155758e-06 | D36: 28135 | E36: =D36/J54 -> 1.114435876e-05 | F36: 100675 | G36: =F36/J54 -> 3.987767258e-05 | J36: =SUM(F36,D36,B36,'- 12 -'!J36,'- 12 -'!H36,'- 12 -'!F36,'- 12 -'!D36,'- 12 -'!B36) -> 1192277 | K36: 0.04722645327
A37: DUES AND FEES | B37: 199785 | C37: =B37/$J$54*100 -> 0.007913544391 | D37: 64860 | E37: =D37/$J$54*100 -> 0.002569124255 | F37: 111996 | G37: =F37/$J$54*100 -> 0.004436195498 | J37: =SUM(F37,D37,B37,'- 12 -'!J37,'- 12 -'!H37,'- 12 -'!F37,'- 12 -'!D37,'- 12 -'!B37) -> 4436153 | K37: 0.1757173646
A38: PROFESSIONAL AND STAFF DEVELOPMENT | B38: 10152686 | C38: =B38/'- 13 -'!$J$54*100 -> 0.4021509691 | D38: 255020 | E38: =D38/'- 13 -'!$J$54*100 -> 0.01010141948 | F38: 361007 | G38: =F38/'- 13 -'!$J$54*100 -> 0.01429959667 | J38: =SUM(F38,D38,B38,'- 12 -'!J38,'- 12 -'!H38,'- 12 -'!F38,'- 12 -'!D38,'- 12 -'!B38) -> 12787333 | K38: 0.5065101351
A39: INFORMATION TECHNOLOGY SERVICES | B39: 872603 | C39: =B39/$J$54*100 -> 0.03456406926 | D39: 637910 | E39: =D39/$J$54*100 -> 0.02526780841 | F39: 325572 | G39: =F39/$J$54*100 -> 0.01289600558 | J39: =SUM(F39,D39,B39,'- 12 -'!J39,'- 12 -'!H39,'- 12 -'!F39,'- 12 -'!D39,'- 12 -'!B39) -> 16486708 | K39: 0.6530434999
A40: TOTAL SERVICES | B40: =SUM(B25:B39) -> 15265899 | C40: =B40/$J$54*100 -> 0.6046868855 | D40: =SUM(D25:D39) -> 31541525 | E40: =D40/$J$54*100 -> 1.249369363 | F40: =SUM(F25:F39) -> 108207836 | G40: =F40/$J$54*100 -> 4.286145175 | J40: =SUM(F40,D40,B40,'- 12 -'!J40,'- 12 -'!H40,'- 12 -'!F40,'- 12 -'!D40,'- 12 -'!B40) -> 220020404 | K40: 8.715074876
A41: SUPPLIES AND EQUIPMENT
A42: SUPPLIES | B42: 4158845 | C42: =B42/$J$54*100 -> 0.1647331107 | D42: 19815631 | E42: =D42/$J$54*100 -> 0.7849031487 | F42: 23604901 | G42: =F42/$J$54*100 -> 0.9349972817 | J42: =SUM(F42,D42,B42,'- 12 -'!J42,'- 12 -'!H42,'- 12 -'!F42,'- 12 -'!D42,'- 12 -'!B42) -> 93308955 | K42: =J42/$J$54*100 -> 3.695995983
A43: CURRICULAR AND MEDIA MATERIALS | B43: 2863753 | C43: =B43/$J$54*100 -> 0.1134341241 | D43: 14020 | E43: =D43/$J$54*100 -> 0.0005553364485 | F43: 22440 | G43: =F43/$J$54*100 -> 0.0008888552001 | J43: =SUM(F43,D43,B43,'- 12 -'!J43,'- 12 -'!H43,'- 12 -'!F43,'- 12 -'!D43,'- 12 -'!B43) -> 15010593 | K43: =J43/$J$54*100 -> 0.5945741374
A44: MINOR EQUIPMENT | B44: 214247 | C44: =B44/$J$54*100 -> 0.008486388594 | D44: 412390 | E44: =D44/$J$54*100 -> 0.01633489287 | F44: 3670127 | G44: =F44/$J$54*100 -> 0.1453748426 | J44: =SUM(F44,D44,B44,'- 12 -'!J44,'- 12 -'!H44,'- 12 -'!F44,'- 12 -'!D44,'- 12 -'!B44) -> 14220828 | K44: =J44/$J$54*100 -> 0.5632913065
A45: INFORMATION TECHNOLOGY EQUIPMENT | B45: 386488 | C45: =B45/$J$54*100 -> 0.0153089068 | D45: 190450 | E45: =D45/$J$54*100 -> 0.007543782213 | F45: 123966 | G45: =F45/$J$54*100 -> 0.004910330826 | J45: =SUM(F45,D45,B45,'- 12 -'!J45,'- 12 -'!H45,'- 12 -'!F45,'- 12 -'!D45,'- 12 -'!B45) -> 22888086 | K45: =J45/$J$54*100 -> 0.9066040223
A46: TOTAL SUPPLIES AND EQUIPMENT | B46: =SUM(B42:B45) -> 7623333 | C46: =B46/$J$54*100 -> 0.3019625303 | D46: =SUM(D42:D45) -> 20432491 | E46: =D46/$J$54*100 -> 0.8093371602 | F46: =SUM(F42:F45) -> 27421434 | G46: =F46/$J$54*100 -> 1.08617131 | J46: =SUM(F46,D46,B46,'- 12 -'!J46,'- 12 -'!H46,'- 12 -'!F46,'- 12 -'!D46,'- 12 -'!B46) -> 145428462 | K46: =J46/$J$54*100 -> 5.760465449
A47: TRANSFERS
A48: RECHARGE | F48: 0 | J48: ='- 12 -'!F48+'- 12 -'!J48+'- 13 -'!F48 -> 0
A49: DEBT SERVICES | H49: ='- 10 -'!G24 -> 2594201 | I49: =H49/$J$54*100 -> 0.1027570877 | J49: =H49 -> 2594201 | K49: =J49/$J$54*100 -> 0.1027570877
A50: BAD DEBT EXPENSE | H50: ='- 10 -'!H24 -> 8000 | J50: =H50 -> 8000
A51: OTHER GOVERNMENT AUTHORITIES | H51: ='- 10 -'!I24 -> 41171382 | I51: =H51/$J$54*100 -> 1.630810917 | J51: =H51 -> 41171382 | K51: =J51/$J$54*100 -> 1.630810917
A52: TOTAL TRANSFERS | F52: =F48 -> 0 | H52: =SUM(H49:H51) -> 43773583 | I52: =H52/$J$54*100 -> 1.733884887 | J52: =SUM(J48:J51) -> 43773583 | K52: =J52/$J$54*100 -> 1.733884887
A54: PROVINCE | B54: =SUM(B52,B46,B40,B23,B22) -> 83106188 | C54: =B54/$J$54*100 -> 3.291861291 | D54: =SUM(D52,D46,D40,D23,D22) -> 110488134 | E54: =D54/$J$54*100 -> 4.376468469 | F54: =SUM(F52,F46,F40,F23,F22) -> 284869083 | G54: =F54/$J$54*100 -> 11.2837507 | H54: =SUM(H52,H46,H40,H23,H22) -> 43773583 | I54: =H54/$J$54*100 -> 1.733884887 | J54: =SUM(J52,J46,J40,J23,J22) -> 2524595682 | K54: =J54/$J$54*100 -> 100

Sheet - 15 -
B2: =IF(Lang=1,BA2,BB2) -> ANALYSIS OF EXPENSE BY FUNCTION | I2: PAGE 1 OF 3 | BA2: ANALYSIS OF EXPENSE BY FUNCTION | BB2: ANALYSE DES DÉPENSES PAR FONCTION
B3: =OPYEAR -> OPERATING FUND 2021/2022 BUDGET
B6: REGULAR INSTRUCTION | E6: STUDENT SUPPORT SERVICES | H6: ADULT LEARNING CENTRES
D8: PER PUPIL | G8: PER PUPIL
A9: DIVISION / DISTRICT | B9: AMOUNT | C9: % | E9: AMOUNT | F9: % | H9: AMOUNT | I9: %
A11: BEAUTIFUL PLAINS | B11: =SUM('- 18 -'!B11,'- 18 -'!E11,'- 19 -'!B11,'- 19 -'!E11,'- 19 -'!H11,'- 20 -'!B11) -> 15067448 | C11: =B11/'- 3 -'!D11*100 -> 64.58866278 | D11: =B11/'- 7 -'!C11 -> 7271.934363 | E11: =SUM('- 21 -'!B11,'- 21 -'!E11,'- 21 -'!H11,'- 22 -'!B11,'- 22 -'!E11,'- 22 -'!H11) -> 2992519 | F11: =E11/'- 3 -'!D11*100 -> 12.82783923 | G11: =E11/'- 7 -'!E11 -> 1444.265927 | H11: =SUM('- 23 -'!D11,'- 23 -'!B11) -> 0 | I11: =H11/'- 3 -'!D11*100 -> 0
A12: BORDER LAND | B12: =SUM('- 18 -'!B12,'- 18 -'!E12,'- 19 -'!B12,'- 19 -'!E12,'- 19 -'!H12,'- 20 -'!B12) -> 20089378 | C12: =B12/'- 3 -'!D12*100 -> 57.48468968 | D12: =B12/'- 7 -'!C12 -> 9301.240821 | E12: =SUM('- 21 -'!B12,'- 21 -'!E12,'- 21 -'!H12,'- 22 -'!B12,'- 22 -'!E12,'- 22 -'!H12) -> 5621628 | F12: =E12/'- 3 -'!D12*100 -> 16.08599037 | G12: =E12/'- 7 -'!E12 -> 2602.774254 | H12: =SUM('- 23 -'!D12,'- 23 -'!B12) -> 551919 | I12: =H12/'- 3 -'!D12*100 -> 1.579286947
A13: BRANDON | B13: =SUM('- 18 -'!B13,'- 18 -'!E13,'- 19 -'!B13,'- 19 -'!E13,'- 19 -'!H13,'- 20 -'!B13) -> 66152500 | C13: =B13/'- 3 -'!D13*100 -> 60.31211594 | D13: =B13/'- 7 -'!C13 -> 7562.446413 | E13: =SUM('- 21 -'!B13,'- 21 -'!E13,'- 21 -'!H13,'- 22 -'!B13,'- 22 -'!E13,'- 22 -'!H13) -> 23165300 | F13: =E13/'- 3 -'!D13*100 -> 21.12011276 | G13: =E13/'- 7 -'!E13 -> 2648.219491 | H13: =SUM('- 23 -'!D13,'- 23 -'!B13) -> 0 | I13: =H13/'- 3 -'!D13*100 -> 0
A14: DSFM | B14: =SUM('- 18 -'!B14,'- 18 -'!E14,'- 19 -'!B14,'- 19 -'!E14,'- 19 -'!H14,'- 20 -'!B14) -> 55900782 | C14: =B14/'- 3 -'!D14*100 -> 55.73424195 | D14: =B14/'- 7 -'!C14 -> 9219.987135 | E14: =SUM('- 21 -'!B14,'- 21 -'!E14,'- 21 -'!H14,'- 22 -'!B14,'- 22 -'!E14,'- 22 -'!H14) -> 11570254 | F14: =E14/'- 3 -'!D14*100 -> 11.53578381 | G14: =E14/'- 7 -'!E14 -> 1908.338116 | H14: =SUM('- 23 -'!D14,'- 23 -'!B14) -> 270636 | I14: =H14/'- 3 -'!D14*100 -> 0.2698297191
A15: EVERGREEN | B15: =SUM('- 18 -'!B15,'- 18 -'!E15,'- 19 -'!B15,'- 19 -'!E15,'- 19 -'!H15,'- 20 -'!B15) -> 11768671 | C15: =B15/'- 3 -'!D15*100 -> 54.84508266 | D15: =B15/'- 7 -'!C15 -> 8749.941264 | E15: =SUM('- 21 -'!B15,'- 21 -'!E15,'- 21 -'!H15,'- 22 -'!B15,'- 22 -'!E15,'- 22 -'!H15) -> 3607600 | F15: =E15/'- 3 -'!D15*100 -> 16.81235886 | G15: =E15/'- 7 -'!E15 -> 2682.230483 | H15: =SUM('- 23 -'!D15,'- 23 -'!B15) -> 0 | I15: =H15/'- 3 -'!D15*100 -> 0
A16: FLIN FLON | B16: =SUM('- 18 -'!B16,'- 18 -'!E16,'- 19 -'!B16,'- 19 -'!E16,'- 19 -'!H16,'- 20 -'!B16) -> 8680073 | C16: =B16/'- 3 -'!D16*100 -> 55.75788102 | D16: =B16/'- 7 -'!C16 -> 9156.195148 | E16: =SUM('- 21 -'!B16,'- 21 -'!E16,'- 21 -'!H16,'- 22 -'!B16,'- 22 -'!E16,'- 22 -'!H16) -> 2865561 | F16: =E16/'- 3 -'!D16*100 -> 18.40740386 | G16: =E16/'- 7 -'!E16 -> 3022.743671 | H16: =SUM('- 23 -'!D16,'- 23 -'!B16) -> 94000 | I16: =H16/'- 3 -'!D16*100 -> 0.6038245088
A17: FORT LA BOSSE | B17: =SUM('- 18 -'!B17,'- 18 -'!E17,'- 19 -'!B17,'- 19 -'!E17,'- 19 -'!H17,'- 20 -'!B17) -> 11841095 | C17: =B17/'- 3 -'!D17*100 -> 60.53692101 | D17: =B17/'- 7 -'!C17 -> 8377.145384 | E17: =SUM('- 21 -'!B17,'- 21 -'!E17,'- 21 -'!H17,'- 22 -'!B17,'- 22 -'!E17,'- 22 -'!H17) -> 2462375 | F17: =E17/'- 3 -'!D17*100 -> 12.58875137 | G17: =E17/'- 7 -'!E17 -> 1742.041033 | H17: =SUM('- 23 -'!D17,'- 23 -'!B17) -> 0 | I17: =H17/'- 3 -'!D17*100 -> 0
A18: FRONTIER | B18: =SUM('- 18 -'!B18,'- 18 -'!E18,'- 19 -'!B18,'- 19 -'!E18,'- 19 -'!H18,'- 20 -'!B18) -> 61564400 | C18: =B18/'- 3 -'!D18*100 -> 42.42660113 | D18: =B18/'- 7 -'!C18 -> 10447.03886 | E18: =SUM('- 21 -'!B18,'- 21 -'!E18,'- 21 -'!H18,'- 22 -'!B18,'- 22 -'!E18,'- 22 -'!H18) -> 23766408 | F18: =E18/'- 3 -'!D18*100 -> 16.37842507 | G18: =E18/'- 7 -'!E18 -> 4032.989649 | H18: =SUM('- 23 -'!D18,'- 23 -'!B18) -> 2225054 | I18: =H18/'- 3 -'!D18*100 -> 1.533377708
A19: GARDEN VALLEY | B19: =SUM('- 18 -'!B19,'- 18 -'!E19,'- 19 -'!B19,'- 19 -'!E19,'- 19 -'!H19,'- 20 -'!B19) -> 29480200 | C19: =B19/'- 3 -'!D19*100 -> 56.41308951 | D19: =B19/'- 7 -'!C19 -> 6916.98733 | E19: =SUM('- 21 -'!B19,'- 21 -'!E19,'- 21 -'!H19,'- 22 -'!B19,'- 22 -'!E19,'- 22 -'!H19) -> 10390700 | F19: =E19/'- 3 -'!D19*100 -> 19.88356555 | G19: =E19/'- 7 -'!E19 -> 2437.986861 | H19: =SUM('- 23 -'!D19,'- 23 -'!B19) -> 0 | I19: =H19/'- 3 -'!D19*100 -> 0
A20: HANOVER | B20: =SUM('- 18 -'!B20,'- 18 -'!E20,'- 19 -'!B20,'- 19 -'!E20,'- 19 -'!H20,'- 20 -'!B20) -> 59039500 | C20: =B20/'- 3 -'!D20*100 -> 62.84421443 | D20: =B20/'- 7 -'!C20 -> 7241.444867 | E20: =SUM('- 21 -'!B20,'- 21 -'!E20,'- 21 -'!H20,'- 22 -'!B20,'- 22 -'!E20,'- 22 -'!H20) -> 15059300 | F20: =E20/'- 3 -'!D20*100 -> 16.02977461 | G20: =E20/'- 7 -'!E20 -> 1847.086962 | H20: =SUM('- 23 -'!D20,'- 23 -'!B20) -> 0 | I20: =H20/'- 3 -'!D20*100 -> 0
A21: INTERLAKE | B21: =SUM('- 18 -'!B21,'- 18 -'!E21,'- 19 -'!B21,'- 19 -'!E21,'- 19 -'!H21,'- 20 -'!B21) -> 22370500 | C21: =B21/'- 3 -'!D21*100 -> 57.96262181 | D21: =B21/'- 7 -'!C21 -> 7832.808123 | E21: =SUM('- 21 -'!B21,'- 21 -'!E21,'- 21 -'!H21,'- 22 -'!B21,'- 22 -'!E21,'- 22 -'!H21) -> 7108000 | F21: =E21/'- 3 -'!D21*100 -> 18.41703654 | G21: =E21/'- 7 -'!E21 -> 2488.795518 | H21: =SUM('- 23 -'!D21,'- 23 -'!B21) -> 0 | I21: =H21/'- 3 -'!D21*100 -> 0
A22: KELSEY | B22: =SUM('- 18 -'!B22,'- 18 -'!E22,'- 19 -'!B22,'- 19 -'!E22,'- 19 -'!H22,'- 20 -'!B22) -> 10970759 | C22: =B22/'- 3 -'!D22*100 -> 53.26011133 | D22: =B22/'- 7 -'!C22 -> 7571.26225 | E22: =SUM('- 21 -'!B22,'- 21 -'!E22,'- 21 -'!H22,'- 22 -'!B22,'- 22 -'!E22,'- 22 -'!H22) -> 4206520 | F22: =E22/'- 3 -'!D22*100 -> 20.4215336 | G22: =E22/'- 7 -'!E22 -> 2903.05038 | H22: =SUM('- 23 -'!D22,'- 23 -'!B22) -> 654464 | I22: =H22/'- 3 -'!D22*100 -> 3.177248311
A23: LAKESHORE | B23: =SUM('- 18 -'!B23,'- 18 -'!E23,'- 19 -'!B23,'- 19 -'!E23,'- 19 -'!H23,'- 20 -'!B23) -> 8288098 | C23: =B23/'- 3 -'!D23*100 -> 50.52342762 | D23: =B23/'- 7 -'!C23 -> 8892.809013 | E23: =SUM('- 21 -'!B23,'- 21 -'!E23,'- 21 -'!H23,'- 22 -'!B23,'- 22 -'!E23,'- 22 -'!H23) -> 2897350 | F23: =E23/'- 3 -'!D23*100 -> 17.66195972 | G23: =E23/'- 7 -'!E23 -> 3108.744635 | H23: =SUM('- 23 -'!D23,'- 23 -'!B23) -> 275650 | I23: =H23/'- 3 -'!D23*100 -> 1.680335201
A24: LORD SELKIRK | B24: =SUM('- 18 -'!B24,'- 18 -'!E24,'- 19 -'!B24,'- 19 -'!E24,'- 19 -'!H24,'- 20 -'!B24) -> 34695761 | C24: =B24/'- 3 -'!D24*100 -> 58.59770517 | D24: =B24/'- 7 -'!C24 -> 9326.817473 | E24: =SUM('- 21 -'!B24,'- 21 -'!E24,'- 21 -'!H24,'- 22 -'!B24,'- 22 -'!E24,'- 22 -'!H24) -> 10402021 | F24: =E24/'- 3 -'!D24*100 -> 17.56798358 | G24: =E24/'- 7 -'!E24 -> 2796.242204 | H24: =SUM('- 23 -'!D24,'- 23 -'!B24) -> 344686 | I24: =H24/'- 3 -'!D24*100 -> 0.5821405273
A25: LOUIS RIEL | B25: =SUM('- 18 -'!B25,'- 18 -'!E25,'- 19 -'!B25,'- 19 -'!E25,'- 19 -'!H25,'- 20 -'!B25) -> 112802780 | C25: =B25/'- 3 -'!D25*100 -> 57.10370562 | D25: =B25/'- 7 -'!C25 -> 7299.733385 | E25: =SUM('- 21 -'!B25,'- 21 -'!E25,'- 21 -'!H25,'- 22 -'!B25,'- 22 -'!E25,'- 22 -'!H25) -> 38170522 | F25: =E25/'- 3 -'!D25*100 -> 19.32291254 | G25: =E25/'- 7 -'!E25 -> 2470.104316 | H25: =SUM('- 23 -'!D25,'- 23 -'!B25) -> 464168 | I25: =H25/'- 3 -'!D25*100 -> 0.2349739326
A26: MOUNTAIN VIEW | B26: =SUM('- 18 -'!B26,'- 18 -'!E26,'- 19 -'!B26,'- 19 -'!E26,'- 19 -'!H26,'- 20 -'!B26) -> 24721834 | C26: =B26/'- 3 -'!D26*100 -> 57.70550476 | D26: =B26/'- 7 -'!C26 -> 8153.639182 | E26: =SUM('- 21 -'!B26,'- 21 -'!E26,'- 21 -'!H26,'- 22 -'!B26,'- 22 -'!E26,'- 22 -'!H26) -> 5859322 | F26: =E26/'- 3 -'!D26*100 -> 13.67678197 | G26: =E26/'- 7 -'!E26 -> 1932.494063 | H26: =SUM('- 23 -'!D26,'- 23 -'!B26) -> 0 | I26: =H26/'- 3 -'!D26*100 -> 0
A27: MYSTERY LAKE | B27: =SUM('- 18 -'!B27,'- 18 -'!E27,'- 19 -'!B27,'- 19 -'!E27,'- 19 -'!H27,'- 20 -'!B27) -> 24394179 | C27: =B27/'- 3 -'!D27*100 -> 55.45486706 | D27: =B27/'- 7 -'!C27 -> 8681.820414 | E27: =SUM('- 21 -'!B27,'- 21 -'!E27,'- 21 -'!H27,'- 22 -'!B27,'- 22 -'!E27,'- 22 -'!H27) -> 9283386 | F27: =E27/'- 3 -'!D27*100 -> 21.10376154 | G27: =E27/'- 7 -'!E27 -> 3303.931241 | H27: =SUM('- 23 -'!D27,'- 23 -'!B27) -> 0 | I27: =H27/'- 3 -'!D27*100 -> 0
A28: PARK WEST | B28: =SUM('- 18 -'!B28,'- 18 -'!E28,'- 19 -'!B28,'- 19 -'!E28,'- 19 -'!H28,'- 20 -'!B28) -> 17450844 | C28: =B28/'- 3 -'!D28*100 -> 60.34293601 | D28: =B28/'- 7 -'!C28 -> 8585.901107 | E28: =SUM('- 21 -'!B28,'- 21 -'!E28,'- 21 -'!H28,'- 22 -'!B28,'- 22 -'!E28,'- 22 -'!H28) -> 3804398 | F28: =E28/'- 3 -'!D28*100 -> 13.15515428 | G28: =E28/'- 7 -'!E28 -> 1871.782534 | H28: =SUM('- 23 -'!D28,'- 23 -'!B28) -> 74986 | I28: =H28/'- 3 -'!D28*100 -> 0.2592926393
A29: PEMBINA TRAILS | B29: =SUM('- 18 -'!B29,'- 18 -'!E29,'- 19 -'!B29,'- 19 -'!E29,'- 19 -'!H29,'- 20 -'!B29) -> 107043154 | C29: =B29/'- 3 -'!D29*100 -> 59.07880076 | D29: =B29/'- 7 -'!C29 -> 7292.264732 | E29: =SUM('- 21 -'!B29,'- 21 -'!E29,'- 21 -'!H29,'- 22 -'!B29,'- 22 -'!E29,'- 22 -'!H29) -> 34444371 | F29: =E29/'- 3 -'!D29*100 -> 19.01039026 | G29: =E29/'- 7 -'!E29 -> 2346.506642 | H29: =SUM('- 23 -'!D29,'- 23 -'!B29) -> 0 | I29: =H29/'- 3 -'!D29*100 -> 0
A30: PINE CREEK | B30: =SUM('- 18 -'!B30,'- 18 -'!E30,'- 19 -'!B30,'- 19 -'!E30,'- 19 -'!H30,'- 20 -'!B30) -> 9705363 | C30: =B30/'- 3 -'!D30*100 -> 61.50938967 | D30: =B30/'- 7 -'!C30 -> 9130.162747 | E30: =SUM('- 21 -'!B30,'- 21 -'!E30,'- 21 -'!H30,'- 22 -'!B30,'- 22 -'!E30,'- 22 -'!H30) -> 1782263 | F30: =E30/'- 3 -'!D30*100 -> 11.29539507 | G30: =E30/'- 7 -'!E30 -> 1676.634995 | H30: =SUM('- 23 -'!D30,'- 23 -'!B30) -> 0 | I30: =H30/'- 3 -'!D30*100 -> 0
A31: PORTAGE LA PRAIRIE | B31: =SUM('- 18 -'!B31,'- 18 -'!E31,'- 19 -'!B31,'- 19 -'!E31,'- 19 -'!H31,'- 20 -'!B31) -> 25423859 | C31: =B31/'- 3 -'!D31*100 -> 61.13316372 | D31: =B31/'- 7 -'!C31 -> 7568.877344 | E31: =SUM('- 21 -'!B31,'- 21 -'!E31,'- 21 -'!H31,'- 22 -'!B31,'- 22 -'!E31,'- 22 -'!H31) -> 7143602 | F31: =E31/'- 3 -'!D31*100 -> 17.17721101 | G31: =E31/'- 7 -'!E31 -> 2126.704972 | H31: =SUM('- 23 -'!D31,'- 23 -'!B31) -> 0 | I31: =H31/'- 3 -'!D31*100 -> 0
A32: PRAIRIE ROSE | B32: =SUM('- 18 -'!B32,'- 18 -'!E32,'- 19 -'!B32,'- 19 -'!E32,'- 19 -'!H32,'- 20 -'!B32) -> 19142370 | C32: =B32/'- 3 -'!D32*100 -> 59.62093999 | D32: =B32/'- 7 -'!C32 -> 8083.771115 | E32: =SUM('- 21 -'!B32,'- 21 -'!E32,'- 21 -'!H32,'- 22 -'!B32,'- 22 -'!E32,'- 22 -'!H32) -> 4689132 | F32: =E32/'- 3 -'!D32*100 -> 14.60479855 | G32: =E32/'- 7 -'!E32 -> 1980.20777 | H32: =SUM('- 23 -'!D32,'- 23 -'!B32) -> 282682 | I32: =H32/'- 3 -'!D32*100 -> 0.8804430465
A33: PRAIRIE SPIRIT | B33: =SUM('- 18 -'!B33,'- 18 -'!E33,'- 19 -'!B33,'- 19 -'!E33,'- 19 -'!H33,'- 20 -'!B33) -> 16960035 | C33: =B33/'- 3 -'!D33*100 -> 58.18741565 | D33: =B33/'- 7 -'!C33 -> 8081.979986 | E33: =SUM('- 21 -'!B33,'- 21 -'!E33,'- 21 -'!H33,'- 22 -'!B33,'- 22 -'!E33,'- 22 -'!H33) -> 4235950 | F33: =E33/'- 3 -'!D33*100 -> 14.53292893 | G33: =E33/'- 7 -'!E33 -> 2018.560877 | H33: =SUM('- 23 -'!D33,'- 23 -'!B33) -> 0 | I33: =H33/'- 3 -'!D33*100 -> 0
A34: RED RIVER VALLEY | B34: =SUM('- 18 -'!B34,'- 18 -'!E34,'- 19 -'!B34,'- 19 -'!E34,'- 19 -'!H34,'- 20 -'!B34) -> 18963065 | C34: =B34/'- 3 -'!D34*100 -> 58.08445696 | D34: =B34/'- 7 -'!C34 -> 8414.192217 | E34: =SUM('- 21 -'!B34,'- 21 -'!E34,'- 21 -'!H34,'- 22 -'!B34,'- 22 -'!E34,'- 22 -'!H34) -> 5479138 | F34: =E34/'- 3 -'!D34*100 -> 16.78276984 | G34: =E34/'- 7 -'!E34 -> 2431.174513 | H34: =SUM('- 23 -'!D34,'- 23 -'!B34) -> 0 | I34: =H34/'- 3 -'!D34*100 -> 0
A35: RIVER EAST TRANSCONA | B35: =SUM('- 18 -'!B35,'- 18 -'!E35,'- 19 -'!B35,'- 19 -'!E35,'- 19 -'!H35,'- 20 -'!B35) -> 115082254 | C35: =B35/'- 3 -'!D35*100 -> 57.20251955 | D35: =B35/'- 7 -'!C35 -> 7061.993986 | E35: =SUM('- 21 -'!B35,'- 21 -'!E35,'- 21 -'!H35,'- 22 -'!B35,'- 22 -'!E35,'- 22 -'!H35) -> 38406985 | F35: =E35/'- 3 -'!D35*100 -> 19.09048731 | G35: =E35/'- 7 -'!E35 -> 2356.835113 | H35: =SUM('- 23 -'!D35,'- 23 -'!B35) -> 1833642 | I35: =H35/'- 3 -'!D35*100 -> 0.9114258602
A36: ROLLING RIVER | B36: =SUM('- 18 -'!B36,'- 18 -'!E36,'- 19 -'!B36,'- 19 -'!E36,'- 19 -'!H36,'- 20 -'!B36) -> 14551955 | C36: =B36/'- 3 -'!D36*100 -> 59.09328561 | D36: =B36/'- 7 -'!C36 -> 8024.237662 | E36: =SUM('- 21 -'!B36,'- 21 -'!E36,'- 21 -'!H36,'- 22 -'!B36,'- 22 -'!E36,'- 22 -'!H36) -> 3414880 | F36: =E36/'- 3 -'!D36*100 -> 13.86731055 | G36: =E36/'- 7 -'!E36 -> 1883.032809 | H36: =SUM('- 23 -'!D36,'- 23 -'!B36) -> 0 | I36: =H36/'- 3 -'!D36*100 -> 0
A37: SEINE RIVER | B37: =SUM('- 18 -'!B37,'- 18 -'!E37,'- 19 -'!B37,'- 19 -'!E37,'- 19 -'!H37,'- 20 -'!B37) -> 31956727 | C37: =B37/'- 3 -'!D37*100 -> 56.87154431 | D37: =B37/'- 7 -'!C37 -> 7322.80637 | E37: =SUM('- 21 -'!B37,'- 21 -'!E37,'- 21 -'!H37,'- 22 -'!B37,'- 22 -'!E37,'- 22 -'!H37) -> 10543940 | F37: =E37/'- 3 -'!D37*100 -> 18.76444202 | G37: =E37/'- 7 -'!E37 -> 2416.11824 | H37: =SUM('- 23 -'!D37,'- 23 -'!B37) -> 0 | I37: =H37/'- 3 -'!D37*100 -> 0
A38: SEVEN OAKS | B38: =SUM('- 18 -'!B38,'- 18 -'!E38,'- 19 -'!B38,'- 19 -'!E38,'- 19 -'!H38,'- 20 -'!B38) -> 88722463 | C38: =B38/'- 3 -'!D38*100 -> 57.8048285 | D38: =B38/'- 7 -'!C38 -> 7586.423398 | E38: =SUM('- 21 -'!B38,'- 21 -'!E38,'- 21 -'!H38,'- 22 -'!B38,'- 22 -'!E38,'- 22 -'!H38) -> 28358110 | F38: =E38/'- 3 -'!D38*100 -> 18.4759939 | G38: =E38/'- 7 -'!E38 -> 2424.827061 | H38: =SUM('- 23 -'!D38,'- 23 -'!B38) -> 2146495 | I38: =H38/'- 3 -'!D38*100 -> 1.398493359
A39: SOUTHWEST HORIZON | B39: =SUM('- 18 -'!B39,'- 18 -'!E39,'- 19 -'!B39,'- 19 -'!E39,'- 19 -'!H39,'- 20 -'!B39) -> 13612150 | C39: =B39/'- 3 -'!D39*100 -> 57.05104025 | D39: =B39/'- 7 -'!C39 -> 9023.632748 | E39: =SUM('- 21 -'!B39,'- 21 -'!E39,'- 21 -'!H39,'- 22 -'!B39,'- 22 -'!E39,'- 22 -'!H39) -> 3625900 | F39: =E39/'- 3 -'!D39*100 -> 15.19681805 | G39: =E39/'- 7 -'!E39 -> 2403.646006 | H39: =SUM('- 23 -'!D39,'- 23 -'!B39) -> 0 | I39: =H39/'- 3 -'!D39*100 -> 0
A40: ST. JAMES-ASSINIBOIA | B40: =SUM('- 18 -'!B40,'- 18 -'!E40,'- 19 -'!B40,'- 19 -'!E40,'- 19 -'!H40,'- 20 -'!B40) -> 62187213 | C40: =B40/'- 3 -'!D40*100 -> 55.5316146 | D40: =B40/'- 7 -'!C40 -> 7595.01374 | E40: =SUM('- 21 -'!B40,'- 21 -'!E40,'- 21 -'!H40,'- 22 -'!B40,'- 22 -'!E40,'- 22 -'!H40) -> 25972816 | F40: =E40/'- 3 -'!D40*100 -> 23.19307039 | G40: =E40/'- 7 -'!E40 -> 3172.097363 | H40: =SUM('- 23 -'!D40,'- 23 -'!B40) -> 0 | I40: =H40/'- 3 -'!D40*100 -> 0
A41: SUNRISE | B41: =SUM('- 18 -'!B41,'- 18 -'!E41,'- 19 -'!B41,'- 19 -'!E41,'- 19 -'!H41,'- 20 -'!B41) -> 36779933 | C41: =B41/'- 3 -'!D41*100 -> 53.83523624 | D41: =B41/'- 7 -'!C41 -> 8133.554401 | E41: =SUM('- 21 -'!B41,'- 21 -'!E41,'- 21 -'!H41,'- 22 -'!B41,'- 22 -'!E41,'- 22 -'!H41) -> 13367771 | F41: =E41/'- 3 -'!D41*100 -> 19.56656935 | G41: =E41/'- 7 -'!E41 -> 2956.163423 | H41: =SUM('- 23 -'!D41,'- 23 -'!B41) -> 994120 | I41: =H41/'- 3 -'!D41*100 -> 1.455105561
A42: SWAN VALLEY | B42: =SUM('- 18 -'!B42,'- 18 -'!E42,'- 19 -'!B42,'- 19 -'!E42,'- 19 -'!H42,'- 20 -'!B42) -> 11971676 | C42: =B42/'- 3 -'!D42*100 -> 54.86509659 | D42: =B42/'- 7 -'!C42 -> 8835.18524 | E42: =SUM('- 21 -'!B42,'- 21 -'!E42,'- 21 -'!H42,'- 22 -'!B42,'- 22 -'!E42,'- 22 -'!H42) -> 3960929 | F42: =E42/'- 3 -'!D42*100 -> 18.15257548 | G42: =E42/'- 7 -'!E42 -> 2923.194834 | H42: =SUM('- 23 -'!D42,'- 23 -'!B42) -> 0 | I42: =H42/'- 3 -'!D42*100 -> 0
A43: TURTLE MOUNTAIN | B43: =SUM('- 18 -'!B43,'- 18 -'!E43,'- 19 -'!B43,'- 19 -'!E43,'- 19 -'!H43,'- 20 -'!B43) -> 7910015 | C43: =B43/'- 3 -'!D43*100 -> 56.59572562 | D43: =B43/'- 7 -'!C43 -> 8002.038442 | E43: =SUM('- 21 -'!B43,'- 21 -'!E43,'- 21 -'!H43,'- 22 -'!B43,'- 22 -'!E43,'- 22 -'!H43) -> 2471573 | F43: =E43/'- 3 -'!D43*100 -> 17.68396992 | G43: =E43/'- 7 -'!E43 -> 2500.326758 | H43: =SUM('- 23 -'!D43,'- 23 -'!B43) -> 203922 | I43: =H43/'- 3 -'!D43*100 -> 1.459050781
A44: TURTLE RIVER | B44: =SUM('- 18 -'!B44,'- 18 -'!E44,'- 19 -'!B44,'- 19 -'!E44,'- 19 -'!H44,'- 20 -'!B44) -> 6308056 | C44: =B44/'- 3 -'!D44*100 -> 54.83573332 | D44: =B44/'- 7 -'!C44 -> 9373.040119 | E44: =SUM('- 21 -'!B44,'- 21 -'!E44,'- 21 -'!H44,'- 22 -'!B44,'- 22 -'!E44,'- 22 -'!H44) -> 1984582 | F44: =E44/'- 3 -'!D44*100 -> 17.25190919 | G44: =E44/'- 7 -'!E44 -> 2948.858841 | H44: =SUM('- 23 -'!D44,'- 23 -'!B44) -> 0 | I44: =H44/'- 3 -'!D44*100 -> 0
A45: WESTERN | B45: =SUM('- 18 -'!B45,'- 18 -'!E45,'- 19 -'!B45,'- 19 -'!E45,'- 19 -'!H45,'- 20 -'!B45) -> 14710910 | C45: =B45/'- 3 -'!D45*100 -> 62.12937958 | D45: =B45/'- 7 -'!C45 -> 7236.06001 | E45: =SUM('- 21 -'!B45,'- 21 -'!E45,'- 21 -'!H45,'- 22 -'!B45,'- 22 -'!E45,'- 22 -'!H45) -> 3542152 | F45: =E45/'- 3 -'!D45*100 -> 14.95976157 | G45: =E45/'- 7 -'!E45 -> 1742.327595 | H45: =SUM('- 23 -'!D45,'- 23 -'!B45) -> 396470 | I45: =H45/'- 3 -'!D45*100 -> 1.674433133
A46: WINNIPEG | B46: =SUM('- 18 -'!B46,'- 18 -'!E46,'- 19 -'!B46,'- 19 -'!E46,'- 19 -'!H46,'- 20 -'!B46) -> 223125951 | C46: =B46/'- 3 -'!D46*100 -> 53.47424134 | D46: =B46/'- 7 -'!C46 -> 7322.927879 | E46: =SUM('- 21 -'!B46,'- 21 -'!E46,'- 21 -'!H46,'- 22 -'!B46,'- 22 -'!E46,'- 22 -'!H46) -> 95387062 | F46: =E46/'- 3 -'!D46*100 -> 22.86041024 | G46: =E46/'- 7 -'!E46 -> 3130.575231 | H46: =SUM('- 23 -'!D46,'- 23 -'!B46) -> 784800 | I46: =H46/'- 3 -'!D46*100 -> 0.1880847316
A48: PROVINCE | B48: =SUM(B11:B46) -> 1419435951 | C48: =B48/'- 3 -'!D48*100 -> 56.22428816 | D48: =B48/'- 7 -'!C48 -> 7753.592711 | E48: =SUM(E11:E46) -> 472044320 | F48: =E48/'- 3 -'!D48*100 -> 18.69781856 | G48: =E48/'- 7 -'!E48 -> 2578.516767 | H48: =SUM(H11:H46) -> 11597694 | I48: =H48/'- 3 -'!D48*100 -> 0.4593881738
A50: WHITESHELL | B50: =SUM('- 18 -'!B50,'- 18 -'!E50,'- 19 -'!B50,'- 19 -'!E50,'- 19 -'!H50,'- 20 -'!B50) -> 2040906.31 | C50: =B50/'- 3 -'!D50*100 -> 56.68423193 | D50: =B50/'- 7 -'!C50 -> 11596.05858 | E50: =SUM('- 21 -'!B50,'- 21 -'!E50,'- 21 -'!H50,'- 22 -'!B50,'- 22 -'!E50,'- 22 -'!H50) -> 422819 | F50: =E50/'- 3 -'!D50*100 -> 11.74339564 | G50: =E50/'- 7 -'!E50 -> 2402.380682 | H50: =SUM('- 23 -'!D50,'- 23 -'!B50) -> 0 | I50: =H50/'- 3 -'!D50*100 -> 0
A51: MITT | B51: =SUM('- 18 -'!B51,'- 18 -'!E51,'- 19 -'!B51,'- 19 -'!E51,'- 19 -'!H51,'- 20 -'!B51) -> 6536604 | C51: =B51/'- 3 -'!D51*100 -> 19.63481478 | D51: =B51/'- 7 -'!C51 -> 3684.669673 | E51: =SUM('- 21 -'!B51,'- 21 -'!E51,'- 21 -'!H51,'- 22 -'!B51,'- 22 -'!E51,'- 22 -'!H51) -> 1175459 | F51: =E51/'- 3 -'!D51*100 -> 3.530873179 | G51: =E51/'- 7 -'!E51 -> 662.6037204 | H51: =SUM('- 23 -'!D51,'- 23 -'!B51) -> 2477234 | I51: =H51/'- 3 -'!D51*100 -> 7.441177521

Sheet - 16 -
B2: =AEXP_BF -> ANALYSIS OF EXPENSE BY FUNCTION | I2: PAGE 2 OF 3
B3: =+'- 15 -'!B3 -> OPERATING FUND 2021/2022 BUDGET
B6: COMMUNITY EDUCATION AND SERVICES | D6: DIVISIONAL ADMINISTRATION | G6: INSTRUCTIONAL & OTHER SUPPORT SERVICES
F8: PER PUPIL | I8: PER PUPIL
A9: DIVISION / DISTRICT | B9: AMOUNT | C9: % | D9: AMOUNT | E9: % | G9: AMOUNT | H9: %
A11: BEAUTIFUL PLAINS | B11: =SUM('- 24 -'!H11,'- 24 -'!F11,'- 24 -'!D11,'- 24 -'!B11) -> 27540 | C11: =B11/'- 3 -'!D11*100 -> 0.1180539513 | D11: =SUM('- 25 -'!B11,'- 25 -'!E11,'- 25 -'!H11,'- 26 -'!B11) -> 638796 | E11: =D11/'- 3 -'!D11*100 -> 2.738285835 | F11: =D11/'- 7 -'!E11 -> 308.2992278 | G11: =SUM('- 27 -'!B11,'- 27 -'!E11,'- 27 -'!H11,'- 28 -'!B11,'- 28 -'!E11) -> 597007 | H11: =G11/'- 3 -'!D11*100 -> 2.55915161 | I11: =G11/'- 7 -'!E11 -> 288.1307915
A12: BORDER LAND | B12: =SUM('- 24 -'!H12,'- 24 -'!F12,'- 24 -'!D12,'- 24 -'!B12) -> 62338 | C12: =B12/'- 3 -'!D12*100 -> 0.1783768808 | D12: =SUM('- 25 -'!B12,'- 25 -'!E12,'- 25 -'!H12,'- 26 -'!B12) -> 1138242 | E12: =D12/'- 3 -'!D12*100 -> 3.257019115 | F12: =D12/'- 7 -'!E12 -> 526.9980462 | G12: =SUM('- 27 -'!B12,'- 27 -'!E12,'- 27 -'!H12,'- 28 -'!B12,'- 28 -'!E12) -> 729626 | H12: =G12/'- 3 -'!D12*100 -> 2.087786102 | I12: =G12/'- 7 -'!E12 -> 337.81171
A13: BRANDON | B13: =SUM('- 24 -'!H13,'- 24 -'!F13,'- 24 -'!D13,'- 24 -'!B13) -> 422400 | C13: =B13/'- 3 -'!D13*100 -> 0.3851077098 | D13: =SUM('- 25 -'!B13,'- 25 -'!E13,'- 25 -'!H13,'- 26 -'!B13) -> 3047600 | E13: =D13/'- 3 -'!D13*100 -> 2.778537539 | F13: =D13/'- 7 -'!E13 -> 348.3966848 | G13: =SUM('- 27 -'!B13,'- 27 -'!E13,'- 27 -'!H13,'- 28 -'!B13,'- 28 -'!E13) -> 3276300 | H13: =G13/'- 3 -'!D13*100 -> 2.987046377 | I13: =G13/'- 7 -'!E13 -> 374.5412975
A14: DSFM | B14: =SUM('- 24 -'!H14,'- 24 -'!F14,'- 24 -'!D14,'- 24 -'!B14) -> 1502600 | C14: =B14/'- 3 -'!D14*100 -> 1.498123442 | D14: =SUM('- 25 -'!B14,'- 25 -'!E14,'- 25 -'!H14,'- 26 -'!B14) -> 3620945 | E14: =D14/'- 3 -'!D14*100 -> 3.610157452 | F14: =D14/'- 7 -'!E14 -> 597.2200231 | G14: =SUM('- 27 -'!B14,'- 27 -'!E14,'- 27 -'!H14,'- 28 -'!B14,'- 28 -'!E14) -> 3961294 | H14: =G14/'- 3 -'!D14*100 -> 3.949492482 | I14: =G14/'- 7 -'!E14 -> 653.3554346
A15: EVERGREEN | B15: =SUM('- 24 -'!H15,'- 24 -'!F15,'- 24 -'!D15,'- 24 -'!B15) -> 59850 | C15: =B15/'- 3 -'!D15*100 -> 0.2789166421 | D15: =SUM('- 25 -'!B15,'- 25 -'!E15,'- 25 -'!H15,'- 26 -'!B15) -> 789222 | E15: =D15/'- 3 -'!D15*100 -> 3.677980787 | F15: =D15/'- 7 -'!E15 -> 586.7821561 | G15: =SUM('- 27 -'!B15,'- 27 -'!E15,'- 27 -'!H15,'- 28 -'!B15,'- 28 -'!E15) -> 435352 | H15: =G15/'- 3 -'!D15*100 -> 2.028854101 | I15: =G15/'- 7 -'!E15 -> 323.6817844
A16: FLIN FLON | B16: =SUM('- 24 -'!H16,'- 24 -'!F16,'- 24 -'!D16,'- 24 -'!B16) -> 16442 | C16: =B16/'- 3 -'!D16*100 -> 0.1056178997 | D16: =SUM('- 25 -'!B16,'- 25 -'!E16,'- 25 -'!H16,'- 26 -'!B16) -> 631750 | E16: =D16/'- 3 -'!D16*100 -> 4.058150356 | F16: =D16/'- 7 -'!E16 -> 666.4029536 | G16: =SUM('- 27 -'!B16,'- 27 -'!E16,'- 27 -'!H16,'- 28 -'!B16,'- 28 -'!E16) -> 251113 | H16: =G16/'- 3 -'!D16*100 -> 1.613065786 | I16: =G16/'- 7 -'!E16 -> 264.8871308
A17: FORT LA BOSSE | B17: =SUM('- 24 -'!H17,'- 24 -'!F17,'- 24 -'!D17,'- 24 -'!B17) -> 296810 | C17: =B17/'- 3 -'!D17*100 -> 1.517424151 | D17: =SUM('- 25 -'!B17,'- 25 -'!E17,'- 25 -'!H17,'- 26 -'!B17) -> 714901 | E17: =D17/'- 3 -'!D17*100 -> 3.654890478 | F17: =D17/'- 7 -'!E17 -> 505.766537 | G17: =SUM('- 27 -'!B17,'- 27 -'!E17,'- 27 -'!H17,'- 28 -'!B17,'- 28 -'!E17) -> 399780 | H17: =G17/'- 3 -'!D17*100 -> 2.043852387 | I17: =G17/'- 7 -'!E17 -> 282.829855
A18: FRONTIER | B18: =SUM('- 24 -'!H18,'- 24 -'!F18,'- 24 -'!D18,'- 24 -'!B18) -> 2176294 | C18: =B18/'- 3 -'!D18*100 -> 1.499775154 | D18: =SUM('- 25 -'!B18,'- 25 -'!E18,'- 25 -'!H18,'- 26 -'!B18) -> 7610419 | E18: =D18/'- 3 -'!D18*100 -> 5.244657811 | F18: =D18/'- 7 -'!E18 -> 1291.433735 | G18: =SUM('- 27 -'!B18,'- 27 -'!E18,'- 27 -'!H18,'- 28 -'!B18,'- 28 -'!E18) -> 8393026 | H18: =G18/'- 3 -'!D18*100 -> 5.783985004 | I18: =G18/'- 7 -'!E18 -> 1424.236552
A19: GARDEN VALLEY | B19: =SUM('- 24 -'!H19,'- 24 -'!F19,'- 24 -'!D19,'- 24 -'!B19) -> 85800 | C19: =B19/'- 3 -'!D19*100 -> 0.1641862362 | D19: =SUM('- 25 -'!B19,'- 25 -'!E19,'- 25 -'!H19,'- 26 -'!B19) -> 1567100 | E19: =D19/'- 3 -'!D19*100 -> 2.998790801 | F19: =D19/'- 7 -'!E19 -> 367.6912248 | G19: =SUM('- 27 -'!B19,'- 27 -'!E19,'- 27 -'!H19,'- 28 -'!B19,'- 28 -'!E19) -> 1744100 | H19: =G19/'- 3 -'!D19*100 -> 3.337496673 | I19: =G19/'- 7 -'!E19 -> 409.221023
A20: HANOVER | B20: =SUM('- 24 -'!H20,'- 24 -'!F20,'- 24 -'!D20,'- 24 -'!B20) -> 110900 | C20: =B20/'- 3 -'!D20*100 -> 0.1180467887 | D20: =SUM('- 25 -'!B20,'- 25 -'!E20,'- 25 -'!H20,'- 26 -'!B20) -> 2212200 | E20: =D20/'- 3 -'!D20*100 -> 2.354762001 | F20: =D20/'- 7 -'!E20 -> 271.3357046 | G20: =SUM('- 27 -'!B20,'- 27 -'!E20,'- 27 -'!H20,'- 28 -'!B20,'- 28 -'!E20) -> 2112600 | H20: =G20/'- 3 -'!D20*100 -> 2.248743424 | I20: =G20/'- 7 -'!E20 -> 259.1193426
A21: INTERLAKE | B21: =SUM('- 24 -'!H21,'- 24 -'!F21,'- 24 -'!D21,'- 24 -'!B21) -> 0 | C21: =B21/'- 3 -'!D21*100 -> 0 | D21: =SUM('- 25 -'!B21,'- 25 -'!E21,'- 25 -'!H21,'- 26 -'!B21) -> 1276500 | E21: =D21/'- 3 -'!D21*100 -> 3.30744895 | F21: =D21/'- 7 -'!E21 -> 446.9537815 | G21: =SUM('- 27 -'!B21,'- 27 -'!E21,'- 27 -'!H21,'- 28 -'!B21,'- 28 -'!E21) -> 1150700 | H21: =G21/'- 3 -'!D21*100 -> 2.981497459 | I21: =G21/'- 7 -'!E21 -> 402.9061625
A22: KELSEY | B22: =SUM('- 24 -'!H22,'- 24 -'!F22,'- 24 -'!D22,'- 24 -'!B22) -> 70099 | C22: =B22/'- 3 -'!D22*100 -> 0.3403119642 | D22: =SUM('- 25 -'!B22,'- 25 -'!E22,'- 25 -'!H22,'- 26 -'!B22) -> 846764 | E22: =D22/'- 3 -'!D22*100 -> 4.110813564 | F22: =D22/'- 7 -'!E22 -> 584.3781919 | G22: =SUM('- 27 -'!B22,'- 27 -'!E22,'- 27 -'!H22,'- 28 -'!B22,'- 28 -'!E22) -> 368710 | H22: =G22/'- 3 -'!D22*100 -> 1.789988792 | I22: =G22/'- 7 -'!E22 -> 254.4582471
A23: LAKESHORE | B23: =SUM('- 24 -'!H23,'- 24 -'!F23,'- 24 -'!D23,'- 24 -'!B23) -> 289000 | C23: =B23/'- 3 -'!D23*100 -> 1.761715484 | D23: =SUM('- 25 -'!B23,'- 25 -'!E23,'- 25 -'!H23,'- 26 -'!B23) -> 578950 | E23: =D23/'- 3 -'!D23*100 -> 3.529222075 | F23: =D23/'- 7 -'!E23 -> 621.1909871 | G23: =SUM('- 27 -'!B23,'- 27 -'!E23,'- 27 -'!H23,'- 28 -'!B23,'- 28 -'!E23) -> 390800 | H23: =G23/'- 3 -'!D23*100 -> 2.382278239 | I23: =G23/'- 7 -'!E23 -> 419.3133047
A24: LORD SELKIRK | B24: =SUM('- 24 -'!H24,'- 24 -'!F24,'- 24 -'!D24,'- 24 -'!B24) -> 426724 | C24: =B24/'- 3 -'!D24*100 -> 0.7206945869 | D24: =SUM('- 25 -'!B24,'- 25 -'!E24,'- 25 -'!H24,'- 26 -'!B24) -> 1852241 | E24: =D24/'- 3 -'!D24*100 -> 3.128251662 | F24: =D24/'- 7 -'!E24 -> 497.9142473 | G24: =SUM('- 27 -'!B24,'- 27 -'!E24,'- 27 -'!H24,'- 28 -'!B24,'- 28 -'!E24) -> 1052313 | H24: =G24/'- 3 -'!D24*100 -> 1.77725247 | I24: =G24/'- 7 -'!E24 -> 282.8798387
A25: LOUIS RIEL | B25: =SUM('- 24 -'!H25,'- 24 -'!F25,'- 24 -'!D25,'- 24 -'!B25) -> 1792081 | C25: =B25/'- 3 -'!D25*100 -> 0.9071980839 | D25: =SUM('- 25 -'!B25,'- 25 -'!E25,'- 25 -'!H25,'- 26 -'!B25) -> 5952489 | E25: =D25/'- 3 -'!D25*100 -> 3.013304987 | F25: =D25/'- 7 -'!E25 -> 385.1995729 | G25: =SUM('- 27 -'!B25,'- 27 -'!E25,'- 27 -'!H25,'- 28 -'!B25,'- 28 -'!E25) -> 9088823 | H25: =G25/'- 3 -'!D25*100 -> 4.600998956 | I25: =G25/'- 7 -'!E25 -> 588.1591277
A26: MOUNTAIN VIEW | B26: =SUM('- 24 -'!H26,'- 24 -'!F26,'- 24 -'!D26,'- 24 -'!B26) -> 101641 | C26: =B26/'- 3 -'!D26*100 -> 0.2372495993 | D26: =SUM('- 25 -'!B26,'- 25 -'!E26,'- 25 -'!H26,'- 26 -'!B26) -> 1388091 | E26: =D26/'- 3 -'!D26*100 -> 3.240070774 | F26: =D26/'- 7 -'!E26 -> 457.8136544 | G26: =SUM('- 27 -'!B26,'- 27 -'!E26,'- 27 -'!H26,'- 28 -'!B26,'- 28 -'!E26) -> 1579989 | H26: =G26/'- 3 -'!D26*100 -> 3.687997532 | I26: =G26/'- 7 -'!E26 -> 521.1045515
A27: MYSTERY LAKE | B27: =SUM('- 24 -'!H27,'- 24 -'!F27,'- 24 -'!D27,'- 24 -'!B27) -> 63098 | C27: =B27/'- 3 -'!D27*100 -> 0.1434395969 | D27: =SUM('- 25 -'!B27,'- 25 -'!E27,'- 25 -'!H27,'- 26 -'!B27) -> 1725257 | E27: =D27/'- 3 -'!D27*100 -> 3.92199703 | F27: =D27/'- 7 -'!E27 -> 614.0141647 | G27: =SUM('- 27 -'!B27,'- 27 -'!E27,'- 27 -'!H27,'- 28 -'!B27,'- 28 -'!E27) -> 1654962 | H27: =G27/'- 3 -'!D27*100 -> 3.762196617 | I27: =G27/'- 7 -'!E27 -> 588.9963698
A28: PARK WEST | B28: =SUM('- 24 -'!H28,'- 24 -'!F28,'- 24 -'!D28,'- 24 -'!B28) -> 113251 | C28: =B28/'- 3 -'!D28*100 -> 0.3916084429 | D28: =SUM('- 25 -'!B28,'- 25 -'!E28,'- 25 -'!H28,'- 26 -'!B28) -> 1044773 | E28: =D28/'- 3 -'!D28*100 -> 3.612700353 | F28: =D28/'- 7 -'!E28 -> 514.0334563 | G28: =SUM('- 27 -'!B28,'- 27 -'!E28,'- 27 -'!H28,'- 28 -'!B28,'- 28 -'!E28) -> 658310 | H28: =G28/'- 3 -'!D28*100 -> 2.276357419 | I28: =G28/'- 7 -'!E28 -> 323.8917589
A29: PEMBINA TRAILS | B29: =SUM('- 24 -'!H29,'- 24 -'!F29,'- 24 -'!D29,'- 24 -'!B29) -> 225375 | C29: =B29/'- 3 -'!D29*100 -> 0.1243880082 | D29: =SUM('- 25 -'!B29,'- 25 -'!E29,'- 25 -'!H29,'- 26 -'!B29) -> 5014751 | E29: =D29/'- 3 -'!D29*100 -> 2.767719972 | F29: =D29/'- 7 -'!E29 -> 341.6275632 | G29: =SUM('- 27 -'!B29,'- 27 -'!E29,'- 27 -'!H29,'- 28 -'!B29,'- 28 -'!E29) -> 6715290 | H29: =G29/'- 3 -'!D29*100 -> 3.7062742 | I29: =G29/'- 7 -'!E29 -> 457.4759861
A30: PINE CREEK | B30: =SUM('- 24 -'!H30,'- 24 -'!F30,'- 24 -'!D30,'- 24 -'!B30) -> 14790 | C30: =B30/'- 3 -'!D30*100 -> 0.09373414196 | D30: =SUM('- 25 -'!B30,'- 25 -'!E30,'- 25 -'!H30,'- 26 -'!B30) -> 553613 | E30: =D30/'- 3 -'!D30*100 -> 3.508616601 | F30: =D30/'- 7 -'!E30 -> 520.8024459 | G30: =SUM('- 27 -'!B30,'- 27 -'!E30,'- 27 -'!H30,'- 28 -'!B30,'- 28 -'!E30) -> 473284 | H30: =G30/'- 3 -'!D30*100 -> 2.999517893 | I30: =G30/'- 7 -'!E30 -> 445.2342427
A31: PORTAGE LA PRAIRIE | B31: =SUM('- 24 -'!H31,'- 24 -'!F31,'- 24 -'!D31,'- 24 -'!B31) -> 61455 | C31: =B31/'- 3 -'!D31*100 -> 0.1477721606 | D31: =SUM('- 25 -'!B31,'- 25 -'!E31,'- 25 -'!H31,'- 26 -'!B31) -> 1074455 | E31: =D31/'- 3 -'!D31*100 -> 2.583590218 | F31: =D31/'- 7 -'!E31 -> 319.8734742 | G31: =SUM('- 27 -'!B31,'- 27 -'!E31,'- 27 -'!H31,'- 28 -'!B31,'- 28 -'!E31) -> 1801032 | H31: =G31/'- 3 -'!D31*100 -> 4.330687333 | I31: =G31/'- 7 -'!E31 -> 536.1810063
A32: PRAIRIE ROSE | B32: =SUM('- 24 -'!H32,'- 24 -'!F32,'- 24 -'!D32,'- 24 -'!B32) -> 36015 | C32: =B32/'- 3 -'!D32*100 -> 0.1121725342 | D32: =SUM('- 25 -'!B32,'- 25 -'!E32,'- 25 -'!H32,'- 26 -'!B32) -> 952680 | E32: =D32/'- 3 -'!D32*100 -> 2.967222821 | F32: =D32/'- 7 -'!E32 -> 402.3141892 | G32: =SUM('- 27 -'!B32,'- 27 -'!E32,'- 27 -'!H32,'- 28 -'!B32,'- 28 -'!E32) -> 803375 | H32: =G32/'- 3 -'!D32*100 -> 2.502196576 | I32: =G32/'- 7 -'!E32 -> 339.2630912
A33: PRAIRIE SPIRIT | B33: =SUM('- 24 -'!H33,'- 24 -'!F33,'- 24 -'!D33,'- 24 -'!B33) -> 30896 | C33: =B33/'- 3 -'!D33*100 -> 0.1059996866 | D33: =SUM('- 25 -'!B33,'- 25 -'!E33,'- 25 -'!H33,'- 26 -'!B33) -> 853245 | E33: =D33/'- 3 -'!D33*100 -> 2.927359611 | F33: =D33/'- 7 -'!E33 -> 406.5975697 | G33: =SUM('- 27 -'!B33,'- 27 -'!E33,'- 27 -'!H33,'- 28 -'!B33,'- 28 -'!E33) -> 723830 | H33: =G33/'- 3 -'!D33*100 -> 2.483355552 | I33: =G33/'- 7 -'!E33 -> 344.927329
A34: RED RIVER VALLEY | B34: =SUM('- 24 -'!H34,'- 24 -'!F34,'- 24 -'!D34,'- 24 -'!B34) -> 62343 | C34: =B34/'- 3 -'!D34*100 -> 0.1909585449 | D34: =SUM('- 25 -'!B34,'- 25 -'!E34,'- 25 -'!H34,'- 26 -'!B34) -> 1069524 | E34: =D34/'- 3 -'!D34*100 -> 3.275985224 | F34: =D34/'- 7 -'!E34 -> 474.5636065 | G34: =SUM('- 27 -'!B34,'- 27 -'!E34,'- 27 -'!H34,'- 28 -'!B34,'- 28 -'!E34) -> 609449 | H34: =G34/'- 3 -'!D34*100 -> 1.866761212 | I34: =G34/'- 7 -'!E34 -> 270.421529
A35: RIVER EAST TRANSCONA | B35: =SUM('- 24 -'!H35,'- 24 -'!F35,'- 24 -'!D35,'- 24 -'!B35) -> 589288 | C35: =B35/'- 3 -'!D35*100 -> 0.2929101331 | D35: =SUM('- 25 -'!B35,'- 25 -'!E35,'- 25 -'!H35,'- 26 -'!B35) -> 4763920 | E35: =D35/'- 3 -'!D35*100 -> 2.367943079 | F35: =D35/'- 7 -'!E35 -> 292.3367698 | G35: =SUM('- 27 -'!B35,'- 27 -'!E35,'- 27 -'!H35,'- 28 -'!B35,'- 28 -'!E35) -> 9276361 | H35: =G35/'- 3 -'!D35*100 -> 4.610886587 | I35: =G35/'- 7 -'!E35 -> 569.241593
A36: ROLLING RIVER | B36: =SUM('- 24 -'!H36,'- 24 -'!F36,'- 24 -'!D36,'- 24 -'!B36) -> 31245 | C36: =B36/'- 3 -'!D36*100 -> 0.1268812135 | D36: =SUM('- 25 -'!B36,'- 25 -'!E36,'- 25 -'!H36,'- 26 -'!B36) -> 882340 | E36: =D36/'- 3 -'!D36*100 -> 3.583049125 | F36: =D36/'- 7 -'!E36 -> 486.5398401 | G36: =SUM('- 27 -'!B36,'- 27 -'!E36,'- 27 -'!H36,'- 28 -'!B36,'- 28 -'!E36) -> 492795 | H36: =G36/'- 3 -'!D36*100 -> 2.00116587 | I36: =G36/'- 7 -'!E36 -> 271.7369727
A37: SEINE RIVER | B37: =SUM('- 24 -'!H37,'- 24 -'!F37,'- 24 -'!D37,'- 24 -'!B37) -> 718089 | C37: =B37/'- 3 -'!D37*100 -> 1.277941586 | D37: =SUM('- 25 -'!B37,'- 25 -'!E37,'- 25 -'!H37,'- 26 -'!B37) -> 1658241 | E37: =D37/'- 3 -'!D37*100 -> 2.951075888 | F37: =D37/'- 7 -'!E37 -> 379.9818973 | G37: =SUM('- 27 -'!B37,'- 27 -'!E37,'- 27 -'!H37,'- 28 -'!B37,'- 28 -'!E37) -> 1619312 | H37: =G37/'- 3 -'!D37*100 -> 2.881796192 | I37: =G37/'- 7 -'!E37 -> 371.0614115
A38: SEVEN OAKS | B38: =SUM('- 24 -'!H38,'- 24 -'!F38,'- 24 -'!D38,'- 24 -'!B38) -> 2758420 | C38: =B38/'- 3 -'!D38*100 -> 1.797177283 | D38: =SUM('- 25 -'!B38,'- 25 -'!E38,'- 25 -'!H38,'- 26 -'!B38) -> 4145200 | E38: =D38/'- 3 -'!D38*100 -> 2.700697963 | F38: =D38/'- 7 -'!E38 -> 354.4451 | G38: =SUM('- 27 -'!B38,'- 27 -'!E38,'- 27 -'!H38,'- 28 -'!B38,'- 28 -'!E38) -> 5871565 | H38: =G38/'- 3 -'!D38*100 -> 3.825466476 | I38: =G38/'- 7 -'!E38 -> 502.0620099
A39: SOUTHWEST HORIZON | B39: =SUM('- 24 -'!H39,'- 24 -'!F39,'- 24 -'!D39,'- 24 -'!B39) -> 168200 | C39: =B39/'- 3 -'!D39*100 -> 0.7049573337 | D39: =SUM('- 25 -'!B39,'- 25 -'!E39,'- 25 -'!H39,'- 26 -'!B39) -> 831500 | E39: =D39/'- 3 -'!D39*100 -> 3.48497041 | F39: =D39/'- 7 -'!E39 -> 551.2098111 | G39: =SUM('- 27 -'!B39,'- 27 -'!E39,'- 27 -'!H39,'- 28 -'!B39,'- 28 -'!E39) -> 472900 | H39: =G39/'- 3 -'!D39*100 -> 1.982011434 | I39: =G39/'- 7 -'!E39 -> 313.4902221
A40: ST. JAMES-ASSINIBOIA | B40: =SUM('- 24 -'!H40,'- 24 -'!F40,'- 24 -'!D40,'- 24 -'!B40) -> 1044430 | C40: =B40/'- 3 -'!D40*100 -> 0.932649679 | D40: =SUM('- 25 -'!B40,'- 25 -'!E40,'- 25 -'!H40,'- 26 -'!B40) -> 3237132 | E40: =D40/'- 3 -'!D40*100 -> 2.890677327 | F40: =D40/'- 7 -'!E40 -> 395.3555857 | G40: =SUM('- 27 -'!B40,'- 27 -'!E40,'- 27 -'!H40,'- 28 -'!B40,'- 28 -'!E40) -> 4114276 | H40: =G40/'- 3 -'!D40*100 -> 3.673944822 | I40: =G40/'- 7 -'!E40 -> 502.4824436
A41: SUNRISE | B41: =SUM('- 24 -'!H41,'- 24 -'!F41,'- 24 -'!D41,'- 24 -'!B41) -> 61954 | C41: =B41/'- 3 -'!D41*100 -> 0.09068282496 | D41: =SUM('- 25 -'!B41,'- 25 -'!E41,'- 25 -'!H41,'- 26 -'!B41) -> 2092219 | E41: =D41/'- 3 -'!D41*100 -> 3.062406452 | F41: =D41/'- 7 -'!E41 -> 462.675586 | G41: =SUM('- 27 -'!B41,'- 27 -'!E41,'- 27 -'!H41,'- 28 -'!B41,'- 28 -'!E41) -> 1515109 | H41: =G41/'- 3 -'!D41*100 -> 2.217683511 | I41: =G41/'- 7 -'!E41 -> 335.0528527
A42: SWAN VALLEY | B42: =SUM('- 24 -'!H42,'- 24 -'!F42,'- 24 -'!D42,'- 24 -'!B42) -> 59448 | C42: =B42/'- 3 -'!D42*100 -> 0.2724447489 | D42: =SUM('- 25 -'!B42,'- 25 -'!E42,'- 25 -'!H42,'- 26 -'!B42) -> 727594 | E42: =D42/'- 3 -'!D42*100 -> 3.334496781 | F42: =D42/'- 7 -'!E42 -> 536.9697417 | G42: =SUM('- 27 -'!B42,'- 27 -'!E42,'- 27 -'!H42,'- 28 -'!B42,'- 28 -'!E42) -> 443370 | H42: =G42/'- 3 -'!D42*100 -> 2.031924174 | I42: =G42/'- 7 -'!E42 -> 327.2103321
A43: TURTLE MOUNTAIN | B43: =SUM('- 24 -'!H43,'- 24 -'!F43,'- 24 -'!D43,'- 24 -'!B43) -> 15150 | C43: =B43/'- 3 -'!D43*100 -> 0.1083974232 | D43: =SUM('- 25 -'!B43,'- 25 -'!E43,'- 25 -'!H43,'- 26 -'!B43) -> 472104 | E43: =D43/'- 3 -'!D43*100 -> 3.377878354 | F43: =D43/'- 7 -'!E43 -> 477.5963581 | G43: =SUM('- 27 -'!B43,'- 27 -'!E43,'- 27 -'!H43,'- 28 -'!B43,'- 28 -'!E43) -> 424099 | H43: =G43/'- 3 -'!D43*100 -> 3.034405199 | I43: =G43/'- 7 -'!E43 -> 429.0328781
A44: TURTLE RIVER | B44: =SUM('- 24 -'!H44,'- 24 -'!F44,'- 24 -'!D44,'- 24 -'!B44) -> 27522 | C44: =B44/'- 3 -'!D44*100 -> 0.2392478843 | D44: =SUM('- 25 -'!B44,'- 25 -'!E44,'- 25 -'!H44,'- 26 -'!B44) -> 399642 | E44: =D44/'- 3 -'!D44*100 -> 3.474075394 | F44: =D44/'- 7 -'!E44 -> 593.8216939 | G44: =SUM('- 27 -'!B44,'- 27 -'!E44,'- 27 -'!H44,'- 28 -'!B44,'- 28 -'!E44) -> 250641 | H44: =G44/'- 3 -'!D44*100 -> 2.178814366 | I44: =G44/'- 7 -'!E44 -> 372.423477
A45: WESTERN | B45: =SUM('- 24 -'!H45,'- 24 -'!F45,'- 24 -'!D45,'- 24 -'!B45) -> 45734 | C45: =B45/'- 3 -'!D45*100 -> 0.1931508687 | D45: =SUM('- 25 -'!B45,'- 25 -'!E45,'- 25 -'!H45,'- 26 -'!B45) -> 778335 | E45: =D45/'- 3 -'!D45*100 -> 3.287184182 | F45: =D45/'- 7 -'!E45 -> 382.8504673 | G45: =SUM('- 27 -'!B45,'- 27 -'!E45,'- 27 -'!H45,'- 28 -'!B45,'- 28 -'!E45) -> 565177 | H45: =G45/'- 3 -'!D45*100 -> 2.386942505 | I45: =G45/'- 7 -'!E45 -> 278.0014757
A46: WINNIPEG | B46: =SUM('- 24 -'!H46,'- 24 -'!F46,'- 24 -'!D46,'- 24 -'!B46) -> 8213604 | C46: =B46/'- 3 -'!D46*100 -> 1.968467767 | D46: =SUM('- 25 -'!B46,'- 25 -'!E46,'- 25 -'!H46,'- 26 -'!B46) -> 11357168 | E46: =D46/'- 3 -'!D46*100 -> 2.721852568 | F46: =D46/'- 7 -'!E46 -> 372.7389028 | G46: =SUM('- 27 -'!B46,'- 27 -'!E46,'- 27 -'!H46,'- 28 -'!B46,'- 28 -'!E46) -> 9089518 | H46: =G46/'- 3 -'!D46*100 -> 2.178388829 | I46: =G46/'- 7 -'!E46 -> 298.3152989
A48: PROVINCE | B48: =SUM(B11:B46) -> 21780826 | C48: =B48/'- 3 -'!D48*100 -> 0.8627451182 | D48: =SUM(D11:D46) -> 77499903 | E48: =D48/'- 3 -'!D48*100 -> 3.069794643 | F48: =D48/'- 7 -'!E48 -> 423.3390613 | G48: =SUM(G11:G46) -> 83106188 | H48: =G48/'- 3 -'!D48*100 -> 3.291861291 | I48: =G48/'- 7 -'!E48 -> 453.9630922
A50: WHITESHELL | B50: =SUM('- 24 -'!H50,'- 24 -'!F50,'- 24 -'!D50,'- 24 -'!B50) -> 184542 | C50: =B50/'- 3 -'!D50*100 -> 5.125478557 | D50: =SUM('- 25 -'!B50,'- 25 -'!E50,'- 25 -'!H50,'- 26 -'!B50) -> 137251 | E50: =D50/'- 3 -'!D50*100 -> 3.812016004 | F50: =D50/'- 7 -'!E50 -> 779.8352273 | G50: =SUM('- 27 -'!B50,'- 27 -'!E50,'- 27 -'!H50,'- 28 -'!B50,'- 28 -'!E50) -> 158661 | H50: =G50/'- 3 -'!D50*100 -> 4.406658394 | I50: =G50/'- 7 -'!E50 -> 901.4829545
A51: MITT | B51: =SUM('- 24 -'!H51,'- 24 -'!F51,'- 24 -'!D51,'- 24 -'!B51) -> 11139244 | C51: =B51/'- 3 -'!D51*100 -> 33.46034006 | D51: =SUM('- 25 -'!B51,'- 25 -'!E51,'- 25 -'!H51,'- 26 -'!B51) -> 6477387 | E51: =D51/'- 3 -'!D51*100 -> 19.45693727 | F51: =D51/'- 7 -'!E51 -> 3651.289177 | G51: =SUM('- 27 -'!B51,'- 27 -'!E51,'- 27 -'!H51,'- 28 -'!B51,'- 28 -'!E51) -> 700540 | H51: =G51/'- 3 -'!D51*100 -> 2.104299594 | I51: =G51/'- 7 -'!E51 -> 394.8928974

Sheet - 17 -
B2: =AEXP_BF -> ANALYSIS OF EXPENSE BY FUNCTION | J2: PAGE 3 OF 3
B3: =+'- 16 -'!B3 -> OPERATING FUND 2021/2022 BUDGET
B6: TRANSPORTATION OF PUPILS | E6: OPERATIONS AND MAINTENANCE | H6: FISCAL
D8: PER PUPIL | G8: PER PUPIL | J8: PER PUPIL
A9: DIVISION / DISTRICT | B9: AMOUNT | C9: % | E9: AMOUNT | F9: % | H9: AMOUNT | I9: %
A11: BEAUTIFUL PLAINS | B11: =SUM('- 30 -'!D11,'- 30 -'!B11,'- 29 -'!F11,'- 29 -'!D11,'- 29 -'!B11) -> 1402970 | C11: =B11/'- 3 -'!D11*100 -> 6.0140215 | D11: =B11/'- 7 -'!E11 -> 677.1090734 | E11: =SUM('- 32 -'!D11,'- 32 -'!B11,'- 31 -'!F11,'- 31 -'!D11,'- 31 -'!B11) -> 2195977 | F11: =E11/'- 3 -'!D11*100 -> 9.413353737 | G11: =E11/'- 7 -'!E11 -> 1059.834459 | H11: =SUM('- 33 -'!B11,'- 33 -'!D11) -> 406060 | I11: =H11/'- 3 -'!D11*100 -> 1.740631354 | J11: =H11/'- 7 -'!E11 -> 195.9749035
A12: BORDER LAND | B12: =SUM('- 30 -'!D12,'- 30 -'!B12,'- 29 -'!F12,'- 29 -'!D12,'- 29 -'!B12) -> 2482091 | C12: =B12/'- 3 -'!D12*100 -> 7.102371756 | D12: =B12/'- 7 -'!E12 -> 1149.190688 | E12: =SUM('- 32 -'!D12,'- 32 -'!B12,'- 31 -'!F12,'- 31 -'!D12,'- 31 -'!B12) -> 3707132 | F12: =E12/'- 3 -'!D12*100 -> 10.60776161 | G12: =E12/'- 7 -'!E12 -> 1716.376061 | H12: =SUM('- 33 -'!B12,'- 33 -'!D12) -> 565000 | I12: =H12/'- 3 -'!D12*100 -> 1.616717535 | J12: =H12/'- 7 -'!E12 -> 261.591029
A13: BRANDON | B13: =SUM('- 30 -'!D13,'- 30 -'!B13,'- 29 -'!F13,'- 29 -'!D13,'- 29 -'!B13) -> 2654400 | C13: =B13/'- 3 -'!D13*100 -> 2.420051858 | D13: =B13/'- 7 -'!E13 -> 303.4466991 | E13: =SUM('- 32 -'!D13,'- 32 -'!B13,'- 31 -'!F13,'- 31 -'!D13,'- 31 -'!B13) -> 9064900 | F13: =E13/'- 3 -'!D13*100 -> 8.264590148 | G13: =E13/'- 7 -'!E13 -> 1036.284653 | H13: =SUM('- 33 -'!B13,'- 33 -'!D13) -> 1900200 | I13: =H13/'- 3 -'!D13*100 -> 1.732437666 | J13: =H13/'- 7 -'!E13 -> 217.2277794
A14: DSFM | B14: =SUM('- 30 -'!D14,'- 30 -'!B14,'- 29 -'!F14,'- 29 -'!D14,'- 29 -'!B14) -> 10849685 | C14: =B14/'- 3 -'!D14*100 -> 10.81736153 | D14: =B14/'- 7 -'!E14 -> 1789.491176 | E14: =SUM('- 32 -'!D14,'- 32 -'!B14,'- 31 -'!F14,'- 31 -'!D14,'- 31 -'!B14) -> 11105367 | F14: =E14/'- 3 -'!D14*100 -> 11.0722818 | G14: =E14/'- 7 -'!E14 -> 1831.662048 | H14: =SUM('- 33 -'!B14,'- 33 -'!D14) -> 1517248 | I14: =H14/'- 3 -'!D14*100 -> 1.512727803 | J14: =H14/'- 7 -'!E14 -> 250.2470724
A15: EVERGREEN | B15: =SUM('- 30 -'!D15,'- 30 -'!B15,'- 29 -'!F15,'- 29 -'!D15,'- 29 -'!B15) -> 1802994 | C15: =B15/'- 3 -'!D15*100 -> 8.402423261 | D15: =B15/'- 7 -'!E15 -> 1340.515985 | E15: =SUM('- 32 -'!D15,'- 32 -'!B15,'- 31 -'!F15,'- 31 -'!D15,'- 31 -'!B15) -> 2654335 | F15: =E15/'- 3 -'!D15*100 -> 12.36989482 | G15: =E15/'- 7 -'!E15 -> 1973.483271 | H15: =SUM('- 33 -'!B15,'- 33 -'!D15) -> 340000 | I15: =H15/'- 3 -'!D15*100 -> 1.584488861 | J15: =H15/'- 7 -'!E15 -> 252.7881041
A16: FLIN FLON | B16: =SUM('- 30 -'!D16,'- 30 -'!B16,'- 29 -'!F16,'- 29 -'!D16,'- 29 -'!B16) -> 559573 | C16: =B16/'- 3 -'!D16*100 -> 3.594509488 | D16: =B16/'- 7 -'!E16 -> 590.2668776 | E16: =SUM('- 32 -'!D16,'- 32 -'!B16,'- 31 -'!F16,'- 31 -'!D16,'- 31 -'!B16) -> 2211971 | F16: =E16/'- 3 -'!D16*100 -> 14.20896067 | G16: =E16/'- 7 -'!E16 -> 2333.302743 | H16: =SUM('- 33 -'!B16,'- 33 -'!D16) -> 256954 | I16: =H16/'- 3 -'!D16*100 -> 1.650586413 | J16: =H16/'- 7 -'!E16 -> 271.0485232
A17: FORT LA BOSSE | B17: =SUM('- 30 -'!D17,'- 30 -'!B17,'- 29 -'!F17,'- 29 -'!D17,'- 29 -'!B17) -> 1510955 | C17: =B17/'- 3 -'!D17*100 -> 7.724671028 | D17: =B17/'- 7 -'!E17 -> 1068.945879 | E17: =SUM('- 32 -'!D17,'- 32 -'!B17,'- 31 -'!F17,'- 31 -'!D17,'- 31 -'!B17) -> 1945205 | F17: =E17/'- 3 -'!D17*100 -> 9.944749319 | G17: =E17/'- 7 -'!E17 -> 1376.162009 | H17: =SUM('- 33 -'!B17,'- 33 -'!D17) -> 389000 | I17: =H17/'- 3 -'!D17*100 -> 1.988740254 | J17: =H17/'- 7 -'!E17 -> 275.2033958
A18: FRONTIER | B18: =SUM('- 30 -'!D18,'- 30 -'!B18,'- 29 -'!F18,'- 29 -'!D18,'- 29 -'!B18) -> 12438832 | C18: =B18/'- 3 -'!D18*100 -> 8.572119013 | D18: =B18/'- 7 -'!E18 -> 2110.780927 | E18: =SUM('- 32 -'!D18,'- 32 -'!B18,'- 31 -'!F18,'- 31 -'!D18,'- 31 -'!B18) -> 25643585 | F18: =E18/'- 3 -'!D18*100 -> 17.6720662 | G18: =E18/'- 7 -'!E18 -> 4351.533175 | H18: =SUM('- 33 -'!B18,'- 33 -'!D18) -> 1290000 | I18: =H18/'- 3 -'!D18*100 -> 0.8889929156 | J18: =H18/'- 7 -'!E18 -> 218.9037842
A19: GARDEN VALLEY | B19: =SUM('- 30 -'!D19,'- 30 -'!B19,'- 29 -'!F19,'- 29 -'!D19,'- 29 -'!B19) -> 3275430 | C19: =B19/'- 3 -'!D19*100 -> 6.26783827 | D19: =B19/'- 7 -'!E19 -> 768.5194744 | E19: =SUM('- 32 -'!D19,'- 32 -'!B19,'- 31 -'!F19,'- 31 -'!D19,'- 31 -'!B19) -> 4822400 | F19: =E19/'- 3 -'!D19*100 -> 9.228108454 | G19: =E19/'- 7 -'!E19 -> 1131.487565 | H19: =SUM('- 33 -'!B19,'- 33 -'!D19) -> 892000 | I19: =H19/'- 3 -'!D19*100 -> 1.706924507 | J19: =H19/'- 7 -'!E19 -> 209.2914125
A20: HANOVER | B20: =SUM('- 30 -'!D20,'- 30 -'!B20,'- 29 -'!F20,'- 29 -'!D20,'- 29 -'!B20) -> 4269000 | C20: =B20/'- 3 -'!D20*100 -> 4.544109476 | D20: =B20/'- 7 -'!E20 -> 523.6109408 | E20: =SUM('- 32 -'!D20,'- 32 -'!B20,'- 31 -'!F20,'- 31 -'!D20,'- 31 -'!B20) -> 9407200 | F20: =E20/'- 3 -'!D20*100 -> 10.01343328 | G20: =E20/'- 7 -'!E20 -> 1153.832945 | H20: =SUM('- 33 -'!B20,'- 33 -'!D20) -> 1735100 | I20: =H20/'- 3 -'!D20*100 -> 1.846915988 | J20: =H20/'- 7 -'!E20 -> 212.8173678
A21: INTERLAKE | B21: =SUM('- 30 -'!D21,'- 30 -'!B21,'- 29 -'!F21,'- 29 -'!D21,'- 29 -'!B21) -> 2318000 | C21: =B21/'- 3 -'!D21*100 -> 6.006006006 | D21: =B21/'- 7 -'!E21 -> 811.6246499 | E21: =SUM('- 32 -'!D21,'- 32 -'!B21,'- 31 -'!F21,'- 31 -'!D21,'- 31 -'!B21) -> 3656000 | F21: =E21/'- 3 -'!D21*100 -> 9.472803261 | G21: =E21/'- 7 -'!E21 -> 1280.112045 | H21: =SUM('- 33 -'!B21,'- 33 -'!D21) -> 715000 | I21: =H21/'- 3 -'!D21*100 -> 1.852585977 | J21: =H21/'- 7 -'!E21 -> 250.3501401
A22: KELSEY | B22: =SUM('- 30 -'!D22,'- 30 -'!B22,'- 29 -'!F22,'- 29 -'!D22,'- 29 -'!B22) -> 560404 | C22: =B22/'- 3 -'!D22*100 -> 2.720612077 | D22: =B22/'- 7 -'!E22 -> 386.7522429 | E22: =SUM('- 32 -'!D22,'- 32 -'!B22,'- 31 -'!F22,'- 31 -'!D22,'- 31 -'!B22) -> 2555013 | F22: =E22/'- 3 -'!D22*100 -> 12.40390723 | G22: =E22/'- 7 -'!E22 -> 1763.293996 | H22: =SUM('- 33 -'!B22,'- 33 -'!D22) -> 365720 | I22: =H22/'- 3 -'!D22*100 -> 1.775473139 | J22: =H22/'- 7 -'!E22 -> 252.394755
A23: LAKESHORE | B23: =SUM('- 30 -'!D23,'- 30 -'!B23,'- 29 -'!F23,'- 29 -'!D23,'- 29 -'!B23) -> 1747740 | C23: =B23/'- 3 -'!D23*100 -> 10.65405059 | D23: =B23/'- 7 -'!E23 -> 1875.257511 | E23: =SUM('- 32 -'!D23,'- 32 -'!B23,'- 31 -'!F23,'- 31 -'!D23,'- 31 -'!B23) -> 1684077 | F23: =E23/'- 3 -'!D23*100 -> 10.26596722 | G23: =E23/'- 7 -'!E23 -> 1806.949571 | H23: =SUM('- 33 -'!B23,'- 33 -'!D23) -> 252800 | I23: =H23/'- 3 -'!D23*100 -> 1.541043856 | J23: =H23/'- 7 -'!E23 -> 271.2446352
A24: LORD SELKIRK | B24: =SUM('- 30 -'!D24,'- 30 -'!B24,'- 29 -'!F24,'- 29 -'!D24,'- 29 -'!B24) -> 2812358 | C24: =B24/'- 3 -'!D24*100 -> 4.749794216 | D24: =B24/'- 7 -'!E24 -> 756.0102151 | E24: =SUM('- 32 -'!D24,'- 32 -'!B24,'- 31 -'!F24,'- 31 -'!D24,'- 31 -'!B24) -> 6590998 | F24: =E24/'- 3 -'!D24*100 -> 11.13154306 | G24: =E24/'- 7 -'!E24 -> 1771.773656 | H24: =SUM('- 33 -'!B24,'- 33 -'!D24) -> 1033000 | I24: =H24/'- 3 -'!D24*100 -> 1.744634725 | J24: =H24/'- 7 -'!E24 -> 277.688172
A25: LOUIS RIEL | B25: =SUM('- 30 -'!D25,'- 30 -'!B25,'- 29 -'!F25,'- 29 -'!D25,'- 29 -'!B25) -> 5047155 | C25: =B25/'- 3 -'!D25*100 -> 2.555001334 | D25: =B25/'- 7 -'!E25 -> 326.613279 | E25: =SUM('- 32 -'!D25,'- 32 -'!B25,'- 31 -'!F25,'- 31 -'!D25,'- 31 -'!B25) -> 20716124 | F25: =E25/'- 3 -'!D25*100 -> 10.4870416 | G25: =E25/'- 7 -'!E25 -> 1340.589141 | H25: =SUM('- 33 -'!B25,'- 33 -'!D25) -> 3506068 | I25: =H25/'- 3 -'!D25*100 -> 1.774862951 | J25: =H25/'- 7 -'!E25 -> 226.8859121
A26: MOUNTAIN VIEW | B26: =SUM('- 30 -'!D26,'- 30 -'!B26,'- 29 -'!F26,'- 29 -'!D26,'- 29 -'!B26) -> 3165242 | C26: =B26/'- 3 -'!D26*100 -> 7.388282249 | D26: =B26/'- 7 -'!E26 -> 1043.945251 | E26: =SUM('- 32 -'!D26,'- 32 -'!B26,'- 31 -'!F26,'- 31 -'!D26,'- 31 -'!B26) -> 5228536 | F26: =E26/'- 3 -'!D26*100 -> 12.2044064 | G26: =E26/'- 7 -'!E26 -> 1724.451187 | H26: =SUM('- 33 -'!B26,'- 33 -'!D26) -> 796724 | I26: =H26/'- 3 -'!D26*100 -> 1.85970671 | J26: =H26/'- 7 -'!E26 -> 262.7717678
A27: MYSTERY LAKE | B27: =SUM('- 30 -'!D27,'- 30 -'!B27,'- 29 -'!F27,'- 29 -'!D27,'- 29 -'!B27) -> 390000 | C27: =B27/'- 3 -'!D27*100 -> 0.8865802843 | D27: =B27/'- 7 -'!E27 -> 138.7999146 | E27: =SUM('- 32 -'!D27,'- 32 -'!B27,'- 31 -'!F27,'- 31 -'!D27,'- 31 -'!B27) -> 5757846 | F27: =E27/'- 3 -'!D27*100 -> 13.08921216 | G27: =E27/'- 7 -'!E27 -> 2049.201367 | H27: =SUM('- 33 -'!B27,'- 33 -'!D27) -> 720520 | I27: =H27/'- 3 -'!D27*100 -> 1.637945709 | J27: =H27/'- 7 -'!E27 -> 256.4310627
A28: PARK WEST | B28: =SUM('- 30 -'!D28,'- 30 -'!B28,'- 29 -'!F28,'- 29 -'!D28,'- 29 -'!B28) -> 1816386 | C28: =B28/'- 3 -'!D28*100 -> 6.280846024 | D28: =B28/'- 7 -'!E28 -> 893.6708487 | E28: =SUM('- 32 -'!D28,'- 32 -'!B28,'- 31 -'!F28,'- 31 -'!D28,'- 31 -'!B28) -> 3449900 | F28: =E28/'- 3 -'!D28*100 -> 11.9293425 | G28: =E28/'- 7 -'!E28 -> 1697.367774 | H28: =SUM('- 33 -'!B28,'- 33 -'!D28) -> 506600 | I28: =H28/'- 3 -'!D28*100 -> 1.751762343 | J28: =H28/'- 7 -'!E28 -> 249.2496925
A29: PEMBINA TRAILS | B29: =SUM('- 30 -'!D29,'- 30 -'!B29,'- 29 -'!F29,'- 29 -'!D29,'- 29 -'!B29) -> 4142459 | C29: =B29/'- 3 -'!D29*100 -> 2.286288294 | D29: =B29/'- 7 -'!E29 -> 282.2030792 | E29: =SUM('- 32 -'!D29,'- 32 -'!B29,'- 31 -'!F29,'- 31 -'!D29,'- 31 -'!B29) -> 20271680 | F29: =E29/'- 3 -'!D29*100 -> 11.18825912 | G29: =E29/'- 7 -'!E29 -> 1380.998706 | H29: =SUM('- 33 -'!B29,'- 33 -'!D29) -> 3330000 | I29: =H29/'- 3 -'!D29*100 -> 1.83787939 | J29: =H29/'- 7 -'!E29 -> 226.8546904
A30: PINE CREEK | B30: =SUM('- 30 -'!D30,'- 30 -'!B30,'- 29 -'!F30,'- 29 -'!D30,'- 29 -'!B30) -> 1359359 | C30: =B30/'- 3 -'!D30*100 -> 8.615168998 | D30: =B30/'- 7 -'!E30 -> 1278.79492 | E30: =SUM('- 32 -'!D30,'- 32 -'!B30,'- 31 -'!F30,'- 31 -'!D30,'- 31 -'!B30) -> 1635764 | F30: =E30/'- 3 -'!D30*100 -> 10.36693272 | G30: =E30/'- 7 -'!E30 -> 1538.818438 | H30: =SUM('- 33 -'!B30,'- 33 -'!D30) -> 254233 | I30: =H30/'- 3 -'!D30*100 -> 1.611244903 | J30: =H30/'- 7 -'!E30 -> 239.1655691
A31: PORTAGE LA PRAIRIE | B31: =SUM('- 30 -'!D31,'- 30 -'!B31,'- 29 -'!F31,'- 29 -'!D31,'- 29 -'!B31) -> 1249018 | C31: =B31/'- 3 -'!D31*100 -> 3.003337215 | D31: =B31/'- 7 -'!E31 -> 371.8422149 | E31: =SUM('- 32 -'!D31,'- 32 -'!B31,'- 31 -'!F31,'- 31 -'!D31,'- 31 -'!B31) -> 4097250 | F31: =E31/'- 3 -'!D31*100 -> 9.852078516 | G31: =E31/'- 7 -'!E31 -> 1219.782673 | H31: =SUM('- 33 -'!B31,'- 33 -'!D31) -> 737000 | I31: =H31/'- 3 -'!D31*100 -> 1.772159831 | J31: =H31/'- 7 -'!E31 -> 219.4105389
A32: PRAIRIE ROSE | B32: =SUM('- 30 -'!D32,'- 30 -'!B32,'- 29 -'!F32,'- 29 -'!D32,'- 29 -'!B32) -> 2345445 | C32: =B32/'- 3 -'!D32*100 -> 7.305137013 | D32: =B32/'- 7 -'!E32 -> 990.4750845 | E32: =SUM('- 32 -'!D32,'- 32 -'!B32,'- 31 -'!F32,'- 31 -'!D32,'- 31 -'!B32) -> 3255840 | F32: =E32/'- 3 -'!D32*100 -> 10.14065872 | G32: =E32/'- 7 -'!E32 -> 1374.932432 | H32: =SUM('- 33 -'!B32,'- 33 -'!D32) -> 599251 | I32: =H32/'- 3 -'!D32*100 -> 1.866430746 | J32: =H32/'- 7 -'!E32 -> 253.0620777
A33: PRAIRIE SPIRIT | B33: =SUM('- 30 -'!D33,'- 30 -'!B33,'- 29 -'!F33,'- 29 -'!D33,'- 29 -'!B33) -> 2497100 | C33: =B33/'- 3 -'!D33*100 -> 8.567187251 | D33: =B33/'- 7 -'!E33 -> 1189.945199 | E33: =SUM('- 32 -'!D33,'- 32 -'!B33,'- 31 -'!F33,'- 31 -'!D33,'- 31 -'!B33) -> 3339200 | F33: =E33/'- 3 -'!D33*100 -> 11.45630999 | G33: =E33/'- 7 -'!E33 -> 1591.231832 | H33: =SUM('- 33 -'!B33,'- 33 -'!D33) -> 507000 | I33: =H33/'- 3 -'!D33*100 -> 1.739443329 | J33: =H33/'- 7 -'!E33 -> 241.6011437
A34: RED RIVER VALLEY | B34: =SUM('- 30 -'!D34,'- 30 -'!B34,'- 29 -'!F34,'- 29 -'!D34,'- 29 -'!B34) -> 2882701 | C34: =B34/'- 3 -'!D34*100 -> 8.82980268 | D34: =B34/'- 7 -'!E34 -> 1279.09704 | E34: =SUM('- 32 -'!D34,'- 32 -'!B34,'- 31 -'!F34,'- 31 -'!D34,'- 31 -'!B34) -> 2919079 | F34: =E34/'- 3 -'!D34*100 -> 8.941229623 | G34: =E34/'- 7 -'!E34 -> 1295.238497 | H34: =SUM('- 33 -'!B34,'- 33 -'!D34) -> 662101 | I34: =H34/'- 3 -'!D34*100 -> 2.028035923 | J34: =H34/'- 7 -'!E34 -> 293.7839996
A35: RIVER EAST TRANSCONA | B35: =SUM('- 30 -'!D35,'- 30 -'!B35,'- 29 -'!F35,'- 29 -'!D35,'- 29 -'!B35) -> 5095814 | C35: =B35/'- 3 -'!D35*100 -> 2.532913545 | D35: =B35/'- 7 -'!E35 -> 312.7033628 | E35: =SUM('- 32 -'!D35,'- 32 -'!B35,'- 31 -'!F35,'- 31 -'!D35,'- 31 -'!B35) -> 22571626 | F35: =E35/'- 3 -'!D35*100 -> 11.21940032 | G35: =E35/'- 7 -'!E35 -> 1385.102234 | H35: =SUM('- 33 -'!B35,'- 33 -'!D35) -> 3564000 | I35: =H35/'- 3 -'!D35*100 -> 1.771513614 | J35: =H35/'- 7 -'!E35 -> 218.7039764
A36: ROLLING RIVER | B36: =SUM('- 30 -'!D36,'- 30 -'!B36,'- 29 -'!F36,'- 29 -'!D36,'- 29 -'!B36) -> 1816750 | C36: =B36/'- 3 -'!D36*100 -> 7.377546634 | D36: =B36/'- 7 -'!E36 -> 1001.792115 | E36: =SUM('- 32 -'!D36,'- 32 -'!B36,'- 31 -'!F36,'- 31 -'!D36,'- 31 -'!B36) -> 2981430 | F36: =E36/'- 3 -'!D36*100 -> 12.10713574 | G36: =E36/'- 7 -'!E36 -> 1644.019851 | H36: =SUM('- 33 -'!B36,'- 33 -'!D36) -> 454000 | I36: =H36/'- 3 -'!D36*100 -> 1.843625249 | J36: =H36/'- 7 -'!E36 -> 250.3446374
A37: SEINE RIVER | B37: =SUM('- 30 -'!D37,'- 30 -'!B37,'- 29 -'!F37,'- 29 -'!D37,'- 29 -'!B37) -> 3566197 | C37: =B37/'- 3 -'!D37*100 -> 6.346555162 | D37: =B37/'- 7 -'!E37 -> 817.1853804 | E37: =SUM('- 32 -'!D37,'- 32 -'!B37,'- 31 -'!F37,'- 31 -'!D37,'- 31 -'!B37) -> 5198560 | F37: =E37/'- 3 -'!D37*100 -> 9.251577466 | G37: =E37/'- 7 -'!E37 -> 1191.237397 | H37: =SUM('- 33 -'!B37,'- 33 -'!D37) -> 930000 | I37: =H37/'- 3 -'!D37*100 -> 1.655067373 | J37: =H37/'- 7 -'!E37 -> 213.1072411
A38: SEVEN OAKS | B38: =SUM('- 30 -'!D38,'- 30 -'!B38,'- 29 -'!F38,'- 29 -'!D38,'- 29 -'!B38) -> 4032018 | C38: =B38/'- 3 -'!D38*100 -> 2.626957155 | D38: =B38/'- 7 -'!E38 -> 344.7672062 | E38: =SUM('- 32 -'!D38,'- 32 -'!B38,'- 31 -'!F38,'- 31 -'!D38,'- 31 -'!B38) -> 14682605 | F38: =E38/'- 3 -'!D38*100 -> 9.566071942 | G38: =E38/'- 7 -'!E38 -> 1255.470761 | H38: =SUM('- 33 -'!B38,'- 33 -'!D38) -> 2769373 | I38: =H38/'- 3 -'!D38*100 -> 1.804313427 | J38: =H38/'- 7 -'!E38 -> 236.8017683
A39: SOUTHWEST HORIZON | B39: =SUM('- 30 -'!D39,'- 30 -'!B39,'- 29 -'!F39,'- 29 -'!D39,'- 29 -'!B39) -> 2278600 | C39: =B39/'- 3 -'!D39*100 -> 9.550034368 | D39: =B39/'- 7 -'!E39 -> 1510.507126 | E39: =SUM('- 32 -'!D39,'- 32 -'!B39,'- 31 -'!F39,'- 31 -'!D39,'- 31 -'!B39) -> 2458400 | F39: =E39/'- 3 -'!D39*100 -> 10.30360945 | G39: =E39/'- 7 -'!E39 -> 1629.698376 | H39: =SUM('- 33 -'!B39,'- 33 -'!D39) -> 411950 | I39: =H39/'- 3 -'!D39*100 -> 1.726558702 | J39: =H39/'- 7 -'!E39 -> 273.0858469
A40: ST. JAMES-ASSINIBOIA | B40: =SUM('- 30 -'!D40,'- 30 -'!B40,'- 29 -'!F40,'- 29 -'!D40,'- 29 -'!B40) -> 2523335 | C40: =B40/'- 3 -'!D40*100 -> 2.253274588 | D40: =B40/'- 7 -'!E40 -> 308.1785317 | E40: =SUM('- 32 -'!D40,'- 32 -'!B40,'- 31 -'!F40,'- 31 -'!D40,'- 31 -'!B40) -> 10934557 | F40: =E40/'- 3 -'!D40*100 -> 9.76428394 | G40: =E40/'- 7 -'!E40 -> 1335.453169 | H40: =SUM('- 33 -'!B40,'- 33 -'!D40) -> 1971483 | I40: =H40/'- 3 -'!D40*100 -> 1.760484654 | J40: =H40/'- 7 -'!E40 -> 240.7800535
A41: SUNRISE | B41: =SUM('- 30 -'!D41,'- 30 -'!B41,'- 29 -'!F41,'- 29 -'!D41,'- 29 -'!B41) -> 5211984 | C41: =B41/'- 3 -'!D41*100 -> 7.62884451 | D41: =B41/'- 7 -'!E41 -> 1152.583812 | E41: =SUM('- 32 -'!D41,'- 32 -'!B41,'- 31 -'!F41,'- 31 -'!D41,'- 31 -'!B41) -> 6925957 | F41: =E41/'- 3 -'!D41*100 -> 10.13760768 | G41: =E41/'- 7 -'!E41 -> 1531.613667 | H41: =SUM('- 33 -'!B41,'- 33 -'!D41) -> 1370395 | I41: =H41/'- 3 -'!D41*100 -> 2.005863865 | J41: =H41/'- 7 -'!E41 -> 303.0506413
A42: SWAN VALLEY | B42: =SUM('- 30 -'!D42,'- 30 -'!B42,'- 29 -'!F42,'- 29 -'!D42,'- 29 -'!B42) -> 1867997 | C42: =B42/'- 3 -'!D42*100 -> 8.560859468 | D42: =B42/'- 7 -'!E42 -> 1378.595572 | E42: =SUM('- 32 -'!D42,'- 32 -'!B42,'- 31 -'!F42,'- 31 -'!D42,'- 31 -'!B42) -> 2433190 | F42: =E42/'- 3 -'!D42*100 -> 11.15108731 | G42: =E42/'- 7 -'!E42 -> 1795.712177 | H42: =SUM('- 33 -'!B42,'- 33 -'!D42) -> 356000 | I42: =H42/'- 3 -'!D42*100 -> 1.631515452 | J42: =H42/'- 7 -'!E42 -> 262.7306273
A43: TURTLE MOUNTAIN | B43: =SUM('- 30 -'!D43,'- 30 -'!B43,'- 29 -'!F43,'- 29 -'!D43,'- 29 -'!B43) -> 1075023 | C43: =B43/'- 3 -'!D43*100 -> 7.691730894 | D43: =B43/'- 7 -'!E43 -> 1087.52959 | E43: =SUM('- 32 -'!D43,'- 32 -'!B43,'- 31 -'!F43,'- 31 -'!D43,'- 31 -'!B43) -> 1119972 | F43: =E43/'- 3 -'!D43*100 -> 8.013338535 | G43: =E43/'- 7 -'!E43 -> 1133.001517 | H43: =SUM('- 33 -'!B43,'- 33 -'!D43) -> 284489 | I43: =H43/'- 3 -'!D43*100 -> 2.035503268 | J43: =H43/'- 7 -'!E43 -> 287.7986849
A44: TURTLE RIVER | B44: =SUM('- 30 -'!D44,'- 30 -'!B44,'- 29 -'!F44,'- 29 -'!D44,'- 29 -'!B44) -> 1122370 | C44: =B44/'- 3 -'!D44*100 -> 9.756727271 | D44: =B44/'- 7 -'!E44 -> 1667.711738 | E44: =SUM('- 32 -'!D44,'- 32 -'!B44,'- 31 -'!F44,'- 31 -'!D44,'- 31 -'!B44) -> 1218373 | F44: =E44/'- 3 -'!D44*100 -> 10.59127834 | G44: =E44/'- 7 -'!E44 -> 1810.36107 | H44: =SUM('- 33 -'!B44,'- 33 -'!D44) -> 192364 | I44: =H44/'- 3 -'!D44*100 -> 1.67221423 | J44: =H44/'- 7 -'!E44 -> 285.8306092
A45: WESTERN | B45: =SUM('- 30 -'!D45,'- 30 -'!B45,'- 29 -'!F45,'- 29 -'!D45,'- 29 -'!B45) -> 1004573 | C45: =B45/'- 3 -'!D45*100 -> 4.242667328 | D45: =B45/'- 7 -'!E45 -> 494.1333005 | E45: =SUM('- 32 -'!D45,'- 32 -'!B45,'- 31 -'!F45,'- 31 -'!D45,'- 31 -'!B45) -> 2200363 | F45: =E45/'- 3 -'!D45*100 -> 9.292911725 | G45: =E45/'- 7 -'!E45 -> 1082.323168 | H45: =SUM('- 33 -'!B45,'- 33 -'!D45) -> 434150 | I45: =H45/'- 3 -'!D45*100 -> 1.833569109 | J45: =H45/'- 7 -'!E45 -> 213.5514019
A46: WINNIPEG | B46: =SUM('- 30 -'!D46,'- 30 -'!B46,'- 29 -'!F46,'- 29 -'!D46,'- 29 -'!B46) -> 7314176 | C46: =B46/'- 3 -'!D46*100 -> 1.752911353 | D46: =B46/'- 7 -'!E46 -> 240.0490983 | E46: =SUM('- 32 -'!D46,'- 32 -'!B46,'- 31 -'!F46,'- 31 -'!D46,'- 31 -'!B46) -> 54228671 | F46: =E46/'- 3 -'!D46*100 -> 12.99641314 | G46: =E46/'- 7 -'!E46 -> 1779.768982 | H46: =SUM('- 33 -'!B46,'- 33 -'!D46) -> 7757800 | I46: =H46/'- 3 -'!D46*100 -> 1.859230034 | J46: =H46/'- 7 -'!E46 -> 254.6087071
A48: PROVINCE | B48: =SUM(B11:B46) -> 110488134 | C48: =B48/'- 3 -'!D48*100 -> 4.376468469 | D48: =B48/'- 7 -'!E48 -> 603.5355028 | E48: =SUM(E11:E46) -> 284869083 | F48: =E48/'- 3 -'!D48*100 -> 11.2837507 | G48: =E48/'- 7 -'!E48 -> 1556.082079 | H48: =SUM(H11:H46) -> 43773583 | I48: =H48/'- 3 -'!D48*100 -> 1.733884887 | J48: =H48/'- 7 -'!E48 -> 239.1108481
A50: WHITESHELL | B50: =SUM('- 30 -'!D50,'- 30 -'!B50,'- 29 -'!F50,'- 29 -'!D50,'- 29 -'!B50) -> 72618 | C50: =B50/'- 3 -'!D50*100 -> 2.016895893 | D50: =B50/'- 7 -'!E50 -> 412.6022727 | E50: =SUM('- 32 -'!D50,'- 32 -'!B50,'- 31 -'!F50,'- 31 -'!D50,'- 31 -'!B50) -> 535686 | F50: =E50/'- 3 -'!D50*100 -> 14.87816923 | G50: =E50/'- 7 -'!E50 -> 3043.670455 | H50: =SUM('- 33 -'!B50,'- 33 -'!D50) -> 48000 | I50: =H50/'- 3 -'!D50*100 -> 1.333154354 | J50: =H50/'- 7 -'!E50 -> 272.7272727
A51: MITT | B51: =SUM('- 30 -'!D51,'- 30 -'!B51,'- 29 -'!F51,'- 29 -'!D51,'- 29 -'!B51) -> 0 | C51: =B51/'- 3 -'!D51*100 -> 0 | D51: =B51/'- 7 -'!E51 -> 0 | E51: =SUM('- 32 -'!D51,'- 32 -'!B51,'- 31 -'!F51,'- 31 -'!D51,'- 31 -'!B51) -> 4444229 | F51: =E51/'- 3 -'!D51*100 -> 13.34968636 | G51: =E51/'- 7 -'!E51 -> 2505.202368 | H51: =SUM('- 33 -'!B51,'- 33 -'!D51) -> 340190 | I51: =H51/'- 3 -'!D51*100 -> 1.021871241 | J51: =H51/'- 7 -'!E51 -> 191.7643743
B53: =B48-'- 10 -'!K22 -> 0

Sheet - 18 -
B2: =IF(Lang=1,BA2,BB2) -> ANALYSIS OF EXPENSE BY PROGRAM | G2: PAGE 1 OF 16 | BA2: ANALYSIS OF EXPENSE BY PROGRAM | BB2: ANALYSE DES DÉPENSES PAR PROGRAMME
B3: =OPYEAR -> OPERATING FUND 2021/2022 BUDGET
B5: FUNCTION 100: REGULAR INSTRUCTION
B6: ADMINISTRATION | E6: SENIOR YEARS TECHNOLOGY EDUCATION
D8: PER PUPIL | G8: PER PUPIL
A9: DIVISION / DISTRICT | B9: AMOUNT | C9: % | E9: AMOUNT | F9: %
A11: BEAUTIFUL PLAINS | B11: 1552994 | C11: =B11/'- 3 -'!$D11*100 -> 6.657119757 | D11: =B11/'- 7 -'!$C11 -> 749.5144788 | E11: 0 | F11: =E11/'- 3 -'!$D11*100 -> 0 | G11: =IF('- 7 -'!$B11=0,"",E11/'- 7 -'!$B11) -> 
A12: BORDER LAND | B12: 2702167 | C12: =B12/'- 3 -'!$D12*100 -> 7.732107558 | D12: =B12/'- 7 -'!$C12 -> 1251.08433 | E12: 1034215 | F12: =E12/'- 3 -'!$D12*100 -> 2.959351372 | G12: =IF('- 7 -'!$B12=0,"",E12/'- 7 -'!$B12) -> 6185.126488
A13: BRANDON | B13: 7987500 | C13: =B13/'- 3 -'!$D13*100 -> 7.282310209 | D13: =B13/'- 7 -'!$C13 -> 913.1180337 | E13: 3700200 | F13: =E13/'- 3 -'!$D13*100 -> 3.373521657 | G13: =IF('- 7 -'!$B13=0,"",E13/'- 7 -'!$B13) -> 9463.42711
A14: DSFM | B14: 7349918 | C14: =B14/'- 3 -'!$D14*100 -> 7.328021067 | D14: =B14/'- 7 -'!$C14 -> 1212.257628 | E14: 256166 | F14: =E14/'- 3 -'!$D14*100 -> 0.2554028283 | G14: =IF('- 7 -'!$B14=0,"",E14/'- 7 -'!$B14) -> 12808.3
A15: EVERGREEN | B15: 1859672 | C15: =B15/'- 3 -'!$D15*100 -> 8.666557554 | D15: =B15/'- 7 -'!$C15 -> 1382.655762 | E15: 91000 | F15: =E15/'- 3 -'!$D15*100 -> 0.4240837833 | G15: =IF('- 7 -'!$B15=0,"",E15/'- 7 -'!$B15) -> 4550
A16: FLIN FLON | B16: 1349472 | C16: =B16/'- 3 -'!$D16*100 -> 8.668556038 | D16: =B16/'- 7 -'!$C16 -> 1423.493671 | E16: 0 | F16: =E16/'- 3 -'!$D16*100 -> 0 | G16: =IF('- 7 -'!$B16=0,"",E16/'- 7 -'!$B16) -> 
A17: FORT LA BOSSE | B17: 1396965 | C17: =B17/'- 3 -'!$D17*100 -> 7.141903672 | D17: =B17/'- 7 -'!$C17 -> 988.302087 | E17: 215300 | F17: =E17/'- 3 -'!$D17*100 -> 1.100708937 | G17: =IF('- 7 -'!$B17=0,"",E17/'- 7 -'!$B17) -> 9360.869565
A18: FRONTIER | B18: 7863172 | C18: =B18/'- 3 -'!$D18*100 -> 5.418840467 | D18: =B18/'- 7 -'!$C18 -> 1334.324113 | E18: 551470 | F18: =E18/'- 3 -'!$D18*100 -> 0.3800410257 | G18: =IF('- 7 -'!$B18=0,"",E18/'- 7 -'!$B18) -> 9346.949153
A19: GARDEN VALLEY | B19: 3469700 | C19: =B19/'- 3 -'!$D19*100 -> 6.639591884 | D19: =B19/'- 7 -'!$C19 -> 814.1013609 | E19: 1292600 | F19: =E19/'- 3 -'!$D19*100 -> 2.473509661 | G19: =IF('- 7 -'!$B19=0,"",E19/'- 7 -'!$B19) -> 10258.73016
A20: HANOVER | B20: 6929000 | C20: =B20/'- 3 -'!$D20*100 -> 7.375529295 | D20: =B20/'- 7 -'!$C20 -> 849.8712131 | E20: 3174700 | F20: =E20/'- 3 -'!$D20*100 -> 3.379288909 | G20: =IF('- 7 -'!$B20=0,"",E20/'- 7 -'!$B20) -> 6189.705596
A21: INTERLAKE | B21: 3132335 | C21: =B21/'- 3 -'!$D21*100 -> 8.115971882 | D21: =B21/'- 7 -'!$C21 -> 1096.755952 | E21: 0 | F21: =E21/'- 3 -'!$D21*100 -> 0 | G21: =IF('- 7 -'!$B21=0,"",E21/'- 7 -'!$B21) -> 
A22: KELSEY | B22: 1523924 | C22: =B22/'- 3 -'!$D22*100 -> 7.398244907 | D22: =B22/'- 7 -'!$C22 -> 1051.707384 | E22: 0 | F22: =E22/'- 3 -'!$D22*100 -> 0 | G22: =IF('- 7 -'!$B22=0,"",E22/'- 7 -'!$B22) -> 
A23: LAKESHORE | B23: 1106550 | C23: =B23/'- 3 -'!$D23*100 -> 6.745419616 | D23: =B23/'- 7 -'!$C23 -> 1187.285408 | E23: 142500 | F23: =E23/'- 3 -'!$D23*100 -> 0.8686659394 | G23: =IF('- 7 -'!$B23=0,"",E23/'- 7 -'!$B23) -> 10178.57143
A24: LORD SELKIRK | B24: 5055418 | C24: =B24/'- 3 -'!$D24*100 -> 8.538100475 | D24: =B24/'- 7 -'!$C24 -> 1358.983333 | E24: 1841658 | F24: =E24/'- 3 -'!$D24*100 -> 3.110378023 | G24: =IF('- 7 -'!$B24=0,"",E24/'- 7 -'!$B24) -> 9027.735294
A25: LOUIS RIEL | B25: 15177408 | C25: =B25/'- 3 -'!$D25*100 -> 7.683199284 | D25: =B25/'- 7 -'!$C25 -> 982.165793 | E25: 2249437 | F25: =E25/'- 3 -'!$D25*100 -> 1.138723605 | G25: =IF('- 7 -'!$B25=0,"",E25/'- 7 -'!$B25) -> 13040.21449
A26: MOUNTAIN VIEW | B26: 3512813 | C26: =B26/'- 3 -'!$D26*100 -> 8.199579663 | D26: =B26/'- 7 -'!$C26 -> 1158.579485 | E26: 940425 | F26: =E26/'- 3 -'!$D26*100 -> 2.195132421 | G26: =IF('- 7 -'!$B26=0,"",E26/'- 7 -'!$B26) -> 6039.980732
A27: MYSTERY LAKE | B27: 2881652 | C27: =B27/'- 3 -'!$D27*100 -> 6.550809871 | D27: =B27/'- 7 -'!$C27 -> 1025.571927 | E27: 1101736 | F27: =E27/'- 3 -'!$D27*100 -> 2.504557477 | G27: =IF('- 7 -'!$B27=0,"",E27/'- 7 -'!$B27) -> 6885.85
A28: PARK WEST | B28: 2232264 | C28: =B28/'- 3 -'!$D28*100 -> 7.718902518 | D28: =B28/'- 7 -'!$C28 -> 1098.284871 | E28: 0 | F28: =E28/'- 3 -'!$D28*100 -> 0 | G28: =IF('- 7 -'!$B28=0,"",E28/'- 7 -'!$B28) -> 
A29: PEMBINA TRAILS | B29: 14204378 | C29: =B29/'- 3 -'!$D29*100 -> 7.83961969 | D29: =B29/'- 7 -'!$C29 -> 967.6665985 | E29: 0 | F29: =E29/'- 3 -'!$D29*100 -> 0 | G29: =IF('- 7 -'!$B29=0,"",E29/'- 7 -'!$B29) -> 
A30: PINE CREEK | B30: 1181502 | C30: =B30/'- 3 -'!$D30*100 -> 7.487969993 | D30: =B30/'- 7 -'!$C30 -> 1111.478833 | E30: 95500 | F30: =E30/'- 3 -'!$D30*100 -> 0.6052475022 | G30: =IF('- 7 -'!$B30=0,"",E30/'- 7 -'!$B30) -> 7958.333333
A31: PORTAGE LA PRAIRIE | B31: 3366583 | C31: =B31/'- 3 -'!$D31*100 -> 8.095146756 | D31: =B31/'- 7 -'!$C31 -> 1002.257517 | E31: 670815 | F31: =E31/'- 3 -'!$D31*100 -> 1.613014107 | G31: =IF('- 7 -'!$B31=0,"",E31/'- 7 -'!$B31) -> 6641.732673
A32: PRAIRIE ROSE | B32: 2582255 | C32: =B32/'- 3 -'!$D32*100 -> 8.042706854 | D32: =B32/'- 7 -'!$C32 -> 1090.479307 | E32: 0 | F32: =E32/'- 3 -'!$D32*100 -> 0 | G32: =IF('- 7 -'!$B32=0,"",E32/'- 7 -'!$B32) -> 
A33: PRAIRIE SPIRIT | B33: 2936420 | C33: =B33/'- 3 -'!$D33*100 -> 10.07443033 | D33: =B33/'- 7 -'!$C33 -> 1399.294734 | E33: 0 | F33: =E33/'- 3 -'!$D33*100 -> 0 | G33: =IF('- 7 -'!$B33=0,"",E33/'- 7 -'!$B33) -> 
A34: RED RIVER VALLEY | B34: 2692429 | C34: =B34/'- 3 -'!$D34*100 -> 8.246993635 | D34: =B34/'- 7 -'!$C34 -> 1194.670542 | E34: 364968 | F34: =E34/'- 3 -'!$D34*100 -> 1.117908317 | G34: =IF('- 7 -'!$B34=0,"",E34/'- 7 -'!$B34) -> 14201.08949
A35: RIVER EAST TRANSCONA | B35: 14633008 | C35: =B35/'- 3 -'!$D35*100 -> 7.273449181 | D35: =B35/'- 7 -'!$C35 -> 897.9509082 | E35: 4023417 | F35: =E35/'- 3 -'!$D35*100 -> 1.999870367 | G35: =IF('- 7 -'!$B35=0,"",E35/'- 7 -'!$B35) -> 6326.127358
A36: ROLLING RIVER | B36: 2100165 | C36: =B36/'- 3 -'!$D36*100 -> 8.528452031 | D36: =B36/'- 7 -'!$C36 -> 1158.072787 | E36: 141110 | F36: =E36/'- 3 -'!$D36*100 -> 0.5730263413 | G36: =IF('- 7 -'!$B36=0,"",E36/'- 7 -'!$B36) -> 16408.13953
A37: SEINE RIVER | B37: 4718430 | C37: =B37/'- 3 -'!$D37*100 -> 8.397117791 | D37: =B37/'- 7 -'!$C37 -> 1081.216774 | E37: 0 | F37: =E37/'- 3 -'!$D37*100 -> 0 | G37: =IF('- 7 -'!$B37=0,"",E37/'- 7 -'!$B37) -> 
A38: SEVEN OAKS | B38: 11211030 | C38: =B38/'- 3 -'!$D38*100 -> 7.304256944 | D38: =B38/'- 7 -'!$C38 -> 958.6255547 | E38: 1716640 | F38: =E38/'- 3 -'!$D38*100 -> 1.11843244 | G38: =IF('- 7 -'!$B38=0,"",E38/'- 7 -'!$B38) -> 10454.5676
A39: SOUTHWEST HORIZON | B39: 1530000 | C39: =B39/'- 3 -'!$D39*100 -> 6.412513202 | D39: =B39/'- 7 -'!$C39 -> 1014.252569 | E39: 0 | F39: =E39/'- 3 -'!$D39*100 -> 0 | G39: =IF('- 7 -'!$B39=0,"",E39/'- 7 -'!$B39) -> 
A40: ST. JAMES-ASSINIBOIA | B40: 9714107 | C40: =B40/'- 3 -'!$D40*100 -> 8.674452835 | D40: =B40/'- 7 -'!$C40 -> 1186.397855 | E40: 1870717 | F40: =E40/'- 3 -'!$D40*100 -> 1.670503154 | G40: =IF('- 7 -'!$B40=0,"",E40/'- 7 -'!$B40) -> 7991.102093
A41: SUNRISE | B41: 4438323 | C41: =B41/'- 3 -'!$D41*100 -> 6.496427474 | D41: =B41/'- 7 -'!$C41 -> 981.4955772 | E41: 0 | F41: =E41/'- 3 -'!$D41*100 -> 0 | G41: =IF('- 7 -'!$B41=0,"",E41/'- 7 -'!$B41) -> 
A42: SWAN VALLEY | B42: 1846735 | C42: =B42/'- 3 -'!$D42*100 -> 8.463417666 | D42: =B42/'- 7 -'!$C42 -> 1362.904059 | E42: 1100578 | F42: =E42/'- 3 -'!$D42*100 -> 5.043848353 | G42: =IF('- 7 -'!$B42=0,"",E42/'- 7 -'!$B42) -> 8659.150275
A43: TURTLE MOUNTAIN | B43: 858368 | C43: =B43/'- 3 -'!$D43*100 -> 6.141576193 | D43: =B43/'- 7 -'!$C43 -> 868.3540718 | E43: 109384 | F43: =E43/'- 3 -'!$D43*100 -> 0.7826365502 | G43: =IF('- 7 -'!$B43=0,"",E43/'- 7 -'!$B43) -> 3646.133333
A44: TURTLE RIVER | B44: 699130 | C44: =B44/'- 3 -'!$D44*100 -> 6.077515202 | D44: =B44/'- 7 -'!$C44 -> 1038.826152 | E44: 0 | F44: =E44/'- 3 -'!$D44*100 -> 0 | G44: =IF('- 7 -'!$B44=0,"",E44/'- 7 -'!$B44) -> 
A45: WESTERN | B45: 1780028 | C45: =B45/'- 3 -'!$D45*100 -> 7.517688251 | D45: =B45/'- 7 -'!$C45 -> 875.5671422 | E45: 344464 | F45: =E45/'- 3 -'!$D45*100 -> 1.454793388 | G45: =IF('- 7 -'!$B45=0,"",E45/'- 7 -'!$B45) -> 11482.13333
A46: WINNIPEG | B46: 29049110 | C46: =B46/'- 3 -'!$D46*100 -> 6.961893549 | D46: =B46/'- 7 -'!$C46 -> 953.3832193 | E46: 6917206 | F46: =E46/'- 3 -'!$D46*100 -> 1.657773744 | G46: =IF('- 7 -'!$B46=0,"",E46/'- 7 -'!$B46) -> 9910.037249
A48: PROVINCE | B48: =SUM(B11:B46) -> 186624925 | C48: =B48/'- 3 -'!$D48*100 -> 7.392269833 | D48: =B48/'- 7 -'!$C48 -> 1019.428638 | E48: =SUM(E11:E46) -> 33946206 | F48: =E48/'- 3 -'!$D48*100 -> 1.344619506 | G48: =E48/'- 7 -'!$B48 -> 8295.728994
A50: WHITESHELL | B50: 219718 | C50: =B50/'- 3 -'!$D50*100 -> 6.102458506 | D50: =B50/'- 7 -'!$C50 -> 1248.397727 | E50: 0 | F50: =E50/'- 3 -'!$D50*100 -> 0 | G50: =IF('- 7 -'!$B50=0,"",E50/'- 7 -'!$B50) -> 
A51: MITT | B51: 2046202 | C51: =B51/'- 3 -'!$D51*100 -> 6.146432806 | D51: =B51/'- 7 -'!$C51 -> 1153.439684 | E51: 3888006 | F51: =E51/'- 3 -'!$D51*100 -> 11.67888978 | G51: =IF('- 7 -'!$B51=0,"",E51/'- 7 -'!$B51) -> 2392.619077

Sheet - 19 -
B2: =AEXP_BP -> ANALYSIS OF EXPENSE BY PROGRAM | J2: PAGE 2 OF 16
B3: =OPYEAR -> OPERATING FUND 2021/2022 BUDGET
B5: FUNCTION 100: REGULAR INSTRUCTION (CONT'D)
B6: SINGLE TRACK SCHOOLS (1)
B7: ENGLISH LANGUAGE | E7: FRANÇAIS | H7: FRENCH IMMERSION
D8: PER PUPIL | G8: PER PUPIL | J8: PER PUPIL
A9: DIVISION / DISTRICT | B9: AMOUNT | C9: % | E9: AMOUNT | F9: % | H9: AMOUNT | I9: %
A11: BEAUTIFUL PLAINS | B11: 13514454 | C11: =B11/'- 3 -'!$D11*100 -> 57.93154303 | D11: =B11/'- 6 -'!$B11 -> 6522.419884 | E11: 0 | F11: =E11/'- 3 -'!$D11*100 -> 0 | G11: =IF('- 6 -'!$C11=0,"",E11/'- 6 -'!$C11) ->  | H11: 0 | I11: =H11/'- 3 -'!$D11*100 -> 0 | J11: =IF('- 6 -'!$D11=0,"",H11/'- 6 -'!$D11) -> 
A12: BORDER LAND | B12: 12225256 | C12: =B12/'- 3 -'!$D12*100 -> 34.98192166 | D12: =B12/'- 6 -'!$B12 -> 9132.526052 | E12: 0 | F12: =E12/'- 3 -'!$D12*100 -> 0 | G12: =IF('- 6 -'!$C12=0,"",E12/'- 6 -'!$C12) ->  | H12: 0 | I12: =H12/'- 3 -'!$D12*100 -> 0 | J12: =IF('- 6 -'!$D12=0,"",H12/'- 6 -'!$D12) -> 
A13: BRANDON | B13: 44843400 | C13: =B13/'- 3 -'!$D13*100 -> 40.88432546 | D13: =B13/'- 6 -'!$B13 -> 6514.148751 | E13: 0 | F13: =E13/'- 3 -'!$D13*100 -> 0 | G13: =IF('- 6 -'!$C13=0,"",E13/'- 6 -'!$C13) ->  | H13: 2123200 | I13: =H13/'- 3 -'!$D13*100 -> 1.935749738 | J13: =IF('- 6 -'!$D13=0,"",H13/'- 6 -'!$D13) -> 6492.966361
A14: DSFM | B14: 0 | C14: =B14/'- 3 -'!$D14*100 -> 0 | E14: 48294698 | F14: =E14/'- 3 -'!$D14*100 -> 48.15081806 | G14: =IF('- 6 -'!$C14=0,"",E14/'- 6 -'!$C14) -> 7991.841469 | H14: 0 | I14: =H14/'- 3 -'!$D14*100 -> 0 | J14: =IF('- 6 -'!$D14=0,"",H14/'- 6 -'!$D14) -> 
A15: EVERGREEN | B15: 9817999 | C15: =B15/'- 3 -'!$D15*100 -> 45.75444132 | D15: =B15/'- 6 -'!$B15 -> 7409.810566 | E15: 0 | F15: =E15/'- 3 -'!$D15*100 -> 0 | G15: =IF('- 6 -'!$C15=0,"",E15/'- 6 -'!$C15) ->  | H15: 0 | I15: =H15/'- 3 -'!$D15*100 -> 0 | J15: =IF('- 6 -'!$D15=0,"",H15/'- 6 -'!$D15) -> 
A16: FLIN FLON | B16: 4781206 | C16: =B16/'- 3 -'!$D16*100 -> 30.71286558 | D16: =B16/'- 6 -'!$B16 -> 8358.751748 | E16: 0 | F16: =E16/'- 3 -'!$D16*100 -> 0 | G16: =IF('- 6 -'!$C16=0,"",E16/'- 6 -'!$C16) ->  | H16: 0 | I16: =H16/'- 3 -'!$D16*100 -> 0 | J16: =IF('- 6 -'!$D16=0,"",H16/'- 6 -'!$D16) -> 
A17: FORT LA BOSSE | B17: 10228830 | C17: =B17/'- 3 -'!$D17*100 -> 52.2943084 | D17: =B17/'- 6 -'!$B17 -> 7356.22438 | E17: 0 | F17: =E17/'- 3 -'!$D17*100 -> 0 | G17: =IF('- 6 -'!$C17=0,"",E17/'- 6 -'!$C17) ->  | H17: 0 | I17: =H17/'- 3 -'!$D17*100 -> 0 | J17: =IF('- 6 -'!$D17=0,"",H17/'- 6 -'!$D17) -> 
A18: FRONTIER | B18: 53149758 | C18: =B18/'- 3 -'!$D18*100 -> 36.62771963 | D18: =B18/'- 6 -'!$B18 -> 9110.345903 | E18: 0 | F18: =E18/'- 3 -'!$D18*100 -> 0 | G18: =IF('- 6 -'!$C18=0,"",E18/'- 6 -'!$C18) ->  | H18: 0 | I18: =H18/'- 3 -'!$D18*100 -> 0 | J18: =IF('- 6 -'!$D18=0,"",H18/'- 6 -'!$D18) -> 
A19: GARDEN VALLEY | B19: 24717900 | C19: =B19/'- 3 -'!$D19*100 -> 47.29998796 | D19: =B19/'- 6 -'!$B19 -> 5976.281431 | E19: 0 | F19: =E19/'- 3 -'!$D19*100 -> 0 | G19: =IF('- 6 -'!$C19=0,"",E19/'- 6 -'!$C19) ->  | H19: 0 | I19: =H19/'- 3 -'!$D19*100 -> 0 | J19: =IF('- 6 -'!$D19=0,"",H19/'- 6 -'!$D19) -> 
A20: HANOVER | B20: 48935800 | C20: =B20/'- 3 -'!$D20*100 -> 52.08939623 | D20: =B20/'- 6 -'!$B20 -> 6405.125587 | E20: 0 | F20: =E20/'- 3 -'!$D20*100 -> 0 | G20: =IF('- 6 -'!$C20=0,"",E20/'- 6 -'!$C20) ->  | H20: 0 | I20: =H20/'- 3 -'!$D20*100 -> 0 | J20: =IF('- 6 -'!$D20=0,"",H20/'- 6 -'!$D20) -> 
A21: INTERLAKE | B21: 11859893 | C21: =B21/'- 3 -'!$D21*100 -> 30.72933071 | D21: =B21/'- 6 -'!$B21 -> 7431.010652 | E21: 0 | F21: =E21/'- 3 -'!$D21*100 -> 0 | G21: =IF('- 6 -'!$C21=0,"",E21/'- 6 -'!$C21) ->  | H21: 0 | I21: =H21/'- 3 -'!$D21*100 -> 0 | J21: =IF('- 6 -'!$D21=0,"",H21/'- 6 -'!$D21) -> 
A22: KELSEY | B22: 4894701 | C22: =B22/'- 3 -'!$D22*100 -> 23.76246896 | D22: =B22/'- 6 -'!$B22 -> 5969.147561 | E22: 0 | F22: =E22/'- 3 -'!$D22*100 -> 0 | G22: =IF('- 6 -'!$C22=0,"",E22/'- 6 -'!$C22) ->  | H22: 0 | I22: =H22/'- 3 -'!$D22*100 -> 0 | J22: =IF('- 6 -'!$D22=0,"",H22/'- 6 -'!$D22) -> 
A23: LAKESHORE | B23: 7039048 | C23: =B23/'- 3 -'!$D23*100 -> 42.90934206 | D23: =B23/'- 6 -'!$B23 -> 7667.808279 | E23: 0 | F23: =E23/'- 3 -'!$D23*100 -> 0 | G23: =IF('- 6 -'!$C23=0,"",E23/'- 6 -'!$C23) ->  | H23: 0 | I23: =H23/'- 3 -'!$D23*100 -> 0 | J23: =IF('- 6 -'!$D23=0,"",H23/'- 6 -'!$D23) -> 
A24: LORD SELKIRK | B24: 21208853 | C24: =B24/'- 3 -'!$D24*100 -> 35.81965287 | D24: =B24/'- 6 -'!$B24 -> 8207.760449 | E24: 0 | F24: =E24/'- 3 -'!$D24*100 -> 0 | G24: =IF('- 6 -'!$C24=0,"",E24/'- 6 -'!$C24) ->  | H24: 1602194 | I24: =H24/'- 3 -'!$D24*100 -> 2.705947036 | J24: =IF('- 6 -'!$D24=0,"",H24/'- 6 -'!$D24) -> 7282.7
A25: LOUIS RIEL | B25: 63563754 | C25: =B25/'- 3 -'!$D25*100 -> 32.17762804 | D25: =B25/'- 6 -'!$B25 -> 6767.501091 | E25: 0 | F25: =E25/'- 3 -'!$D25*100 -> 0 | G25: =IF('- 6 -'!$C25=0,"",E25/'- 6 -'!$C25) ->  | H25: 28010857 | I25: =H25/'- 3 -'!$D25*100 -> 14.17982546 | J25: =IF('- 6 -'!$D25=0,"",H25/'- 6 -'!$D25) -> 5512.863019
A26: MOUNTAIN VIEW | B26: 16393891 | C26: =B26/'- 3 -'!$D26*100 -> 38.26648764 | D26: =B26/'- 6 -'!$B26 -> 7405.317102 | E26: 0 | F26: =E26/'- 3 -'!$D26*100 -> 0 | G26: =IF('- 6 -'!$C26=0,"",E26/'- 6 -'!$C26) ->  | H26: 936386 | I26: =H26/'- 3 -'!$D26*100 -> 2.18570462 | J26: =IF('- 6 -'!$D26=0,"",H26/'- 6 -'!$D26) -> 7014.127341
A27: MYSTERY LAKE | B27: 18058653 | C27: =B27/'- 3 -'!$D27*100 -> 41.0524249 | D27: =B27/'- 6 -'!$B27 -> 7940.312624 | E27: 0 | F27: =E27/'- 3 -'!$D27*100 -> 0 | G27: =IF('- 6 -'!$C27=0,"",E27/'- 6 -'!$C27) ->  | H27: 0 | I27: =H27/'- 3 -'!$D27*100 -> 0 | J27: =IF('- 6 -'!$D27=0,"",H27/'- 6 -'!$D27) -> 
A28: PARK WEST | B28: 15218580 | C28: =B28/'- 3 -'!$D28*100 -> 52.62403349 | D28: =B28/'- 6 -'!$B28 -> 7487.616236 | E28: 0 | F28: =E28/'- 3 -'!$D28*100 -> 0 | G28: =IF('- 6 -'!$C28=0,"",E28/'- 6 -'!$C28) ->  | H28: 0 | I28: =H28/'- 3 -'!$D28*100 -> 0 | J28: =IF('- 6 -'!$D28=0,"",H28/'- 6 -'!$D28) -> 
A29: PEMBINA TRAILS | B29: 56774346 | C29: =B29/'- 3 -'!$D29*100 -> 31.33465477 | D29: =B29/'- 6 -'!$B29 -> 6566.165038 | E29: 0 | F29: =E29/'- 3 -'!$D29*100 -> 0 | G29: =IF('- 6 -'!$C29=0,"",E29/'- 6 -'!$C29) ->  | H29: 8659941 | I29: =H29/'- 3 -'!$D29*100 -> 4.779557681 | J29: =IF('- 6 -'!$D29=0,"",H29/'- 6 -'!$D29) -> 6384.033174
A30: PINE CREEK | B30: 8428361 | C30: =B30/'- 3 -'!$D30*100 -> 53.41617218 | D30: =B30/'- 6 -'!$B30 -> 8019.372978 | E30: 0 | F30: =E30/'- 3 -'!$D30*100 -> 0 | G30: =IF('- 6 -'!$C30=0,"",E30/'- 6 -'!$C30) ->  | H30: 0 | I30: =H30/'- 3 -'!$D30*100 -> 0 | J30: =IF('- 6 -'!$D30=0,"",H30/'- 6 -'!$D30) -> 
A31: PORTAGE LA PRAIRIE | B31: 16879572 | C31: =B31/'- 3 -'!$D31*100 -> 40.58792328 | D31: =B31/'- 6 -'!$B31 -> 7056.677258 | E31: 0 | F31: =E31/'- 3 -'!$D31*100 -> 0 | G31: =IF('- 6 -'!$C31=0,"",E31/'- 6 -'!$C31) ->  | H31: 0 | I31: =H31/'- 3 -'!$D31*100 -> 0 | J31: =IF('- 6 -'!$D31=0,"",H31/'- 6 -'!$D31) -> 
A32: PRAIRIE ROSE | B32: 12705414 | C32: =B32/'- 3 -'!$D32*100 -> 39.57235837 | D32: =B32/'- 6 -'!$B32 -> 7194.458664 | E32: 0 | F32: =E32/'- 3 -'!$D32*100 -> 0 | G32: =IF('- 6 -'!$C32=0,"",E32/'- 6 -'!$C32) ->  | H32: 834275 | I32: =H32/'- 3 -'!$D32*100 -> 2.598437901 | J32: =IF('- 6 -'!$D32=0,"",H32/'- 6 -'!$D32) -> 6320.265152
A33: PRAIRIE SPIRIT | B33: 11168815 | C33: =B33/'- 3 -'!$D33*100 -> 38.31858134 | D33: =B33/'- 6 -'!$B33 -> 6738.349925 | E33: 0 | F33: =E33/'- 3 -'!$D33*100 -> 0 | G33: =IF('- 6 -'!$C33=0,"",E33/'- 6 -'!$C33) ->  | H33: 0 | I33: =H33/'- 3 -'!$D33*100 -> 0 | J33: =IF('- 6 -'!$D33=0,"",H33/'- 6 -'!$D33) -> 
A34: RED RIVER VALLEY | B34: 11624327 | C34: =B34/'- 3 -'!$D34*100 -> 35.60567457 | D34: =B34/'- 6 -'!$B34 -> 6979.481837 | E34: 0 | F34: =E34/'- 3 -'!$D34*100 -> 0 | G34: =IF('- 6 -'!$C34=0,"",E34/'- 6 -'!$C34) ->  | H34: 2466934 | I34: =H34/'- 3 -'!$D34*100 -> 7.556295448 | J34: =IF('- 6 -'!$D34=0,"",H34/'- 6 -'!$D34) -> 7223.818448
A35: RIVER EAST TRANSCONA | B35: 60984067 | C35: =B35/'- 3 -'!$D35*100 -> 30.31259958 | D35: =B35/'- 6 -'!$B35 -> 7632.549061 | E35: 0 | F35: =E35/'- 3 -'!$D35*100 -> 0 | G35: =IF('- 6 -'!$C35=0,"",E35/'- 6 -'!$C35) ->  | H35: 8707600 | I35: =H35/'- 3 -'!$D35*100 -> 4.328179558 | J35: =IF('- 6 -'!$D35=0,"",H35/'- 6 -'!$D35) -> 5984.604811
A36: ROLLING RIVER | B36: 12310680 | C36: =B36/'- 3 -'!$D36*100 -> 49.99180724 | D36: =B36/'- 6 -'!$B36 -> 6820.699208 | E36: 0 | F36: =E36/'- 3 -'!$D36*100 -> 0 | G36: =IF('- 6 -'!$C36=0,"",E36/'- 6 -'!$C36) ->  | H36: 0 | I36: =H36/'- 3 -'!$D36*100 -> 0 | J36: =IF('- 6 -'!$D36=0,"",H36/'- 6 -'!$D36) -> 
A37: SEINE RIVER | B37: 13906375 | C37: =B37/'- 3 -'!$D37*100 -> 24.7483737 | D37: =B37/'- 6 -'!$B37 -> 6381.998623 | E37: 0 | F37: =E37/'- 3 -'!$D37*100 -> 0 | G37: =IF('- 6 -'!$C37=0,"",E37/'- 6 -'!$C37) ->  | H37: 4657899 | I37: =H37/'- 3 -'!$D37*100 -> 8.289394261 | J37: =IF('- 6 -'!$D37=0,"",H37/'- 6 -'!$D37) -> 5858.992453
A38: SEVEN OAKS | B38: 46126574 | C38: =B38/'- 3 -'!$D38*100 -> 30.05257754 | D38: =B38/'- 6 -'!$B38 -> 6833.870246 | E38: 0 | F38: =E38/'- 3 -'!$D38*100 -> 0 | G38: =IF('- 6 -'!$C38=0,"",E38/'- 6 -'!$C38) ->  | H38: 6217704 | I38: =H38/'- 3 -'!$D38*100 -> 4.050984398 | J38: =IF('- 6 -'!$D38=0,"",H38/'- 6 -'!$D38) -> 6150.661787
A39: SOUTHWEST HORIZON | B39: 12082150 | C39: =B39/'- 3 -'!$D39*100 -> 50.63852705 | D39: =B39/'- 6 -'!$B39 -> 8009.380179 | E39: 0 | F39: =E39/'- 3 -'!$D39*100 -> 0 | G39: =IF('- 6 -'!$C39=0,"",E39/'- 6 -'!$C39) ->  | H39: 0 | I39: =H39/'- 3 -'!$D39*100 -> 0 | J39: =IF('- 6 -'!$D39=0,"",H39/'- 6 -'!$D39) -> 
A40: ST. JAMES-ASSINIBOIA | B40: 37068597 | C40: =B40/'- 3 -'!$D40*100 -> 33.1013233 | D40: =B40/'- 6 -'!$B40 -> 6701.122078 | E40: 0 | F40: =E40/'- 3 -'!$D40*100 -> 0 | G40: =IF('- 6 -'!$C40=0,"",E40/'- 6 -'!$C40) ->  | H40: 8309224 | I40: =H40/'- 3 -'!$D40*100 -> 7.419927708 | J40: =IF('- 6 -'!$D40=0,"",H40/'- 6 -'!$D40) -> 5675.699454
A41: SUNRISE | B41: 15503117 | C41: =B41/'- 3 -'!$D41*100 -> 22.69210132 | D41: =B41/'- 6 -'!$B41 -> 7428.422137 | E41: 0 | F41: =E41/'- 3 -'!$D41*100 -> 0 | G41: =IF('- 6 -'!$C41=0,"",E41/'- 6 -'!$C41) ->  | H41: 0 | I41: =H41/'- 3 -'!$D41*100 -> 0 | J41: =IF('- 6 -'!$D41=0,"",H41/'- 6 -'!$D41) -> 
A42: SWAN VALLEY | B42: 7183079 | C42: =B42/'- 3 -'!$D42*100 -> 32.91939434 | D42: =B42/'- 6 -'!$B42 -> 7498.777534 | E42: 0 | F42: =E42/'- 3 -'!$D42*100 -> 0 | G42: =IF('- 6 -'!$C42=0,"",E42/'- 6 -'!$C42) ->  | H42: 0 | I42: =H42/'- 3 -'!$D42*100 -> 0 | J42: =IF('- 6 -'!$D42=0,"",H42/'- 6 -'!$D42) -> 
A43: TURTLE MOUNTAIN | B43: 6942263 | C43: =B43/'- 3 -'!$D43*100 -> 49.67151288 | D43: =B43/'- 6 -'!$B43 -> 7242.840897 | E43: 0 | F43: =E43/'- 3 -'!$D43*100 -> 0 | G43: =IF('- 6 -'!$C43=0,"",E43/'- 6 -'!$C43) ->  | H43: 0 | I43: =H43/'- 3 -'!$D43*100 -> 0 | J43: =IF('- 6 -'!$D43=0,"",H43/'- 6 -'!$D43) -> 
A44: TURTLE RIVER | B44: 5265008 | C44: =B44/'- 3 -'!$D44*100 -> 45.76854971 | D44: =B44/'- 6 -'!$B44 -> 8304.429022 | E44: 0 | F44: =E44/'- 3 -'!$D44*100 -> 0 | G44: =IF('- 6 -'!$C44=0,"",E44/'- 6 -'!$C44) ->  | H44: 343918 | I44: =H44/'- 3 -'!$D44*100 -> 2.989668407 | J44: =IF('- 6 -'!$D44=0,"",H44/'- 6 -'!$D44) -> 8818.410256
A45: WESTERN | B45: 6238018 | C45: =B45/'- 3 -'!$D45*100 -> 26.34535784 | D45: =B45/'- 6 -'!$B45 -> 7076.594441 | E45: 0 | F45: =E45/'- 3 -'!$D45*100 -> 0 | G45: =IF('- 6 -'!$C45=0,"",E45/'- 6 -'!$C45) ->  | H45: 0 | I45: =H45/'- 3 -'!$D45*100 -> 0 | J45: =IF('- 6 -'!$D45=0,"",H45/'- 6 -'!$D45) -> 
A46: WINNIPEG | B46: 134989614 | C46: =B46/'- 3 -'!$D46*100 -> 32.35153583 | D46: =B46/'- 6 -'!$B46 -> 6897.606806 | E46: 0 | F46: =E46/'- 3 -'!$D46*100 -> 0 | G46: =IF('- 6 -'!$C46=0,"",E46/'- 6 -'!$C46) ->  | H46: 8466567 | I46: =H46/'- 3 -'!$D46*100 -> 2.029092739 | J46: =IF('- 6 -'!$D46=0,"",H46/'- 6 -'!$D46) -> 5951.892443
A48: PROVINCE | B48: =SUM(B11:B46) -> 856632353 | C48: =B48/'- 3 -'!$D48*100 -> 33.93146709 | D48: =B48/'- 6 -'!$B48 -> 7076.38676 | E48: =SUM(E11:E46) -> 48294698 | F48: =E48/'- 3 -'!$D48*100 -> 1.912967623 | G48: =E48/'- 6 -'!$C48 -> 7991.841469 | H48: =SUM(H11:H46) -> 81336699 | I48: =H48/'- 3 -'!$D48*100 -> 3.221771295 | J48: =H48/'- 6 -'!$D48 -> 5903.41772
A50: WHITESHELL | B50: 1821188.31 | C50: =B50/'- 3 -'!$D50*100 -> 50.58177342 | D50: =B50/'- 6 -'!$B50 -> 10347.66085 | E50: 0 | F50: =E50/'- 3 -'!$D50*100 -> 0 | G50: =IF('- 6 -'!$C50=0,"",E50/'- 6 -'!$C50) ->  | H50: 0 | I50: =H50/'- 3 -'!$D50*100 -> 0 | J50: =IF('- 6 -'!$D50=0,"",H50/'- 6 -'!$D50) -> 
A51: MITT | B51: 499011 | C51: =B51/'- 3 -'!$D51*100 -> 1.498941737 | D51: =B51/'- 6 -'!$B51 -> 3809.244275 | E51: 55443 | F51: =E51/'- 3 -'!$D51*100 -> 0.1665410717 | G51: =IF('- 6 -'!$C51=0,"",E51/'- 6 -'!$C51) -> 3080.166667 | H51: 47942 | I51: =H51/'- 3 -'!$D51*100 -> 0.1440093801 | J51: =IF('- 6 -'!$D51=0,"",H51/'- 6 -'!$D51) -> 
A53: (1) 90% or more of Regular Instruction enrolment is in one language.

Sheet - 20 -
B2: =AEXP_BP -> ANALYSIS OF EXPENSE BY PROGRAM | I2: PAGE 3 OF 16
B3: =OPYEAR -> OPERATING FUND 2021/2022 BUDGET
B5: FUNCTION 100: REGULAR INSTRUCTION (CONT'D)
B6: DUAL TRACK SCHOOLS (1)
D7: PER PUPIL | E7: NO. OF FTE PUPILS | F7: % IN DUAL TRACK SCHOOLS
F8: ENGLISH | G8: FRANÇAIS | H8: FRENCH IMMERSION | I8: OTHER
A9: DIVISION / DISTRICT | B9: AMOUNT | C9: %
A11: BEAUTIFUL PLAINS | B11: 0 | C11: =B11/'- 3 -'!$D11*100 -> 0 | D11: =IF(E11=0,"",B11/E11) ->  | E11: =SUM('- 6 -'!$E11:H11) -> 0 | F11: =IF(E11=0,"",'- 6 -'!$E11/E11*100) ->  | G11: =IF(E11=0,"",'- 6 -'!$F11/E11*100) ->  | H11: =IF(E11=0,"",'- 6 -'!$G11/E11*100) ->  | I11: =IF(E11=0,"",'- 6 -'!$H11/E11*100) -> 
A12: BORDER LAND | B12: 4127740 | C12: =B12/'- 3 -'!$D12*100 -> 11.81130909 | D12: =IF(E12=0,"",B12/E12) -> 6311.529052 | E12: =SUM('- 6 -'!$E12:H12) -> 654 | F12: =IF(E12=0,"",'- 6 -'!$E12/E12*100) -> 80.04587156 | G12: =IF(E12=0,"",'- 6 -'!$F12/E12*100) -> 0 | H12: =IF(E12=0,"",'- 6 -'!$G12/E12*100) -> 19.95412844 | I12: =IF(E12=0,"",'- 6 -'!$H12/E12*100) -> 0
A13: BRANDON | B13: 7498200 | C13: =B13/'- 3 -'!$D13*100 -> 6.836208877 | D13: 6545.787866 | E13: =SUM('- 6 -'!$E13:H13) -> 1145.5 | F13: =IF(E13=0,"",'- 6 -'!$E13/E13*100) -> 56.61283282 | G13: =IF(E13=0,"",'- 6 -'!$F13/E13*100) -> 0 | H13: =IF(E13=0,"",'- 6 -'!$G13/E13*100) -> 43.38716718 | I13: =IF(E13=0,"",'- 6 -'!$H13/E13*100) -> 0
A14: DSFM | B14: 0 | C14: =B14/'- 3 -'!$D14*100 -> 0 | E14: =SUM('- 6 -'!$E14:H14) -> 0 | F14: =IF(E14=0,"",'- 6 -'!$E14/E14*100) ->  | G14: =IF(E14=0,"",'- 6 -'!$F14/E14*100) ->  | H14: =IF(E14=0,"",'- 6 -'!$G14/E14*100) ->  | I14: =IF(E14=0,"",'- 6 -'!$H14/E14*100) -> 
A15: EVERGREEN | B15: 0 | C15: =B15/'- 3 -'!$D15*100 -> 0 | E15: =SUM('- 6 -'!$E15:H15) -> 0 | F15: =IF(E15=0,"",'- 6 -'!$E15/E15*100) ->  | G15: =IF(E15=0,"",'- 6 -'!$F15/E15*100) ->  | H15: =IF(E15=0,"",'- 6 -'!$G15/E15*100) ->  | I15: =IF(E15=0,"",'- 6 -'!$H15/E15*100) -> 
A16: FLIN FLON | B16: 2549395 | C16: =B16/'- 3 -'!$D16*100 -> 16.3764594 | D16: 6780.305851 | E16: =SUM('- 6 -'!$E16:H16) -> 376 | F16: =IF(E16=0,"",'- 6 -'!$E16/E16*100) -> 68.61702128 | G16: =IF(E16=0,"",'- 6 -'!$F16/E16*100) -> 0 | H16: =IF(E16=0,"",'- 6 -'!$G16/E16*100) -> 31.38297872 | I16: =IF(E16=0,"",'- 6 -'!$H16/E16*100) -> 0
A17: FORT LA BOSSE | B17: 0 | C17: =B17/'- 3 -'!$D17*100 -> 0 | E17: =SUM('- 6 -'!$E17:H17) -> 0 | F17: =IF(E17=0,"",'- 6 -'!$E17/E17*100) ->  | G17: =IF(E17=0,"",'- 6 -'!$F17/E17*100) ->  | H17: =IF(E17=0,"",'- 6 -'!$G17/E17*100) ->  | I17: =IF(E17=0,"",'- 6 -'!$H17/E17*100) -> 
A18: FRONTIER | B18: 0 | C18: =B18/'- 3 -'!$D18*100 -> 0 | E18: =SUM('- 6 -'!$E18:H18) -> 0 | F18: =IF(E18=0,"",'- 6 -'!$E18/E18*100) ->  | G18: =IF(E18=0,"",'- 6 -'!$F18/E18*100) ->  | H18: =IF(E18=0,"",'- 6 -'!$G18/E18*100) ->  | I18: =IF(E18=0,"",'- 6 -'!$H18/E18*100) -> 
A19: GARDEN VALLEY | B19: 0 | C19: =B19/'- 3 -'!$D19*100 -> 0 | E19: =SUM('- 6 -'!$E19:H19) -> 0 | F19: =IF(E19=0,"",'- 6 -'!$E19/E19*100) ->  | G19: =IF(E19=0,"",'- 6 -'!$F19/E19*100) ->  | H19: =IF(E19=0,"",'- 6 -'!$G19/E19*100) ->  | I19: =IF(E19=0,"",'- 6 -'!$H19/E19*100) -> 
A20: HANOVER | B20: 0 | C20: =B20/'- 3 -'!$D20*100 -> 0 | E20: =SUM('- 6 -'!$E20:H20) -> 0 | F20: =IF(E20=0,"",'- 6 -'!$E20/E20*100) ->  | G20: =IF(E20=0,"",'- 6 -'!$F20/E20*100) ->  | H20: =IF(E20=0,"",'- 6 -'!$G20/E20*100) ->  | I20: =IF(E20=0,"",'- 6 -'!$H20/E20*100) -> 
A21: INTERLAKE | B21: 7378272 | C21: =B21/'- 3 -'!$D21*100 -> 19.11731922 | D21: 5855.771429 | E21: =SUM('- 6 -'!$E21:H21) -> 1260 | F21: =IF(E21=0,"",'- 6 -'!$E21/E21*100) -> 68.88888889 | G21: =IF(E21=0,"",'- 6 -'!$F21/E21*100) -> 0 | H21: =IF(E21=0,"",'- 6 -'!$G21/E21*100) -> 31.11111111 | I21: =IF(E21=0,"",'- 6 -'!$H21/E21*100) -> 0
A22: KELSEY | B22: 4552134 | C22: =B22/'- 3 -'!$D22*100 -> 22.09939746 | D22: 7237.096979 | E22: =SUM('- 6 -'!$E22:H22) -> 629 | F22: =IF(E22=0,"",'- 6 -'!$E22/E22*100) -> 80.92209857 | G22: =IF(E22=0,"",'- 6 -'!$F22/E22*100) -> 0 | H22: =IF(E22=0,"",'- 6 -'!$G22/E22*100) -> 19.07790143 | I22: =IF(E22=0,"",'- 6 -'!$H22/E22*100) -> 0
A23: LAKESHORE | B23: 0 | C23: =B23/'- 3 -'!$D23*100 -> 0 | E23: =SUM('- 6 -'!$E23:H23) -> 0 | F23: =IF(E23=0,"",'- 6 -'!$E23/E23*100) ->  | G23: =IF(E23=0,"",'- 6 -'!$F23/E23*100) ->  | H23: =IF(E23=0,"",'- 6 -'!$G23/E23*100) ->  | I23: =IF(E23=0,"",'- 6 -'!$H23/E23*100) -> 
A24: LORD SELKIRK | B24: 4987638 | C24: =B24/'- 3 -'!$D24*100 -> 8.423626766 | D24: 7005.109551 | E24: =SUM('- 6 -'!$E24:H24) -> 712 | F24: =IF(E24=0,"",'- 6 -'!$E24/E24*100) -> 74.36797753 | G24: =IF(E24=0,"",'- 6 -'!$F24/E24*100) -> 0 | H24: =IF(E24=0,"",'- 6 -'!$G24/E24*100) -> 13.48314607 | I24: =IF(E24=0,"",'- 6 -'!$H24/E24*100) -> 12.1488764
A25: LOUIS RIEL | B25: 3801324 | C25: =B25/'- 3 -'!$D25*100 -> 1.924329229 | D25: 4710.438662 | E25: =SUM('- 6 -'!$E25:H25) -> 807 | F25: =IF(E25=0,"",'- 6 -'!$E25/E25*100) -> 51.79677819 | G25: =IF(E25=0,"",'- 6 -'!$F25/E25*100) -> 0 | H25: =IF(E25=0,"",'- 6 -'!$G25/E25*100) -> 48.20322181 | I25: =IF(E25=0,"",'- 6 -'!$H25/E25*100) -> 0
A26: MOUNTAIN VIEW | B26: 2938319 | C26: =B26/'- 3 -'!$D26*100 -> 6.85860042 | D26: 5554.478261 | E26: =SUM('- 6 -'!$E26:H26) -> 529 | F26: =IF(E26=0,"",'- 6 -'!$E26/E26*100) -> 72.96786389 | G26: =IF(E26=0,"",'- 6 -'!$F26/E26*100) -> 0 | H26: =IF(E26=0,"",'- 6 -'!$G26/E26*100) -> 14.74480151 | I26: =IF(E26=0,"",'- 6 -'!$H26/E26*100) -> 12.28733459
A27: MYSTERY LAKE | B27: 2352138 | C27: =B27/'- 3 -'!$D27*100 -> 5.347074812 | D27: 6264.015979 | E27: =SUM('- 6 -'!$E27:H27) -> 375.5 | F27: =IF(E27=0,"",'- 6 -'!$E27/E27*100) -> 40.87882823 | G27: =IF(E27=0,"",'- 6 -'!$F27/E27*100) -> 0 | H27: =IF(E27=0,"",'- 6 -'!$G27/E27*100) -> 59.12117177 | I27: =IF(E27=0,"",'- 6 -'!$H27/E27*100) -> 0
A28: PARK WEST | B28: 0 | C28: =B28/'- 3 -'!$D28*100 -> 0 | E28: =SUM('- 6 -'!$E28:H28) -> 0 | F28: =IF(E28=0,"",'- 6 -'!$E28/E28*100) ->  | G28: =IF(E28=0,"",'- 6 -'!$F28/E28*100) ->  | H28: =IF(E28=0,"",'- 6 -'!$G28/E28*100) ->  | I28: =IF(E28=0,"",'- 6 -'!$H28/E28*100) -> 
A29: PEMBINA TRAILS | B29: 27404489 | C29: =B29/'- 3 -'!$D29*100 -> 15.12496862 | D29: 5860.669162 | E29: =SUM('- 6 -'!$E29:H29) -> 4676 | F29: =IF(E29=0,"",'- 6 -'!$E29/E29*100) -> 56.21257485 | G29: =IF(E29=0,"",'- 6 -'!$F29/E29*100) -> 0 | H29: =IF(E29=0,"",'- 6 -'!$G29/E29*100) -> 43.78742515 | I29: =IF(E29=0,"",'- 6 -'!$H29/E29*100) -> 0
A30: PINE CREEK | B30: 0 | C30: =B30/'- 3 -'!$D30*100 -> 0 | E30: =SUM('- 6 -'!$E30:H30) -> 0 | F30: =IF(E30=0,"",'- 6 -'!$E30/E30*100) ->  | G30: =IF(E30=0,"",'- 6 -'!$F30/E30*100) ->  | H30: =IF(E30=0,"",'- 6 -'!$G30/E30*100) ->  | I30: =IF(E30=0,"",'- 6 -'!$H30/E30*100) -> 
A31: PORTAGE LA PRAIRIE | B31: 4506889 | C31: =B31/'- 3 -'!$D31*100 -> 10.83707958 | D31: 5204.259815 | E31: =SUM('- 6 -'!$E31:H31) -> 866 | F31: =IF(E31=0,"",'- 6 -'!$E31/E31*100) -> 58.08314088 | G31: =IF(E31=0,"",'- 6 -'!$F31/E31*100) -> 0 | H31: =IF(E31=0,"",'- 6 -'!$G31/E31*100) -> 41.91685912 | I31: =IF(E31=0,"",'- 6 -'!$H31/E31*100) -> 0
A32: PRAIRIE ROSE | B32: 3020426 | C32: =B32/'- 3 -'!$D32*100 -> 9.407436869 | D32: 6426.438298 | E32: =SUM('- 6 -'!$E32:H32) -> 470 | F32: =IF(E32=0,"",'- 6 -'!$E32/E32*100) -> 75.74468085 | G32: =IF(E32=0,"",'- 6 -'!$F32/E32*100) -> 0 | H32: =IF(E32=0,"",'- 6 -'!$G32/E32*100) -> 24.25531915 | I32: =IF(E32=0,"",'- 6 -'!$H32/E32*100) -> 0
A33: PRAIRIE SPIRIT | B33: 2854800 | C33: =B33/'- 3 -'!$D33*100 -> 9.794403974 | D33: 6473.469388 | E33: =SUM('- 6 -'!$E33:H33) -> 441 | F33: =IF(E33=0,"",'- 6 -'!$E33/E33*100) -> 48.63945578 | G33: =IF(E33=0,"",'- 6 -'!$F33/E33*100) -> 24.6031746 | H33: =IF(E33=0,"",'- 6 -'!$G33/E33*100) -> 26.75736961 | I33: =IF(E33=0,"",'- 6 -'!$H33/E33*100) -> 0
A34: RED RIVER VALLEY | B34: 1814407 | C34: =B34/'- 3 -'!$D34*100 -> 5.557584984 | D34: 8209.986425 | E34: =SUM('- 6 -'!$E34:H34) -> 221 | F34: =IF(E34=0,"",'- 6 -'!$E34/E34*100) -> 32.57918552 | G34: =IF(E34=0,"",'- 6 -'!$F34/E34*100) -> 67.42081448 | H34: =IF(E34=0,"",'- 6 -'!$G34/E34*100) -> 0 | I34: =IF(E34=0,"",'- 6 -'!$H34/E34*100) -> 0
A35: RIVER EAST TRANSCONA | B35: 26734162 | C35: =B35/'- 3 -'!$D35*100 -> 13.28842086 | D35: 4301.554626 | E35: =SUM('- 6 -'!$E35:H35) -> 6215 | F35: =IF(E35=0,"",'- 6 -'!$E35/E35*100) -> 58.27835881 | G35: =IF(E35=0,"",'- 6 -'!$F35/E35*100) -> 0 | H35: =IF(E35=0,"",'- 6 -'!$G35/E35*100) -> 33.12148029 | I35: =IF(E35=0,"",'- 6 -'!$H35/E35*100) -> 8.600160901
A36: ROLLING RIVER | B36: 0 | C36: =B36/'- 3 -'!$D36*100 -> 0 | E36: =SUM('- 6 -'!$E36:H36) -> 0 | F36: =IF(E36=0,"",'- 6 -'!$E36/E36*100) ->  | G36: =IF(E36=0,"",'- 6 -'!$F36/E36*100) ->  | H36: =IF(E36=0,"",'- 6 -'!$G36/E36*100) ->  | I36: =IF(E36=0,"",'- 6 -'!$H36/E36*100) -> 
A37: SEINE RIVER | B37: 8674023 | C37: =B37/'- 3 -'!$D37*100 -> 15.43665856 | D37: 6240.304317 | E37: =SUM('- 6 -'!$E37:H37) -> 1390 | F37: =IF(E37=0,"",'- 6 -'!$E37/E37*100) -> 54.02877698 | G37: =IF(E37=0,"",'- 6 -'!$F37/E37*100) -> 0 | H37: =IF(E37=0,"",'- 6 -'!$G37/E37*100) -> 45.97122302 | I37: =IF(E37=0,"",'- 6 -'!$H37/E37*100) -> 0
A38: SEVEN OAKS | B38: 23450515 | C38: =B38/'- 3 -'!$D38*100 -> 15.27857717 | D38: 6220.130766 | E38: =SUM('- 6 -'!$E38:H38) -> 3770.1 | F38: =IF(E38=0,"",'- 6 -'!$E38/E38*100) -> 61.0567359 | G38: =IF(E38=0,"",'- 6 -'!$F38/E38*100) -> 0 | H38: =IF(E38=0,"",'- 6 -'!$G38/E38*100) -> 32.17686534 | I38: =IF(E38=0,"",'- 6 -'!$H38/E38*100) -> 6.766398769
A39: SOUTHWEST HORIZON | B39: 0 | C39: =B39/'- 3 -'!$D39*100 -> 0 | E39: =SUM('- 6 -'!$E39:H39) -> 0 | F39: =IF(E39=0,"",'- 6 -'!$E39/E39*100) ->  | G39: =IF(E39=0,"",'- 6 -'!$F39/E39*100) ->  | H39: =IF(E39=0,"",'- 6 -'!$G39/E39*100) ->  | I39: =IF(E39=0,"",'- 6 -'!$H39/E39*100) -> 
A40: ST. JAMES-ASSINIBOIA | B40: 5224568 | C40: =B40/'- 3 -'!$D40*100 -> 4.665407608 | D40: 5453.05083 | E40: =SUM('- 6 -'!$E40:H40) -> 958.1 | F40: =IF(E40=0,"",'- 6 -'!$E40/E40*100) -> 60.44254253 | G40: =IF(E40=0,"",'- 6 -'!$F40/E40*100) -> 0 | H40: =IF(E40=0,"",'- 6 -'!$G40/E40*100) -> 39.55745747 | I40: =IF(E40=0,"",'- 6 -'!$H40/E40*100) -> 0
A41: SUNRISE | B41: 16838493 | C41: =B41/'- 3 -'!$D41*100 -> 24.64670745 | D41: 6915.192197 | E41: =SUM('- 6 -'!$E41:H41) -> 2435 | F41: =IF(E41=0,"",'- 6 -'!$E41/E41*100) -> 64.86652977 | G41: =IF(E41=0,"",'- 6 -'!$F41/E41*100) -> 0 | H41: =IF(E41=0,"",'- 6 -'!$G41/E41*100) -> 31.9301848 | I41: =IF(E41=0,"",'- 6 -'!$H41/E41*100) -> 3.203285421
A42: SWAN VALLEY | B42: 1841284 | C42: =B42/'- 3 -'!$D42*100 -> 8.438436231 | D42: 6819.57037 | E42: =SUM('- 6 -'!$E42:H42) -> 270 | F42: =IF(E42=0,"",'- 6 -'!$E42/E42*100) -> 80.37037037 | G42: =IF(E42=0,"",'- 6 -'!$F42/E42*100) -> 0 | H42: =IF(E42=0,"",'- 6 -'!$G42/E42*100) -> 19.62962963 | I42: =IF(E42=0,"",'- 6 -'!$H42/E42*100) -> 0
A43: TURTLE MOUNTAIN | B43: 0 | C43: =B43/'- 3 -'!$D43*100 -> 0 | E43: =SUM('- 6 -'!$E43:H43) -> 0 | F43: =IF(E43=0,"",'- 6 -'!$E43/E43*100) ->  | G43: =IF(E43=0,"",'- 6 -'!$F43/E43*100) ->  | H43: =IF(E43=0,"",'- 6 -'!$G43/E43*100) ->  | I43: =IF(E43=0,"",'- 6 -'!$H43/E43*100) -> 
A44: TURTLE RIVER | B44: 0 | C44: =B44/'- 3 -'!$D44*100 -> 0 | E44: =SUM('- 6 -'!$E44:H44) -> 0 | F44: =IF(E44=0,"",'- 6 -'!$E44/E44*100) ->  | G44: =IF(E44=0,"",'- 6 -'!$F44/E44*100) ->  | H44: =IF(E44=0,"",'- 6 -'!$G44/E44*100) ->  | I44: =IF(E44=0,"",'- 6 -'!$H44/E44*100) -> 
A45: WESTERN | B45: 6348400 | C45: =B45/'- 3 -'!$D45*100 -> 26.8115401 | D45: 5660.633081 | E45: =SUM('- 6 -'!$E45:H45) -> 1121.5 | F45: =IF(E45=0,"",'- 6 -'!$E45/E45*100) -> 73.65135979 | G45: =IF(E45=0,"",'- 6 -'!$F45/E45*100) -> 0 | H45: =IF(E45=0,"",'- 6 -'!$G45/E45*100) -> 26.34864021 | I45: =IF(E45=0,"",'- 6 -'!$H45/E45*100) -> 0
A46: WINNIPEG | B46: 43703454 | C46: =B46/'- 3 -'!$D46*100 -> 10.47394548 | D46: 4978.464886 | E46: =SUM('- 6 -'!$E46:H46) -> 8778.5 | F46: =IF(E46=0,"",'- 6 -'!$E46/E46*100) -> 58.51227431 | G46: =IF(E46=0,"",'- 6 -'!$F46/E46*100) -> 0 | H46: =IF(E46=0,"",'- 6 -'!$G46/E46*100) -> 37.42097169 | I46: =IF(E46=0,"",'- 6 -'!$H46/E46*100) -> 4.066754001
A48: PROVINCE | B48: =SUM(B11:B46) -> 212601070 | C48: =B48/'- 3 -'!$D48*100 -> 8.421192808 | D48: =B48/E48 -> 5580.051286 | E48: =SUM(E11:E46) -> 38100.2 | F48: =IF(E48=0,"",'- 6 -'!$E48/E48*100) -> 60.57973449 | G48: =IF(E48=0,"",'- 6 -'!$F48/E48*100) -> 0.6758494706 | H48: =IF(E48=0,"",'- 6 -'!$G48/E48*100) -> 35.13262398 | I48: =IF(E48=0,"",'- 6 -'!$H48/E48*100) -> 3.611792064
A50: WHITESHELL | B50: 0 | C50: =B50/'- 3 -'!$D50*100 -> 0 | D50: =IF(E50=0,"",B50/E50) ->  | E50: =SUM('- 6 -'!$E50:H50) -> 0 | F50: =IF(E50=0,"",'- 6 -'!$E50/E50*100) ->  | G50: =IF(E50=0,"",'- 6 -'!$F50/E50*100) ->  | H50: =IF(E50=0,"",'- 6 -'!$G50/E50*100) ->  | I50: =IF(E50=0,"",'- 6 -'!$H50/E50*100) -> 
A51: MITT | B51: 0 | C51: =B51/'- 3 -'!$D51*100 -> 0 | D51: =IF(E51=0,"",B51/E51) ->  | E51: =SUM('- 6 -'!$E51:H51) -> 0 | F51: =IF(E51=0,"",'- 6 -'!$E51/E51*100) ->  | G51: =IF(E51=0,"",'- 6 -'!$F51/E51*100) ->  | H51: =IF(E51=0,"",'- 6 -'!$G51/E51*100) ->  | I51: =IF(E51=0,"",'- 6 -'!$H51/E51*100) -> 
A53: (1) No one language program comprises 90% or more of Regular Instruction enrolment.

Sheet - 21 -
B2: =AEXP_BP -> ANALYSIS OF EXPENSE BY PROGRAM | I2: PAGE 4 OF 16
B3: =OPYEAR -> OPERATING FUND 2021/2022 BUDGET
B5: FUNCTION 200: STUDENT SUPPORT SERVICES
B6: ADMINISTRATION / COORDINATION | E6: CLINICAL AND RELATED SERVICES | H6: SPECIAL PLACEMENT
D8: PER PUPIL | G8: PER PUPIL | I8: %
A9: DIVISION / DISTRICT | B9: AMOUNT | C9: % | E9: AMOUNT | F9: % | H9: AMOUNT
A11: BEAUTIFUL PLAINS | B11: 151869 | C11: =B11/'- 3 -'!$D11*100 -> 0.6510071001 | D11: =B11/'- 7 -'!$E11 -> 73.29584942 | E11: 256194 | F11: =E11/'- 3 -'!$D11*100 -> 1.098210385 | G11: =E11/'- 7 -'!$E11 -> 123.6457529 | H11: 267102 | I11: =H11/'- 3 -'!$D11*100 -> 1.144969009
A12: BORDER LAND | B12: 213269 | C12: =B12/'- 3 -'!$D12*100 -> 0.6102579325 | D12: =B12/'- 7 -'!$E12 -> 98.7420481 | E12: 737455 | F12: =E12/'- 3 -'!$D12*100 -> 2.110188371 | G12: =E12/'- 7 -'!$E12 -> 341.436482 | H12: 0 | I12: =H12/'- 3 -'!$D12*100 -> 0
A13: BRANDON | B13: 196100 | C13: =B13/'- 3 -'!$D13*100 -> 0.1787869837 | D13: =B13/'- 7 -'!$E13 -> 22.41783367 | E13: 3417600 | F13: =E13/'- 3 -'!$D13*100 -> 3.11587147 | G13: =E13/'- 7 -'!$E13 -> 390.6944841 | H13: 1210300 | I13: =H13/'- 3 -'!$D13*100 -> 1.103446641
A14: DSFM | B14: 437277 | C14: =B14/'- 3 -'!$D14*100 -> 0.435974261 | D14: =B14/'- 7 -'!$E14 -> 72.12221672 | E14: 1209984 | F14: =E14/'- 3 -'!$D14*100 -> 1.206379206 | G14: =E14/'- 7 -'!$E14 -> 199.5685304 | H14: 1053153 | I14: =H14/'- 3 -'!$D14*100 -> 1.050015438
A15: EVERGREEN | B15: 222110 | C15: =B15/'- 3 -'!$D15*100 -> 1.03509065 | D15: =B15/'- 7 -'!$E15 -> 165.1375465 | E15: 331040 | F15: =E15/'- 3 -'!$D15*100 -> 1.542732919 | G15: =E15/'- 7 -'!$E15 -> 246.1263941 | H15: 0 | I15: =H15/'- 3 -'!$D15*100 -> 0
A16: FLIN FLON | B16: 107688 | C16: =B16/'- 3 -'!$D16*100 -> 0.6917516352 | D16: =B16/'- 7 -'!$E16 -> 113.5949367 | E16: 337502 | F16: =E16/'- 3 -'!$D16*100 -> 2.167999781 | G16: =E16/'- 7 -'!$E16 -> 356.0147679 | H16: 170344 | I16: =H16/'- 3 -'!$D16*100 -> 1.094232789
A17: FORT LA BOSSE | B17: 133110 | C17: =B17/'- 3 -'!$D17*100 -> 0.6805172626 | D17: =B17/'- 7 -'!$E17 -> 94.17049876 | E17: 434720 | F17: =E17/'- 3 -'!$D17*100 -> 2.222481139 | G17: =E17/'- 7 -'!$E17 -> 307.5486381 | H17: 0 | I17: =H17/'- 3 -'!$D17*100 -> 0
A18: FRONTIER | B18: 0 | C18: =B18/'- 3 -'!$D18*100 -> 0 | D18: =B18/'- 7 -'!$E18 -> 0 | E18: 1777048 | F18: =E18/'- 3 -'!$D18*100 -> 1.224638049 | G18: =E18/'- 7 -'!$E18 -> 301.5523502 | H18: 0 | I18: =H18/'- 3 -'!$D18*100 -> 0
A19: GARDEN VALLEY | B19: 129600 | C19: =B19/'- 3 -'!$D19*100 -> 0.2480015875 | D19: =B19/'- 7 -'!$E19 -> 30.40825903 | E19: 1157900 | F19: =E19/'- 3 -'!$D19*100 -> 2.215748751 | G19: =E19/'- 7 -'!$E19 -> 271.6799625 | H19: 1217900 | I19: =H19/'- 3 -'!$D19*100 -> 2.330564301
A20: HANOVER | B20: 476900 | C20: =B20/'- 3 -'!$D20*100 -> 0.5076331246 | D20: =B20/'- 7 -'!$E20 -> 58.49380596 | E20: 2341800 | F20: =E20/'- 3 -'!$D20*100 -> 2.492713884 | G20: =E20/'- 7 -'!$E20 -> 287.2316939 | H20: 747000 | I20: =H20/'- 3 -'!$D20*100 -> 0.795139325
A21: INTERLAKE | B21: 172000 | C21: =B21/'- 3 -'!$D21*100 -> 0.4456570462 | D21: =B21/'- 7 -'!$E21 -> 60.22408964 | E21: 750917 | F21: =E21/'- 3 -'!$D21*100 -> 1.945647978 | G21: =E21/'- 7 -'!$E21 -> 262.9261204 | H21: 210994 | I21: =H21/'- 3 -'!$D21*100 -> 0.5466916442
A22: KELSEY | B22: 17897 | C22: =B22/'- 3 -'!$D22*100 -> 0.0868851656 | D22: =B22/'- 7 -'!$E22 -> 12.35127674 | E22: 324777 | F22: =E22/'- 3 -'!$D22*100 -> 1.576705785 | G22: =E22/'- 7 -'!$E22 -> 224.1387164 | H22: 1016111 | I22: =H22/'- 3 -'!$D22*100 -> 4.93294812
A23: LAKESHORE | B23: 154350 | C23: =B23/'- 3 -'!$D23*100 -> 0.9409023702 | D23: =B23/'- 7 -'!$E23 -> 165.611588 | E23: 322000 | F23: =E23/'- 3 -'!$D23*100 -> 1.962880228 | G23: =E23/'- 7 -'!$E23 -> 345.4935622 | H23: 0 | I23: =H23/'- 3 -'!$D23*100 -> 0
A24: LORD SELKIRK | B24: 343087 | C24: =B24/'- 3 -'!$D24*100 -> 0.5794399746 | D24: =B24/'- 7 -'!$E24 -> 92.22768817 | E24: 1879824 | F24: =E24/'- 3 -'!$D24*100 -> 3.174836618 | G24: =E24/'- 7 -'!$E24 -> 505.3290323 | H24: 511070 | I24: =H24/'- 3 -'!$D24*100 -> 0.8631466299
A25: LOUIS RIEL | B25: 1040167 | C25: =B25/'- 3 -'!$D25*100 -> 0.5265596306 | D25: =B25/'- 7 -'!$E25 -> 67.31165469 | E25: 4218741 | F25: =E25/'- 3 -'!$D25*100 -> 2.135636588 | G25: =E25/'- 7 -'!$E25 -> 273.0046593 | H25: 10694980 | I25: =H25/'- 3 -'!$D25*100 -> 5.414077468
A26: MOUNTAIN VIEW | B26: 160149 | C26: =B26/'- 3 -'!$D26*100 -> 0.3738184992 | D26: =B26/'- 7 -'!$E26 -> 52.81959103 | E26: 730265 | F26: =E26/'- 3 -'!$D26*100 -> 1.70457865 | G26: =E26/'- 7 -'!$E26 -> 240.8525726 | H26: 109981 | I26: =H26/'- 3 -'!$D26*100 -> 0.2567167597
A27: MYSTERY LAKE | B27: 220159 | C27: =B27/'- 3 -'!$D27*100 -> 0.5004836636 | D27: =B27/'- 7 -'!$E27 -> 78.35397537 | E27: 614517 | F27: =E27/'- 3 -'!$D27*100 -> 1.396970914 | G27: =E27/'- 7 -'!$E27 -> 218.70489 | H27: 2871066 | I27: =H27/'- 3 -'!$D27*100 -> 6.526744899
A28: PARK WEST | B28: 134537 | C28: =B28/'- 3 -'!$D28*100 -> 0.4652128906 | D28: =B28/'- 7 -'!$E28 -> 66.19286593 | E28: 493568 | F28: =E28/'- 3 -'!$D28*100 -> 1.706699243 | G28: =E28/'- 7 -'!$E28 -> 242.8378844 | H28: 0 | I28: =H28/'- 3 -'!$D28*100 -> 0
A29: PEMBINA TRAILS | B29: 602482 | C29: =B29/'- 3 -'!$D29*100 -> 0.3325192944 | D29: =B29/'- 7 -'!$E29 -> 41.04380407 | E29: 3548579 | F29: =E29/'- 3 -'!$D29*100 -> 1.958516579 | G29: =E29/'- 7 -'!$E29 -> 241.7452824 | H29: 696000 | I29: =H29/'- 3 -'!$D29*100 -> 0.3841333499
A30: PINE CREEK | B30: 122886 | C30: =B30/'- 3 -'!$D30*100 -> 0.7788109377 | D30: =B30/'- 7 -'!$E30 -> 115.6030103 | E30: 201758 | F30: =E30/'- 3 -'!$D30*100 -> 1.27867566 | G30: =E30/'- 7 -'!$E30 -> 189.8005644 | H30: 0 | I30: =H30/'- 3 -'!$D30*100 -> 0
A31: PORTAGE LA PRAIRIE | B31: 163215 | C31: =B31/'- 3 -'!$D31*100 -> 0.3924600635 | D31: =B31/'- 7 -'!$E31 -> 48.59035427 | E31: 626837 | F31: =E31/'- 3 -'!$D31*100 -> 1.50726642 | G31: =E31/'- 7 -'!$E31 -> 186.6141709 | H31: 1133700 | I31: =H31/'- 3 -'!$D31*100 -> 2.726048304
A32: PRAIRIE ROSE | B32: 156920 | C32: =B32/'- 3 -'!$D32*100 -> 0.4887439697 | D32: =B32/'- 7 -'!$E32 -> 66.26689189 | E32: 522226 | F32: =E32/'- 3 -'!$D32*100 -> 1.62652822 | G32: =E32/'- 7 -'!$E32 -> 220.5346284 | H32: 0 | I32: =H32/'- 3 -'!$D32*100 -> 0
A33: PRAIRIE SPIRIT | B33: 217885 | C33: =B33/'- 3 -'!$D33*100 -> 0.7475317745 | D33: =B33/'- 7 -'!$E33 -> 103.8289254 | E33: 488960 | F33: =E33/'- 3 -'!$D33*100 -> 1.67755071 | G33: =E33/'- 7 -'!$E33 -> 233.004527 | H33: 0 | I33: =H33/'- 3 -'!$D33*100 -> 0
A34: RED RIVER VALLEY | B34: 246644 | C34: =B34/'- 3 -'!$D34*100 -> 0.755478231 | D34: =B34/'- 7 -'!$E34 -> 109.4395882 | E34: 684294 | F34: =E34/'- 3 -'!$D34*100 -> 2.096013771 | G34: =E34/'- 7 -'!$E34 -> 303.6313618 | H34: 658585 | I34: =H34/'- 3 -'!$D34*100 -> 2.017266306
A35: RIVER EAST TRANSCONA | B35: 1030759 | C35: =B35/'- 3 -'!$D35*100 -> 0.5123466894 | D35: =B35/'- 7 -'!$E35 -> 63.2522705 | E35: 3574220 | F35: =E35/'- 3 -'!$D35*100 -> 1.776593543 | G35: =E35/'- 7 -'!$E35 -> 219.3311242 | H35: 3009400 | I35: =H35/'- 3 -'!$D35*100 -> 1.495845418
A36: ROLLING RIVER | B36: 167690 | C36: =B36/'- 3 -'!$D36*100 -> 0.6809636962 | D36: =B36/'- 7 -'!$E36 -> 92.46760408 | E36: 389565 | F36: =E36/'- 3 -'!$D36*100 -> 1.581964472 | G36: =E36/'- 7 -'!$E36 -> 214.8138958 | H36: 0 | I36: =H36/'- 3 -'!$D36*100 -> 0
A37: SEINE RIVER | B37: 233700 | C37: =B37/'- 3 -'!$D37*100 -> 0.4159024141 | D37: =B37/'- 7 -'!$E37 -> 53.55178735 | E37: 1047240 | F37: =E37/'- 3 -'!$D37*100 -> 1.863712641 | G37: =E37/'- 7 -'!$E37 -> 239.9725023 | H37: 0 | I37: =H37/'- 3 -'!$D37*100 -> 0
A38: SEVEN OAKS | B38: 620550 | C38: =B38/'- 3 -'!$D38*100 -> 0.4043033197 | D38: =B38/'- 7 -'!$E38 -> 53.06159095 | E38: 2108200 | F38: =E38/'- 3 -'!$D38*100 -> 1.373543242 | G38: =E38/'- 7 -'!$E38 -> 180.2666119 | H38: 486000 | I38: =H38/'- 3 -'!$D38*100 -> 0.3166407435
A39: SOUTHWEST HORIZON | B39: 283350 | C39: =B39/'- 3 -'!$D39*100 -> 1.187572298 | D39: =B39/'- 7 -'!$E39 -> 187.8355983 | E39: 340850 | F39: =E39/'- 3 -'!$D39*100 -> 1.428565441 | G39: =E39/'- 7 -'!$E39 -> 225.9529334 | H39: 0 | I39: =H39/'- 3 -'!$D39*100 -> 0
A40: ST. JAMES-ASSINIBOIA | B40: 219056 | C40: =B40/'- 3 -'!$D40*100 -> 0.1956114896 | D40: =B40/'- 7 -'!$E40 -> 26.75362425 | E40: 3299457 | F40: =E40/'- 3 -'!$D40*100 -> 2.946331982 | G40: =E40/'- 7 -'!$E40 -> 402.9674275 | H40: 591500 | I40: =H40/'- 3 -'!$D40*100 -> 0.5281945991
A41: SUNRISE | B41: 412228 | C41: =B41/'- 3 -'!$D41*100 -> 0.6033831482 | D41: =B41/'- 7 -'!$E41 -> 91.16054843 | E41: 1919227 | F41: =E41/'- 3 -'!$D41*100 -> 2.809195953 | G41: =E41/'- 7 -'!$E41 -> 424.4199469 | H41: 619341 | I41: =H41/'- 3 -'!$D41*100 -> 0.9065369708
A42: SWAN VALLEY | B42: 166092 | C42: =B42/'- 3 -'!$D42*100 -> 0.7611844509 | D42: =B42/'- 7 -'!$E42 -> 122.5771218 | E42: 361197 | F42: =E42/'- 3 -'!$D42*100 -> 1.655332828 | G42: =E42/'- 7 -'!$E42 -> 266.5660517 | H42: 0 | I42: =H42/'- 3 -'!$D42*100 -> 0
A43: TURTLE MOUNTAIN | B43: 121721 | C43: =B43/'- 3 -'!$D43*100 -> 0.8709071119 | D43: =B43/'- 7 -'!$E43 -> 123.1370764 | E43: 348638 | F43: =E43/'- 3 -'!$D43*100 -> 2.494485862 | G43: =E43/'- 7 -'!$E43 -> 352.6939808 | H43: 0 | I43: =H43/'- 3 -'!$D43*100 -> 0
A44: TURTLE RIVER | B44: 91615 | C44: =B44/'- 3 -'!$D44*100 -> 0.7964063267 | D44: =B44/'- 7 -'!$E44 -> 136.1292719 | E44: 174448 | F44: =E44/'- 3 -'!$D44*100 -> 1.516471002 | G44: =E44/'- 7 -'!$E44 -> 259.2095097 | H44: 0 | I44: =H44/'- 3 -'!$D44*100 -> 0
A45: WESTERN | B45: 149277 | C45: =B45/'- 3 -'!$D45*100 -> 0.6304496047 | D45: =B45/'- 7 -'!$E45 -> 73.42695524 | E45: 350059 | F45: =E45/'- 3 -'!$D45*100 -> 1.478423054 | G45: =E45/'- 7 -'!$E45 -> 172.1883915 | H45: 236183 | I45: =H45/'- 3 -'!$D45*100 -> 0.9974844015
A46: WINNIPEG | B46: 744100 | C46: =B46/'- 3 -'!$D46*100 -> 0.1783305922 | D46: =B46/'- 7 -'!$E46 -> 24.42114245 | E46: 13716658 | F46: =E46/'- 3 -'!$D46*100 -> 3.287326629 | G46: =E46/'- 7 -'!$E46 -> 450.1766685 | H46: 33921531 | I46: =H46/'- 3 -'!$D46*100 -> 8.129615257
A48: PROVINCE | B48: =SUM(B11:B46) -> 10060439 | C48: =B48/'- 3 -'!$D48*100 -> 0.3984970374 | D48: =B48/'- 7 -'!$E48 -> 54.95460816 | E48: =SUM(E11:E46) -> 55038265 | F48: =E48/'- 3 -'!$D48*100 -> 2.180082355 | G48: =E48/'- 7 -'!$E48 -> 300.643569 | H48: =SUM(H11:H46) -> 61432241 | I48: =H48/'- 3 -'!$D48*100 -> 2.433349682
A50: WHITESHELL | B50: 22918 | C50: =B50/'- 3 -'!$D50*100 -> 0.6365256558 | D50: =B50/'- 7 -'!$E50 -> 130.2159091 | E50: 43982 | F50: =E50/'- 3 -'!$D50*100 -> 1.221558225 | G50: =E50/'- 7 -'!$E50 -> 249.8977273 | H50: 0 | I50: =H50/'- 3 -'!$D50*100 -> 0
A51: MITT | B51: 143026 | C51: =B51/'- 3 -'!$D51*100 -> 0.4296250803 | D51: =B51/'- 7 -'!$E51 -> 80.62344983 | E51: 0 | F51: =E51/'- 3 -'!$D51*100 -> 0 | G51: =E51/'- 7 -'!$E51 -> 0 | H51: 0 | I51: =H51/'- 3 -'!$D51*100 -> 0

Sheet - 22 -
B2: =AEXP_BP -> ANALYSIS OF EXPENSE BY PROGRAM | J2: PAGE 5 OF 16
B3: =OPYEAR -> OPERATING FUND 2021/2022 BUDGET
B5: FUNCTION 200: STUDENT SUPPORT SERVICES (CONT'D)
B6: REGULAR PLACEMENT (1) | E6: OTHER RESOURCE SERVICES | H6: COUNSELLING AND GUIDANCE
D8: PER PUPIL | G8: PER PUPIL | J8: PER PUPIL
A9: DIVISION / DISTRICT | B9: AMOUNT | C9: % | E9: AMOUNT | F9: % | H9: AMOUNT | I9: %
A11: BEAUTIFUL PLAINS | B11: 922762 | C11: =B11/'- 3 -'!$D11*100 -> 3.955544671 | D11: =B11/'- 7 -'!$E11 -> 445.3484556 | E11: 1062001 | F11: =E11/'- 3 -'!$D11*100 -> 4.552411561 | G11: =E11/'- 7 -'!$E11 -> 512.5487452 | H11: 332591 | I11: =H11/'- 3 -'!$D11*100 -> 1.425696504 | J11: =H11/'- 7 -'!$E11 -> 160.5168919
A12: BORDER LAND | B12: 2662422 | C12: =B12/'- 3 -'!$D12*100 -> 7.618379349 | D12: =B12/'- 7 -'!$E12 -> 1232.682674 | E12: 1373143 | F12: =E12/'- 3 -'!$D12*100 -> 3.929175868 | G12: =E12/'- 7 -'!$E12 -> 635.7555582 | H12: 635339 | I12: =H12/'- 3 -'!$D12*100 -> 1.817988853 | J12: =H12/'- 7 -'!$E12 -> 294.1574917
A13: BRANDON | B13: 11075300 | C13: =B13/'- 3 -'!$D13*100 -> 10.09749862 | D13: =B13/'- 7 -'!$E13 -> 1266.110317 | E13: 4519100 | F13: =E13/'- 3 -'!$D13*100 -> 4.120123701 | G13: =E13/'- 7 -'!$E13 -> 516.6161761 | H13: 2746900 | I13: =H13/'- 3 -'!$D13*100 -> 2.504385341 | J13: =H13/'- 7 -'!$E13 -> 314.0211489
A14: DSFM | B14: 3917588 | C14: =B14/'- 3 -'!$D14*100 -> 3.905916691 | D14: =B14/'- 7 -'!$E14 -> 646.146792 | E14: 3170492 | F14: =E14/'- 3 -'!$D14*100 -> 3.161046446 | G14: =E14/'- 7 -'!$E14 -> 522.9246248 | H14: 1781760 | I14: =H14/'- 3 -'!$D14*100 -> 1.776451767 | J14: =H14/'- 7 -'!$E14 -> 293.8743196
A15: EVERGREEN | B15: 1431800 | C15: =B15/'- 3 -'!$D15*100 -> 6.672562208 | D15: =B15/'- 7 -'!$E15 -> 1064.535316 | E15: 1041400 | F15: =E15/'- 3 -'!$D15*100 -> 4.853196175 | G15: =E15/'- 7 -'!$E15 -> 774.2750929 | H15: 581250 | I15: =H15/'- 3 -'!$D15*100 -> 2.708776913 | J15: =H15/'- 7 -'!$E15 -> 432.1561338
A16: FLIN FLON | B16: 1096212 | C16: =B16/'- 3 -'!$D16*100 -> 7.041698643 | D16: =B16/'- 7 -'!$E16 -> 1156.341772 | E16: 852721 | F16: =E16/'- 3 -'!$D16*100 -> 5.477594032 | G16: =E16/'- 7 -'!$E16 -> 899.4947257 | H16: 301094 | I16: =H16/'- 3 -'!$D16*100 -> 1.934126986 | J16: =H16/'- 7 -'!$E16 -> 317.6097046
A17: FORT LA BOSSE | B17: 917830 | C17: =B17/'- 3 -'!$D17*100 -> 4.692353386 | D17: =B17/'- 7 -'!$E17 -> 649.3314468 | E17: 799325 | F17: =E17/'- 3 -'!$D17*100 -> 4.08650335 | G17: =E17/'- 7 -'!$E17 -> 565.493456 | H17: 177390 | I17: =H17/'- 3 -'!$D17*100 -> 0.9068962303 | J17: =H17/'- 7 -'!$E17 -> 125.4969933
A18: FRONTIER | B18: 12798583 | C18: =B18/'- 3 -'!$D18*100 -> 8.820038463 | D18: =B18/'- 7 -'!$E18 -> 2171.828101 | E18: 4552301 | F18: =E18/'- 3 -'!$D18*100 -> 3.137180883 | G18: =E18/'- 7 -'!$E18 -> 772.4929577 | H18: 4638476 | I18: =H18/'- 3 -'!$D18*100 -> 3.196567677 | J18: =H18/'- 7 -'!$E18 -> 787.1162396
A19: GARDEN VALLEY | B19: 3833300 | C19: =B19/'- 3 -'!$D19*100 -> 7.335374116 | D19: =B19/'- 7 -'!$E19 -> 899.4134209 | E19: 2817500 | F19: =E19/'- 3 -'!$D19*100 -> 5.391546858 | G19: =E19/'- 7 -'!$E19 -> 661.0746129 | H19: 1234500 | I19: =H19/'- 3 -'!$D19*100 -> 2.362329937 | J19: =H19/'- 7 -'!$E19 -> 289.6527452
A20: HANOVER | B20: 4294500 | C20: =B20/'- 3 -'!$D20*100 -> 4.571252786 | D20: =B20/'- 7 -'!$E20 -> 526.7386238 | E20: 4963400 | F20: =E20/'- 3 -'!$D20*100 -> 5.283259071 | G20: =E20/'- 7 -'!$E20 -> 608.7820434 | H20: 2235700 | I20: =H20/'- 3 -'!$D20*100 -> 2.379776424 | J20: =H20/'- 7 -'!$E20 -> 274.2180792
A21: INTERLAKE | B21: 2322000 | C21: =B21/'- 3 -'!$D21*100 -> 6.016370123 | D21: =B21/'- 7 -'!$E21 -> 813.0252101 | E21: 2381000 | F21: =E21/'- 3 -'!$D21*100 -> 6.169240854 | G21: =E21/'- 7 -'!$E21 -> 833.6834734 | H21: 1271089 | I21: =H21/'- 3 -'!$D21*100 -> 3.29342889 | J21: =H21/'- 7 -'!$E21 -> 445.0591737
A22: KELSEY | B22: 822951 | C22: =B22/'- 3 -'!$D22*100 -> 3.995207795 | D22: =B22/'- 7 -'!$E22 -> 567.9440994 | E22: 1395149 | F22: =E22/'- 3 -'!$D22*100 -> 6.773076599 | G22: =E22/'- 7 -'!$E22 -> 962.8357488 | H22: 629635 | I22: =H22/'- 3 -'!$D22*100 -> 3.056710133 | J22: =H22/'- 7 -'!$E22 -> 434.5307108
A23: LAKESHORE | B23: 1425000 | C23: =B23/'- 3 -'!$D23*100 -> 8.686659394 | D23: =B23/'- 7 -'!$E23 -> 1528.969957 | E23: 614000 | F23: =E23/'- 3 -'!$D23*100 -> 3.742883416 | G23: =E23/'- 7 -'!$E23 -> 658.7982833 | H23: 382000 | I23: =H23/'- 3 -'!$D23*100 -> 2.328634308 | J23: =H23/'- 7 -'!$E23 -> 409.8712446
A24: LORD SELKIRK | B24: 3395381 | C24: =B24/'- 3 -'!$D24*100 -> 5.734462339 | D24: =B24/'- 7 -'!$E24 -> 912.736828 | E24: 2738752 | F24: =E24/'- 3 -'!$D24*100 -> 4.625480969 | G24: =E24/'- 7 -'!$E24 -> 736.2236559 | H24: 1533907 | I24: =H24/'- 3 -'!$D24*100 -> 2.590617054 | J24: =H24/'- 7 -'!$E24 -> 412.3405914
A25: LOUIS RIEL | B25: 10673698 | C25: =B25/'- 3 -'!$D25*100 -> 5.403303965 | D25: =B25/'- 7 -'!$E25 -> 690.7201191 | E25: 8335412 | F25: =E25/'- 3 -'!$D25*100 -> 4.219602682 | G25: =E25/'- 7 -'!$E25 -> 539.4041286 | H25: 3207524 | I25: =H25/'- 3 -'!$D25*100 -> 1.623732201 | J25: =H25/'- 7 -'!$E25 -> 207.5664272
A26: MOUNTAIN VIEW | B26: 1906798 | C26: =B26/'- 3 -'!$D26*100 -> 4.450832453 | D26: =B26/'- 7 -'!$E26 -> 628.8911609 | E26: 1897061 | F26: =E26/'- 3 -'!$D26*100 -> 4.428104427 | G26: =E26/'- 7 -'!$E26 -> 625.6797493 | H26: 1055068 | I26: =H26/'- 3 -'!$D26*100 -> 2.462731183 | J26: =H26/'- 7 -'!$E26 -> 347.9775726
A27: MYSTERY LAKE | B27: 1814575 | C27: =B27/'- 3 -'!$D27*100 -> 4.125042101 | D27: =B27/'- 7 -'!$E27 -> 645.8021923 | E27: 2407326 | F27: =E27/'- 3 -'!$D27*100 -> 5.472532743 | G27: =E27/'- 7 -'!$E27 -> 856.7606235 | H27: 1355743 | I27: =H27/'- 3 -'!$D27*100 -> 3.081987217 | J27: =H27/'- 7 -'!$E27 -> 482.5051605
A28: PARK WEST | B28: 1130689 | C28: =B28/'- 3 -'!$D28*100 -> 3.909787628 | D28: =B28/'- 7 -'!$E28 -> 556.304551 | E28: 1541930 | F28: =E28/'- 3 -'!$D28*100 -> 5.331809929 | G28: =E28/'- 7 -'!$E28 -> 758.6371464 | H28: 503674 | I28: =H28/'- 3 -'!$D28*100 -> 1.741644585 | J28: =H28/'- 7 -'!$E28 -> 247.8100861
A29: PEMBINA TRAILS | B29: 12738611 | C29: =B29/'- 3 -'!$D29*100 -> 7.030639823 | D29: =B29/'- 7 -'!$E29 -> 867.8119082 | E29: 13096205 | F29: =E29/'- 3 -'!$D29*100 -> 7.228001577 | G29: =E29/'- 7 -'!$E29 -> 892.1728319 | H29: 3762494 | I29: =H29/'- 3 -'!$D29*100 -> 2.076579632 | J29: =H29/'- 7 -'!$E29 -> 256.3181416
A30: PINE CREEK | B30: 500100 | C30: =B30/'- 3 -'!$D30*100 -> 3.169468857 | D30: =B30/'- 7 -'!$E30 -> 470.4609595 | E30: 684856 | F30: =E30/'- 3 -'!$D30*100 -> 4.340391449 | G30: =E30/'- 7 -'!$E30 -> 644.2671684 | H30: 272663 | I30: =H30/'- 3 -'!$D30*100 -> 1.728048164 | J30: =H30/'- 7 -'!$E30 -> 256.5032926
A31: PORTAGE LA PRAIRIE | B31: 2335790 | C31: =B31/'- 3 -'!$D31*100 -> 5.616544384 | D31: =B31/'- 7 -'!$E31 -> 695.3825543 | E31: 1628710 | F31: =E31/'- 3 -'!$D31*100 -> 3.916328952 | G31: =E31/'- 7 -'!$E31 -> 484.8794284 | H31: 1255350 | I31: =H31/'- 3 -'!$D31*100 -> 3.018562881 | J31: =H31/'- 7 -'!$E31 -> 373.7272998
A32: PRAIRIE ROSE | B32: 926750 | C32: =B32/'- 3 -'!$D32*100 -> 2.886461088 | D32: =B32/'- 7 -'!$E32 -> 391.3640203 | E32: 2342977 | F32: =E32/'- 3 -'!$D32*100 -> 7.297450166 | G32: =E32/'- 7 -'!$E32 -> 989.4328547 | H32: 740259 | I32: =H32/'- 3 -'!$D32*100 -> 2.305615105 | J32: =H32/'- 7 -'!$E32 -> 312.609375
A33: PRAIRIE SPIRIT | B33: 1773205 | C33: =B33/'- 3 -'!$D33*100 -> 6.083608694 | D33: =B33/'- 7 -'!$E33 -> 844.9868954 | E33: 1266455 | F33: =E33/'- 3 -'!$D33*100 -> 4.345023079 | G33: =E33/'- 7 -'!$E33 -> 603.5048844 | H33: 489445 | I33: =H33/'- 3 -'!$D33*100 -> 1.679214675 | J33: =H33/'- 7 -'!$E33 -> 233.2356445
A34: RED RIVER VALLEY | B34: 1242961 | C34: =B34/'- 3 -'!$D34*100 -> 3.807228141 | D34: =B34/'- 7 -'!$E34 -> 551.5201668 | E34: 1641370 | F34: =E34/'- 3 -'!$D34*100 -> 5.027567279 | G34: =E34/'- 7 -'!$E34 -> 728.3001287 | H34: 1005284 | I34: =H34/'- 3 -'!$D34*100 -> 3.079216109 | J34: =H34/'- 7 -'!$E34 -> 446.059369
A35: RIVER EAST TRANSCONA | B35: 16553139 | C35: =B35/'- 3 -'!$D35*100 -> 8.227865064 | D35: =B35/'- 7 -'!$E35 -> 1015.779271 | E35: 11149467 | F35: =E35/'- 3 -'!$D35*100 -> 5.541928332 | G35: =E35/'- 7 -'!$E35 -> 684.1842784 | H35: 3090000 | I35: =H35/'- 3 -'!$D35*100 -> 1.535908268 | J35: =H35/'- 7 -'!$E35 -> 189.6170839
A36: ROLLING RIVER | B36: 766400 | C36: =B36/'- 3 -'!$D36*100 -> 3.112234342 | D36: =B36/'- 7 -'!$E36 -> 422.6082162 | E36: 1512415 | F36: =E36/'- 3 -'!$D36*100 -> 6.141688286 | G36: =E36/'- 7 -'!$E36 -> 833.9757375 | H36: 578810 | I36: =H36/'- 3 -'!$D36*100 -> 2.350459759 | J36: =H36/'- 7 -'!$E36 -> 319.1673559
A37: SEINE RIVER | B37: 4825720 | C37: =B37/'- 3 -'!$D37*100 -> 8.588055617 | D37: =B37/'- 7 -'!$E37 -> 1105.802016 | E37: 2726560 | F37: =E37/'- 3 -'!$D37*100 -> 4.85230161 | G37: =E37/'- 7 -'!$E37 -> 624.7846013 | H37: 1710720 | I37: =H37/'- 3 -'!$D37*100 -> 3.044469738 | J37: =H37/'- 7 -'!$E37 -> 392.0073327
A38: SEVEN OAKS | B38: 16501410 | C38: =B38/'- 3 -'!$D38*100 -> 10.75106735 | D38: =B38/'- 7 -'!$E38 -> 1410.991971 | E38: 5304920 | F38: =E38/'- 3 -'!$D38*100 -> 3.456283566 | G38: =E38/'- 7 -'!$E38 -> 453.6096931 | H38: 3337030 | I38: =H38/'- 3 -'!$D38*100 -> 2.17415568 | J38: =H38/'- 7 -'!$E38 -> 285.3406186
A39: SOUTHWEST HORIZON | B39: 1742500 | C39: =B39/'- 3 -'!$D39*100 -> 7.303140036 | D39: =B39/'- 7 -'!$E39 -> 1155.120981 | E39: 827900 | F39: =E39/'- 3 -'!$D39*100 -> 3.469882144 | G39: =E39/'- 7 -'!$E39 -> 548.8233344 | H39: 431300 | I39: =H39/'- 3 -'!$D39*100 -> 1.807658133 | J39: =H39/'- 7 -'!$E39 -> 285.9131588
A40: ST. JAMES-ASSINIBOIA | B40: 12515883 | C40: =B40/'- 3 -'!$D40*100 -> 11.17636822 | D40: =B40/'- 7 -'!$E40 -> 1528.582787 | E40: 6195707 | F40: =E40/'- 3 -'!$D40*100 -> 5.53261027 | G40: =E40/'- 7 -'!$E40 -> 756.6906044 | H40: 3151213 | I40: =H40/'- 3 -'!$D40*100 -> 2.813953824 | J40: =H40/'- 7 -'!$E40 -> 384.8621747
A41: SUNRISE | B41: 5489850 | C41: =B41/'- 3 -'!$D41*100 -> 8.035560361 | D41: =B41/'- 7 -'!$E41 -> 1214.031402 | E41: 3920706 | F41: =E41/'- 3 -'!$D41*100 -> 5.738785162 | G41: =E41/'- 7 -'!$E41 -> 867.0291906 | H41: 1006419 | I41: =H41/'- 3 -'!$D41*100 -> 1.473107758 | J41: =H41/'- 7 -'!$E41 -> 222.5605927
A42: SWAN VALLEY | B42: 2193335 | C42: =B42/'- 3 -'!$D42*100 -> 10.05185378 | D42: =B42/'- 7 -'!$E42 -> 1618.697417 | E42: 803417 | F42: =E42/'- 3 -'!$D42*100 -> 3.681986658 | G42: =E42/'- 7 -'!$E42 -> 592.9276753 | H42: 436888 | I42: =H42/'- 3 -'!$D42*100 -> 2.002217761 | J42: =H42/'- 7 -'!$E42 -> 322.4265683
A43: TURTLE MOUNTAIN | B43: 303742 | C43: =B43/'- 3 -'!$D43*100 -> 2.173257433 | D43: =B43/'- 7 -'!$E43 -> 307.2756702 | E43: 1447769 | F43: =E43/'- 3 -'!$D43*100 -> 10.35870818 | G43: =E43/'- 7 -'!$E43 -> 1464.612038 | H43: 249703 | I43: =H43/'- 3 -'!$D43*100 -> 1.786611337 | J43: =H43/'- 7 -'!$E43 -> 252.6079919
A44: TURTLE RIVER | B44: 979823 | C44: =B44/'- 3 -'!$D44*100 -> 8.517570663 | D44: =B44/'- 7 -'!$E44 -> 1455.903418 | E44: 649424 | F44: =E44/'- 3 -'!$D44*100 -> 5.6454225 | G44: =E44/'- 7 -'!$E44 -> 964.9687964 | H44: 89272 | I44: =H44/'- 3 -'!$D44*100 -> 0.7760387011 | J44: =H44/'- 7 -'!$E44 -> 132.6478455
A45: WESTERN | B45: 1002047 | C45: =B45/'- 3 -'!$D45*100 -> 4.231999136 | D45: =B45/'- 7 -'!$E45 -> 492.8908018 | E45: 1236545 | F45: =E45/'- 3 -'!$D45*100 -> 5.222367186 | G45: =E45/'- 7 -'!$E45 -> 608.2365962 | H45: 568041 | I45: =H45/'- 3 -'!$D45*100 -> 2.39903819 | J45: =H45/'- 7 -'!$E45 -> 279.4102312
A46: WINNIPEG | B46: 21420451 | C46: =B46/'- 3 -'!$D46*100 -> 5.133613375 | D46: =B46/'- 7 -'!$E46 -> 703.0128817 | E46: 19642840 | F46: =E46/'- 3 -'!$D46*100 -> 4.707592112 | G46: =E46/'- 7 -'!$E46 -> 644.6722132 | H46: 5941482 | I46: =H46/'- 3 -'!$D46*100 -> 1.423932272 | J46: =H46/'- 7 -'!$E46 -> 194.9976862
A48: PROVINCE | B48: =SUM(B11:B46) -> 170253106 | C48: =B48/'- 3 -'!$D48*100 -> 6.743777121 | D48: =B48/'- 7 -'!$E48 -> 929.9984552 | E48: =SUM(E11:E46) -> 122540256 | F48: =E48/'- 3 -'!$D48*100 -> 4.853856674 | G48: =E48/'- 7 -'!$E48 -> 669.3695725 | H48: =SUM(H11:H46) -> 52720013 | I48: =H48/'- 3 -'!$D48*100 -> 2.088255691 | J48: =H48/'- 7 -'!$E48 -> 287.9802419
A50: WHITESHELL | B50: 239633 | C50: =B50/'- 3 -'!$D50*100 -> 6.655578692 | D50: =B50/'- 7 -'!$E50 -> 1361.551136 | E50: 58043 | F50: =E50/'- 3 -'!$D50*100 -> 1.612089128 | G50: =E50/'- 7 -'!$E50 -> 329.7897727 | H50: 58243 | I50: =H50/'- 3 -'!$D50*100 -> 1.617643938 | J50: =H50/'- 7 -'!$E50 -> 330.9261364
A51: MITT | B51: 820496 | C51: =B51/'- 3 -'!$D51*100 -> 2.464626431 | D51: =B51/'- 7 -'!$E51 -> 462.5118377 | E51: 0 | F51: =E51/'- 3 -'!$D51*100 -> 0 | G51: =E51/'- 7 -'!$E51 -> 0 | H51: 211937 | I51: =H51/'- 3 -'!$D51*100 -> 0.6366216677 | J51: =H51/'- 7 -'!$E51 -> 119.4684329
A53: (1) Expenses shown are extra costs associated with special needs students in regular classes, not the total cost of educating those students.

Sheet - 23 -
B2: =AEXP_BP -> ANALYSIS OF EXPENSE BY PROGRAM | F2: PAGE 6 OF 16
B3: =OPYEAR -> OPERATING FUND 2021/2022 BUDGET
B5: FUNCTION 300: ADULT LEARNING CENTRES
B6: ADMINISTRATION AND OTHER | D6: INSTRUCTION
A9: DIVISION / DISTRICT | B9: AMOUNT | C9: % | D9: AMOUNT | E9: %
A11: BEAUTIFUL PLAINS | B11: 0 | C11: =B11/'- 3 -'!$D11*100 -> 0 | D11: 0 | E11: =D11/'- 3 -'!$D11*100 -> 0
A12: BORDER LAND | B12: 139414 | C12: =B12/'- 3 -'!$D12*100 -> 0.398925767 | D12: 412505 | E12: =D12/'- 3 -'!$D12*100 -> 1.18036118
A13: BRANDON | B13: 0 | C13: =B13/'- 3 -'!$D13*100 -> 0 | D13: 0 | E13: =D13/'- 3 -'!$D13*100 -> 0
A14: DSFM | B14: 115808 | C14: =B14/'- 3 -'!$D14*100 -> 0.1154629839 | D14: 154828 | E14: =D14/'- 3 -'!$D14*100 -> 0.1543667352
A15: EVERGREEN | B15: 0 | C15: =B15/'- 3 -'!$D15*100 -> 0 | D15: 0 | E15: =D15/'- 3 -'!$D15*100 -> 0
A16: FLIN FLON | B16: 20200 | C16: =B16/'- 3 -'!$D16*100 -> 0.1297580327 | D16: 73800 | E16: =D16/'- 3 -'!$D16*100 -> 0.4740664761
A17: FORT LA BOSSE | B17: 0 | C17: =B17/'- 3 -'!$D17*100 -> 0 | D17: 0 | E17: =D17/'- 3 -'!$D17*100 -> 0
A18: FRONTIER | B18: 245698 | C18: =B18/'- 3 -'!$D18*100 -> 0.1693207608 | D18: 1979356 | E18: =D18/'- 3 -'!$D18*100 -> 1.364056947
A19: GARDEN VALLEY | B19: 0 | C19: =B19/'- 3 -'!$D19*100 -> 0 | D19: 0 | E19: =D19/'- 3 -'!$D19*100 -> 0
A20: HANOVER | B20: 0 | C20: =B20/'- 3 -'!$D20*100 -> 0 | D20: 0 | E20: =D20/'- 3 -'!$D20*100 -> 0
A21: INTERLAKE | B21: 0 | C21: =B21/'- 3 -'!$D21*100 -> 0 | D21: 0 | E21: =D21/'- 3 -'!$D21*100 -> 0
A22: KELSEY | B22: 174416 | C22: =B22/'- 3 -'!$D22*100 -> 0.8467431996 | D22: 480048 | E22: =D22/'- 3 -'!$D22*100 -> 2.330505111
A23: LAKESHORE | B23: 66023 | C23: =B23/'- 3 -'!$D23*100 -> 0.4024696935 | D23: 209627 | E23: =D23/'- 3 -'!$D23*100 -> 1.277865508
A24: LORD SELKIRK | B24: 109438 | C24: =B24/'- 3 -'!$D24*100 -> 0.1848299468 | D24: 235248 | E24: =D24/'- 3 -'!$D24*100 -> 0.3973105805
A25: LOUIS RIEL | B25: 0 | C25: =B25/'- 3 -'!$D25*100 -> 0 | D25: 464168 | E25: =D25/'- 3 -'!$D25*100 -> 0.2349739326
A26: MOUNTAIN VIEW | B26: 0 | C26: =B26/'- 3 -'!$D26*100 -> 0 | D26: 0 | E26: =D26/'- 3 -'!$D26*100 -> 0
A27: MYSTERY LAKE | B27: 0 | C27: =B27/'- 3 -'!$D27*100 -> 0 | D27: 0 | E27: =D27/'- 3 -'!$D27*100 -> 0
A28: PARK WEST | B28: 0 | C28: =B28/'- 3 -'!$D28*100 -> 0 | D28: 74986 | E28: =D28/'- 3 -'!$D28*100 -> 0.2592926393
A29: PEMBINA TRAILS | B29: 0 | C29: =B29/'- 3 -'!$D29*100 -> 0 | D29: 0 | E29: =D29/'- 3 -'!$D29*100 -> 0
A30: PINE CREEK | B30: 0 | C30: =B30/'- 3 -'!$D30*100 -> 0 | D30: 0 | E30: =D30/'- 3 -'!$D30*100 -> 0
A31: PORTAGE LA PRAIRIE | B31: 0 | C31: =B31/'- 3 -'!$D31*100 -> 0 | D31: 0 | E31: =D31/'- 3 -'!$D31*100 -> 0
A32: PRAIRIE ROSE | B32: 78943 | C32: =B32/'- 3 -'!$D32*100 -> 0.2458763396 | D32: 203739 | E32: =D32/'- 3 -'!$D32*100 -> 0.6345667069
A33: PRAIRIE SPIRIT | B33: 0 | C33: =B33/'- 3 -'!$D33*100 -> 0 | D33: 0 | E33: =D33/'- 3 -'!$D33*100 -> 0
A34: RED RIVER VALLEY | B34: 0 | C34: =B34/'- 3 -'!$D34*100 -> 0 | D34: 0 | E34: =D34/'- 3 -'!$D34*100 -> 0
A35: RIVER EAST TRANSCONA | B35: 301300 | C35: =B35/'- 3 -'!$D35*100 -> 0.1497634826 | D35: 1532342 | E35: =D35/'- 3 -'!$D35*100 -> 0.7616623776
A36: ROLLING RIVER | B36: 0 | C36: =B36/'- 3 -'!$D36*100 -> 0 | D36: 0 | E36: =D36/'- 3 -'!$D36*100 -> 0
A37: SEINE RIVER | B37: 0 | C37: =B37/'- 3 -'!$D37*100 -> 0 | D37: 0 | E37: =D37/'- 3 -'!$D37*100 -> 0
A38: SEVEN OAKS | B38: 587698 | C38: =B38/'- 3 -'!$D38*100 -> 0.3828994479 | D38: 1558797 | E38: =D38/'- 3 -'!$D38*100 -> 1.015593912
A39: SOUTHWEST HORIZON | B39: 0 | C39: =B39/'- 3 -'!$D39*100 -> 0 | D39: 0 | E39: =D39/'- 3 -'!$D39*100 -> 0
A40: ST. JAMES-ASSINIBOIA | B40: 0 | C40: =B40/'- 3 -'!$D40*100 -> 0 | D40: 0 | E40: =D40/'- 3 -'!$D40*100 -> 0
A41: SUNRISE | B41: 360657 | C41: =B41/'- 3 -'!$D41*100 -> 0.5278980469 | D41: 633463 | E41: =D41/'- 3 -'!$D41*100 -> 0.9272075144
A42: SWAN VALLEY | B42: 0 | C42: =B42/'- 3 -'!$D42*100 -> 0 | D42: 0 | E42: =D42/'- 3 -'!$D42*100 -> 0
A43: TURTLE MOUNTAIN | B43: 0 | C43: =B43/'- 3 -'!$D43*100 -> 0 | D43: 203922 | E43: =D43/'- 3 -'!$D43*100 -> 1.459050781
A44: TURTLE RIVER | B44: 0 | C44: =B44/'- 3 -'!$D44*100 -> 0 | D44: 0 | E44: =D44/'- 3 -'!$D44*100 -> 0
A45: WESTERN | B45: 185272 | C45: =B45/'- 3 -'!$D45*100 -> 0.7824692295 | D45: 211198 | E45: =D45/'- 3 -'!$D45*100 -> 0.8919639035
A46: WINNIPEG | B46: 86360 | C46: =B46/'- 3 -'!$D46*100 -> 0.02069698958 | D46: 698440 | E46: =D46/'- 3 -'!$D46*100 -> 0.167387742
A48: PROVINCE | B48: =SUM(B11:B46) -> 2471227 | C48: =B48/'- 3 -'!$D48*100 -> 0.09788605033 | D48: =SUM(D11:D46) -> 9126467 | E48: =D48/'- 3 -'!$D48*100 -> 0.3615021235
A50: WHITESHELL | B50: 0 | C50: =B50/'- 3 -'!$D50*100 -> 0 | D50: 0 | E50: =D50/'- 3 -'!$D50*100 -> 0
A51: MITT | B51: 1311906 | C51: =B51/'- 3 -'!$D51*100 -> 3.940736094 | D51: 1165328 | E51: =D51/'- 3 -'!$D51*100 -> 3.500441427

Sheet - 24 -
B2: =AEXP_BP -> ANALYSIS OF EXPENSE BY PROGRAM | I2: PAGE 7 OF 16
B3: =OPYEAR -> OPERATING FUND 2021/2022 BUDGET
B5: FUNCTION 400: COMMUNITY EDUCATION AND SERVICES
D6: ENGLISH AS AN ADDITIONAL LANGUAGE FOR ADULTS
B7: CONTINUING EDUCATION | F7: COMMUNITY SERVICES & RECREATION | H7: PRE-KINDERGARTEN EDUCATION
A9: DIVISION / DISTRICT | B9: AMOUNT | C9: % | D9: AMOUNT | E9: % | F9: AMOUNT | G9: % | H9: AMOUNT | I9: %
A11: BEAUTIFUL PLAINS | B11: 0 | C11: =B11/'- 3 -'!$D11*100 -> 0 | D11: 0 | E11: =D11/'- 3 -'!$D11*100 -> 0 | F11: 0 | G11: =F11/'- 3 -'!$D11*100 -> 0 | H11: 27540 | I11: =H11/'- 3 -'!$D11*100 -> 0.1180539513
A12: BORDER LAND | B12: 0 | C12: =B12/'- 3 -'!$D12*100 -> 0 | D12: 0 | E12: =D12/'- 3 -'!$D12*100 -> 0 | F12: 0 | G12: =F12/'- 3 -'!$D12*100 -> 0 | H12: 62338 | I12: =H12/'- 3 -'!$D12*100 -> 0.1783768808
A13: BRANDON | B13: 0 | C13: =B13/'- 3 -'!$D13*100 -> 0 | D13: 0 | E13: =D13/'- 3 -'!$D13*100 -> 0 | F13: 244500 | G13: =F13/'- 3 -'!$D13*100 -> 0.2229139087 | H13: 177900 | I13: =H13/'- 3 -'!$D13*100 -> 0.1621938011
A14: DSFM | B14: 0 | C14: =B14/'- 3 -'!$D14*100 -> 0 | D14: 0 | E14: =D14/'- 3 -'!$D14*100 -> 0 | F14: 0 | G14: =F14/'- 3 -'!$D14*100 -> 0 | H14: 1502600 | I14: =H14/'- 3 -'!$D14*100 -> 1.498123442
A15: EVERGREEN | B15: 0 | C15: =B15/'- 3 -'!$D15*100 -> 0 | D15: 0 | E15: =D15/'- 3 -'!$D15*100 -> 0 | F15: 0 | G15: =F15/'- 3 -'!$D15*100 -> 0 | H15: 59850 | I15: =H15/'- 3 -'!$D15*100 -> 0.2789166421
A16: FLIN FLON | B16: 0 | C16: =B16/'- 3 -'!$D16*100 -> 0 | D16: 0 | E16: =D16/'- 3 -'!$D16*100 -> 0 | F16: 0 | G16: =F16/'- 3 -'!$D16*100 -> 0 | H16: 16442 | I16: =H16/'- 3 -'!$D16*100 -> 0.1056178997
A17: FORT LA BOSSE | B17: 0 | C17: =B17/'- 3 -'!$D17*100 -> 0 | D17: 0 | E17: =D17/'- 3 -'!$D17*100 -> 0 | F17: 80000 | G17: =F17/'- 3 -'!$D17*100 -> 0.4089954249 | H17: 216810 | I17: =H17/'- 3 -'!$D17*100 -> 1.108428726
A18: FRONTIER | B18: 0 | C18: =B18/'- 3 -'!$D18*100 -> 0 | D18: 0 | E18: =D18/'- 3 -'!$D18*100 -> 0 | F18: 555909 | G18: =F18/'- 3 -'!$D18*100 -> 0.3831001261 | H18: 1620385 | I18: =H18/'- 3 -'!$D18*100 -> 1.116675028
A19: GARDEN VALLEY | B19: 0 | C19: =B19/'- 3 -'!$D19*100 -> 0 | D19: 0 | E19: =D19/'- 3 -'!$D19*100 -> 0 | F19: 0 | G19: =F19/'- 3 -'!$D19*100 -> 0 | H19: 85800 | I19: =H19/'- 3 -'!$D19*100 -> 0.1641862362
A20: HANOVER | B20: 0 | C20: =B20/'- 3 -'!$D20*100 -> 0 | D20: 0 | E20: =D20/'- 3 -'!$D20*100 -> 0 | F20: 0 | G20: =F20/'- 3 -'!$D20*100 -> 0 | H20: 110900 | I20: =H20/'- 3 -'!$D20*100 -> 0.1180467887
A21: INTERLAKE | B21: 0 | C21: =B21/'- 3 -'!$D21*100 -> 0 | D21: 0 | E21: =D21/'- 3 -'!$D21*100 -> 0 | F21: 0 | G21: =F21/'- 3 -'!$D21*100 -> 0 | H21: 0 | I21: =H21/'- 3 -'!$D21*100 -> 0
A22: KELSEY | B22: 0 | C22: =B22/'- 3 -'!$D22*100 -> 0 | D22: 0 | E22: =D22/'- 3 -'!$D22*100 -> 0 | F22: 70099 | G22: =F22/'- 3 -'!$D22*100 -> 0.3403119642 | H22: 0 | I22: =H22/'- 3 -'!$D22*100 -> 0
A23: LAKESHORE | B23: 117000 | C23: =B23/'- 3 -'!$D23*100 -> 0.7132204555 | D23: 0 | E23: =D23/'- 3 -'!$D23*100 -> 0 | F23: 120000 | G23: =F23/'- 3 -'!$D23*100 -> 0.7315081595 | H23: 52000 | I23: =H23/'- 3 -'!$D23*100 -> 0.3169868691
A24: LORD SELKIRK | B24: 194306 | C24: =B24/'- 3 -'!$D24*100 -> 0.3281635961 | D24: 0 | E24: =D24/'- 3 -'!$D24*100 -> 0 | F24: 232418 | G24: =F24/'- 3 -'!$D24*100 -> 0.3925309907 | H24: 0 | I24: =H24/'- 3 -'!$D24*100 -> 0
A25: LOUIS RIEL | B25: 331282 | C25: =B25/'- 3 -'!$D25*100 -> 0.1677035779 | D25: 0 | E25: =D25/'- 3 -'!$D25*100 -> 0 | F25: 519909 | G25: =F25/'- 3 -'!$D25*100 -> 0.2631914788 | H25: 940890 | I25: =H25/'- 3 -'!$D25*100 -> 0.4763030271
A26: MOUNTAIN VIEW | B26: 0 | C26: =B26/'- 3 -'!$D26*100 -> 0 | D26: 0 | E26: =D26/'- 3 -'!$D26*100 -> 0 | F26: 0 | G26: =F26/'- 3 -'!$D26*100 -> 0 | H26: 101641 | I26: =H26/'- 3 -'!$D26*100 -> 0.2372495993
A27: MYSTERY LAKE | B27: 0 | C27: =B27/'- 3 -'!$D27*100 -> 0 | D27: 0 | E27: =D27/'- 3 -'!$D27*100 -> 0 | F27: 0 | G27: =F27/'- 3 -'!$D27*100 -> 0 | H27: 63098 | I27: =H27/'- 3 -'!$D27*100 -> 0.1434395969
A28: PARK WEST | B28: 0 | C28: =B28/'- 3 -'!$D28*100 -> 0 | D28: 0 | E28: =D28/'- 3 -'!$D28*100 -> 0 | F28: 0 | G28: =F28/'- 3 -'!$D28*100 -> 0 | H28: 113251 | I28: =H28/'- 3 -'!$D28*100 -> 0.3916084429
A29: PEMBINA TRAILS | B29: 0 | C29: =B29/'- 3 -'!$D29*100 -> 0 | D29: 0 | E29: =D29/'- 3 -'!$D29*100 -> 0 | F29: 225375 | G29: =F29/'- 3 -'!$D29*100 -> 0.1243880082 | H29: 0 | I29: =H29/'- 3 -'!$D29*100 -> 0
A30: PINE CREEK | B30: 0 | C30: =B30/'- 3 -'!$D30*100 -> 0 | D30: 0 | E30: =D30/'- 3 -'!$D30*100 -> 0 | F30: 0 | G30: =F30/'- 3 -'!$D30*100 -> 0 | H30: 14790 | I30: =H30/'- 3 -'!$D30*100 -> 0.09373414196
A31: PORTAGE LA PRAIRIE | B31: 0 | C31: =B31/'- 3 -'!$D31*100 -> 0 | D31: 0 | E31: =D31/'- 3 -'!$D31*100 -> 0 | F31: 0 | G31: =F31/'- 3 -'!$D31*100 -> 0 | H31: 61455 | I31: =H31/'- 3 -'!$D31*100 -> 0.1477721606
A32: PRAIRIE ROSE | B32: 0 | C32: =B32/'- 3 -'!$D32*100 -> 0 | D32: 0 | E32: =D32/'- 3 -'!$D32*100 -> 0 | F32: 0 | G32: =F32/'- 3 -'!$D32*100 -> 0 | H32: 36015 | I32: =H32/'- 3 -'!$D32*100 -> 0.1121725342
A33: PRAIRIE SPIRIT | B33: 0 | C33: =B33/'- 3 -'!$D33*100 -> 0 | D33: 0 | E33: =D33/'- 3 -'!$D33*100 -> 0 | F33: 0 | G33: =F33/'- 3 -'!$D33*100 -> 0 | H33: 30896 | I33: =H33/'- 3 -'!$D33*100 -> 0.1059996866
A34: RED RIVER VALLEY | B34: 0 | C34: =B34/'- 3 -'!$D34*100 -> 0 | D34: 0 | E34: =D34/'- 3 -'!$D34*100 -> 0 | F34: 0 | G34: =F34/'- 3 -'!$D34*100 -> 0 | H34: 62343 | I34: =H34/'- 3 -'!$D34*100 -> 0.1909585449
A35: RIVER EAST TRANSCONA | B35: 369100 | C35: =B35/'- 3 -'!$D35*100 -> 0.1834639941 | D35: 0 | E35: =D35/'- 3 -'!$D35*100 -> 0 | F35: 0 | G35: =F35/'- 3 -'!$D35*100 -> 0 | H35: 220188 | I35: =H35/'- 3 -'!$D35*100 -> 0.1094461391
A36: ROLLING RIVER | B36: 0 | C36: =B36/'- 3 -'!$D36*100 -> 0 | D36: 0 | E36: =D36/'- 3 -'!$D36*100 -> 0 | F36: 0 | G36: =F36/'- 3 -'!$D36*100 -> 0 | H36: 31245 | I36: =H36/'- 3 -'!$D36*100 -> 0.1268812135
A37: SEINE RIVER | B37: 0 | C37: =B37/'- 3 -'!$D37*100 -> 0 | D37: 0 | E37: =D37/'- 3 -'!$D37*100 -> 0 | F37: 5000 | G37: =F37/'- 3 -'!$D37*100 -> 0.008898211684 | H37: 713089 | I37: =H37/'- 3 -'!$D37*100 -> 1.269043374
A38: SEVEN OAKS | B38: 0 | C38: =B38/'- 3 -'!$D38*100 -> 0 | D38: 656760 | E38: =D38/'- 3 -'!$D38*100 -> 0.4278950097 | F38: 1580390 | G38: =F38/'- 3 -'!$D38*100 -> 1.029662273 | H38: 521270 | I38: =H38/'- 3 -'!$D38*100 -> 0.3396200007
A39: SOUTHWEST HORIZON | B39: 0 | C39: =B39/'- 3 -'!$D39*100 -> 0 | D39: 0 | E39: =D39/'- 3 -'!$D39*100 -> 0 | F39: 0 | G39: =F39/'- 3 -'!$D39*100 -> 0 | H39: 168200 | I39: =H39/'- 3 -'!$D39*100 -> 0.7049573337
A40: ST. JAMES-ASSINIBOIA | B40: 521619 | C40: =B40/'- 3 -'!$D40*100 -> 0.4657926265 | D40: 0 | E40: =D40/'- 3 -'!$D40*100 -> 0 | F40: 414842 | G40: =F40/'- 3 -'!$D40*100 -> 0.3704434554 | H40: 107969 | I40: =H40/'- 3 -'!$D40*100 -> 0.09641359707
A41: SUNRISE | B41: 0 | C41: =B41/'- 3 -'!$D41*100 -> 0 | D41: 0 | E41: =D41/'- 3 -'!$D41*100 -> 0 | F41: 0 | G41: =F41/'- 3 -'!$D41*100 -> 0 | H41: 61954 | I41: =H41/'- 3 -'!$D41*100 -> 0.09068282496
A42: SWAN VALLEY | B42: 0 | C42: =B42/'- 3 -'!$D42*100 -> 0 | D42: 0 | E42: =D42/'- 3 -'!$D42*100 -> 0 | F42: 0 | G42: =F42/'- 3 -'!$D42*100 -> 0 | H42: 59448 | I42: =H42/'- 3 -'!$D42*100 -> 0.2724447489
A43: TURTLE MOUNTAIN | B43: 0 | C43: =B43/'- 3 -'!$D43*100 -> 0 | D43: 0 | E43: =D43/'- 3 -'!$D43*100 -> 0 | F43: 0 | G43: =F43/'- 3 -'!$D43*100 -> 0 | H43: 15150 | I43: =H43/'- 3 -'!$D43*100 -> 0.1083974232
A44: TURTLE RIVER | B44: 0 | C44: =B44/'- 3 -'!$D44*100 -> 0 | D44: 0 | E44: =D44/'- 3 -'!$D44*100 -> 0 | F44: 0 | G44: =F44/'- 3 -'!$D44*100 -> 0 | H44: 27522 | I44: =H44/'- 3 -'!$D44*100 -> 0.2392478843
A45: WESTERN | B45: 0 | C45: =B45/'- 3 -'!$D45*100 -> 0 | D45: 0 | E45: =D45/'- 3 -'!$D45*100 -> 0 | F45: 0 | G45: =F45/'- 3 -'!$D45*100 -> 0 | H45: 45734 | I45: =H45/'- 3 -'!$D45*100 -> 0.1931508687
A46: WINNIPEG | B46: 0 | C46: =B46/'- 3 -'!$D46*100 -> 0 | D46: 3252623 | E46: =D46/'- 3 -'!$D46*100 -> 0.7795218195 | F46: 180600 | G46: =F46/'- 3 -'!$D46*100 -> 0.04328249557 | H46: 4780381 | I46: =H46/'- 3 -'!$D46*100 -> 1.145663452
A48: PROVINCE | B48: =SUM(B11:B46) -> 1533307 | C48: =B48/'- 3 -'!$D48*100 -> 0.06073475491 | D48: =SUM(D11:D46) -> 3909383 | E48: =D48/'- 3 -'!$D48*100 -> 0.1548518453 | F48: =SUM(F11:F46) -> 4229042 | G48: =F48/'- 3 -'!$D48*100 -> 0.1675136352 | H48: =SUM(H11:H46) -> 12109094 | I48: =H48/'- 3 -'!$D48*100 -> 0.4796448828
A50: WHITESHELL | B50: 12000 | C50: =B50/'- 3 -'!$D50*100 -> 0.3332885884 | D50: 0 | E50: =D50/'- 3 -'!$D50*100 -> 0 | F50: 57648 | G50: =F50/'- 3 -'!$D50*100 -> 1.601118379 | H50: 114894 | I50: =H50/'- 3 -'!$D50*100 -> 3.19107159
A51: MITT | B51: 0 | C51: =B51/'- 3 -'!$D51*100 -> 0 | D51: 1922037 | E51: =D51/'- 3 -'!$D51*100 -> 5.77346287 | F51: 9217207 | G51: =F51/'- 3 -'!$D51*100 -> 27.68687719 | H51: 0 | I51: =H51/'- 3 -'!$D51*100 -> 0

Sheet - 25 -
B2: =AEXP_BP -> ANALYSIS OF EXPENSE BY PROGRAM | J2: PAGE 8 OF 16
B3: =OPYEAR -> OPERATING FUND 2021/2022 BUDGET
B5: FUNCTION 500: DIVISIONAL ADMINISTRATION
E6: INSTRUCTIONAL MGMT. AND ADMINISTRATION | H6: BUSINESS AND ADMIN. SERVICES
B7: BOARD OF TRUSTEES
D8: PER PUPIL | G8: PER PUPIL | J8: PER PUPIL
A9: DIVISION / DISTRICT | B9: AMOUNT | C9: % | E9: AMOUNT | F9: % | H9: AMOUNT | I9: %
A11: BEAUTIFUL PLAINS | B11: 109096 | C11: =B11/'- 3 -'!$D11*100 -> 0.4676548248 | D11: =B11/'- 7 -'!$E11 -> 52.65250965 | E11: 148771 | F11: =E11/'- 3 -'!$D11*100 -> 0.6377271022 | G11: =E11/'- 7 -'!$E11 -> 71.80067568 | H11: 365829 | I11: =H11/'- 3 -'!$D11*100 -> 1.568175707 | J11: =H11/'- 7 -'!$E11 -> 176.5583977
A12: BORDER LAND | B12: 169984 | C12: =B12/'- 3 -'!$D12*100 -> 0.4864002007 | D12: =B12/'- 7 -'!$E12 -> 78.70139731 | E12: 186848 | F12: =E12/'- 3 -'!$D12*100 -> 0.5346556423 | G12: =E12/'- 7 -'!$E12 -> 86.50931079 | H12: 719756 | I12: =H12/'- 3 -'!$D12*100 -> 2.059543621 | J12: =H12/'- 7 -'!$E12 -> 333.2419694
A13: BRANDON | B13: 362400 | C13: =B13/'- 3 -'!$D13*100 -> 0.3304049101 | D13: =B13/'- 7 -'!$E13 -> 41.42897971 | E13: 602400 | F13: =E13/'- 3 -'!$D13*100 -> 0.5492161089 | G13: =E13/'- 7 -'!$E13 -> 68.86539011 | H13: 1740600 | I13: =H13/'- 3 -'!$D13*100 -> 1.586928219 | J13: =H13/'- 7 -'!$E13 -> 198.9825664
A14: DSFM | B14: 843987 | C14: =B14/'- 3 -'!$D14*100 -> 0.8414725873 | D14: =B14/'- 7 -'!$E14 -> 139.2028699 | E14: 1471833 | F14: =E14/'- 3 -'!$D14*100 -> 1.467448104 | G14: =E14/'- 7 -'!$E14 -> 242.7565562 | H14: 1168863 | I14: =H14/'- 3 -'!$D14*100 -> 1.165380714 | J14: =H14/'- 7 -'!$E14 -> 192.7862444
A15: EVERGREEN | B15: 160462 | C15: =B15/'- 3 -'!$D15*100 -> 0.7477948575 | D15: =B15/'- 7 -'!$E15 -> 119.3026022 | E15: 227980 | F15: =E15/'- 3 -'!$D15*100 -> 1.062446384 | G15: =E15/'- 7 -'!$E15 -> 169.5018587 | H15: 360780 | I15: =H15/'- 3 -'!$D15*100 -> 1.681329092 | J15: =H15/'- 7 -'!$E15 -> 268.2379182
A16: FLIN FLON | B16: 130354 | C16: =B16/'- 3 -'!$D16*100 -> 0.8373504258 | D16: =B16/'- 7 -'!$E16 -> 137.5042194 | E16: 100307 | F16: =E16/'- 3 -'!$D16*100 -> 0.6443385639 | G16: =E16/'- 7 -'!$E16 -> 105.8090717 | H16: 363796 | I16: =H16/'- 3 -'!$D16*100 -> 2.336903628 | J16: =H16/'- 7 -'!$E16 -> 383.7510549
A17: FORT LA BOSSE | B17: 121055 | C17: =B17/'- 3 -'!$D17*100 -> 0.6188867646 | D17: =B17/'- 7 -'!$E17 -> 85.64202335 | E17: 181120 | F17: =E17/'- 3 -'!$D17*100 -> 0.925965642 | G17: =E17/'- 7 -'!$E17 -> 128.135833 | H17: 325286 | I17: =H17/'- 3 -'!$D17*100 -> 1.663006072 | J17: =H17/'- 7 -'!$E17 -> 230.1280509
A18: FRONTIER | B18: 1222030 | C18: =B18/'- 3 -'!$D18*100 -> 0.8421519478 | D18: =B18/'- 7 -'!$E18 -> 207.3697607 | E18: 2502614 | F18: =E18/'- 3 -'!$D18*100 -> 1.724655904 | G18: =E18/'- 7 -'!$E18 -> 424.675717 | H18: 3117722 | I18: =H18/'- 3 -'!$D18*100 -> 2.148552536 | J18: =H18/'- 7 -'!$E18 -> 529.0551502
A19: GARDEN VALLEY | B19: 222600 | C19: =B19/'- 3 -'!$D19*100 -> 0.4259656897 | D19: =B19/'- 7 -'!$E19 -> 52.22900047 | E19: 398000 | F19: =E19/'- 3 -'!$D19*100 -> 0.7616098135 | G19: =E19/'- 7 -'!$E19 -> 93.38338808 | H19: 780100 | I19: =H19/'- 3 -'!$D19*100 -> 1.492793506 | J19: =H19/'- 7 -'!$E19 -> 183.0361333
A20: HANOVER | B20: 297800 | C20: =B20/'- 3 -'!$D20*100 -> 0.3169912865 | D20: =B20/'- 7 -'!$E20 -> 36.52643199 | E20: 607300 | F20: =E20/'- 3 -'!$D20*100 -> 0.6464365624 | G20: =E20/'- 7 -'!$E20 -> 74.48791856 | H20: 1215300 | I20: =H20/'- 3 -'!$D20*100 -> 1.293618235 | J20: =H20/'- 7 -'!$E20 -> 149.0616951
A21: INTERLAKE | B21: 183500 | C21: =B21/'- 3 -'!$D21*100 -> 0.4754538836 | D21: =B21/'- 7 -'!$E21 -> 64.25070028 | E21: 401000 | F21: =E21/'- 3 -'!$D21*100 -> 1.039002765 | G21: =E21/'- 7 -'!$E21 -> 140.4061625 | H21: 644000 | I21: =H21/'- 3 -'!$D21*100 -> 1.668622894 | J21: =H21/'- 7 -'!$E21 -> 225.4901961
A22: KELSEY | B22: 102839 | C22: =B22/'- 3 -'!$D22*100 -> 0.4992559393 | D22: =B22/'- 7 -'!$E22 -> 70.97239476 | E22: 146526 | F22: =E22/'- 3 -'!$D22*100 -> 0.711344682 | G22: =E22/'- 7 -'!$E22 -> 101.1221532 | H22: 574899 | I22: =H22/'- 3 -'!$D22*100 -> 2.790981439 | J22: =H22/'- 7 -'!$E22 -> 396.7556936
A23: LAKESHORE | B23: 111000 | C23: =B23/'- 3 -'!$D23*100 -> 0.6766450476 | D23: =B23/'- 7 -'!$E23 -> 119.0987124 | E23: 138000 | F23: =E23/'- 3 -'!$D23*100 -> 0.8412343834 | G23: =E23/'- 7 -'!$E23 -> 148.0686695 | H23: 309950 | I23: =H23/'- 3 -'!$D23*100 -> 1.889424617 | J23: =H23/'- 7 -'!$E23 -> 332.5643777
A24: LORD SELKIRK | B24: 346068 | C24: =B24/'- 3 -'!$D24*100 -> 0.5844745885 | D24: =B24/'- 7 -'!$E24 -> 93.02903226 | E24: 334742 | F24: =E24/'- 3 -'!$D24*100 -> 0.5653460958 | G24: =E24/'- 7 -'!$E24 -> 89.9844086 | H24: 1008605 | I24: =H24/'- 3 -'!$D24*100 -> 1.703433985 | J24: =H24/'- 7 -'!$E24 -> 271.1303763
A25: LOUIS RIEL | B25: 495445 | C25: =B25/'- 3 -'!$D25*100 -> 0.2508071648 | D25: =B25/'- 7 -'!$E25 -> 32.06141202 | E25: 427692 | F25: =E25/'- 3 -'!$D25*100 -> 0.2165088313 | G25: =E25/'- 7 -'!$E25 -> 27.67695593 | H25: 3942863 | I25: =H25/'- 3 -'!$D25*100 -> 1.995979958 | J25: =H25/'- 7 -'!$E25 -> 255.1519446
A26: MOUNTAIN VIEW | B26: 227492 | C26: =B26/'- 3 -'!$D26*100 -> 0.5310099845 | D26: =B26/'- 7 -'!$E26 -> 75.03034301 | E26: 393803 | F26: =E26/'- 3 -'!$D26*100 -> 0.9192117742 | G26: =E26/'- 7 -'!$E26 -> 129.8822559 | H26: 732796 | I26: =H26/'- 3 -'!$D26*100 -> 1.71048649 | J26: =H26/'- 7 -'!$E26 -> 241.6873351
A27: MYSTERY LAKE | B27: 219700 | C27: =B27/'- 3 -'!$D27*100 -> 0.4994402268 | D27: =B27/'- 7 -'!$E27 -> 78.19061855 | E27: 470962 | F27: =E27/'- 3 -'!$D27*100 -> 1.070629805 | G27: =E27/'- 7 -'!$E27 -> 167.6140651 | H27: 832876 | I27: =H27/'- 3 -'!$D27*100 -> 1.893362669 | J27: =H27/'- 7 -'!$E27 -> 296.4182504
A28: PARK WEST | B28: 151967 | C28: =B28/'- 3 -'!$D28*100 -> 0.5254837506 | D28: =B28/'- 7 -'!$E28 -> 74.76851169 | E28: 323841 | F28: =E28/'- 3 -'!$D28*100 -> 1.119803532 | G28: =E28/'- 7 -'!$E28 -> 159.3313653 | H28: 483915 | I28: =H28/'- 3 -'!$D28*100 -> 1.673320321 | J28: =H28/'- 7 -'!$E28 -> 238.0885609
A29: PEMBINA TRAILS | B29: 475558 | C29: =B29/'- 3 -'!$D29*100 -> 0.262467942 | D29: =B29/'- 7 -'!$E29 -> 32.39716602 | E29: 1786140 | F29: =E29/'- 3 -'!$D29*100 -> 0.9857987667 | G29: =E29/'- 7 -'!$E29 -> 121.679951 | H29: 1762519 | I29: =H29/'- 3 -'!$D29*100 -> 0.9727619651 | J29: =H29/'- 7 -'!$E29 -> 120.0707814
A30: PINE CREEK | B30: 117382 | C30: =B30/'- 3 -'!$D30*100 -> 0.7439284011 | D30: =B30/'- 7 -'!$E30 -> 110.4252117 | E30: 128233 | F30: =E30/'- 3 -'!$D30*100 -> 0.8126984602 | G30: =E30/'- 7 -'!$E30 -> 120.6331138 | H30: 284030 | I30: =H30/'- 3 -'!$D30*100 -> 1.800088461 | J30: =H30/'- 7 -'!$E30 -> 267.1966134
A31: PORTAGE LA PRAIRIE | B31: 157500 | C31: =B31/'- 3 -'!$D31*100 -> 0.37871801 | D31: =B31/'- 7 -'!$E31 -> 46.88895505 | E31: 264200 | F31: =E31/'- 3 -'!$D31*100 -> 0.6352844332 | G31: =E31/'- 7 -'!$E31 -> 78.65436142 | H31: 567355 | I31: =H31/'- 3 -'!$D31*100 -> 1.364238454 | J31: =H31/'- 7 -'!$E31 -> 168.9059244
A32: PRAIRIE ROSE | B32: 193604 | C32: =B32/'- 3 -'!$D32*100 -> 0.6030001754 | D32: =B32/'- 7 -'!$E32 -> 81.75844595 | E32: 178403 | F32: =E32/'- 3 -'!$D32*100 -> 0.5556550499 | G32: =E32/'- 7 -'!$E32 -> 75.33910473 | H32: 519673 | I32: =H32/'- 3 -'!$D32*100 -> 1.618576631 | J32: =H32/'- 7 -'!$E32 -> 219.4565034
A33: PRAIRIE SPIRIT | B33: 176750 | C33: =B33/'- 3 -'!$D33*100 -> 0.6064035668 | D33: =B33/'- 7 -'!$E33 -> 84.22682869 | E33: 217990 | F33: =E33/'- 3 -'!$D33*100 -> 0.7478920143 | G33: =E33/'- 7 -'!$E33 -> 103.8789612 | H33: 417755 | I33: =H33/'- 3 -'!$D33*100 -> 1.433256702 | J33: =H33/'- 7 -'!$E33 -> 199.0731475
A34: RED RIVER VALLEY | B34: 163384 | C34: =B34/'- 3 -'!$D34*100 -> 0.5004502656 | D34: =B34/'- 7 -'!$E34 -> 72.49589564 | E34: 255702 | F34: =E34/'- 3 -'!$D34*100 -> 0.7832231663 | G34: =E34/'- 7 -'!$E34 -> 113.4587567 | H34: 611218 | I34: =H34/'- 3 -'!$D34*100 -> 1.872179714 | J34: =H34/'- 7 -'!$E34 -> 271.2064605
A35: RIVER EAST TRANSCONA | B35: 487878 | C35: =B35/'- 3 -'!$D35*100 -> 0.2425035126 | D35: =B35/'- 7 -'!$E35 -> 29.93851252 | E35: 1077461 | F35: =E35/'- 3 -'!$D35*100 -> 0.5355602777 | G35: =E35/'- 7 -'!$E35 -> 66.11812715 | H35: 2382634 | I35: =H35/'- 3 -'!$D35*100 -> 1.184306557 | J35: =H35/'- 7 -'!$E35 -> 146.2097447
A36: ROLLING RIVER | B36: 157200 | C36: =B36/'- 3 -'!$D36*100 -> 0.6383653947 | D36: =B36/'- 7 -'!$E36 -> 86.68320926 | E36: 169080 | F36: =E36/'- 3 -'!$D36*100 -> 0.6866082757 | G36: =E36/'- 7 -'!$E36 -> 93.23407775 | H36: 524560 | I36: =H36/'- 3 -'!$D36*100 -> 2.130158724 | J36: =H36/'- 7 -'!$E36 -> 289.252826
A37: SEINE RIVER | B37: 224040 | C37: =B37/'- 3 -'!$D37*100 -> 0.3987110691 | D37: =B37/'- 7 -'!$E37 -> 51.33822181 | E37: 470200 | F37: =E37/'- 3 -'!$D37*100 -> 0.8367878267 | G37: =E37/'- 7 -'!$E37 -> 107.7451879 | H37: 873501 | I37: =H37/'- 3 -'!$D37*100 -> 1.554519361 | J37: =H37/'- 7 -'!$E37 -> 200.1606324
A38: SEVEN OAKS | B38: 425230 | C38: =B38/'- 3 -'!$D38*100 -> 0.2770476201 | D38: =B38/'- 7 -'!$E38 -> 36.3602938 | E38: 1162550 | F38: =E38/'- 3 -'!$D38*100 -> 0.7574294164 | G38: =E38/'- 7 -'!$E38 -> 99.40657894 | H38: 1952970 | I38: =H38/'- 3 -'!$D38*100 -> 1.272407146 | J38: =H38/'- 7 -'!$E38 -> 166.9933048
A39: SOUTHWEST HORIZON | B39: 152800 | C39: =B39/'- 3 -'!$D39*100 -> 0.6404130832 | D39: =B39/'- 7 -'!$E39 -> 101.2926748 | E39: 247900 | F39: =E39/'- 3 -'!$D39*100 -> 1.038994786 | G39: =E39/'- 7 -'!$E39 -> 164.3354325 | H39: 374900 | I39: =H39/'- 3 -'!$D39*100 -> 1.571275294 | J39: =H39/'- 7 -'!$E39 -> 248.5250249
A40: ST. JAMES-ASSINIBOIA | B40: 373889 | C40: =B40/'- 3 -'!$D40*100 -> 0.3338734581 | D40: =B40/'- 7 -'!$E40 -> 45.66360117 | E40: 999650 | F40: =E40/'- 3 -'!$D40*100 -> 0.8926622671 | G40: =E40/'- 7 -'!$E40 -> 122.0886919 | H40: 1454767 | I40: =H40/'- 3 -'!$D40*100 -> 1.299070283 | J40: =H40/'- 7 -'!$E40 -> 177.6727855
A41: SUNRISE | B41: 292695 | C41: =B41/'- 3 -'!$D41*100 -> 0.4284212392 | D41: =B41/'- 7 -'!$E41 -> 64.72689076 | E41: 389344 | F41: =E41/'- 3 -'!$D41*100 -> 0.5698875585 | G41: =E41/'- 7 -'!$E41 -> 86.09995577 | H41: 1284034 | I41: =H41/'- 3 -'!$D41*100 -> 1.879456217 | J41: =H41/'- 7 -'!$E41 -> 283.9526758
A42: SWAN VALLEY | B42: 166872 | C42: =B42/'- 3 -'!$D42*100 -> 0.7647591196 | D42: =B42/'- 7 -'!$E42 -> 123.1527675 | E42: 195007 | F42: =E42/'- 3 -'!$D42*100 -> 0.8936992523 | G42: =E42/'- 7 -'!$E42 -> 143.9166052 | H42: 348715 | I42: =H42/'- 3 -'!$D42*100 -> 1.598128963 | J42: =H42/'- 7 -'!$E42 -> 257.3542435
A43: TURTLE MOUNTAIN | B43: 71104 | C43: =B43/'- 3 -'!$D43*100 -> 0.5087452394 | D43: =B43/'- 7 -'!$E43 -> 71.9312089 | E43: 145622 | F43: =E43/'- 3 -'!$D43*100 -> 1.041917462 | G43: =E43/'- 7 -'!$E43 -> 147.3161356 | H43: 236296 | I43: =H43/'- 3 -'!$D43*100 -> 1.690684984 | J43: =H43/'- 7 -'!$E43 -> 239.0450177
A44: TURTLE RIVER | B44: 92650 | C44: =B44/'- 3 -'!$D44*100 -> 0.8054035493 | D44: =B44/'- 7 -'!$E44 -> 137.667162 | E44: 52694 | F44: =E44/'- 3 -'!$D44*100 -> 0.4580672923 | G44: =E44/'- 7 -'!$E44 -> 78.29717682 | H44: 244298 | I44: =H44/'- 3 -'!$D44*100 -> 2.123674866 | J44: =H44/'- 7 -'!$E44 -> 362.9985141
A45: WESTERN | B45: 125926 | C45: =B45/'- 3 -'!$D45*100 -> 0.5318300671 | D45: =B45/'- 7 -'!$E45 -> 61.94097393 | E45: 172213 | F45: =E45/'- 3 -'!$D45*100 -> 0.7273164505 | G45: =E45/'- 7 -'!$E45 -> 84.70880472 | H45: 423721 | I45: =H45/'- 3 -'!$D45*100 -> 1.789523751 | J45: =H45/'- 7 -'!$E45 -> 208.4215445
A46: WINNIPEG | B46: 962638 | C46: =B46/'- 3 -'!$D46*100 -> 0.2307052878 | D46: =B46/'- 7 -'!$E46 -> 31.59349513 | E46: 2858760 | F46: =E46/'- 3 -'!$D46*100 -> 0.6851288319 | G46: =E46/'- 7 -'!$E46 -> 93.82365973 | H46: 6521166 | I46: =H46/'- 3 -'!$D46*100 -> 1.562859017 | J46: =H46/'- 7 -'!$E46 -> 214.0227441
A48: PROVINCE | B48: =SUM(B11:B46) -> 10294879 | C48: =B48/'- 3 -'!$D48*100 -> 0.4077832769 | D48: =B48/'- 7 -'!$E48 -> 56.23522408 | E48: =SUM(E11:E46) -> 19834888 | F48: =E48/'- 3 -'!$D48*100 -> 0.7856659243 | G48: =E48/'- 7 -'!$E48 -> 108.3470113 | H48: =SUM(H11:H46) -> 39472048 | I48: =H48/'- 3 -'!$D48*100 -> 1.563499783 | J48: =H48/'- 7 -'!$E48 -> 215.613944
A50: WHITESHELL | B50: 51700 | C50: =B50/'- 3 -'!$D50*100 -> 1.435918335 | D50: =B50/'- 7 -'!$E50 -> 293.75 | E50: 23718 | F50: =E50/'- 3 -'!$D50*100 -> 0.658744895 | G50: =E50/'- 7 -'!$E50 -> 134.7613636 | H50: 52333 | I50: =H50/'- 3 -'!$D50*100 -> 1.453499308 | J50: =H50/'- 7 -'!$E50 -> 297.3465909
A51: MITT | B51: 1093975 | C51: =B51/'- 3 -'!$D51*100 -> 3.286109499 | D51: =B51/'- 7 -'!$E51 -> 616.6713641 | E51: 173555 | F51: =E51/'- 3 -'!$D51*100 -> 0.521328855 | G51: =E51/'- 7 -'!$E51 -> 97.83258174 | H51: 3701679 | I51: =H51/'- 3 -'!$D51*100 -> 11.11919607 | J51: =H51/'- 7 -'!$E51 -> 2086.628523

Sheet - 26 -
B2: =AEXP_BP -> ANALYSIS OF EXPENSE BY PROGRAM | E2: PAGE 9 OF 16
B3: =OPYEAR -> OPERATING FUND 2021/2022 BUDGET
B5: FUNCTION 500: (CONT'D)
B6: MANAGEMENT INFORMATION SERVICES
D8: PER PUPIL
A9: DIVISION / DISTRICT | B9: AMOUNT | C9: %
A11: BEAUTIFUL PLAINS | B11: 15100 | C11: =B11/'- 3 -'!$D11*100 -> 0.06472820135 | D11: =B11/'- 7 -'!$E11 -> 7.287644788
A12: BORDER LAND | B12: 61654 | C12: =B12/'- 3 -'!$D12*100 -> 0.1764196511 | D12: =B12/'- 7 -'!$E12 -> 28.54536868
A13: BRANDON | B13: 342200 | C13: =B13/'- 3 -'!$D13*100 -> 0.3119883009 | D13: =B13/'- 7 -'!$E13 -> 39.1197485
A14: DSFM | B14: 136262 | C14: =B14/'- 3 -'!$D14*100 -> 0.1358560472 | D14: =B14/'- 7 -'!$E14 -> 22.47435263
A15: EVERGREEN | B15: 40000 | C15: =B15/'- 3 -'!$D15*100 -> 0.1864104542 | D15: =B15/'- 7 -'!$E15 -> 29.73977695
A16: FLIN FLON | B16: 37293 | C16: =B16/'- 3 -'!$D16*100 -> 0.2395577384 | D16: =B16/'- 7 -'!$E16 -> 39.33860759
A17: FORT LA BOSSE | B17: 87440 | C17: =B17/'- 3 -'!$D17*100 -> 0.4470319994 | D17: =B17/'- 7 -'!$E17 -> 61.86062964
A18: FRONTIER | B18: 768053 | C18: =B18/'- 3 -'!$D18*100 -> 0.5292974231 | D18: =B18/'- 7 -'!$E18 -> 130.3331071
A19: GARDEN VALLEY | B19: 166400 | C19: =B19/'- 3 -'!$D19*100 -> 0.3184217914 | D19: =B19/'- 7 -'!$E19 -> 39.04270296
A20: HANOVER | B20: 91800 | C20: =B20/'- 3 -'!$D20*100 -> 0.09771591705 | D20: =B20/'- 7 -'!$E20 -> 11.25965902
A21: INTERLAKE | B21: 48000 | C21: =B21/'- 3 -'!$D21*100 -> 0.1243694082 | D21: =B21/'- 7 -'!$E21 -> 16.80672269
A22: KELSEY | B22: 22500 | C22: =B22/'- 3 -'!$D22*100 -> 0.1092315039 | D22: =B22/'- 7 -'!$E22 -> 15.52795031
A23: LAKESHORE | B23: 20000 | C23: =B23/'- 3 -'!$D23*100 -> 0.1219180266 | D23: =B23/'- 7 -'!$E23 -> 21.45922747
A24: LORD SELKIRK | B24: 162826 | C24: =B24/'- 3 -'!$D24*100 -> 0.2749969929 | D24: =B24/'- 7 -'!$E24 -> 43.77043011
A25: LOUIS RIEL | B25: 1086489 | C25: =B25/'- 3 -'!$D25*100 -> 0.5500090336 | D25: =B25/'- 7 -'!$E25 -> 70.30926034
A26: MOUNTAIN VIEW | B26: 34000 | C26: =B26/'- 3 -'!$D26*100 -> 0.07936252472 | D26: =B26/'- 7 -'!$E26 -> 11.21372032
A27: MYSTERY LAKE | B27: 201719 | C27: =B27/'- 3 -'!$D27*100 -> 0.4585643292 | D27: =B27/'- 7 -'!$E27 -> 71.79123069
A28: PARK WEST | B28: 85050 | C28: =B28/'- 3 -'!$D28*100 -> 0.2940927503 | D28: =B28/'- 7 -'!$E28 -> 41.84501845
A29: PEMBINA TRAILS | B29: 990534 | C29: =B29/'- 3 -'!$D29*100 -> 0.5466912983 | D29: =B29/'- 7 -'!$E29 -> 67.47966483
A30: PINE CREEK | B30: 23968 | C30: =B30/'- 3 -'!$D30*100 -> 0.1519012789 | D30: =B30/'- 7 -'!$E30 -> 22.54750706
A31: PORTAGE LA PRAIRIE | B31: 85400 | C31: =B31/'- 3 -'!$D31*100 -> 0.205349321 | D31: =B31/'- 7 -'!$E31 -> 25.4242334
A32: PRAIRIE ROSE | B32: 61000 | C32: =B32/'- 3 -'!$D32*100 -> 0.1899909645 | D32: =B32/'- 7 -'!$E32 -> 25.76013514
A33: PRAIRIE SPIRIT | B33: 40750 | C33: =B33/'- 3 -'!$D33*100 -> 0.1398073287 | D33: =B33/'- 7 -'!$E33 -> 19.41863236
A34: RED RIVER VALLEY | B34: 39220 | C34: =B34/'- 3 -'!$D34*100 -> 0.1201320779 | D34: =B34/'- 7 -'!$E34 -> 17.40249368
A35: RIVER EAST TRANSCONA | B35: 815947 | C35: =B35/'- 3 -'!$D35*100 -> 0.4055727325 | D35: =B35/'- 7 -'!$E35 -> 50.07038537
A36: ROLLING RIVER | B36: 31500 | C36: =B36/'- 3 -'!$D36*100 -> 0.1279167299 | D36: =B36/'- 7 -'!$E36 -> 17.36972705
A37: SEINE RIVER | B37: 90500 | C37: =B37/'- 3 -'!$D37*100 -> 0.1610576315 | D37: =B37/'- 7 -'!$E37 -> 20.73785518
A38: SEVEN OAKS | B38: 604450 | C38: =B38/'- 3 -'!$D38*100 -> 0.3938137807 | D38: =B38/'- 7 -'!$E38 -> 51.68492249
A39: SOUTHWEST HORIZON | B39: 55900 | C39: =B39/'- 3 -'!$D39*100 -> 0.2342872471 | D39: =B39/'- 7 -'!$E39 -> 37.05667882
A40: ST. JAMES-ASSINIBOIA | B40: 408826 | C40: =B40/'- 3 -'!$D40*100 -> 0.365071319 | D40: =B40/'- 7 -'!$E40 -> 49.93050721
A41: SUNRISE | B41: 126146 | C41: =B41/'- 3 -'!$D41*100 -> 0.1846414378 | D41: =B41/'- 7 -'!$E41 -> 27.89606369
A42: SWAN VALLEY | B42: 17000 | C42: =B42/'- 3 -'!$D42*100 -> 0.07790944576 | D42: =B42/'- 7 -'!$E42 -> 12.54612546
A43: TURTLE MOUNTAIN | B43: 19082 | C43: =B43/'- 3 -'!$D43*100 -> 0.1365306686 | D43: =B43/'- 7 -'!$E43 -> 19.30399595
A44: TURTLE RIVER | B44: 10000 | C44: =B44/'- 3 -'!$D44*100 -> 0.08692968692 | D44: =B44/'- 7 -'!$E44 -> 14.85884101
A45: WESTERN | B45: 56475 | C45: =B45/'- 3 -'!$D45*100 -> 0.2385139132 | D45: =B45/'- 7 -'!$E45 -> 27.77914412
A46: WINNIPEG | B46: 1014604 | C46: =B46/'- 3 -'!$D46*100 -> 0.2431594304 | D46: =B46/'- 7 -'!$E46 -> 33.29900392
A48: PROVINCE | B48: =SUM(B11:B46) -> 7898088 | C48: =B48/'- 3 -'!$D48*100 -> 0.3128456591 | D48: =B48/'- 7 -'!$E48 -> 43.14288186
A50: WHITESHELL | B50: 9500 | C50: =B50/'- 3 -'!$D50*100 -> 0.2638534658 | D50: =B50/'- 7 -'!$E50 -> 53.97727273
A51: MITT | B51: 1508178 | C51: =B51/'- 3 -'!$D51*100 -> 4.530302842 | D51: =B51/'- 7 -'!$E51 -> 850.156708

Sheet - 27 -
B2: =AEXP_BP -> ANALYSIS OF EXPENSE BY PROGRAM | J2: PAGE 10 OF 16
B3: =OPYEAR -> OPERATING FUND 2021/2022 BUDGET
B5: FUNCTION 600: INSTRUCTIONAL & OTHER SUPPORT SERVICES
B6: CURRICULUM CONSULTING AND DEVELOPMENT ADMINISTRATION | E6: CURRICULUM CONSULTING AND DEVELOPMENT | H6: LIBRARY / MEDIA CENTRE
D8: PER PUPIL | G8: PER PUPIL | J8: PER PUPIL
A9: DIVISION / DISTRICT | B9: AMOUNT | C9: % | E9: AMOUNT | F9: % | H9: AMOUNT | I9: %
A11: BEAUTIFUL PLAINS | B11: 0 | C11: =B11/'- 3 -'!$D11*100 -> 0 | D11: =B11/'- 7 -'!$C11 -> 0 | E11: 149912 | F11: =E11/'- 3 -'!$D11*100 -> 0.6426181537 | G11: =E11/'- 7 -'!$E11 -> 72.35135135 | H11: 259762 | I11: =H11/'- 3 -'!$D11*100 -> 1.113505102 | J11: =H11/'- 7 -'!$E11 -> 125.3677606
A12: BORDER LAND | B12: 0 | C12: =B12/'- 3 -'!$D12*100 -> 0 | D12: =B12/'- 7 -'!$C12 -> 0 | E12: 0 | F12: =E12/'- 3 -'!$D12*100 -> 0 | G12: =E12/'- 7 -'!$E12 -> 0 | H12: 273762 | I12: =H12/'- 3 -'!$D12*100 -> 0.7833554437 | J12: =H12/'- 7 -'!$E12 -> 126.7498819
A13: BRANDON | B13: 125800 | C13: =B13/'- 3 -'!$D13*100 -> 0.1146935367 | D13: =B13/'- 7 -'!$C13 -> 14.38125179 | E13: 492800 | F13: =E13/'- 3 -'!$D13*100 -> 0.4492923281 | G13: =E13/'- 7 -'!$E13 -> 56.33609603 | H13: 1025900 | I13: =H13/'- 3 -'!$D13*100 -> 0.9353267034 | J13: =H13/'- 7 -'!$E13 -> 117.2792226
A14: DSFM | B14: 200849 | C14: =B14/'- 3 -'!$D14*100 -> 0.2002506291 | D14: =B14/'- 7 -'!$C14 -> 33.12699984 | E14: 2075757 | F14: =E14/'- 3 -'!$D14*100 -> 2.069572889 | G14: =E14/'- 7 -'!$E14 -> 342.364671 | H14: 857349 | I14: =H14/'- 3 -'!$D14*100 -> 0.8547947792 | J14: =H14/'- 7 -'!$E14 -> 141.4067293
A15: EVERGREEN | B15: 78480 | C15: =B15/'- 3 -'!$D15*100 -> 0.3657373111 | D15: =B15/'- 7 -'!$C15 -> 58.34944238 | E15: 69960 | F15: =E15/'- 3 -'!$D15*100 -> 0.3260318844 | G15: =E15/'- 7 -'!$E15 -> 52.01486989 | H15: 164400 | I15: =H15/'- 3 -'!$D15*100 -> 0.7661469667 | J15: =H15/'- 7 -'!$E15 -> 122.2304833
A16: FLIN FLON | B16: 0 | C16: =B16/'- 3 -'!$D16*100 -> 0 | D16: =B16/'- 7 -'!$C16 -> 0 | E16: 0 | F16: =E16/'- 3 -'!$D16*100 -> 0 | G16: =E16/'- 7 -'!$E16 -> 0 | H16: 118642 | I16: =H16/'- 3 -'!$D16*100 -> 0.7621164614 | J16: =H16/'- 7 -'!$E16 -> 125.149789
A17: FORT LA BOSSE | B17: 0 | C17: =B17/'- 3 -'!$D17*100 -> 0 | D17: =B17/'- 7 -'!$C17 -> 0 | E17: 62210 | F17: =E17/'- 3 -'!$D17*100 -> 0.3180450673 | G17: =E17/'- 7 -'!$E17 -> 44.01131942 | H17: 238130 | I17: =H17/'- 3 -'!$D17*100 -> 1.217426007 | J17: =H17/'- 7 -'!$E17 -> 168.468341
A18: FRONTIER | B18: 0 | C18: =B18/'- 3 -'!$D18*100 -> 0 | D18: =B18/'- 7 -'!$C18 -> 0 | E18: 3408404 | F18: =E18/'- 3 -'!$D18*100 -> 2.348873651 | G18: =E18/'- 7 -'!$E18 -> 578.3818089 | H18: 2027791 | I18: =H18/'- 3 -'!$D18*100 -> 1.39743553 | J18: =H18/'- 7 -'!$E18 -> 344.101646
A19: GARDEN VALLEY | B19: 46000 | C19: =B19/'- 3 -'!$D19*100 -> 0.08802525483 | D19: =B19/'- 7 -'!$C19 -> 10.7930549 | E19: 272300 | F19: =E19/'- 3 -'!$D19*100 -> 0.5210712367 | G19: =E19/'- 7 -'!$E19 -> 63.8901924 | H19: 522000 | I19: =H19/'- 3 -'!$D19*100 -> 0.9988952831 | J19: =H19/'- 7 -'!$E19 -> 122.47771
A20: HANOVER | B20: 13300 | C20: =B20/'- 3 -'!$D20*100 -> 0.01415709909 | D20: =B20/'- 7 -'!$C20 -> 1.631301361 | E20: 227200 | F20: =E20/'- 3 -'!$D20*100 -> 0.2418415725 | G20: =E20/'- 7 -'!$E20 -> 27.86704281 | H20: 1013200 | I20: =H20/'- 3 -'!$D20*100 -> 1.078494196 | J20: =H20/'- 7 -'!$E20 -> 124.2732736
A21: INTERLAKE | B21: 0 | C21: =B21/'- 3 -'!$D21*100 -> 0 | D21: =B21/'- 7 -'!$C21 -> 0 | E21: 0 | F21: =E21/'- 3 -'!$D21*100 -> 0 | G21: =E21/'- 7 -'!$E21 -> 0 | H21: 525049 | I21: =H21/'- 3 -'!$D21*100 -> 1.360417363 | J21: =H21/'- 7 -'!$E21 -> 183.8406863
A22: KELSEY | B22: 22433 | C22: =B22/'- 3 -'!$D22*100 -> 0.1089062368 | D22: =B22/'- 7 -'!$C22 -> 15.48171153 | E22: 77708 | F22: =E22/'- 3 -'!$D22*100 -> 0.3772516315 | G22: =E22/'- 7 -'!$E22 -> 53.62870945 | H22: 194195 | I22: =H22/'- 3 -'!$D22*100 -> 0.9427649737 | J22: =H22/'- 7 -'!$E22 -> 134.0200138
A23: LAKESHORE | B23: 0 | C23: =B23/'- 3 -'!$D23*100 -> 0 | D23: =B23/'- 7 -'!$C23 -> 0 | E23: 83000 | F23: =E23/'- 3 -'!$D23*100 -> 0.5059598103 | G23: =E23/'- 7 -'!$E23 -> 89.05579399 | H23: 107800 | I23: =H23/'- 3 -'!$D23*100 -> 0.6571381633 | J23: =H23/'- 7 -'!$E23 -> 115.6652361
A24: LORD SELKIRK | B24: 0 | C24: =B24/'- 3 -'!$D24*100 -> 0 | D24: =B24/'- 7 -'!$C24 -> 0 | E24: 0 | F24: =E24/'- 3 -'!$D24*100 -> 0 | G24: =E24/'- 7 -'!$E24 -> 0 | H24: 581378 | I24: =H24/'- 3 -'!$D24*100 -> 0.9818898809 | J24: =H24/'- 7 -'!$E24 -> 156.2844086
A25: LOUIS RIEL | B25: 532065 | C25: =B25/'- 3 -'!$D25*100 -> 0.2693451627 | D25: =B25/'- 7 -'!$C25 -> 34.43117841 | E25: 2332133 | F25: =E25/'- 3 -'!$D25*100 -> 1.180586474 | G25: =E25/'- 7 -'!$E25 -> 150.9178153 | H25: 4437335 | I25: =H25/'- 3 -'!$D25*100 -> 2.246294565 | J25: =H25/'- 7 -'!$E25 -> 287.1503915
A26: MOUNTAIN VIEW | B26: 21406 | C26: =B26/'- 3 -'!$D26*100 -> 0.04996571189 | D26: =B26/'- 7 -'!$C26 -> 7.060026385 | E26: 350594 | F26: =E26/'- 3 -'!$D26*100 -> 0.8183536762 | G26: =E26/'- 7 -'!$E26 -> 115.6312665 | H26: 552254 | I26: =H26/'- 3 -'!$D26*100 -> 1.289066816 | J26: =H26/'- 7 -'!$E26 -> 182.1418206
A27: MYSTERY LAKE | B27: 0 | C27: =B27/'- 3 -'!$D27*100 -> 0 | D27: =B27/'- 7 -'!$C27 -> 0 | E27: 648463 | F27: =E27/'- 3 -'!$D27*100 -> 1.474139772 | G27: =E27/'- 7 -'!$E27 -> 230.786177 | H27: 837299 | I27: =H27/'- 3 -'!$D27*100 -> 1.903417399 | J27: =H27/'- 7 -'!$E27 -> 297.9923838
A28: PARK WEST | B28: 44764 | C28: =B28/'- 3 -'!$D28*100 -> 0.15478857 | D28: =B28/'- 7 -'!$C28 -> 22.02410824 | E28: 866 | F28: =E28/'- 3 -'!$D28*100 -> 0.002994524653 | G28: =E28/'- 7 -'!$E28 -> 0.4260762608 | H28: 298634 | I28: =H28/'- 3 -'!$D28*100 -> 1.032640734 | J28: =H28/'- 7 -'!$E28 -> 146.9293973
A29: PEMBINA TRAILS | B29: 388899 | C29: =B29/'- 3 -'!$D29*100 -> 0.2146394765 | D29: =B29/'- 7 -'!$C29 -> 26.49356223 | E29: 459984 | F29: =E29/'- 3 -'!$D29*100 -> 0.2538724064 | G29: =E29/'- 7 -'!$E29 -> 31.33619456 | H29: 3780152 | I29: =H29/'- 3 -'!$D29*100 -> 2.086325361 | J29: =H29/'- 7 -'!$E29 -> 257.5210845
A30: PINE CREEK | B30: 0 | C30: =B30/'- 3 -'!$D30*100 -> 0 | D30: =B30/'- 7 -'!$C30 -> 0 | E30: 0 | F30: =E30/'- 3 -'!$D30*100 -> 0 | G30: =E30/'- 7 -'!$E30 -> 0 | H30: 310407 | I30: =H30/'- 3 -'!$D30*100 -> 1.967257188 | J30: =H30/'- 7 -'!$E30 -> 292.0103481
A31: PORTAGE LA PRAIRIE | B31: 79940 | C31: =B31/'- 3 -'!$D31*100 -> 0.1922204299 | D31: =B31/'- 7 -'!$C31 -> 23.79874963 | E31: 107605 | F31: =E31/'- 3 -'!$D31*100 -> 0.258742549 | G31: =E31/'- 7 -'!$E31 -> 32.0348318 | H31: 430243 | I31: =H31/'- 3 -'!$D31*100 -> 1.034544589 | J31: =H31/'- 7 -'!$E31 -> 128.0866329
A32: PRAIRIE ROSE | B32: 0 | C32: =B32/'- 3 -'!$D32*100 -> 0 | D32: =B32/'- 7 -'!$C32 -> 0 | E32: 136134 | F32: =E32/'- 3 -'!$D32*100 -> 0.4240037699 | G32: =E32/'- 7 -'!$E32 -> 57.48902027 | H32: 341174 | I32: =H32/'- 3 -'!$D32*100 -> 1.062622579 | J32: =H32/'- 7 -'!$E32 -> 144.0768581
A33: PRAIRIE SPIRIT | B33: 0 | C33: =B33/'- 3 -'!$D33*100 -> 0 | D33: =B33/'- 7 -'!$C33 -> 0 | E33: 94375 | F33: =E33/'- 3 -'!$D33*100 -> 0.3237869115 | G33: =E33/'- 7 -'!$E33 -> 44.97259948 | H33: 416880 | I33: =H33/'- 3 -'!$D33*100 -> 1.430254704 | J33: =H33/'- 7 -'!$E33 -> 198.656183
A34: RED RIVER VALLEY | B34: 7066 | C34: =B34/'- 3 -'!$D34*100 -> 0.02164337742 | D34: =B34/'- 7 -'!$C34 -> 3.135288636 | E34: 105528 | F34: =E34/'- 3 -'!$D34*100 -> 0.323235541 | G34: =E34/'- 7 -'!$E34 -> 46.82433332 | H34: 218228 | I34: =H34/'- 3 -'!$D34*100 -> 0.6684391406 | J34: =H34/'- 7 -'!$E34 -> 96.83098904
A35: RIVER EAST TRANSCONA | B35: 667255 | C35: =B35/'- 3 -'!$D35*100 -> 0.3316642302 | D35: =B35/'- 7 -'!$C35 -> 40.94593765 | E35: 762813 | F35: =E35/'- 3 -'!$D35*100 -> 0.3791620691 | G35: =E35/'- 7 -'!$E35 -> 46.80983063 | H35: 4894822 | I35: =H35/'- 3 -'!$D35*100 -> 2.433008925 | J35: =H35/'- 7 -'!$E35 -> 300.3695385
A36: ROLLING RIVER | B36: 24180 | C36: =B36/'- 3 -'!$D36*100 -> 0.09819131835 | D36: =B36/'- 7 -'!$C36 -> 13.33333333 | E36: 75950 | F36: =E36/'- 3 -'!$D36*100 -> 0.3084214487 | G36: =E36/'- 7 -'!$E36 -> 41.88034188 | H36: 243765 | I36: =H36/'- 3 -'!$D36*100 -> 0.989892751 | J36: =H36/'- 7 -'!$E36 -> 134.4168734
A37: SEINE RIVER | B37: 70120 | C37: =B37/'- 3 -'!$D37*100 -> 0.1247885207 | D37: =B37/'- 7 -'!$C37 -> 16.06782768 | E37: 550520 | F37: =E37/'- 3 -'!$D37*100 -> 0.9797286992 | G37: =E37/'- 7 -'!$E37 -> 126.1503208 | H37: 562270 | I37: =H37/'- 3 -'!$D37*100 -> 1.000639497 | J37: =H37/'- 7 -'!$E37 -> 128.8428048
A38: SEVEN OAKS | B38: 86700 | C38: =B38/'- 3 -'!$D38*100 -> 0.05648714498 | D38: =B38/'- 7 -'!$C38 -> 7.413487931 | E38: 567360 | F38: =E38/'- 3 -'!$D38*100 -> 0.3696487494 | G38: =E38/'- 7 -'!$E38 -> 48.51345458 | H38: 1963785 | I38: =H38/'- 3 -'!$D38*100 -> 1.27945338 | J38: =H38/'- 7 -'!$E38 -> 167.9180668
A39: SOUTHWEST HORIZON | B39: 0 | C39: =B39/'- 3 -'!$D39*100 -> 0 | D39: =B39/'- 7 -'!$C39 -> 0 | E39: 119750 | F39: =E39/'- 3 -'!$D39*100 -> 0.5018944157 | G39: =E39/'- 7 -'!$E39 -> 79.38349354 | H39: 244100 | I39: =H39/'- 3 -'!$D39*100 -> 1.023068283 | J39: =H39/'- 7 -'!$E39 -> 161.8163739
A40: ST. JAMES-ASSINIBOIA | B40: 40589 | C40: =B40/'- 3 -'!$D40*100 -> 0.03624495449 | D40: =B40/'- 7 -'!$C40 -> 4.957192931 | E40: 718589 | F40: =E40/'- 3 -'!$D40*100 -> 0.6416818745 | G40: =E40/'- 7 -'!$E40 -> 87.7623078 | H40: 1293663 | I40: =H40/'- 3 -'!$D40*100 -> 1.155208469 | J40: =H40/'- 7 -'!$E40 -> 157.9969223
A41: SUNRISE | B41: 0 | C41: =B41/'- 3 -'!$D41*100 -> 0 | D41: =B41/'- 7 -'!$C41 -> 0 | E41: 506441 | F41: =E41/'- 3 -'!$D41*100 -> 0.7412838647 | G41: =E41/'- 7 -'!$E41 -> 111.9949138 | H41: 654659 | I41: =H41/'- 3 -'!$D41*100 -> 0.9582323579 | J41: =H41/'- 7 -'!$E41 -> 144.7720035
A42: SWAN VALLEY | B42: 18017 | C42: =B42/'- 3 -'!$D42*100 -> 0.08257026378 | D42: =B42/'- 7 -'!$C42 -> 13.29667897 | E42: 0 | F42: =E42/'- 3 -'!$D42*100 -> 0 | G42: =E42/'- 7 -'!$E42 -> 0 | H42: 289055 | I42: =H42/'- 3 -'!$D42*100 -> 1.324712638 | J42: =H42/'- 7 -'!$E42 -> 213.3247232
A43: TURTLE MOUNTAIN | B43: 0 | C43: =B43/'- 3 -'!$D43*100 -> 0 | D43: =B43/'- 7 -'!$C43 -> 0 | E43: 70990 | F43: =E43/'- 3 -'!$D43*100 -> 0.5079295756 | G43: =E43/'- 7 -'!$E43 -> 71.81588265 | H43: 232201 | I43: =H43/'- 3 -'!$D43*100 -> 1.661385482 | J43: =H43/'- 7 -'!$E43 -> 234.9023773
A44: TURTLE RIVER | B44: 0 | C44: =B44/'- 3 -'!$D44*100 -> 0 | D44: =B44/'- 7 -'!$C44 -> 0 | E44: 0 | F44: =E44/'- 3 -'!$D44*100 -> 0 | G44: =E44/'- 7 -'!$E44 -> 0 | H44: 138984 | I44: =H44/'- 3 -'!$D44*100 -> 1.208183561 | J44: =H44/'- 7 -'!$E44 -> 206.5141159
A45: WESTERN | B45: 0 | C45: =B45/'- 3 -'!$D45*100 -> 0 | D45: =B45/'- 7 -'!$C45 -> 0 | E45: 0 | F45: =E45/'- 3 -'!$D45*100 -> 0 | G45: =E45/'- 7 -'!$E45 -> 0 | H45: 248695 | I45: =H45/'- 3 -'!$D45*100 -> 1.050327006 | J45: =H45/'- 7 -'!$E45 -> 122.3290703
A46: WINNIPEG | B46: 708300 | C46: =B46/'- 3 -'!$D46*100 -> 0.1697507841 | D46: =B46/'- 7 -'!$C46 -> 23.24619702 | E46: 1814525 | F46: =E46/'- 3 -'!$D46*100 -> 0.4348680525 | G46: =E46/'- 7 -'!$E46 -> 59.55217513 | H46: 1676141 | I46: =H46/'- 3 -'!$D46*100 -> 0.40170302 | J46: =H46/'- 7 -'!$E46 -> 55.01045308
A48: PROVINCE | B48: =SUM(B11:B46) -> 3176163 | C48: =B48/'- 3 -'!$D48*100 -> 0.1258087789 | D48: =B48/'- 7 -'!$C48 -> 17.34961994 | E48: =SUM(E11:E46) -> 16341871 | F48: =E48/'- 3 -'!$D48*100 -> 0.6473064624 | G48: =E48/'- 7 -'!$E48 -> 89.26659338 | H48: =SUM(H11:H46) -> 31974104 | I48: =H48/'- 3 -'!$D48*100 -> 1.266503949 | J48: =H48/'- 7 -'!$E48 -> 174.6568273
A50: WHITESHELL | B50: 0 | C50: =B50/'- 3 -'!$D50*100 -> 0 | D50: =B50/'- 7 -'!$C50 -> 0 | E50: 0 | F50: =E50/'- 3 -'!$D50*100 -> 0 | G50: =E50/'- 7 -'!$E50 -> 0 | H50: 13500 | I50: =H50/'- 3 -'!$D50*100 -> 0.374949662 | J50: =H50/'- 7 -'!$E50 -> 76.70454545
A51: MITT | B51: 0 | C51: =B51/'- 3 -'!$D51*100 -> 0 | D51: =B51/'- 7 -'!$C51 -> 0 | E51: 700540 | F51: =E51/'- 3 -'!$D51*100 -> 2.104299594 | G51: =E51/'- 7 -'!$E51 -> 394.8928974 | H51: 0 | I51: =H51/'- 3 -'!$D51*100 -> 0 | J51: =H51/'- 7 -'!$E51 -> 0

Sheet - 28 -
B2: =AEXP_BP -> ANALYSIS OF EXPENSE BY PROGRAM | G2: PAGE 11 OF 16
B3: =OPYEAR -> OPERATING FUND 2021/2022 BUDGET
B5: FUNCTION 600: INSTRUCTIONAL & OTHER SUPPORT SERVICES (CONT'D)
B6: PROFESSIONAL AND STAFF DEVELOPMENT
E7: OTHER (1)
D8: PER PUPIL | G8: PER PUPIL
A9: DIVISION / DISTRICT | B9: AMOUNT | C9: % | E9: AMOUNT | F9: %
A11: BEAUTIFUL PLAINS | B11: 171093 | C11: =B11/'- 3 -'!$D11*100 -> 0.7334133877 | D11: =B11/'- 7 -'!$E11 -> 82.5738417 | E11: 16240 | F11: =E11/'- 3 -'!$D11*100 -> 0.06961496622 | G11: =E11/'- 7 -'!$E11 -> 7.837837838
A12: BORDER LAND | B12: 320666 | C12: =B12/'- 3 -'!$D12*100 -> 0.9175687521 | D12: =B12/'- 7 -'!$E12 -> 148.4661043 | E12: 135198 | F12: =E12/'- 3 -'!$D12*100 -> 0.3868619066 | G12: =E12/'- 7 -'!$E12 -> 62.5957238
A13: BRANDON | B13: 1505500 | C13: =B13/'- 3 -'!$D13*100 -> 1.372584416 | D13: =B13/'- 7 -'!$E13 -> 172.1063161 | E13: 126300 | F13: =E13/'- 3 -'!$D13*100 -> 0.1151493933 | G13: =E13/'- 7 -'!$E13 -> 14.43841097
A14: DSFM | B14: 670952 | C14: =B14/'- 3 -'!$D14*100 -> 0.6689530946 | D14: =B14/'- 7 -'!$E14 -> 110.663368 | E14: 156387 | F14: =E14/'- 3 -'!$D14*100 -> 0.1559210906 | G14: =E14/'- 7 -'!$E14 -> 25.7936665
A15: EVERGREEN | B15: 120812 | C15: =B15/'- 3 -'!$D15*100 -> 0.5630154948 | D15: =B15/'- 7 -'!$E15 -> 89.82304833 | E15: 1700 | F15: =E15/'- 3 -'!$D15*100 -> 0.007922444303 | G15: =E15/'- 7 -'!$E15 -> 1.26394052
A16: FLIN FLON | B16: 88565 | C16: =B16/'- 3 -'!$D16*100 -> 0.5689118896 | D16: =B16/'- 7 -'!$E16 -> 93.42299578 | E16: 43906 | F16: =E16/'- 3 -'!$D16*100 -> 0.2820374349 | G16: =E16/'- 7 -'!$E16 -> 46.31434599
A17: FORT LA BOSSE | B17: 97940 | C17: =B17/'- 3 -'!$D17*100 -> 0.500712649 | D17: =B17/'- 7 -'!$E17 -> 69.28899894 | E17: 1500 | F17: =E17/'- 3 -'!$D17*100 -> 0.007668664217 | G17: =E17/'- 7 -'!$E17 -> 1.061195614
A18: FRONTIER | B18: 1156887 | C18: =B18/'- 3 -'!$D18*100 -> 0.7972591838 | D18: =B18/'- 7 -'!$E18 -> 196.315459 | E18: 1799944 | F18: =E18/'- 3 -'!$D18*100 -> 1.240416639 | G18: =E18/'- 7 -'!$E18 -> 305.4376379
A19: GARDEN VALLEY | B19: 615000 | C19: =B19/'- 3 -'!$D19*100 -> 1.176859385 | D19: =B19/'- 7 -'!$E19 -> 144.2984514 | E19: 288800 | F19: =E19/'- 3 -'!$D19*100 -> 0.5526455129 | G19: =E19/'- 7 -'!$E19 -> 67.76161427
A20: HANOVER | B20: 626600 | C20: =B20/'- 3 -'!$D20*100 -> 0.6669803227 | D20: =B20/'- 7 -'!$E20 -> 76.85514535 | E20: 232300 | F20: =E20/'- 3 -'!$D20*100 -> 0.2472702345 | G20: =E20/'- 7 -'!$E20 -> 28.49257942
A21: INTERLAKE | B21: 493909 | C21: =B21/'- 3 -'!$D21*100 -> 1.279732709 | D21: =B21/'- 7 -'!$E21 -> 172.9373249 | E21: 131742 | F21: =E21/'- 3 -'!$D21*100 -> 0.3413473871 | G21: =E21/'- 7 -'!$E21 -> 46.12815126
A22: KELSEY | B22: 74374 | C22: =B22/'- 3 -'!$D22*100 -> 0.36106595 | D22: =B22/'- 7 -'!$E22 -> 51.32781228 | E22: 0 | F22: =E22/'- 3 -'!$D22*100 -> 0 | G22: =E22/'- 7 -'!$E22 -> 0
A23: LAKESHORE | B23: 193000 | C23: =B23/'- 3 -'!$D23*100 -> 1.176508957 | D23: =B23/'- 7 -'!$E23 -> 207.0815451 | E23: 7000 | F23: =E23/'- 3 -'!$D23*100 -> 0.04267130931 | G23: =E23/'- 7 -'!$E23 -> 7.510729614
A24: LORD SELKIRK | B24: 374925 | C24: =B24/'- 3 -'!$D24*100 -> 0.6332112044 | D24: =B24/'- 7 -'!$E24 -> 100.7862903 | E24: 96010 | F24: =E24/'- 3 -'!$D24*100 -> 0.1621513842 | G24: =E24/'- 7 -'!$E24 -> 25.80913978
A25: LOUIS RIEL | B25: 1394199 | C25: =B25/'- 3 -'!$D25*100 -> 0.7057798511 | D25: =B25/'- 7 -'!$E25 -> 90.22189866 | E25: 393091 | F25: =E25/'- 3 -'!$D25*100 -> 0.1989929038 | G25: =E25/'- 7 -'!$E25 -> 25.43784378
A26: MOUNTAIN VIEW | B26: 368672 | C26: =B26/'- 3 -'!$D26*100 -> 0.8605511975 | D26: =B26/'- 7 -'!$E26 -> 121.5936675 | E26: 287063 | F26: =E26/'- 3 -'!$D26*100 -> 0.6700601304 | G26: =E26/'- 7 -'!$E26 -> 94.67777045
A27: MYSTERY LAKE | B27: 160200 | C27: =B27/'- 3 -'!$D27*100 -> 0.3641799014 | D27: =B27/'- 7 -'!$E27 -> 57.01473414 | E27: 9000 | F27: =E27/'- 3 -'!$D27*100 -> 0.02045954502 | G27: =E27/'- 7 -'!$E27 -> 3.203074952
A28: PARK WEST | B28: 314046 | C28: =B28/'- 3 -'!$D28*100 -> 1.08593359 | D28: =B28/'- 7 -'!$E28 -> 154.5121771 | E28: 0 | F28: =E28/'- 3 -'!$D28*100 -> 0 | G28: =E28/'- 7 -'!$E28 -> 0
A29: PEMBINA TRAILS | B29: 1526802 | C29: =B29/'- 3 -'!$D29*100 -> 0.8426660444 | D29: =B29/'- 7 -'!$E29 -> 104.0126712 | E29: 559453 | F29: =E29/'- 3 -'!$D29*100 -> 0.3087709124 | G29: =E29/'- 7 -'!$E29 -> 38.1124736
A30: PINE CREEK | B30: 152968 | C30: =B30/'- 3 -'!$D30*100 -> 0.9694607321 | D30: =B30/'- 7 -'!$E30 -> 143.9021637 | E30: 9909 | F30: =E30/'- 3 -'!$D30*100 -> 0.06279997381 | G30: =E30/'- 7 -'!$E30 -> 9.32173095
A31: PORTAGE LA PRAIRIE | B31: 412004 | C31: =B31/'- 3 -'!$D31*100 -> 0.9906878411 | D31: =B31/'- 7 -'!$E31 -> 122.6567431 | E31: 771240 | F31: =E31/'- 3 -'!$D31*100 -> 1.854491924 | G31: =E31/'- 7 -'!$E31 -> 229.6040488
A32: PRAIRIE ROSE | B32: 324067 | C32: =B32/'- 3 -'!$D32*100 -> 1.009341015 | D32: =B32/'- 7 -'!$E32 -> 136.8526182 | E32: 2000 | F32: =E32/'- 3 -'!$D32*100 -> 0.006229211952 | G32: =E32/'- 7 -'!$E32 -> 0.8445945946
A33: PRAIRIE SPIRIT | B33: 199450 | C33: =B33/'- 3 -'!$D33*100 -> 0.6842839683 | D33: =B33/'- 7 -'!$E33 -> 95.0440791 | E33: 13125 | F33: =E33/'- 3 -'!$D33*100 -> 0.04502996783 | G33: =E33/'- 7 -'!$E33 -> 6.254467477
A34: RED RIVER VALLEY | B34: 213074 | C34: =B34/'- 3 -'!$D34*100 -> 0.6526522786 | D34: =B34/'- 7 -'!$E34 -> 94.54408306 | E34: 65553 | F34: =E34/'- 3 -'!$D34*100 -> 0.2007908746 | G34: =E34/'- 7 -'!$E34 -> 29.08683498
A35: RIVER EAST TRANSCONA | B35: 2334471 | C35: =B35/'- 3 -'!$D35*100 -> 1.160366767 | D35: =B35/'- 7 -'!$E35 -> 143.2542342 | E35: 617000 | F35: =E35/'- 3 -'!$D35*100 -> 0.3066845959 | G35: =E35/'- 7 -'!$E35 -> 37.86205204
A36: ROLLING RIVER | B36: 128500 | C36: =B36/'- 3 -'!$D36*100 -> 0.5218190409 | D36: =B36/'- 7 -'!$E36 -> 70.85745795 | E36: 20400 | F36: =E36/'- 3 -'!$D36*100 -> 0.08284131077 | G36: =E36/'- 7 -'!$E36 -> 11.24896609
A37: SEINE RIVER | B37: 349902 | C37: =B37/'- 3 -'!$D37*100 -> 0.6227004129 | D37: =B37/'- 7 -'!$E37 -> 80.1791934 | E37: 86500 | F37: =E37/'- 3 -'!$D37*100 -> 0.1539390621 | G37: =E37/'- 7 -'!$E37 -> 19.82126489
A38: SEVEN OAKS | B38: 1176320 | C38: =B38/'- 3 -'!$D38*100 -> 0.7664009041 | D38: =B38/'- 7 -'!$E38 -> 100.5840153 | E38: 2077400 | F38: =E38/'- 3 -'!$D38*100 -> 1.353476297 | G38: =E38/'- 7 -'!$E38 -> 177.6329853
A39: SOUTHWEST HORIZON | B39: 79150 | C39: =B39/'- 3 -'!$D39*100 -> 0.3317323006 | D39: =B39/'- 7 -'!$E39 -> 52.4693404 | E39: 29900 | F39: =E39/'- 3 -'!$D39*100 -> 0.1253164345 | G39: =E39/'- 7 -'!$E39 -> 19.82101425
A40: ST. JAMES-ASSINIBOIA | B40: 1747762 | C40: =B40/'- 3 -'!$D40*100 -> 1.560707437 | D40: =B40/'- 7 -'!$E40 -> 213.4566861 | E40: 313673 | F40: =E40/'- 3 -'!$D40*100 -> 0.280102087 | G40: =E40/'- 7 -'!$E40 -> 38.30933451
A41: SUNRISE | B41: 320990 | C41: =B41/'- 3 -'!$D41*100 -> 0.4698369755 | D41: =B41/'- 7 -'!$E41 -> 70.98407784 | E41: 33019 | F41: =E41/'- 3 -'!$D41*100 -> 0.04833031277 | G41: =E41/'- 7 -'!$E41 -> 7.301857585
A42: SWAN VALLEY | B42: 111612 | C42: =B42/'- 3 -'!$D42*100 -> 0.5115075918 | D42: =B42/'- 7 -'!$E42 -> 82.3704797 | E42: 24686 | F42: =E42/'- 3 -'!$D42*100 -> 0.1131336811 | G42: =E42/'- 7 -'!$E42 -> 18.21845018
A43: TURTLE MOUNTAIN | B43: 107678 | C43: =B43/'- 3 -'!$D43*100 -> 0.7704302133 | D43: =B43/'- 7 -'!$E43 -> 108.9307031 | E43: 13230 | F43: =E43/'- 3 -'!$D43*100 -> 0.09465992795 | G43: =E43/'- 7 -'!$E43 -> 13.38391502
A44: TURTLE RIVER | B44: 31657 | C44: =B44/'- 3 -'!$D44*100 -> 0.2751933099 | D44: =B44/'- 7 -'!$E44 -> 47.03863299 | E44: 80000 | F44: =E44/'- 3 -'!$D44*100 -> 0.6954374954 | G44: =E44/'- 7 -'!$E44 -> 118.8707281
A45: WESTERN | B45: 126201 | C45: =B45/'- 3 -'!$D45*100 -> 0.5329914894 | D45: =B45/'- 7 -'!$E45 -> 62.07624201 | E45: 190281 | F45: =E45/'- 3 -'!$D45*100 -> 0.8036240093 | G45: =E45/'- 7 -'!$E45 -> 93.59616331
A46: WINNIPEG | B46: 2459380 | C46: =B46/'- 3 -'!$D46*100 -> 0.5894136432 | D46: =B46/'- 7 -'!$E46 -> 80.71612596 | E46: 2431172 | F46: =E46/'- 3 -'!$D46*100 -> 0.5826533296 | G46: =E46/'- 7 -'!$E46 -> 79.79034772
A48: PROVINCE | B48: =SUM(B11:B46) -> 20549328 | C48: =B48/'- 3 -'!$D48*100 -> 0.8139651092 | D48: =B48/'- 7 -'!$E48 -> 112.2496015 | E48: =SUM(E11:E46) -> 11064722 | F48: =E48/'- 3 -'!$D48*100 -> 0.4382769914 | G48: =E48/'- 7 -'!$E48 -> 60.44045016
A50: WHITESHELL | B50: 62103 | C50: =B50/'- 3 -'!$D50*100 -> 1.724851767 | D50: =B50/'- 7 -'!$E50 -> 352.8579545 | E50: 83058 | F50: =E50/'- 3 -'!$D50*100 -> 2.306856965 | G50: =E50/'- 7 -'!$E50 -> 471.9204545
A51: MITT | B51: 0 | C51: =B51/'- 3 -'!$D51*100 -> 0 | D51: =B51/'- 7 -'!$E51 -> 0 | E51: 0 | F51: =E51/'- 3 -'!$D51*100 -> 0 | G51: =E51/'- 7 -'!$E51 -> 0
A53: (1) Includes food services, health services, and other activities related to instructional and other support not included in previous programs.

Sheet - 29 -
B2: =AEXP_BP -> ANALYSIS OF EXPENSE BY PROGRAM | G2: PAGE 12 OF 16
B3: =OPYEAR -> OPERATING FUND 2021/2022 BUDGET
B6: FUNCTION 700: TRANSPORTATION OF PUPILS
F7: ALLOWANCES IN LIEU OF TRANSPORTATION
B8: ADMINISTRATION | D8: REGULAR
A9: DIVISION / DISTRICT | B9: AMOUNT | C9: % | D9: AMOUNT | E9: % | F9: AMOUNT | G9: %
A11: BEAUTIFUL PLAINS | B11: 94715 | C11: =B11/'- 3 -'!$D11*100 -> 0.4060087146 | D11: 1158135 | E11: =D11/'- 3 -'!$D11*100 -> 4.964503012 | F11: 10120 | G11: =F11/'- 3 -'!$D11*100 -> 0.04338075481
A12: BORDER LAND | B12: 134318 | C12: =B12/'- 3 -'!$D12*100 -> 0.3843438333 | D12: 2041175 | E12: =D12/'- 3 -'!$D12*100 -> 5.840714007 | F12: 0 | G12: =F12/'- 3 -'!$D12*100 -> 0
A13: BRANDON | B13: 221700 | C13: =B13/'- 3 -'!$D13*100 -> 0.2021268449 | D13: 2351600 | E13: =D13/'- 3 -'!$D13*100 -> 2.143985062 | F13: 1700 | G13: =F13/'- 3 -'!$D13*100 -> 0.001549912658
A14: DSFM | B14: 347695 | C14: =B14/'- 3 -'!$D14*100 -> 0.3466591443 | D14: 9850870 | E14: =D14/'- 3 -'!$D14*100 -> 9.821522211 | F14: 339413 | G14: =F14/'- 3 -'!$D14*100 -> 0.3384018181
A15: EVERGREEN | B15: 202680 | C15: =B15/'- 3 -'!$D15*100 -> 0.9445417714 | D15: 1510284 | E15: =D15/'- 3 -'!$D15*100 -> 7.03831816 | F15: 2500 | G15: =F15/'- 3 -'!$D15*100 -> 0.01165065339
A16: FLIN FLON | B16: 0 | C16: =B16/'- 3 -'!$D16*100 -> 0 | D16: 389770 | E16: =D16/'- 3 -'!$D16*100 -> 2.503751902 | F16: 375 | G16: =F16/'- 3 -'!$D16*100 -> 0.00240887437
A17: FORT LA BOSSE | B17: 74345 | C17: =B17/'- 3 -'!$D17*100 -> 0.3800845608 | D17: 1398360 | E17: =D17/'- 3 -'!$D17*100 -> 7.14903553 | F17: 1500 | G17: =F17/'- 3 -'!$D17*100 -> 0.007668664217
A18: FRONTIER | B18: 308907 | C18: =B18/'- 3 -'!$D18*100 -> 0.2128807245 | D18: 8151766 | E18: =D18/'- 3 -'!$D18*100 -> 5.617722654 | F18: 80316 | G18: =F18/'- 3 -'!$D18*100 -> 0.05534911241
A19: GARDEN VALLEY | B19: 165320 | C19: =B19/'- 3 -'!$D19*100 -> 0.3163551115 | D19: 2808110 | E19: =D19/'- 3 -'!$D19*100 -> 5.373578225 | F19: 28000 | G19: =F19/'- 3 -'!$D19*100 -> 0.0535805899
A20: HANOVER | B20: 301200 | C20: =B20/'- 3 -'!$D20*100 -> 0.3206103945 | D20: 3455900 | E20: =D20/'- 3 -'!$D20*100 -> 3.678610433 | F20: 1500 | G20: =F20/'- 3 -'!$D20*100 -> 0.001596665311
A21: INTERLAKE | B21: 142642 | C21: =B21/'- 3 -'!$D21*100 -> 0.3695896069 | D21: 2035358 | E21: =D21/'- 3 -'!$D21*100 -> 5.273672292 | F21: 0 | G21: =F21/'- 3 -'!$D21*100 -> 0
A22: KELSEY | B22: 87109 | C22: =B22/'- 3 -'!$D22*100 -> 0.4228909812 | D22: 442114 | E22: =D22/'- 3 -'!$D22*100 -> 2.14634565 | F22: 4000 | G22: =F22/'- 3 -'!$D22*100 -> 0.01941893403
A23: LAKESHORE | B23: 99750 | C23: =B23/'- 3 -'!$D23*100 -> 0.6080661576 | D23: 1623490 | E23: =D23/'- 3 -'!$D23*100 -> 9.896634849 | F23: 4500 | G23: =F23/'- 3 -'!$D23*100 -> 0.02743155598
A24: LORD SELKIRK | B24: 211563 | C24: =B24/'- 3 -'!$D24*100 -> 0.3573089606 | D24: 2502795 | E24: =D24/'- 3 -'!$D24*100 -> 4.226972958 | F24: 5000 | G24: =F24/'- 3 -'!$D24*100 -> 0.00844450496
A25: LOUIS RIEL | B25: 430579 | C25: =B25/'- 3 -'!$D25*100 -> 0.2179703059 | D25: 4526747 | E25: =D25/'- 3 -'!$D25*100 -> 2.291557248 | F25: 10000 | G25: =F25/'- 3 -'!$D25*100 -> 0.005062260489
A26: MOUNTAIN VIEW | B26: 217738 | C26: =B26/'- 3 -'!$D26*100 -> 0.5082422767 | D26: 2716426 | E26: =D26/'- 3 -'!$D26*100 -> 6.340659576 | F26: 10500 | G26: =F26/'- 3 -'!$D26*100 -> 0.02450901499
A27: MYSTERY LAKE | B27: 0 | C27: =B27/'- 3 -'!$D27*100 -> 0 | D27: 50000 | E27: =D27/'- 3 -'!$D27*100 -> 0.113664139 | F27: 235000 | G27: =F27/'- 3 -'!$D27*100 -> 0.5342214534
A28: PARK WEST | B28: 59265 | C28: =B28/'- 3 -'!$D28*100 -> 0.2049312974 | D28: 1696958 | E28: =D28/'- 3 -'!$D28*100 -> 5.867878253 | F28: 4500 | G28: =F28/'- 3 -'!$D28*100 -> 0.01556046298
A29: PEMBINA TRAILS | B29: 259620 | C29: =B29/'- 3 -'!$D29*100 -> 0.1432883625 | D29: 3517839 | E29: =D29/'- 3 -'!$D29*100 -> 1.941550689 | F29: 165000 | G29: =F29/'- 3 -'!$D29*100 -> 0.09106609588
A30: PINE CREEK | B30: 130948 | C30: =B30/'- 3 -'!$D30*100 -> 0.8299052347 | D30: 1168515 | E30: =D30/'- 3 -'!$D30*100 -> 7.40566267 | F30: 0 | G30: =F30/'- 3 -'!$D30*100 -> 0
A31: PORTAGE LA PRAIRIE | B31: 98020 | C31: =B31/'- 3 -'!$D31*100 -> 0.2356948529 | D31: 1108398 | E31: =D31/'- 3 -'!$D31*100 -> 2.665208157 | F31: 5000 | G31: =F31/'- 3 -'!$D31*100 -> 0.01202279397
A32: PRAIRIE ROSE | B32: 159892 | C32: =B32/'- 3 -'!$D32*100 -> 0.4980005787 | D32: 2043350 | E32: =D32/'- 3 -'!$D32*100 -> 6.364230121 | F32: 0 | G32: =F32/'- 3 -'!$D32*100 -> 0
A33: PRAIRIE SPIRIT | B33: 124935 | C33: =B33/'- 3 -'!$D33*100 -> 0.4286338309 | D33: 2300165 | E33: =D33/'- 3 -'!$D33*100 -> 7.891531882 | F33: 0 | G33: =F33/'- 3 -'!$D33*100 -> 0
A34: RED RIVER VALLEY | B34: 162456 | C34: =B34/'- 3 -'!$D34*100 -> 0.4976077727 | D34: 2567717 | E34: =D34/'- 3 -'!$D34*100 -> 7.864996906 | F34: 0 | G34: =F34/'- 3 -'!$D34*100 -> 0
A35: RIVER EAST TRANSCONA | B35: 423670 | C35: =B35/'- 3 -'!$D35*100 -> 0.2105884323 | D35: 4445500 | E35: =D35/'- 3 -'!$D35*100 -> 2.209669969 | F35: 30700 | G35: =F35/'- 3 -'!$D35*100 -> 0.01525967114
A36: ROLLING RIVER | B36: 63210 | C36: =B36/'- 3 -'!$D36*100 -> 0.2566862379 | D36: 1650040 | E36: =D36/'- 3 -'!$D36*100 -> 6.70056257 | F36: 6000 | G36: =F36/'- 3 -'!$D36*100 -> 0.0243650914
A37: SEINE RIVER | B37: 249140 | C37: =B37/'- 3 -'!$D37*100 -> 0.4433800918 | D37: 3264660 | E37: =D37/'- 3 -'!$D37*100 -> 5.809927151 | F37: 2000 | G37: =F37/'- 3 -'!$D37*100 -> 0.003559284673
A38: SEVEN OAKS | B38: 393110 | C38: =B38/'- 3 -'!$D38*100 -> 0.2561206639 | D38: 3053508 | E38: =D38/'- 3 -'!$D38*100 -> 1.989434246 | F38: 200000 | G38: =F38/'- 3 -'!$D38*100 -> 0.1303048327
A39: SOUTHWEST HORIZON | B39: 124100 | C39: =B39/'- 3 -'!$D39*100 -> 0.5201260708 | D39: 2137700 | E39: =D39/'- 3 -'!$D39*100 -> 8.959496387 | F39: 900 | G39: =F39/'- 3 -'!$D39*100 -> 0.00377206659
A40: ST. JAMES-ASSINIBOIA | B40: 136189 | C40: =B40/'- 3 -'!$D40*100 -> 0.1216133462 | D40: 2259380 | E40: =D40/'- 3 -'!$D40*100 -> 2.017569422 | F40: 0 | G40: =F40/'- 3 -'!$D40*100 -> 0
A41: SUNRISE | B41: 508240 | C41: =B41/'- 3 -'!$D41*100 -> 0.7439170829 | D41: 4507744 | E41: =D41/'- 3 -'!$D41*100 -> 6.598039838 | F41: 38000 | G41: =F41/'- 3 -'!$D41*100 -> 0.05562106318
A42: SWAN VALLEY | B42: 131632 | C42: =B42/'- 3 -'!$D42*100 -> 0.6032574214 | D42: 1644441 | E42: =D42/'- 3 -'!$D42*100 -> 7.536322758 | F42: 0 | G42: =F42/'- 3 -'!$D42*100 -> 0
A43: TURTLE MOUNTAIN | B43: 81373 | C43: =B43/'- 3 -'!$D43*100 -> 0.5822193739 | D43: 964648 | E43: =D43/'- 3 -'!$D43*100 -> 6.902003793 | F43: 0 | G43: =F43/'- 3 -'!$D43*100 -> 0
A44: TURTLE RIVER | B44: 39089 | C44: =B44/'- 3 -'!$D44*100 -> 0.3397994532 | D44: 1030481 | E44: =D44/'- 3 -'!$D44*100 -> 8.957939071 | F44: 0 | G44: =F44/'- 3 -'!$D44*100 -> 0
A45: WESTERN | B45: 51379 | C45: =B45/'- 3 -'!$D45*100 -> 0.2169917016 | D45: 851733 | E45: =D45/'- 3 -'!$D45*100 -> 3.597169914 | F45: 20000 | G45: =F45/'- 3 -'!$D45*100 -> 0.08446707862
A46: WINNIPEG | B46: 672400 | C46: =B46/'- 3 -'!$D46*100 -> 0.1611470101 | D46: 6246852 | E46: =D46/'- 3 -'!$D46*100 -> 1.497117077 | F46: 0 | G46: =F46/'- 3 -'!$D46*100 -> 0
A48: PROVINCE | B48: =SUM(B11:B46) -> 6908929 | C48: =B48/'- 3 -'!$D48*100 -> 0.2736647713 | D48: =SUM(D11:D46) -> 93472529 | E48: =D48/'- 3 -'!$D48*100 -> 3.702475199 | F48: =SUM(F11:F46) -> 1206524 | G48: =F48/'- 3 -'!$D48*100 -> 0.04779078126
A50: WHITESHELL | B50: 0 | C50: =B50/'- 3 -'!$D50*100 -> 0 | D50: 0 | E50: =D50/'- 3 -'!$D50*100 -> 0 | F50: 12800 | G50: =F50/'- 3 -'!$D50*100 -> 0.3555078276
A51: MITT | B51: 0 | C51: =B51/'- 3 -'!$D51*100 -> 0 | D51: 0 | E51: =D51/'- 3 -'!$D51*100 -> 0 | F51: 0 | G51: =F51/'- 3 -'!$D51*100 -> 0

Sheet - 30 -
B2: =AEXP_BP -> ANALYSIS OF EXPENSE BY PROGRAM | F2: PAGE 13 OF 16
B3: =OPYEAR -> OPERATING FUND 2021/2022 BUDGET
B6: FUNCTION 700: TRANSPORTATION (CONT'D)
B7: BOARDING OF STUDENTS | D7: FIELD TRIPS AND OTHER
A9: DIVISION / DISTRICT | B9: AMOUNT | C9: % | D9: AMOUNT | E9: %
A11: BEAUTIFUL PLAINS | B11: 0 | C11: =B11/'- 3 -'!$D11*100 -> 0 | D11: 140000 | E11: =D11/'- 3 -'!$D11*100 -> 0.6001290192
A12: BORDER LAND | B12: 1200 | C12: =B12/'- 3 -'!$D12*100 -> 0.003433736357 | D12: 305398 | E12: =D12/'- 3 -'!$D12*100 -> 0.8738801799
A13: BRANDON | B13: 0 | C13: =B13/'- 3 -'!$D13*100 -> 0 | D13: 79400 | E13: =D13/'- 3 -'!$D13*100 -> 0.07239003826
A14: DSFM | B14: 0 | C14: =B14/'- 3 -'!$D14*100 -> 0 | D14: 311707 | E14: =D14/'- 3 -'!$D14*100 -> 0.3107783601
A15: EVERGREEN | B15: 0 | C15: =B15/'- 3 -'!$D15*100 -> 0 | D15: 87530 | E15: =D15/'- 3 -'!$D15*100 -> 0.4079126764
A16: FLIN FLON | B16: 0 | C16: =B16/'- 3 -'!$D16*100 -> 0 | D16: 169428 | E16: =D16/'- 3 -'!$D16*100 -> 1.088348711
A17: FORT LA BOSSE | B17: 0 | C17: =B17/'- 3 -'!$D17*100 -> 0 | D17: 36750 | E17: =D17/'- 3 -'!$D17*100 -> 0.1878822733
A18: FRONTIER | B18: 2701309 | C18: =B18/'- 3 -'!$D18*100 -> 1.861584933 | D18: 1196534 | E18: =D18/'- 3 -'!$D18*100 -> 0.8245815886
A19: GARDEN VALLEY | B19: 0 | C19: =B19/'- 3 -'!$D19*100 -> 0 | D19: 274000 | E19: =D19/'- 3 -'!$D19*100 -> 0.524324344
A20: HANOVER | B20: 0 | C20: =B20/'- 3 -'!$D20*100 -> 0 | D20: 510400 | E20: =D20/'- 3 -'!$D20*100 -> 0.5432919832
A21: INTERLAKE | B21: 0 | C21: =B21/'- 3 -'!$D21*100 -> 0 | D21: 140000 | E21: =D21/'- 3 -'!$D21*100 -> 0.3627441074
A22: KELSEY | B22: 0 | C22: =B22/'- 3 -'!$D22*100 -> 0 | D22: 27181 | E22: =D22/'- 3 -'!$D22*100 -> 0.1319565115
A23: LAKESHORE | B23: 0 | C23: =B23/'- 3 -'!$D23*100 -> 0 | D23: 20000 | E23: =D23/'- 3 -'!$D23*100 -> 0.1219180266
A24: LORD SELKIRK | B24: 0 | C24: =B24/'- 3 -'!$D24*100 -> 0 | D24: 93000 | E24: =D24/'- 3 -'!$D24*100 -> 0.1570677922
A25: LOUIS RIEL | B25: 0 | C25: =B25/'- 3 -'!$D25*100 -> 0 | D25: 79829 | E25: =D25/'- 3 -'!$D25*100 -> 0.04041151925
A26: MOUNTAIN VIEW | B26: 0 | C26: =B26/'- 3 -'!$D26*100 -> 0 | D26: 220578 | E26: =D26/'- 3 -'!$D26*100 -> 0.5148713817
A27: MYSTERY LAKE | B27: 0 | C27: =B27/'- 3 -'!$D27*100 -> 0 | D27: 105000 | E27: =D27/'- 3 -'!$D27*100 -> 0.2386946919
A28: PARK WEST | B28: 0 | C28: =B28/'- 3 -'!$D28*100 -> 0 | D28: 55663 | E28: =D28/'- 3 -'!$D28*100 -> 0.1924760113
A29: PEMBINA TRAILS | B29: 0 | C29: =B29/'- 3 -'!$D29*100 -> 0 | D29: 200000 | E29: =D29/'- 3 -'!$D29*100 -> 0.1103831465
A30: PINE CREEK | B30: 0 | C30: =B30/'- 3 -'!$D30*100 -> 0 | D30: 59896 | E30: =D30/'- 3 -'!$D30*100 -> 0.3796010931
A31: PORTAGE LA PRAIRIE | B31: 0 | C31: =B31/'- 3 -'!$D31*100 -> 0 | D31: 37600 | E31: =D31/'- 3 -'!$D31*100 -> 0.09041141063
A32: PRAIRIE ROSE | B32: 0 | C32: =B32/'- 3 -'!$D32*100 -> 0 | D32: 142203 | E32: =D32/'- 3 -'!$D32*100 -> 0.4429063136
A33: PRAIRIE SPIRIT | B33: 0 | C33: =B33/'- 3 -'!$D33*100 -> 0 | D33: 72000 | E33: =D33/'- 3 -'!$D33*100 -> 0.2470215378
A34: RED RIVER VALLEY | B34: 0 | C34: =B34/'- 3 -'!$D34*100 -> 0 | D34: 152528 | E34: =D34/'- 3 -'!$D34*100 -> 0.4671980005
A35: RIVER EAST TRANSCONA | B35: 0 | C35: =B35/'- 3 -'!$D35*100 -> 0 | D35: 195944 | E35: =D35/'- 3 -'!$D35*100 -> 0.09739547237
A36: ROLLING RIVER | B36: 0 | C36: =B36/'- 3 -'!$D36*100 -> 0 | D36: 97500 | E36: =D36/'- 3 -'!$D36*100 -> 0.3959327353
A37: SEINE RIVER | B37: 0 | C37: =B37/'- 3 -'!$D37*100 -> 0 | D37: 50397 | E37: =D37/'- 3 -'!$D37*100 -> 0.08968863484
A38: SEVEN OAKS | B38: 0 | C38: =B38/'- 3 -'!$D38*100 -> 0 | D38: 385400 | E38: =D38/'- 3 -'!$D38*100 -> 0.2510974126
A39: SOUTHWEST HORIZON | B39: 0 | C39: =B39/'- 3 -'!$D39*100 -> 0 | D39: 15900 | E39: =D39/'- 3 -'!$D39*100 -> 0.06663984308
A40: ST. JAMES-ASSINIBOIA | B40: 0 | C40: =B40/'- 3 -'!$D40*100 -> 0 | D40: 127766 | E40: =D40/'- 3 -'!$D40*100 -> 0.1140918193
A41: SUNRISE | B41: 0 | C41: =B41/'- 3 -'!$D41*100 -> 0 | D41: 158000 | E41: =D41/'- 3 -'!$D41*100 -> 0.2312665259
A42: SWAN VALLEY | B42: 0 | C42: =B42/'- 3 -'!$D42*100 -> 0 | D42: 91924 | E42: =D42/'- 3 -'!$D42*100 -> 0.4212792878
A43: TURTLE MOUNTAIN | B43: 0 | C43: =B43/'- 3 -'!$D43*100 -> 0 | D43: 29002 | E43: =D43/'- 3 -'!$D43*100 -> 0.2075077272
A44: TURTLE RIVER | B44: 0 | C44: =B44/'- 3 -'!$D44*100 -> 0 | D44: 52800 | E44: =D44/'- 3 -'!$D44*100 -> 0.458988747
A45: WESTERN | B45: 0 | C45: =B45/'- 3 -'!$D45*100 -> 0 | D45: 81461 | E45: =D45/'- 3 -'!$D45*100 -> 0.3440386346
A46: WINNIPEG | B46: 0 | C46: =B46/'- 3 -'!$D46*100 -> 0 | D46: 394924 | E46: =D46/'- 3 -'!$D46*100 -> 0.09464726623
A48: PROVINCE | B48: =SUM(B11:B46) -> 2702509 | C48: =B48/'- 3 -'!$D48*100 -> 0.1070472004 | D48: =SUM(D11:D46) -> 6197643 | E48: =D48/'- 3 -'!$D48*100 -> 0.2454905173
A50: WHITESHELL | B50: 0 | C50: =B50/'- 3 -'!$D50*100 -> 0 | D50: 59818 | E50: =D50/'- 3 -'!$D50*100 -> 1.661388065
A51: MITT | B51: 0 | C51: =B51/'- 3 -'!$D51*100 -> 0 | D51: 0 | E51: =D51/'- 3 -'!$D51*100 -> 0

Sheet - 31 -
B2: =AEXP_BP -> ANALYSIS OF EXPENSE BY PROGRAM | G2: PAGE 14 OF 16
B3: =OPYEAR -> OPERATING FUND 2021/2022 BUDGET
B6: FUNCTION 800: OPERATIONS AND MAINTENANCE
D7: SCHOOL BUILDINGS
B8: ADMINISTRATION | D8: MAINTENANCE | F8: REPAIRS
A9: DIVISION / DISTRICT | B9: AMOUNT | C9: % | D9: AMOUNT | E9: % | F9: AMOUNT | G9: %
A11: BEAUTIFUL PLAINS | B11: 89341 | C11: =B11/'- 3 -'!$D11*100 -> 0.3829723336 | D11: 1736571 | E11: =D11/'- 3 -'!$D11*100 -> 7.444047507 | F11: 267800 | G11: =F11/'- 3 -'!$D11*100 -> 1.147961081
A12: BORDER LAND | B12: 127149 | C12: =B12/'- 3 -'!$D12*100 -> 0.36383012 | D12: 2888569 | E12: =D12/'- 3 -'!$D12*100 -> 8.265486995 | F12: 275350 | G12: =F12/'- 3 -'!$D12*100 -> 0.7878994215
A13: BRANDON | B13: 321100 | C13: =B13/'- 3 -'!$D13*100 -> 0.2927511497 | D13: 7554500 | E13: =D13/'- 3 -'!$D13*100 -> 6.887538338 | F13: 651300 | G13: =F13/'- 3 -'!$D13*100 -> 0.5937988906
A14: DSFM | B14: 388285 | C14: =B14/'- 3 -'!$D14*100 -> 0.3871282183 | D14: 9254445 | E14: =D14/'- 3 -'!$D14*100 -> 9.226874085 | F14: 757500 | G14: =F14/'- 3 -'!$D14*100 -> 0.7552432501
A15: EVERGREEN | B15: 41330 | C15: =B15/'- 3 -'!$D15*100 -> 0.1926086018 | D15: 2295905 | E15: =D15/'- 3 -'!$D15*100 -> 10.69951735 | F15: 140000 | G15: =F15/'- 3 -'!$D15*100 -> 0.6524365897
A16: FLIN FLON | B16: 111185 | C16: =B16/'- 3 -'!$D16*100 -> 0.7142151916 | D16: 1978099 | E16: =D16/'- 3 -'!$D16*100 -> 12.70664529 | F16: 80000 | G16: =F16/'- 3 -'!$D16*100 -> 0.513893199
A17: FORT LA BOSSE | B17: 74045 | C17: =B17/'- 3 -'!$D17*100 -> 0.378550828 | D17: 1638360 | E17: =D17/'- 3 -'!$D17*100 -> 8.376021805 | F17: 70000 | G17: =F17/'- 3 -'!$D17*100 -> 0.3578709968
A18: FRONTIER | B18: 1002045 | C18: =B18/'- 3 -'!$D18*100 -> 0.69055109 | D18: 18718567 | E18: =D18/'- 3 -'!$D18*100 -> 12.89974686 | F18: 2006907 | G18: =F18/'- 3 -'!$D18*100 -> 1.383043492
A19: GARDEN VALLEY | B19: 138600 | C19: =B19/'- 3 -'!$D19*100 -> 0.26522392 | D19: 4392150 | E19: =D19/'- 3 -'!$D19*100 -> 8.404785282 | F19: 110000 | G19: =F19/'- 3 -'!$D19*100 -> 0.2104951746
A20: HANOVER | B20: 240500 | C20: =B20/'- 3 -'!$D20*100 -> 0.2559986716 | D20: 7939000 | E20: =D20/'- 3 -'!$D20*100 -> 8.450617271 | F20: 616500 | G20: =F20/'- 3 -'!$D20*100 -> 0.6562294429
A21: INTERLAKE | B21: 155000 | C21: =B21/'- 3 -'!$D21*100 -> 0.4016095474 | D21: 2909000 | E21: =D21/'- 3 -'!$D21*100 -> 7.537304345 | F21: 300000 | G21: =F21/'- 3 -'!$D21*100 -> 0.7773088015
A22: KELSEY | B22: 94822 | C22: =B22/'- 3 -'!$D22*100 -> 0.4603355407 | D22: 2306219 | E22: =D22/'- 3 -'!$D22*100 -> 11.19607866 | F22: 37400 | G22: =F22/'- 3 -'!$D22*100 -> 0.1815670332
A23: LAKESHORE | B23: 78545 | C23: =B23/'- 3 -'!$D23*100 -> 0.4788025699 | D23: 1395750 | E23: =D23/'- 3 -'!$D23*100 -> 8.50835428 | F23: 140382 | G23: =F23/'- 3 -'!$D23*100 -> 0.8557548204
A24: LORD SELKIRK | B24: 146115 | C24: =B24/'- 3 -'!$D24*100 -> 0.2467737684 | D24: 5526497 | E24: =D24/'- 3 -'!$D24*100 -> 9.333706265 | F24: 555800 | G24: =F24/'- 3 -'!$D24*100 -> 0.9386911713
A25: LOUIS RIEL | B25: 686023 | C25: =B25/'- 3 -'!$D25*100 -> 0.3472827127 | D25: 18380081 | E25: =D25/'- 3 -'!$D25*100 -> 9.304475782 | F25: 430020 | G25: =F25/'- 3 -'!$D25*100 -> 0.2176873255
A26: MOUNTAIN VIEW | B26: 154200 | C26: =B26/'- 3 -'!$D26*100 -> 0.3599323915 | D26: 4531478 | E26: =D26/'- 3 -'!$D26*100 -> 10.57733926 | F26: 259700 | G26: =F26/'- 3 -'!$D26*100 -> 0.6061896374
A27: MYSTERY LAKE | B27: 209515 | C27: =B27/'- 3 -'!$D27*100 -> 0.4762868417 | D27: 4597182 | E27: =D27/'- 3 -'!$D27*100 -> 10.45069468 | F27: 681000 | G27: =F27/'- 3 -'!$D27*100 -> 1.548105573
A28: PARK WEST | B28: 72762 | C28: =B28/'- 3 -'!$D28*100 -> 0.2516023127 | D28: 3044971 | E28: =D28/'- 3 -'!$D28*100 -> 10.52914634 | F28: 156017 | G28: =F28/'- 3 -'!$D28*100 -> 0.5394881673
A29: PEMBINA TRAILS | B29: 1026666 | C29: =B29/'- 3 -'!$D29*100 -> 0.5666331175 | D29: 16053473 | E29: =D29/'- 3 -'!$D29*100 -> 8.860164312 | F29: 1435600 | G29: =F29/'- 3 -'!$D29*100 -> 0.7923302258
A30: PINE CREEK | B30: 150743 | C30: =B30/'- 3 -'!$D30*100 -> 0.9553594159 | D30: 1245812 | E30: =D30/'- 3 -'!$D30*100 -> 7.895545562 | F30: 119273 | G30: =F30/'- 3 -'!$D30*100 -> 0.7559129354
A31: PORTAGE LA PRAIRIE | B31: 141975 | C31: =B31/'- 3 -'!$D31*100 -> 0.3413872347 | D31: 3547675 | E31: =D31/'- 3 -'!$D31*100 -> 8.530593117 | F31: 155000 | G31: =F31/'- 3 -'!$D31*100 -> 0.372706613
A32: PRAIRIE ROSE | B32: 162546 | C32: =B32/'- 3 -'!$D32*100 -> 0.506266743 | D32: 2607000 | E32: =D32/'- 3 -'!$D32*100 -> 8.119777779 | F32: 236314 | G32: =F32/'- 3 -'!$D32*100 -> 0.7360249966
A33: PRAIRIE SPIRIT | B33: 122220 | C33: =B33/'- 3 -'!$D33*100 -> 0.4193190604 | D33: 2727730 | E33: =D33/'- 3 -'!$D33*100 -> 9.358445268 | F33: 323500 | G33: =F33/'- 3 -'!$D33*100 -> 1.109881493
A34: RED RIVER VALLEY | B34: 110257 | C34: =B34/'- 3 -'!$D34*100 -> 0.3377206148 | D34: 2318338 | E34: =D34/'- 3 -'!$D34*100 -> 7.101141285 | F34: 265484 | G34: =F34/'- 3 -'!$D34*100 -> 0.8131857361
A35: RIVER EAST TRANSCONA | B35: 998126 | C35: =B35/'- 3 -'!$D35*100 -> 0.4961262057 | D35: 19777400 | E35: =D35/'- 3 -'!$D35*100 -> 9.830508795 | F35: 735600 | G35: =F35/'- 3 -'!$D35*100 -> 0.3656356381
A36: ROLLING RIVER | B36: 67085 | C36: =B36/'- 3 -'!$D36*100 -> 0.2724220261 | D36: 2551560 | E36: =D36/'- 3 -'!$D36*100 -> 10.36149877 | F36: 110000 | G36: =F36/'- 3 -'!$D36*100 -> 0.4466933424
A37: SEINE RIVER | B37: 126900 | C37: =B37/'- 3 -'!$D37*100 -> 0.2258366125 | D37: 4362400 | E37: =D37/'- 3 -'!$D37*100 -> 7.76351173 | F37: 455000 | G37: =F37/'- 3 -'!$D37*100 -> 0.8097372632
A38: SEVEN OAKS | B38: 656120 | C38: =B38/'- 3 -'!$D38*100 -> 0.4274780342 | D38: 11944855 | E38: =D38/'- 3 -'!$D38*100 -> 7.782361663 | F38: 932540 | G38: =F38/'- 3 -'!$D38*100 -> 0.6075723435
A39: SOUTHWEST HORIZON | B39: 112200 | C39: =B39/'- 3 -'!$D39*100 -> 0.4702509682 | D39: 2029200 | E39: =D39/'- 3 -'!$D39*100 -> 8.504752804 | F39: 160000 | G39: =F39/'- 3 -'!$D39*100 -> 0.6705896159
A40: ST. JAMES-ASSINIBOIA | B40: 487393 | C40: =B40/'- 3 -'!$D40*100 -> 0.4352296707 | D40: 8604334 | E40: =D40/'- 3 -'!$D40*100 -> 7.683453504 | F40: 916772 | G40: =F40/'- 3 -'!$D40*100 -> 0.8186543009
A41: SUNRISE | B41: 197530 | C41: =B41/'- 3 -'!$D41*100 -> 0.2891270687 | D41: 5453459 | E41: =D41/'- 3 -'!$D41*100 -> 7.98229441 | F41: 626920 | G41: =F41/'- 3 -'!$D41*100 -> 0.9176304455
A42: SWAN VALLEY | B42: 102800 | C42: =B42/'- 3 -'!$D42*100 -> 0.4711230014 | D42: 1896134 | E42: =D42/'- 3 -'!$D42*100 -> 8.689808766 | F42: 163193 | G42: =F42/'- 3 -'!$D42*100 -> 0.7478985989
A43: TURTLE MOUNTAIN | B43: 49292 | C43: =B43/'- 3 -'!$D43*100 -> 0.3526815698 | D43: 809348 | E43: =D43/'- 3 -'!$D43*100 -> 5.790840768 | F43: 130783 | G43: =F43/'- 3 -'!$D43*100 -> 0.9357452273
A44: TURTLE RIVER | B44: 34245 | C44: =B44/'- 3 -'!$D44*100 -> 0.2976907129 | D44: 1056006 | E44: =D44/'- 3 -'!$D44*100 -> 9.179827097 | F44: 52520 | G44: =F44/'- 3 -'!$D44*100 -> 0.4565547157
A45: WESTERN | B45: 52879 | C45: =B45/'- 3 -'!$D45*100 -> 0.2233267325 | D45: 1861444 | E45: =D45/'- 3 -'!$D45*100 -> 7.861536835 | F45: 138940 | G45: =F45/'- 3 -'!$D45*100 -> 0.5867927952
A46: WINNIPEG | B46: 1213100 | C46: =B46/'- 3 -'!$D46*100 -> 0.2907308714 | D46: 42054987 | E46: =D46/'- 3 -'!$D46*100 -> 10.0788748 | F46: 6876911 | G46: =F46/'- 3 -'!$D46*100 -> 1.648116666
A48: PROVINCE | B48: =SUM(B11:B46) -> 9942639 | C48: =B48/'- 3 -'!$D48*100 -> 0.3938309437 | D48: =SUM(D11:D46) -> 231988499 | E48: =D48/'- 3 -'!$D48*100 -> 9.189134746 | F48: =SUM(F11:F46) -> 21370026 | G48: =F48/'- 3 -'!$D48*100 -> 0.8464732057
A50: WHITESHELL | B50: 32200 | C50: =B50/'- 3 -'!$D50*100 -> 0.8943243789 | D50: 464486 | E50: =D50/'- 3 -'!$D50*100 -> 12.90065694 | F50: 22000 | G50: =F50/'- 3 -'!$D50*100 -> 0.6110290788
A51: MITT | B51: 284533 | C51: =B51/'- 3 -'!$D51*100 -> 0.8546873503 | D51: 4109696 | E51: =D51/'- 3 -'!$D51*100 -> 12.34480775 | F51: 0 | G51: =F51/'- 3 -'!$D51*100 -> 0

Sheet - 32 -
B2: =AEXP_BP -> ANALYSIS OF EXPENSE BY PROGRAM | F2: PAGE 15 OF 16
B3: =OPYEAR -> OPERATING FUND 2021/2022 BUDGET
B6: FUNCTION 800: (CONT'D)
B8: OTHER BUILDINGS | D8: GROUNDS
A9: DIVISION / DISTRICT | B9: AMOUNT | C9: % | D9: AMOUNT | E9: %
A11: BEAUTIFUL PLAINS | B11: 67865 | C11: =B11/'- 3 -'!$D11*100 -> 0.290912542 | D11: 34400 | E11: =D11/'- 3 -'!$D11*100 -> 0.1474602733
A12: BORDER LAND | B12: 302513 | C12: =B12/'- 3 -'!$D12*100 -> 0.8656249054 | D12: 113551 | E12: =D12/'- 3 -'!$D12*100 -> 0.3249201642
A13: BRANDON | B13: 270600 | C13: =B13/'- 3 -'!$D13*100 -> 0.2467096266 | D13: 267400 | E13: =D13/'- 3 -'!$D13*100 -> 0.2437921439
A14: DSFM | B14: 389835 | C14: =B14/'- 3 -'!$D14*100 -> 0.3886736005 | D14: 315302 | E14: =D14/'- 3 -'!$D14*100 -> 0.3143626498
A15: EVERGREEN | B15: 102100 | C15: =B15/'- 3 -'!$D15*100 -> 0.4758126843 | D15: 75000 | E15: =D15/'- 3 -'!$D15*100 -> 0.3495196016
A16: FLIN FLON | B16: 20256 | C16: =B16/'- 3 -'!$D16*100 -> 0.130117758 | D16: 22431 | E16: =D16/'- 3 -'!$D16*100 -> 0.1440892293
A17: FORT LA BOSSE | B17: 105800 | C17: =B17/'- 3 -'!$D17*100 -> 0.5408964495 | D17: 57000 | E17: =D17/'- 3 -'!$D17*100 -> 0.2914092403
A18: FRONTIER | B18: 3852767 | C18: =B18/'- 3 -'!$D18*100 -> 2.655102766 | D18: 63299 | E18: =D18/'- 3 -'!$D18*100 -> 0.04362198648
A19: GARDEN VALLEY | B19: 116800 | C19: =B19/'- 3 -'!$D19*100 -> 0.2235076036 | D19: 64850 | E19: =D19/'- 3 -'!$D19*100 -> 0.1240964734
A20: HANOVER | B20: 203100 | C20: =B20/'- 3 -'!$D20*100 -> 0.2161884831 | D20: 408100 | E20: =D20/'- 3 -'!$D20*100 -> 0.434399409
A21: INTERLAKE | B21: 183000 | C21: =B21/'- 3 -'!$D21*100 -> 0.4741583689 | D21: 109000 | E21: =D21/'- 3 -'!$D21*100 -> 0.2824221979
A22: KELSEY | B22: 91572 | C22: =B22/'- 3 -'!$D22*100 -> 0.4445576568 | D22: 25000 | E22: =D22/'- 3 -'!$D22*100 -> 0.1213683377
A23: LAKESHORE | B23: 56700 | C23: =B23/'- 3 -'!$D23*100 -> 0.3456376054 | D23: 12700 | E23: =D23/'- 3 -'!$D23*100 -> 0.07741794688
A24: LORD SELKIRK | B24: 161086 | C24: =B24/'- 3 -'!$D24*100 -> 0.2720583052 | D24: 201500 | E24: =D24/'- 3 -'!$D24*100 -> 0.3403135499
A25: LOUIS RIEL | B25: 585000 | C25: =B25/'- 3 -'!$D25*100 -> 0.2961422386 | D25: 635000 | E25: =D25/'- 3 -'!$D25*100 -> 0.321453541
A26: MOUNTAIN VIEW | B26: 182908 | C26: =B26/'- 3 -'!$D26*100 -> 0.4269423727 | D26: 100250 | E26: =D26/'- 3 -'!$D26*100 -> 0.2340027383
A27: MYSTERY LAKE | B27: 138709 | C27: =B27/'- 3 -'!$D27*100 -> 0.3153247812 | D27: 131440 | E27: =D27/'- 3 -'!$D27*100 -> 0.2988002887
A28: PARK WEST | B28: 79150 | C28: =B28/'- 3 -'!$D28*100 -> 0.2736912544 | D28: 97000 | E28: =D28/'- 3 -'!$D28*100 -> 0.3354144242
A29: PEMBINA TRAILS | B29: 460996 | C29: =B29/'- 3 -'!$D29*100 -> 0.2544309451 | D29: 1294945 | E29: =D29/'- 3 -'!$D29*100 -> 0.7147005184
A30: PINE CREEK | B30: 70436 | C30: =B30/'- 3 -'!$D30*100 -> 0.4464001368 | D30: 49500 | E30: =D30/'- 3 -'!$D30*100 -> 0.3137146739
A31: PORTAGE LA PRAIRIE | B31: 115100 | C31: =B31/'- 3 -'!$D31*100 -> 0.2767647171 | D31: 137500 | E31: =D31/'- 3 -'!$D31*100 -> 0.3306268341
A32: PRAIRIE ROSE | B32: 124375 | C32: =B32/'- 3 -'!$D32*100 -> 0.3873791182 | D32: 125605 | E32: =D32/'- 3 -'!$D32*100 -> 0.3912100836
A33: PRAIRIE SPIRIT | B33: 116800 | C33: =B33/'- 3 -'!$D33*100 -> 0.400723828 | D33: 48950 | E33: =D33/'- 3 -'!$D33*100 -> 0.1679403372
A34: RED RIVER VALLEY | B34: 120736 | C34: =B34/'- 3 -'!$D34*100 -> 0.3698181172 | D34: 104264 | E34: =D34/'- 3 -'!$D34*100 -> 0.3193638697
A35: RIVER EAST TRANSCONA | B35: 352500 | C35: =B35/'- 3 -'!$D35*100 -> 0.1752128364 | D35: 708000 | E35: =D35/'- 3 -'!$D35*100 -> 0.3519168458
A36: ROLLING RIVER | B36: 166785 | C36: =B36/'- 3 -'!$D36*100 -> 0.6772886283 | D36: 86000 | E36: =D36/'- 3 -'!$D36*100 -> 0.3492329768
A37: SEINE RIVER | B37: 137260 | C37: =B37/'- 3 -'!$D37*100 -> 0.2442737071 | D37: 117000 | E37: =D37/'- 3 -'!$D37*100 -> 0.2082181534
A38: SEVEN OAKS | B38: 656120 | C38: =B38/'- 3 -'!$D38*100 -> 0.4274780342 | D38: 492970 | E38: =D38/'- 3 -'!$D38*100 -> 0.3211818669
A39: SOUTHWEST HORIZON | B39: 86900 | C39: =B39/'- 3 -'!$D39*100 -> 0.3642139851 | D39: 70100 | E39: =D39/'- 3 -'!$D39*100 -> 0.2938020755
A40: ST. JAMES-ASSINIBOIA | B40: 547058 | C40: =B40/'- 3 -'!$D40*100 -> 0.4885090126 | D40: 379000 | E40: =D40/'- 3 -'!$D40*100 -> 0.3384374523
A41: SUNRISE | B41: 333048 | C41: =B41/'- 3 -'!$D41*100 -> 0.4874864171 | D41: 315000 | E41: =D41/'- 3 -'!$D41*100 -> 0.4610693395
A42: SWAN VALLEY | B42: 160325 | C42: =B42/'- 3 -'!$D42*100 -> 0.7347548171 | D42: 110738 | E42: =D42/'- 3 -'!$D42*100 -> 0.5075021297
A43: TURTLE MOUNTAIN | B43: 116160 | C43: =B43/'- 3 -'!$D43*100 -> 0.8311184604 | D43: 14389 | E43: =D43/'- 3 -'!$D43*100 -> 0.1029525097
A44: TURTLE RIVER | B44: 46602 | C44: =B44/'- 3 -'!$D44*100 -> 0.405109727 | D44: 29000 | E44: =D44/'- 3 -'!$D44*100 -> 0.2520960921
A45: WESTERN | B45: 50100 | C45: =B45/'- 3 -'!$D45*100 -> 0.2115900319 | D45: 97000 | E45: =D45/'- 3 -'!$D45*100 -> 0.4096653313
A46: WINNIPEG | B46: 2405056 | C46: =B46/'- 3 -'!$D46*100 -> 0.5763943836 | D46: 1678617 | E46: =D46/'- 3 -'!$D46*100 -> 0.4022964168
A48: PROVINCE | B48: =SUM(B11:B46) -> 12976118 | C48: =B48/'- 3 -'!$D48*100 -> 0.5139879662 | D48: =SUM(D11:D46) -> 8591801 | E48: =D48/'- 3 -'!$D48*100 -> 0.3403238412
A50: WHITESHELL | B50: 0 | C50: =B50/'- 3 -'!$D50*100 -> 0 | D50: 17000 | E50: =D50/'- 3 -'!$D50*100 -> 0.4721588336
A51: MITT | B51: 0 | C51: =B51/'- 3 -'!$D51*100 -> 0 | D51: 50000 | E51: =D51/'- 3 -'!$D51*100 -> 0.150191252

Sheet - 33 -
B2: =AEXP_BP -> ANALYSIS OF EXPENSE BY PROGRAM | F2: PAGE 16 OF 16
B3: =OPYEAR -> OPERATING FUND 2021/2022 BUDGET
B6: FUNCTION 900: FISCAL
D7: HEALTH AND EDUCATION LEVY
B8: DEBT SERVICES
A9: DIVISION / DISTRICT | B9: AMOUNT | C9: % | D9: AMOUNT | E9: %
A11: BEAUTIFUL PLAINS | B11: 18000 | C11: =B11/'- 3 -'!$D11*100 -> 0.07715944532 | D11: 388060 | E11: =D11/'- 3 -'!$D11*100 -> 1.663471908
A12: BORDER LAND | B12: 30000 | C12: =B12/'- 3 -'!$D12*100 -> 0.08584340892 | D12: 535000 | E12: =D12/'- 3 -'!$D12*100 -> 1.530874126
A13: BRANDON | B13: 3300 | C13: =B13/'- 3 -'!$D13*100 -> 0.003008653983 | D13: 1896900 | E13: =D13/'- 3 -'!$D13*100 -> 1.729429012
A14: DSFM | B14: 48538 | C14: =B14/'- 3 -'!$D14*100 -> 0.04839339521 | D14: 1468710 | E14: =D14/'- 3 -'!$D14*100 -> 1.464334408
A15: EVERGREEN | B15: 0 | C15: =B15/'- 3 -'!$D15*100 -> 0 | D15: 340000 | E15: =D15/'- 3 -'!$D15*100 -> 1.584488861
A16: FLIN FLON | B16: 17500 | C16: =B16/'- 3 -'!$D16*100 -> 0.1124141373 | D16: 239454 | E16: =D16/'- 3 -'!$D16*100 -> 1.538172276
A17: FORT LA BOSSE | B17: 60000 | C17: =B17/'- 3 -'!$D17*100 -> 0.3067465687 | D17: 329000 | E17: =D17/'- 3 -'!$D17*100 -> 1.681993685
A18: FRONTIER | B18: 15000 | C18: =B18/'- 3 -'!$D18*100 -> 0.01033712693 | D18: 1275000 | E18: =D18/'- 3 -'!$D18*100 -> 0.8786557887
A19: GARDEN VALLEY | B19: 34000 | C19: =B19/'- 3 -'!$D19*100 -> 0.06506214487 | D19: 858000 | E19: =D19/'- 3 -'!$D19*100 -> 1.641862362
A20: HANOVER | B20: 137000 | C20: =B20/'- 3 -'!$D20*100 -> 0.1458287651 | D20: 1598100 | E20: =D20/'- 3 -'!$D20*100 -> 1.701087223
A21: INTERLAKE | B21: 45000 | C21: =B21/'- 3 -'!$D21*100 -> 0.1165963202 | D21: 670000 | E21: =D21/'- 3 -'!$D21*100 -> 1.735989657
A22: KELSEY | B22: 10000 | C22: =B22/'- 3 -'!$D22*100 -> 0.04854733508 | D22: 355720 | E22: =D22/'- 3 -'!$D22*100 -> 1.726925804
A23: LAKESHORE | B23: 5000 | C23: =B23/'- 3 -'!$D23*100 -> 0.03047950665 | D23: 247800 | E23: =D23/'- 3 -'!$D23*100 -> 1.510564349
A24: LORD SELKIRK | B24: 60000 | C24: =B24/'- 3 -'!$D24*100 -> 0.1013340595 | D24: 973000 | E24: =D24/'- 3 -'!$D24*100 -> 1.643300665
A25: LOUIS RIEL | B25: 214200 | C25: =B25/'- 3 -'!$D25*100 -> 0.1084336197 | D25: 3291868 | E25: =D25/'- 3 -'!$D25*100 -> 1.666429331
A26: MOUNTAIN VIEW | B26: 120000 | C26: =B26/'- 3 -'!$D26*100 -> 0.2801030284 | D26: 676724 | E26: =D26/'- 3 -'!$D26*100 -> 1.579603682
A27: MYSTERY LAKE | B27: 4000 | C27: =B27/'- 3 -'!$D27*100 -> 0.009093131121 | D27: 716520 | E27: =D27/'- 3 -'!$D27*100 -> 1.628852578
A28: PARK WEST | B28: 92600 | C28: =B28/'- 3 -'!$D28*100 -> 0.3201997493 | D28: 414000 | E28: =D28/'- 3 -'!$D28*100 -> 1.431562594
A29: PEMBINA TRAILS | B29: 250000 | C29: =B29/'- 3 -'!$D29*100 -> 0.1379789332 | D29: 3080000 | E29: =D29/'- 3 -'!$D29*100 -> 1.699900456
A30: PINE CREEK | B30: 0 | C30: =B30/'- 3 -'!$D30*100 -> 0 | D30: 254233 | E30: =D30/'- 3 -'!$D30*100 -> 1.611244903
A31: PORTAGE LA PRAIRIE | B31: 25000 | C31: =B31/'- 3 -'!$D31*100 -> 0.06011396983 | D31: 712000 | E31: =D31/'- 3 -'!$D31*100 -> 1.712045861
A32: PRAIRIE ROSE | B32: 80000 | C32: =B32/'- 3 -'!$D32*100 -> 0.2491684781 | D32: 519251 | E32: =D32/'- 3 -'!$D32*100 -> 1.617262268
A33: PRAIRIE SPIRIT | B33: 45000 | C33: =B33/'- 3 -'!$D33*100 -> 0.1543884611 | D33: 462000 | E33: =D33/'- 3 -'!$D33*100 -> 1.585054868
A34: RED RIVER VALLEY | B34: 124000 | C34: =B34/'- 3 -'!$D34*100 -> 0.3798158506 | D34: 538101 | E34: =D34/'- 3 -'!$D34*100 -> 1.648220073
A35: RIVER EAST TRANSCONA | B35: 64000 | C35: =B35/'- 3 -'!$D35*100 -> 0.03181169228 | D35: 3500000 | E35: =D35/'- 3 -'!$D35*100 -> 1.739701921
A36: ROLLING RIVER | B36: 50000 | C36: =B36/'- 3 -'!$D36*100 -> 0.2030424284 | D36: 404000 | E36: =D36/'- 3 -'!$D36*100 -> 1.640582821
A37: SEINE RIVER | B37: 30000 | C37: =B37/'- 3 -'!$D37*100 -> 0.0533892701 | D37: 900000 | E37: =D37/'- 3 -'!$D37*100 -> 1.601678103
A38: SEVEN OAKS | B38: 244163 | C38: =B38/'- 3 -'!$D38*100 -> 0.1590780944 | D38: 2525210 | E38: =D38/'- 3 -'!$D38*100 -> 1.645235333
A39: SOUTHWEST HORIZON | B39: 47900 | C39: =B39/'- 3 -'!$D39*100 -> 0.2007577663 | D39: 364050 | E39: =D39/'- 3 -'!$D39*100 -> 1.525800935
A40: ST. JAMES-ASSINIBOIA | B40: 80800 | C40: =B40/'- 3 -'!$D40*100 -> 0.07215236451 | D40: 1890683 | E40: =D40/'- 3 -'!$D40*100 -> 1.688332289
A41: SUNRISE | B41: 253000 | C41: =B41/'- 3 -'!$D41*100 -> 0.3703191838 | D41: 1117395 | E41: =D41/'- 3 -'!$D41*100 -> 1.635544681
A42: SWAN VALLEY | B42: 5000 | C42: =B42/'- 3 -'!$D42*100 -> 0.02291454287 | D42: 351000 | E42: =D42/'- 3 -'!$D42*100 -> 1.60860091
A43: TURTLE MOUNTAIN | B43: 56000 | C43: =B43/'- 3 -'!$D43*100 -> 0.4006769437 | D43: 228489 | E43: =D43/'- 3 -'!$D43*100 -> 1.634826325
A44: TURTLE RIVER | B44: 3000 | C44: =B44/'- 3 -'!$D44*100 -> 0.02607890608 | D44: 189364 | E44: =D44/'- 3 -'!$D44*100 -> 1.646135323
A45: WESTERN | B45: 35000 | C45: =B45/'- 3 -'!$D45*100 -> 0.1478173876 | D45: 399150 | E45: =D45/'- 3 -'!$D45*100 -> 1.685751722
A46: WINNIPEG | B46: 295200 | C46: =B46/'- 3 -'!$D46*100 -> 0.07074746785 | D46: 7462600 | E46: =D46/'- 3 -'!$D46*100 -> 1.788482566
A48: PROVINCE | B48: =SUM(B11:B46) -> 2602201 | C48: =B48/'- 3 -'!$D48*100 -> 0.1030739702 | D48: =SUM(D11:D46) -> 41171382 | E48: =D48/'- 3 -'!$D48*100 -> 1.630810917
A50: WHITESHELL | B50: 0 | C50: =B50/'- 3 -'!$D50*100 -> 0 | D50: 48000 | E50: =D50/'- 3 -'!$D50*100 -> 1.333154354
A51: MITT | B51: 180000 | C51: =B51/'- 3 -'!$D51*100 -> 0.5406885073 | D51: 160190 | E51: =D51/'- 3 -'!$D51*100 -> 0.4811827333

Sheet - 34 -
B2: =IF(Lang=1,BA2,BB2) -> ANALYSIS OF TRANSPORTATION EXPENSES | BA2: ANALYSIS OF TRANSPORTATION EXPENSES | BB2: ANALYSE DES DÉPENSES DE TRANSPORT
B3: =OPYEAR -> OPERATING FUND 2021/2022 BUDGET
B6: REGULAR TRANSPORTATION
B7: (PROGRAM 720)
C8: TRANSPORTED PUPILS | D8: PER PUPIL | E8: TOTAL KM (ROUTES) | F8: COST PER KM | G8: LOADED KM | H8: COST PER KM
A9: DIVISION / DISTRICT | B9: AMOUNT
A11: BEAUTIFUL PLAINS | B11: ='- 29 -'!$D11 -> 1158135 | C11: 639 | D11: =IF(AND(CELL("type",C11)="v",C11>0),B11/C11,"") -> 1812.41784 | E11: 630338 | F11: =IF(AND(CELL("type",E11)="v",E11>0),B11/E11,"") -> 1.837323785 | G11: 401440 | H11: =IF(AND(CELL("type",G11)="v",G11>0),B11/G11,"") -> 2.884951674
A12: BORDER LAND | B12: ='- 29 -'!$D12 -> 2041175 | C12: 1590 | D12: =IF(AND(CELL("type",C12)="v",C12>0),B12/C12,"") -> 1283.757862 | E12: 1054000 | F12: =IF(AND(CELL("type",E12)="v",E12>0),B12/E12,"") -> 1.936598672 | G12: 679000 | H12: =IF(AND(CELL("type",G12)="v",G12>0),B12/G12,"") -> 3.006148748
A13: BRANDON | B13: ='- 29 -'!$D13 -> 2351600 | C13: 3200 | D13: 734.875 | E13: 839842 | F13: 2.800050486 | G13: 513278 | H13: 4.581532815
A14: DSFM | B14: ='- 29 -'!$D14 -> 9850870 | C14: 4954 | D14: 1988.467905 | E14: 3245322 | F14: 3.03540604 | G14: 1697691 | H14: 5.802510586
A15: EVERGREEN | B15: ='- 29 -'!$D15 -> 1510284 | C15: 975 | D15: 1549.009231 | E15: 755000 | F15: 2.000376159 | G15: 469000 | H15: 3.220221748
A16: FLIN FLON | B16: ='- 29 -'!$D16 -> 389770 | C16: 293 | D16: 1330.273038 | E16: 58194 | F16: 6.69776953 | G16: 38796 | H16: 10.04665429
A17: FORT LA BOSSE | B17: ='- 29 -'!$D17 -> 1398360 | C17: 670 | D17: 2087.104478 | E17: 908595 | F17: 1.539035544 | G17: 597495 | H17: 2.340371049
A18: FRONTIER | B18: ='- 29 -'!$D18 -> 8151766 | C18: 5140 | D18: 1585.946693 | E18: 1730000 | F18: 4.712003468 | G18: 1143000 | H18: 7.131903762
A19: GARDEN VALLEY | B19: ='- 29 -'!$D19 -> 2808110 | C19: 2700 | D19: 1040.040741 | E19: 840000 | F19: 3.342988095 | G19: 480000 | H19: 5.850229167
A20: HANOVER | B20: ='- 29 -'!$D20 -> 3455900 | C20: 4967 | D20: 695.7720958 | E20: 1407673 | F20: 2.455044602 | G20: 751801 | H20: 4.59682815
A21: INTERLAKE | B21: ='- 29 -'!$D21 -> 2035358 | C21: 1467 | D21: 1387.428766 | E21: 816180 | F21: 2.49376118 | G21: 507898 | H21: 4.007414875
A22: KELSEY | B22: ='- 29 -'!$D22 -> 442114 | C22: 443 | D22: 998 | E22: 186810 | F22: 2.366650608 | G22: 120900 | H22: 3.656856907
A23: LAKESHORE | B23: ='- 29 -'!$D23 -> 1623490 | C23: 705 | D23: 2302.822695 | E23: 906000 | F23: 1.791931567 | G23: 534000 | H23: 3.040243446
A24: LORD SELKIRK | B24: ='- 29 -'!$D24 -> 2502795 | C24: 2450 | D24: 1021.54898 | E24: 1004670 | F24: 2.491161277 | G24: 454206 | H24: 5.510264065
A25: LOUIS RIEL | B25: ='- 29 -'!$D25 -> 4526747 | C25: 2854 | D25: 1586.106167 | E25: 581490 | F25: 7.784737485 | G25: 320450 | H25: 14.12621938
A26: MOUNTAIN VIEW | B26: ='- 29 -'!$D26 -> 2716426 | C26: 1479 | D26: 1836.663962 | E26: 1368139 | F26: 1.985489778 | G26: 1000149 | H26: 2.716021313
A27: MYSTERY LAKE | B27: ='- 29 -'!$D27 -> 50000 | C27: N/A | D27: =IF(AND(CELL("type",C27)="v",C27>0),B27/C27,"") ->  | E27: N/A | F27: =IF(AND(CELL("type",E27)="v",E27>0),B27/E27,"") ->  | G27: N/A
A28: PARK WEST | B28: ='- 29 -'!$D28 -> 1696958 | C28: 765 | D28: 2218.245752 | E28: 1100000 | F28: 1.542689091 | G28: 700000 | H28: 2.424225714
A29: PEMBINA TRAILS | B29: ='- 29 -'!$D29 -> 3517839 | C29: 2850 | D29: 1234.329474 | E29: 650000 | F29: 5.41206 | G29: 382000 | H29: 9.209002618
A30: PINE CREEK | B30: ='- 29 -'!$D30 -> 1168515 | C30: 539 | D30: 2167.931354 | E30: 531549 | F30: 2.198320381 | G30: 440743 | H30: 2.651238931
A31: PORTAGE LA PRAIRIE | B31: ='- 29 -'!$D31 -> 1108398 | C31: 1148 | D31: 965.5034843 | E31: 598744 | F31: 1.85120519 | G31: 389334 | H31: 2.846907796
A32: PRAIRIE ROSE | B32: ='- 29 -'!$D32 -> 2043350 | C32: 1148 | D32: 1779.921603 | E32: 1294890 | F32: 1.578010487 | G32: 801943 | H32: 2.547999047
A33: PRAIRIE SPIRIT | B33: ='- 29 -'!$D33 -> 2300165 | C33: 1130 | D33: 2035.544248 | E33: 1515000 | F33: 1.518260726 | G33: 900000 | H33: 2.555738889
A34: RED RIVER VALLEY | B34: ='- 29 -'!$D34 -> 2567717 | C34: 1526 | D34: 1682.645478 | E34: 1498851 | F34: 1.713123586 | G34: 963399 | H34: 2.665268492
A35: RIVER EAST TRANSCONA | B35: ='- 29 -'!$D35 -> 4445500 | C35: 4300 | D35: 1033.837209 | E35: 1160488 | F35: 3.830716044 | G35: 597465 | H35: 7.440603215
A36: ROLLING RIVER | B36: ='- 29 -'!$D36 -> 1650040 | C36: 904 | D36: 1825.265487 | E36: 830088 | F36: 1.987789246 | G36: 527040 | H36: 3.130768063
A37: SEINE RIVER | B37: ='- 29 -'!$D37 -> 3264660 | C37: 3040 | D37: 1073.901316 | E37: 1351638 | F37: 2.415336059 | G37: 831552 | H37: 3.925984184
A38: SEVEN OAKS | B38: ='- 29 -'!$D38 -> 3053508 | C38: 2941 | D38: 1038.255015 | E38: 729678 | F38: 4.18473354 | G38: 377394 | H38: 8.091034834
A39: SOUTHWEST HORIZON | B39: ='- 29 -'!$D39 -> 2137700 | C39: 769 | D39: 2779.843953 | E39: 1097000 | F39: 1.948678213 | G39: 659600 | H39: 3.240903578
A40: ST. JAMES-ASSINIBOIA | B40: ='- 29 -'!$D40 -> 2259380 | C40: 1578 | D40: 1431.799747 | E40: 300000 | F40: 7.531266667 | G40: 155000 | H40: 14.57664516
A41: SUNRISE | B41: ='- 29 -'!$D41 -> 4507744 | C41: 3724 | D41: 1210.457573 | E41: 1379349 | F41: 3.268022814 | G41: 955240 | H41: 4.718964867
A42: SWAN VALLEY | B42: ='- 29 -'!$D42 -> 1644441 | C42: 1249 | D42: 1316.606085 | E42: 742477 | F42: 2.21480396 | G42: 650734 | H42: 2.527055602
A43: TURTLE MOUNTAIN | B43: ='- 29 -'!$D43 -> 964648 | C43: 503 | D43: 1917.789264 | E43: 549894 | F43: 1.754243545 | G43: 355570 | H43: 2.712962286
A44: TURTLE RIVER | B44: ='- 29 -'!$D44 -> 1030481 | C44: 0 | E44: 0 | G44: 0
A45: WESTERN | B45: ='- 29 -'!$D45 -> 851733 | C45: 1225 | D45: 695.2922449 | E45: 273000 | F45: 3.119901099 | G45: 164500 | H45: 5.177708207
A46: WINNIPEG | B46: ='- 29 -'!$D46 -> 6246852 | C46: 2045 | D46: 3054.695355 | E46: 596925 | F46: 10.4650534 | G46: 368900 | H46: 16.9337273
A48: PROVINCE | B48: =SUM(B11:B46) -> 93472529 | C48: =SUM(C11:C46) -> 65910 | D48: =B48/C48 -> 1418.184327 | E48: =SUM(E11:E46) -> 32531824 | F48: =B48/E48 -> 2.873264315 | G48: =SUM(G11:G46) -> 19929518 | H48: =B48/G48 -> 4.690155025
A50: WHITESHELL | B50: ='- 29 -'!$D50 -> 0 | C50: N/A | D50: =IF(AND(CELL("type",C50)="v",C50>0),B50/C50,"") ->  | E50: N/A | F50: =IF(AND(CELL("type",E50)="v",E50>0),B50/E50,"") ->  | G50: N/A | H50: =IF(AND(CELL("type",G50)="v",G50>0),B50/G50,"") -> 
A51: MITT | B51: ='- 29 -'!$D51 -> 0 | C51: 0 | D51: =IF(AND(CELL("type",C51)="v",C51>0),B51/C51,"") ->  | E51: 0 | F51: =IF(AND(CELL("type",E51)="v",E51>0),B51/E51,"") ->  | G51: 0 | H51: =IF(AND(CELL("type",G51)="v",G51>0),B51/G51,"") -> 

Sheet - 35 -
B2: =IF(Lang=1,BA2,BB2) -> ANALYSIS OF TRANSPORTATION EXPENSES (CONT'D) | BA2: ANALYSIS OF TRANSPORTATION EXPENSES (CONT'D) | BB2: ANALYSE DES DÉPENSES DE TRANSPORT (SUITE)
B3: =OPYEAR -> OPERATING FUND 2021/2022 BUDGET
B6: ADMINISTRATION, REGULAR AND OTHER
B7: (PROGRAMS 710, 720 AND 790)
C8: TOTAL KM (LOG BOOK) | D8: COST PER KM
A9: DIVISION / DISTRICT | B9: AMOUNT
A11: BEAUTIFUL PLAINS | B11: =SUM('- 29 -'!$B11,'- 29 -'!$D11,'- 30 -'!$D11) -> 1392850 | C11: 664227 | D11: =IF(AND(CELL("type",C11)="v",C11>0),B11/C11,"") -> 2.096948784
A12: BORDER LAND | B12: =SUM('- 29 -'!$B12,'- 29 -'!$D12,'- 30 -'!$D12) -> 2480891 | C12: 1130000 | D12: =IF(AND(CELL("type",C12)="v",C12>0),B12/C12,"") -> 2.195478761
A13: BRANDON | B13: =SUM('- 29 -'!$B13,'- 29 -'!$D13,'- 30 -'!$D13) -> 2652700 | C13: 902960 | D13: 2.937782405
A14: DSFM | B14: =SUM('- 29 -'!$B14,'- 29 -'!$D14,'- 30 -'!$D14) -> 10510272 | C14: N/A
A15: EVERGREEN | B15: =SUM('- 29 -'!$B15,'- 29 -'!$D15,'- 30 -'!$D15) -> 1800494 | C15: 850000 | D15: 2.118228235
A16: FLIN FLON | B16: =SUM('- 29 -'!$B16,'- 29 -'!$D16,'- 30 -'!$D16) -> 559198 | C16: 58194 | D16: 9.609203698
A17: FORT LA BOSSE | B17: =SUM('- 29 -'!$B17,'- 29 -'!$D17,'- 30 -'!$D17) -> 1509455 | C17: 953905 | D17: 1.582395522
A18: FRONTIER | B18: =SUM('- 29 -'!$B18,'- 29 -'!$D18,'- 30 -'!$D18) -> 9657207 | C18: 1850000 | D18: 5.220111892
A19: GARDEN VALLEY | B19: =SUM('- 29 -'!$B19,'- 29 -'!$D19,'- 30 -'!$D19) -> 3247430 | C19: 960000 | D19: 3.382739583
A20: HANOVER | B20: =SUM('- 29 -'!$B20,'- 29 -'!$D20,'- 30 -'!$D20) -> 4267500 | C20: 1633973 | D20: 2.611732262
A21: INTERLAKE | B21: =SUM('- 29 -'!$B21,'- 29 -'!$D21,'- 30 -'!$D21) -> 2318000 | C21: 800000 | D21: 2.8975
A22: KELSEY | B22: =SUM('- 29 -'!$B22,'- 29 -'!$D22,'- 30 -'!$D22) -> 556404 | C22: 191545 | D22: 2.904821321
A23: LAKESHORE | B23: =SUM('- 29 -'!$B23,'- 29 -'!$D23,'- 30 -'!$D23) -> 1743240 | C23: 815000 | D23: 2.138944785
A24: LORD SELKIRK | B24: =SUM('- 29 -'!$B24,'- 29 -'!$D24,'- 30 -'!$D24) -> 2807358 | C24: 1030000 | D24: 2.725590291
A25: LOUIS RIEL | B25: =SUM('- 29 -'!$B25,'- 29 -'!$D25,'- 30 -'!$D25) -> 5037155 | C25: 740746 | D25: 6.800110969
A26: MOUNTAIN VIEW | B26: =SUM('- 29 -'!$B26,'- 29 -'!$D26,'- 30 -'!$D26) -> 3154742 | C26: 1408139 | D26: 2.240362635
A27: MYSTERY LAKE | B27: =SUM('- 29 -'!$B27,'- 29 -'!$D27,'- 30 -'!$D27) -> 155000 | C27: N/A
A28: PARK WEST | B28: =SUM('- 29 -'!$B28,'- 29 -'!$D28,'- 30 -'!$D28) -> 1811886 | C28: 1000000 | D28: 1.811886
A29: PEMBINA TRAILS | B29: =SUM('- 29 -'!$B29,'- 29 -'!$D29,'- 30 -'!$D29) -> 3977459 | C29: 700000 | D29: 5.682084286
A30: PINE CREEK | B30: =SUM('- 29 -'!$B30,'- 29 -'!$D30,'- 30 -'!$D30) -> 1359359 | C30: 734122 | D30: 1.851679966
A31: PORTAGE LA PRAIRIE | B31: =SUM('- 29 -'!$B31,'- 29 -'!$D31,'- 30 -'!$D31) -> 1244018 | C31: 524996 | D31: 2.369576149
A32: PRAIRIE ROSE | B32: =SUM('- 29 -'!$B32,'- 29 -'!$D32,'- 30 -'!$D32) -> 2345445 | C32: 1105401 | D32: 2.121804666
A33: PRAIRIE SPIRIT | B33: =SUM('- 29 -'!$B33,'- 29 -'!$D33,'- 30 -'!$D33) -> 2497100 | C33: 1545000 | D33: 1.616245955
A34: RED RIVER VALLEY | B34: =SUM('- 29 -'!$B34,'- 29 -'!$D34,'- 30 -'!$D34) -> 2882701 | C34: 1314663 | D34: 2.19273
A35: RIVER EAST TRANSCONA | B35: =SUM('- 29 -'!$B35,'- 29 -'!$D35,'- 30 -'!$D35) -> 5065114 | C35: 1483440 | D35: 3.414438063
A36: ROLLING RIVER | B36: =SUM('- 29 -'!$B36,'- 29 -'!$D36,'- 30 -'!$D36) -> 1810750 | C36: 864149.3452 | D36: 2.095413264
A37: SEINE RIVER | B37: =SUM('- 29 -'!$B37,'- 29 -'!$D37,'- 30 -'!$D37) -> 3564197 | C37: 1360638 | D37: 2.619504233
A38: SEVEN OAKS | B38: =SUM('- 29 -'!$B38,'- 29 -'!$D38,'- 30 -'!$D38) -> 3832018 | C38: 1111300 | D38: 3.448230001
A39: SOUTHWEST HORIZON | B39: =SUM('- 29 -'!$B39,'- 29 -'!$D39,'- 30 -'!$D39) -> 2277700 | C39: 1028300 | D39: 2.215015073
A40: ST. JAMES-ASSINIBOIA | B40: =SUM('- 29 -'!$B40,'- 29 -'!$D40,'- 30 -'!$D40) -> 2523335 | C40: 425000 | D40: 5.937258824
A41: SUNRISE | B41: =SUM('- 29 -'!$B41,'- 29 -'!$D41,'- 30 -'!$D41) -> 5173984 | C41: 1572778 | D41: 3.289710309
A42: SWAN VALLEY | B42: =SUM('- 29 -'!$B42,'- 29 -'!$D42,'- 30 -'!$D42) -> 1867997 | C42: 680325 | D42: 2.745742109
A43: TURTLE MOUNTAIN | B43: =SUM('- 29 -'!$B43,'- 29 -'!$D43,'- 30 -'!$D43) -> 1075023 | C43: 568139 | D43: 1.892183075
A44: TURTLE RIVER | B44: =SUM('- 29 -'!$B44,'- 29 -'!$D44,'- 30 -'!$D44) -> 1122370 | C44: 0
A45: WESTERN | B45: =SUM('- 29 -'!$B45,'- 29 -'!$D45,'- 30 -'!$D45) -> 984573 | C45: 300000 | D45: 3.28191
A46: WINNIPEG | B46: =SUM('- 29 -'!$B46,'- 29 -'!$D46,'- 30 -'!$D46) -> 7314176 | C46: 748511 | D46: 9.771634619
A48: PROVINCE | B48: =SUM(B11:B46) -> 106579101 | C48: =SUM(C11:C46) -> 31055451.35 | D48: =B48/C48 -> 3.4318967
A50: WHITESHELL | B50: =SUM('- 29 -'!$B50,'- 29 -'!$D50,'- 30 -'!$D50) -> 59818 | C50: N/A | D50: =IF(AND(CELL("type",C50)="v",C50>0),B50/C50,"") -> 
A51: MITT | B51: =SUM('- 29 -'!$B51,'- 29 -'!$D51,'- 30 -'!$D51) -> 0 | C51: 0 | D51: =IF(AND(CELL("type",C51)="v",C51>0),B51/C51,"") -> 

Sheet - 36 -
A2: =IF(Lang=1,BA2,BB2) -> ANALYSIS OF OPERATIONS AND MAINTENANCE EXPENSES FOR SCHOOL BUILDINGS | BA2: ANALYSIS OF OPERATIONS AND MAINTENANCE EXPENSES FOR SCHOOL BUILDINGS | BB2: ANALYSE DES DÉPENSES DE FONCTIONNEMENT ET D'ENTRETIEN DES BÂTIMENTS SCOLAIRES
A3: =OPYEAR -> OPERATING FUND 2021/2022 BUDGET
F6: REPAIRS AND REPLACEMENTS
B7: MAINTENANCE | I7: TOTAL
C8: COST PER PUPIL | D8: COST PER SQ FT (1) | E8: SQ FT PER PUPIL (2) | G8: COST PER SQ FT (1) | I8: AREA
A9: DIVISION / DISTRICT | B9: AMOUNT | F9: AMOUNT | I9: Sep 30, 20
A11: BEAUTIFUL PLAINS | B11: ='- 31 -'!D11 -> 1736571 | C11: =B11/'- 7 -'!E11 -> 838.113417 | D11: =B11/I11 -> 5.566753432 | E11: =I11/'- 7 -'!E11 -> 150.5569498 | F11: ='- 31 -'!F11 -> 267800 | G11: =F11/I11 -> 0.8584599011 | I11: 311954
A12: BORDER LAND | B12: ='- 31 -'!D12 -> 2888569 | C12: =B12/'- 7 -'!E12 -> 1337.387145 | D12: 7.070727618 | E12: =I12/'- 7 -'!E12 -> 189.1442038 | F12: ='- 31 -'!F12 -> 275350 | G12: 0.6740101585 | I12: 408525
A13: BRANDON | B13: ='- 31 -'!D13 -> 7554500 | C13: =B13/'- 7 -'!E13 -> 863.6181766 | D13: 7.11693651 | E13: =I13/'- 7 -'!E13 -> 121.3468991 | F13: ='- 31 -'!F13 -> 651300 | G13: 0.6135761134 | I13: 1061482
A14: DSFM | B14: ='- 31 -'!D14 -> 9254445 | C14: =B14/'- 7 -'!E14 -> 1526.380505 | D14: 8.941466836 | E14: =I14/'- 7 -'!E14 -> 170.7080653 | F14: ='- 31 -'!F14 -> 757500 | G14: 0.7318819366 | I14: 1035003
A15: EVERGREEN | B15: ='- 31 -'!D15 -> 2295905 | C15: =B15/'- 7 -'!E15 -> 1706.992565 | D15: 7.88282736 | E15: =I15/'- 7 -'!E15 -> 216.5457249 | F15: ='- 31 -'!F15 -> 140000 | G15: 0.4806800937 | I15: 291254
A16: FLIN FLON | B16: ='- 31 -'!D16 -> 1978099 | C16: =B16/'- 7 -'!E16 -> 2086.602321 | D16: 9.430970941 | E16: =I16/'- 7 -'!E16 -> 221.25 | F16: ='- 31 -'!F16 -> 80000 | G16: 0.3814155284 | I16: 209745
A17: FORT LA BOSSE | B17: ='- 31 -'!D17 -> 1638360 | C17: =B17/'- 7 -'!E17 -> 1159.080297 | D17: 6.204616462 | E17: =I17/'- 7 -'!E17 -> 186.8093385 | F17: ='- 31 -'!F17 -> 70000 | G17: 0.2650962868 | I17: 264055
A18: FRONTIER | B18: ='- 31 -'!D18 -> 18718567 | C18: =B18/'- 7 -'!E18 -> 3176.407093 | D18: 12.70379168 | E18: =I18/'- 7 -'!E18 -> 250.0361446 | F18: ='- 31 -'!F18 -> 2006907 | G18: 1.362034201 | I18: 1473463
A19: GARDEN VALLEY | B19: ='- 31 -'!D19 -> 4392150 | C19: =B19/'- 7 -'!E19 -> 1030.537306 | D19: 6.148766509 | E19: =I19/'- 7 -'!E19 -> 167.600657 | F19: ='- 31 -'!F19 -> 110000 | G19: 0.1539939018 | I19: 714314
A20: HANOVER | B20: ='- 31 -'!D20 -> 7939000 | C20: =B20/'- 7 -'!E20 -> 973.7519931 | D20: 7.083440773 | E20: =I20/'- 7 -'!E20 -> 137.4687845 | F20: ='- 31 -'!F20 -> 616500 | G20: 0.5500618764 | I20: 1120783
A21: INTERLAKE | B21: ='- 31 -'!D21 -> 2909000 | C21: =B21/'- 7 -'!E21 -> 1018.557423 | D21: 6.333909605 | E21: =I21/'- 7 -'!E21 -> 160.8102241 | F21: ='- 31 -'!F21 -> 300000 | G21: 0.6532048407 | I21: 459274
A22: KELSEY | B22: ='- 31 -'!D22 -> 2306219 | C22: =B22/'- 7 -'!E22 -> 1591.593513 | D22: 6.765327615 | E22: =I22/'- 7 -'!E22 -> 235.2574189 | F22: ='- 31 -'!F22 -> 37400 | G22: 0.1097134543 | I22: 340888
A23: LAKESHORE | B23: ='- 31 -'!D23 -> 1395750 | C23: =B23/'- 7 -'!E23 -> 1497.585837 | D23: 5.983768906 | E23: =I23/'- 7 -'!E23 -> 250.2746781 | F23: ='- 31 -'!F23 -> 140382 | G23: 0.6018366087 | I23: 233256
A24: LORD SELKIRK | B24: ='- 31 -'!D24 -> 5526497 | C24: =B24/'- 7 -'!E24 -> 1485.617473 | D24: 7.773791204 | E24: =I24/'- 7 -'!E24 -> 191.105914 | F24: ='- 31 -'!F24 -> 555800 | G24: 0.7818104581 | I24: 710914
A25: LOUIS RIEL | B25: ='- 31 -'!D25 -> 18380081 | C25: =B25/'- 7 -'!E25 -> 1189.418301 | D25: 7.921956999 | E25: =I25/'- 7 -'!E25 -> 150.1419789 | F25: ='- 31 -'!F25 -> 430020 | G25: 0.1853419443 | I25: 2320144
A26: MOUNTAIN VIEW | B26: ='- 31 -'!D26 -> 4531478 | C26: =B26/'- 7 -'!E26 -> 1494.550792 | D26: 5.886542401 | E26: =I26/'- 7 -'!E26 -> 253.89281 | F26: ='- 31 -'!F26 -> 259700 | G26: 0.3373590386 | I26: 769803
A27: MYSTERY LAKE | B27: ='- 31 -'!D27 -> 4597182 | C27: =B27/'- 7 -'!E27 -> 1636.124279 | D27: 9.830999891 | E27: =I27/'- 7 -'!E27 -> 166.4250125 | F27: ='- 31 -'!F27 -> 681000 | G27: 1.456307565 | I27: 467621 | L27: AREA
A28: PARK WEST | B28: ='- 31 -'!D28 -> 3044971 | C28: =B28/'- 7 -'!E28 -> 1498.140713 | D28: 6.869321476 | E28: =I28/'- 7 -'!E28 -> 218.0915129 | F28: ='- 31 -'!F28 -> 156017 | G28: 0.3519675323 | I28: 443271 | K28: 50000 | L28: Waywayseecapo Included | N28: 50000
A29: PEMBINA TRAILS | B29: ='- 31 -'!D29 -> 16053473 | C29: =B29/'- 7 -'!E29 -> 1093.635329 | D29: 8.684143534 | E29: =I29/'- 7 -'!E29 -> 125.9347367 | F29: ='- 31 -'!F29 -> 1435600 | G29: 0.7765893684 | I29: 1848596
A30: PINE CREEK | B30: ='- 31 -'!D30 -> 1245812 | C30: =B30/'- 7 -'!E30 -> 1171.977422 | D30: 5.940216951 | E30: =I30/'- 7 -'!E30 -> 197.2953904 | F30: ='- 31 -'!F30 -> 119273 | G30: 0.5687114078 | I30: 209725
A31: PORTAGE LA PRAIRIE | B31: ='- 31 -'!D31 -> 3547675 | C31: =B31/'- 7 -'!E31 -> 1056.169991 | D31: 5.84938434 | E31: =I31/'- 7 -'!E31 -> 180.5608812 | F31: ='- 31 -'!F31 -> 155000 | G31: 0.2555630301 | I31: 606504
A32: PRAIRIE ROSE | B32: ='- 31 -'!D32 -> 2607000 | C32: =B32/'- 7 -'!E32 -> 1100.929054 | D32: 6.727811384 | E32: =I32/'- 7 -'!E32 -> 163.6385135 | F32: ='- 31 -'!F32 -> 236314 | G32: 0.6098488759 | I32: 387496
A33: PRAIRIE SPIRIT | B33: ='- 31 -'!D33 -> 2727730 | C33: =B33/'- 7 -'!E33 -> 1299.84751 | D33: 5.544673801 | E33: =I33/'- 7 -'!E33 -> 234.431737 | F33: ='- 31 -'!F33 -> 323500 | G33: 0.6575804698 | I33: 491955
A34: RED RIVER VALLEY | B34: ='- 31 -'!D34 -> 2318338 | C34: =B34/'- 7 -'!E34 -> 1028.680836 | D34: 6.058400951 | E34: =I34/'- 7 -'!E34 -> 169.7941163 | F34: ='- 31 -'!F34 -> 265484 | G34: 0.6937765408 | I34: 382665
A35: RIVER EAST TRANSCONA | B35: ='- 31 -'!D35 -> 19777400 | C35: =B35/'- 7 -'!E35 -> 1213.635248 | D35: 8.020601624 | E35: =I35/'- 7 -'!E35 -> 151.3147398 | F35: ='- 31 -'!F35 -> 735600 | G35: 0.2983180072 | I35: 2465825
A36: ROLLING RIVER | B36: ='- 31 -'!D36 -> 2551560 | C36: =B36/'- 7 -'!E36 -> 1406.980976 | D36: 7.926585668 | E36: =I36/'- 7 -'!E36 -> 177.5015164 | F36: ='- 31 -'!F36 -> 110000 | G36: 0.341722093 | I36: 321899
A37: SEINE RIVER | B37: ='- 31 -'!D37 -> 4362400 | C37: =B37/'- 7 -'!E37 -> 999.6333639 | D37: 7.39611714 | E37: =I37/'- 7 -'!E37 -> 135.1565078 | F37: ='- 31 -'!F37 -> 455000 | G37: 0.771417866 | I37: 589823
A38: SEVEN OAKS | B38: ='- 31 -'!D38 -> 11944855 | C38: =B38/'- 7 -'!E38 -> 1021.372992 | D38: 8.58221459 | E38: =I38/'- 7 -'!E38 -> 119.0104233 | F38: ='- 31 -'!F38 -> 932540 | G38: 0.6700172077 | I38: 1391815
A39: SOUTHWEST HORIZON | B39: ='- 31 -'!D39 -> 2029200 | C39: =B39/'- 7 -'!E39 -> 1345.177328 | D39: 6.390315642 | E39: =I39/'- 7 -'!E39 -> 210.5024859 | F39: ='- 31 -'!F39 -> 160000 | G39: 0.5038687674 | I39: 317543
A40: ST. JAMES-ASSINIBOIA | B40: ='- 31 -'!D40 -> 8604334 | C40: =B40/'- 7 -'!E40 -> 1050.859683 | D40: 5.897216682 | E40: =I40/'- 7 -'!E40 -> 178.1958744 | F40: ='- 31 -'!F40 -> 916772 | G40: 0.6283348754 | I40: 1459050
A41: SUNRISE | B41: ='- 31 -'!D41 -> 5453459 | C41: =B41/'- 7 -'!E41 -> 1205.983857 | D41: 7.198079002 | E41: =I41/'- 7 -'!E41 -> 167.5424591 | F41: ='- 31 -'!F41 -> 626920 | G41: 0.8274784294 | I41: 757627
A42: SWAN VALLEY | B42: ='- 31 -'!D42 -> 1896134 | C42: =B42/'- 7 -'!E42 -> 1399.360886 | D42: 6.522491718 | E42: =I42/'- 7 -'!E42 -> 214.5439114 | F42: ='- 31 -'!F42 -> 163193 | G42: 0.5613659114 | I42: 290707
A43: TURTLE MOUNTAIN | B43: ='- 31 -'!D43 -> 809348 | C43: =B43/'- 7 -'!E43 -> 818.7637835 | D43: =B43/I43 -> 4.432403422 | E43: =I43/'- 7 -'!E43 -> 184.7223065 | F43: ='- 31 -'!F43 -> 130783 | G43: =F43/I43 -> 0.7162345699 | I43: 182598
A44: TURTLE RIVER | B44: ='- 31 -'!D44 -> 1056006 | C44: =B44/'- 7 -'!E44 -> 1569.102526 | D44: =B44/I44 -> 5.84374706 | E44: =I44/'- 7 -'!E44 -> 268.5096582 | F44: ='- 31 -'!F44 -> 52520 | G44: =F44/I44 -> 0.2906362233 | I44: 180707
A45: WESTERN | B45: ='- 31 -'!D45 -> 1861444 | C45: =B45/'- 7 -'!E45 -> 915.614363 | D45: =B45/I45 -> 8.2200741 | E45: =I45/'- 7 -'!E45 -> 111.3876045 | F45: ='- 31 -'!F45 -> 138940 | G45: =F45/I45 -> 0.6135543672 | I45: 226451
A46: WINNIPEG | B46: ='- 31 -'!D46 -> 42054987 | C46: =B46/'- 7 -'!E46 -> 1380.232265 | D46: =B46/I46 -> 8.305404153 | E46: =I46/'- 7 -'!E46 -> 166.1848406 | F46: ='- 31 -'!F46 -> 6876911 | G46: =F46/I46 -> 1.358115393 | I46: 5063569
A48: PROVINCE | B48: =SUM(B11:B46) -> 231988499 | C48: =B48/'- 7 -'!E48 -> 1267.224727 | D48: =B48/I48 -> 7.782158109 | E48: =I48/'- 7 -'!E48 -> 162.8371859 | F48: =SUM(F11:F46) -> 21370026 | G48: =F48/I48 -> 0.716867094 | I48: =SUM(I11:I46) -> 29810304
A50: WHITESHELL | B50: ='- 31 -'!D50 -> 464486 | C50: =B50/'- 7 -'!E50 -> 2639.125 | D50: =B50/I50 -> 6.35794459 | E50: =I50/'- 7 -'!E50 -> 415.0909091 | F50: ='- 31 -'!F50 -> 22000 | G50: N/A | I50: 73056
A51: MITT | B51: ='- 31 -'!D51 -> 4109696 | C51: =B51/'- 7 -'!E51 -> 2316.626832 | D51: N/A | E51: N/A | F51: ='- 31 -'!F51 -> 0 | G51: N/A
A53: (1) Based on area (square footage) of active school buildings as at September 30, 2020. Includes rented and leased space.
A54: (2) Square footage (as per note above) divided by total FTE enrolment (from page 7).

Sheet - 37 -
B2: =IF(Lang=1,BA2,BB2) -> ANALYSIS OF INFORMATION TECHNOLOGY EXPENSES | BA2: ANALYSIS OF INFORMATION TECHNOLOGY EXPENSES | BB2: ANALYSE DES DÉPENSES DE TECHNOLOGIE DE L'INFORMATION
B3: =OPYEAR -> OPERATING FUND 2021/2022 BUDGET
B6: INFORMATION TECHNOLOGY EXPENSES (1)
B7: SALARIES | E7: SERVICES | H7: EQUIPMENT
D8: PER PUPIL | G8: PER PUPIL | J8: PER PUPIL
A9: DIVISION / DISTRICT | B9: AMOUNT | C9: % | E9: AMOUNT | F9: % | H9: AMOUNT | I9: %
A11: BEAUTIFUL PLAINS | B11: 152105 | C11: =B11/'- 3 -'!$D11*100 -> 0.6520187461 | D11: =B11/'- 7 -'!$E11 -> 73.40974903 | E11: 214516 | F11: =E11/'- 3 -'!$D11*100 -> 0.9195519763 | G11: =E11/'- 7 -'!$E11 -> 103.530888 | H11: 219334 | I11: =H11/'- 3 -'!$D11*100 -> 0.9402049878 | J11: =H11/'- 7 -'!$E11 -> 105.8561776
A12: BORDER LAND | B12: 317767 | C12: =B12/'- 3 -'!$D12*100 -> 0.9092734174 | D12: =B12/'- 7 -'!$E12 -> 147.1238877 | E12: 275308 | F12: =E12/'- 3 -'!$D12*100 -> 0.7877792407 | G12: =E12/'- 7 -'!$E12 -> 127.4656691 | H12: 398833 | I12: =H12/'- 3 -'!$D12*100 -> 1.141239477 | J12: =H12/'- 7 -'!$E12 -> 184.6568759
A13: BRANDON | B13: 544700 | C13: =B13/'- 3 -'!$D13*100 -> 0.4966102498 | D13: =B13/'- 7 -'!$E13 -> 62.26921978 | E13: 628100 | F13: =E13/'- 3 -'!$D13*100 -> 0.5726471414 | G13: =E13/'- 7 -'!$E13 -> 71.80337239 | H13: 941800 | I13: =H13/'- 3 -'!$D13*100 -> 0.8586516125 | J13: =H13/'- 7 -'!$E13 -> 107.6650472
A14: DSFM | B14: 579370 | C14: =B14/'- 3 -'!$D14*100 -> 0.5776439364 | D14: =B14/'- 7 -'!$E14 -> 95.55830447 | E14: 562612 | F14: =E14/'- 3 -'!$D14*100 -> 0.5609358619 | G14: =E14/'- 7 -'!$E14 -> 92.79432624 | H14: 611239 | I14: =H14/'- 3 -'!$D14*100 -> 0.609417992 | J14: =H14/'- 7 -'!$E14 -> 100.8146132
A15: EVERGREEN | B15: 145000 | C15: =B15/'- 3 -'!$D15*100 -> 0.6757378965 | D15: =B15/'- 7 -'!$E15 -> 107.8066914 | E15: 196912 | F15: =E15/'- 3 -'!$D15*100 -> 0.9176613839 | G15: =E15/'- 7 -'!$E15 -> 146.402974 | H15: 114000 | I15: =H15/'- 3 -'!$D15*100 -> 0.5312697945 | J15: =H15/'- 7 -'!$E15 -> 84.75836431
A16: FLIN FLON | B16: 0 | C16: =B16/'- 3 -'!$D16*100 -> 0 | D16: =B16/'- 7 -'!$E16 -> 0 | E16: 190800 | F16: =E16/'- 3 -'!$D16*100 -> 1.22563528 | G16: =E16/'- 7 -'!$E16 -> 201.2658228 | H16: 34664 | I16: =H16/'- 3 -'!$D16*100 -> 0.2226699231 | J16: =H16/'- 7 -'!$E16 -> 36.56540084
A17: FORT LA BOSSE | B17: 129600 | C17: =B17/'- 3 -'!$D17*100 -> 0.6625725884 | D17: =B17/'- 7 -'!$E17 -> 91.68730103 | E17: 153075 | F17: =E17/'- 3 -'!$D17*100 -> 0.7825871834 | G17: =E17/'- 7 -'!$E17 -> 108.2950124 | H17: 133500 | I17: =H17/'- 3 -'!$D17*100 -> 0.6825111153 | J17: =H17/'- 7 -'!$E17 -> 94.44640962
A18: FRONTIER | B18: 367781 | C18: =B18/'- 3 -'!$D18*100 -> 0.2534532585 | D18: =B18/'- 7 -'!$E18 -> 62.40980825 | E18: 0 | F18: =E18/'- 3 -'!$D18*100 -> 0 | G18: =E18/'- 7 -'!$E18 -> 0 | H18: 1822995 | I18: =H18/'- 3 -'!$D18*100 -> 1.256302047 | J18: =H18/'- 7 -'!$E18 -> 309.3492279
A19: GARDEN VALLEY | B19: 622000 | C19: =B19/'- 3 -'!$D19*100 -> 1.190254533 | D19: =B19/'- 7 -'!$E19 -> 145.9408728 | E19: 239600 | F19: =E19/'- 3 -'!$D19*100 -> 0.4584967621 | G19: =E19/'- 7 -'!$E19 -> 56.21773815 | H19: 593000 | I19: =H19/'- 3 -'!$D19*100 -> 1.13476035 | J19: =H19/'- 7 -'!$E19 -> 139.1365556
A20: HANOVER | B20: 797100 | C20: =B20/'- 3 -'!$D20*100 -> 0.8484679464 | D20: =B20/'- 7 -'!$E20 -> 97.76769287 | E20: 387900 | F20: =E20/'- 3 -'!$D20*100 -> 0.4128976495 | G20: =E20/'- 7 -'!$E20 -> 47.57757881 | H20: 2172500 | I20: =H20/'- 3 -'!$D20*100 -> 2.312503592 | J20: =H20/'- 7 -'!$E20 -> 266.4663314
A21: INTERLAKE | B21: 364624 | C21: =B21/'- 3 -'!$D21*100 -> 0.9447514814 | D21: =B21/'- 7 -'!$E21 -> 127.6694678 | E21: 164700 | F21: =E21/'- 3 -'!$D21*100 -> 0.426742532 | G21: =E21/'- 7 -'!$E21 -> 57.66806723 | H21: 383565 | I21: =H21/'- 3 -'!$D21*100 -> 0.9938281681 | J21: =H21/'- 7 -'!$E21 -> 134.3014706
A22: KELSEY | B22: 139824 | C22: =B22/'- 3 -'!$D22*100 -> 0.6788082581 | D22: =B22/'- 7 -'!$E22 -> 96.49689441 | E22: 20407 | F22: =E22/'- 3 -'!$D22*100 -> 0.09907054671 | G22: =E22/'- 7 -'!$E22 -> 14.08350587 | H22: 229800 | I22: =H22/'- 3 -'!$D22*100 -> 1.11561776 | J22: =H22/'- 7 -'!$E22 -> 158.5921325
A23: LAKESHORE | B23: 125250 | C23: =B23/'- 3 -'!$D23*100 -> 0.7635116415 | D23: =B23/'- 7 -'!$E23 -> 134.388412 | E23: 90500 | F23: =E23/'- 3 -'!$D23*100 -> 0.5516790703 | G23: =E23/'- 7 -'!$E23 -> 97.10300429 | H23: 150000 | I23: =H23/'- 3 -'!$D23*100 -> 0.9143851994 | J23: =H23/'- 7 -'!$E23 -> 160.944206
A24: LORD SELKIRK | B24: 492847 | C24: =B24/'- 3 -'!$D24*100 -> 0.8323697872 | D24: =B24/'- 7 -'!$E24 -> 132.4857527 | E24: 461805 | F24: =E24/'- 3 -'!$D24*100 -> 0.7799429226 | G24: =E24/'- 7 -'!$E24 -> 124.141129 | H24: 962500 | I24: =H24/'- 3 -'!$D24*100 -> 1.625567205 | J24: =H24/'- 7 -'!$E24 -> 258.7365591
A25: LOUIS RIEL | B25: 972152 | C25: =B25/'- 3 -'!$D25*100 -> 0.4921286659 | D25: =B25/'- 7 -'!$E25 -> 62.91024397 | E25: 1256058 | F25: =E25/'- 3 -'!$D25*100 -> 0.6358492785 | G25: =E25/'- 7 -'!$E25 -> 81.28246942 | H25: 1900602 | I25: =H25/'- 3 -'!$D25*100 -> 0.9621342409 | J25: =H25/'- 7 -'!$E25 -> 122.9924287
A26: MOUNTAIN VIEW | B26: 413462 | C26: =B26/'- 3 -'!$D26*100 -> 0.9650996528 | D26: =B26/'- 7 -'!$E26 -> 136.366095 | E26: 471475 | F26: =E26/'- 3 -'!$D26*100 -> 1.100513128 | G26: =E26/'- 7 -'!$E26 -> 155.4996702 | H26: 354690 | I26: =H26/'- 3 -'!$D26*100 -> 0.8279145263 | J26: =H26/'- 7 -'!$E26 -> 116.98219
A27: MYSTERY LAKE | B27: 125809 | C27: =B27/'- 3 -'!$D27*100 -> 0.2859994333 | D27: =B27/'- 7 -'!$E27 -> 44.77507296 | E27: 211100 | F27: =E27/'- 3 -'!$D27*100 -> 0.4798899949 | G27: =E27/'- 7 -'!$E27 -> 75.12990248 | H27: 198300 | I27: =H27/'- 3 -'!$D27*100 -> 0.4507919753 | J27: =H27/'- 7 -'!$E27 -> 70.57441811
A28: PARK WEST | B28: 258519 | C28: =B28/'- 3 -'!$D28*100 -> 0.8939278509 | D28: =B28/'- 7 -'!$E28 -> 127.1926199 | E28: 264025 | F28: =E28/'- 3 -'!$D28*100 -> 0.9129669418 | G28: =E28/'- 7 -'!$E28 -> 129.901599 | H28: 318241 | I28: =H28/'- 3 -'!$D28*100 -> 1.1004394 | J28: =H28/'- 7 -'!$E28 -> 156.5761378
A29: PEMBINA TRAILS | B29: 1550307 | C29: =B29/'- 3 -'!$D29*100 -> 0.8556388237 | D29: =B29/'- 7 -'!$E29 -> 105.6139383 | E29: 1438273 | F29: =E29/'- 3 -'!$D29*100 -> 0.7938054965 | G29: =E29/'- 7 -'!$E29 -> 97.9816745 | H29: 1508300 | I29: =H29/'- 3 -'!$D29*100 -> 0.8324544995 | J29: =H29/'- 7 -'!$E29 -> 102.7522311
A30: PINE CREEK | B30: 140255 | C30: =B30/'- 3 -'!$D30*100 -> 0.8888899311 | D30: =B30/'- 7 -'!$E30 -> 131.9426152 | E30: 143090 | F30: =E30/'- 3 -'!$D30*100 -> 0.906857226 | G30: =E30/'- 7 -'!$E30 -> 134.6095955 | H30: 130297 | I30: =H30/'- 3 -'!$D30*100 -> 0.8257794114 | J30: =H30/'- 7 -'!$E30 -> 122.5747883
A31: PORTAGE LA PRAIRIE | B31: 352500 | C31: =B31/'- 3 -'!$D31*100 -> 0.8476069747 | D31: =B31/'- 7 -'!$E31 -> 104.941947 | E31: 219420 | F31: =E31/'- 3 -'!$D31*100 -> 0.5276082904 | G31: =E31/'- 7 -'!$E31 -> 65.3230128 | H31: 275300 | I31: =H31/'- 3 -'!$D31*100 -> 0.6619750358 | J31: =H31/'- 7 -'!$E31 -> 81.95891634
A32: PRAIRIE ROSE | B32: 226370 | C32: =B32/'- 3 -'!$D32*100 -> 0.7050533548 | D32: =B32/'- 7 -'!$E32 -> 95.59543919 | E32: 180717 | F32: =E32/'- 3 -'!$D32*100 -> 0.5628622481 | G32: =E32/'- 7 -'!$E32 -> 76.31630068 | H32: 247147 | I32: =H32/'- 3 -'!$D32*100 -> 0.7697655231 | J32: =H32/'- 7 -'!$E32 -> 104.3695101
A33: PRAIRIE SPIRIT | B33: 379060 | C33: =B33/'- 3 -'!$D33*100 -> 1.300499779 | D33: =B33/'- 7 -'!$E33 -> 180.633786 | E33: 293250 | F33: =E33/'- 3 -'!$D33*100 -> 1.006098138 | G33: =E33/'- 7 -'!$E33 -> 139.7426733 | H33: 218000 | I33: =H33/'- 3 -'!$D33*100 -> 0.7479263228 | J33: =H33/'- 7 -'!$E33 -> 103.8837265
A34: RED RIVER VALLEY | B34: 200549 | C34: =B34/'- 3 -'!$D34*100 -> 0.6142878146 | D34: =B34/'- 7 -'!$E34 -> 88.98655544 | E34: 196155 | F34: =E34/'- 3 -'!$D34*100 -> 0.6008288562 | G34: =E34/'- 7 -'!$E34 -> 87.0368727 | H34: 216326 | I34: =H34/'- 3 -'!$D34*100 -> 0.6626132556 | J34: =H34/'- 7 -'!$E34 -> 95.98704353
A35: RIVER EAST TRANSCONA | B35: 953000 | C35: =B35/'- 3 -'!$D35*100 -> 0.4736959803 | D35: =B35/'- 7 -'!$E35 -> 58.48060874 | E35: 887799 | F35: =E35/'- 3 -'!$D35*100 -> 0.4412873218 | G35: =E35/'- 7 -'!$E35 -> 54.47956554 | H35: 1576613 | I35: =H35/'- 3 -'!$D35*100 -> 0.7836676187 | J35: =H35/'- 7 -'!$E35 -> 96.74846588
A36: ROLLING RIVER | B36: 205370 | C36: =B36/'- 3 -'!$D36*100 -> 0.8339764702 | D36: =B36/'- 7 -'!$E36 -> 113.2451061 | E36: 283575 | F36: =E36/'- 3 -'!$D36*100 -> 1.151555132 | G36: =E36/'- 7 -'!$E36 -> 156.3688999 | H36: 272000 | I36: =H36/'- 3 -'!$D36*100 -> 1.10455081 | J36: =H36/'- 7 -'!$E36 -> 149.9862145
A37: SEINE RIVER | B37: 309250 | C37: =B37/'- 3 -'!$D37*100 -> 0.5503543926 | D37: =B37/'- 7 -'!$E37 -> 70.86388634 | E37: 691400 | F37: =E37/'- 3 -'!$D37*100 -> 1.230444712 | G37: =E37/'- 7 -'!$E37 -> 158.4326306 | H37: 438400 | I37: =H37/'- 3 -'!$D37*100 -> 0.7801952004 | J37: =H37/'- 7 -'!$E37 -> 100.4582951
A38: SEVEN OAKS | B38: 377830 | C38: =B38/'- 3 -'!$D38*100 -> 0.2461653747 | D38: =B38/'- 7 -'!$E38 -> 32.30724504 | E38: 711200 | F38: =E38/'- 3 -'!$D38*100 -> 0.4633639851 | G38: =E38/'- 7 -'!$E38 -> 60.81283294 | H38: 1283160 | I38: =H38/'- 3 -'!$D38*100 -> 0.8360097457 | J38: =H38/'- 7 -'!$E38 -> 109.7196214
A39: SOUTHWEST HORIZON | B39: 162200 | C39: =B39/'- 3 -'!$D39*100 -> 0.6798102231 | D39: =B39/'- 7 -'!$E39 -> 107.5240305 | E39: 148500 | F39: =E39/'- 3 -'!$D39*100 -> 0.6223909873 | G39: =E39/'- 7 -'!$E39 -> 98.44216109 | H39: 44100 | I39: =H39/'- 3 -'!$D39*100 -> 0.1848312629 | J39: =H39/'- 7 -'!$E39 -> 29.23433875
A40: ST. JAMES-ASSINIBOIA | B40: 661718 | C40: =B40/'- 3 -'!$D40*100 -> 0.5908975042 | D40: =B40/'- 7 -'!$E40 -> 80.81657079 | E40: 615177 | F40: =E40/'- 3 -'!$D40*100 -> 0.5493375636 | G40: =E40/'- 7 -'!$E40 -> 75.13245154 | H40: 1053134 | I40: =H40/'- 3 -'!$D40*100 -> 0.9404221317 | J40: =H40/'- 7 -'!$E40 -> 128.6207697
A41: SUNRISE | B41: 400061 | C41: =B41/'- 3 -'!$D41*100 -> 0.585574162 | D41: =B41/'- 7 -'!$E41 -> 88.46992481 | E41: 703854 | F41: =E41/'- 3 -'!$D41*100 -> 1.030239679 | G41: =E41/'- 7 -'!$E41 -> 155.6510394 | H41: 185802 | I41: =H41/'- 3 -'!$D41*100 -> 0.2719606521 | J41: =H41/'- 7 -'!$E41 -> 41.08845644
A42: SWAN VALLEY | B42: 200701 | C42: =B42/'- 3 -'!$D42*100 -> 0.9197943337 | D42: =B42/'- 7 -'!$E42 -> 148.1188192 | E42: 217210 | F42: =E42/'- 3 -'!$D42*100 -> 0.9954535714 | G42: =E42/'- 7 -'!$E42 -> 160.302583 | H42: 99250 | I42: =H42/'- 3 -'!$D42*100 -> 0.454853676 | J42: =H42/'- 7 -'!$E42 -> 73.24723247
A43: TURTLE MOUNTAIN | B43: 63010 | C43: =B43/'- 3 -'!$D43*100 -> 0.4508331111 | D43: =B43/'- 7 -'!$E43 -> 63.74304502 | E43: 112616 | F43: =E43/'- 3 -'!$D43*100 -> 0.8057613338 | G43: =E43/'- 7 -'!$E43 -> 113.9261507 | H43: 195291 | I43: =H43/'- 3 -'!$D43*100 -> 1.397296447 | J43: =H43/'- 7 -'!$E43 -> 197.5629742
A44: TURTLE RIVER | B44: 125872 | C44: =B44/'- 3 -'!$D44*100 -> 1.094201355 | D44: =B44/'- 7 -'!$E44 -> 187.0312036 | E44: 82500 | F44: =E44/'- 3 -'!$D44*100 -> 0.7171699171 | G44: =E44/'- 7 -'!$E44 -> 122.5854383 | H44: 139446 | I44: =H44/'- 3 -'!$D44*100 -> 1.212199712 | J44: =H44/'- 7 -'!$E44 -> 207.2005944
A45: WESTERN | B45: 251109 | C45: =B45/'- 3 -'!$D45*100 -> 1.060522182 | D45: =B45/'- 7 -'!$E45 -> 123.5164781 | E45: 97890 | F45: =E45/'- 3 -'!$D45*100 -> 0.4134241163 | G45: =E45/'- 7 -'!$E45 -> 48.15051648 | H45: 154775 | I45: =H45/'- 3 -'!$D45*100 -> 0.6536696047 | J45: =H45/'- 7 -'!$E45 -> 76.13133301
A46: WINNIPEG | B46: 986900 | C46: =B46/'- 3 -'!$D46*100 -> 0.2365199052 | D46: =B46/'- 7 -'!$E46 -> 32.38976682 | E46: 1396499 | F46: =E46/'- 3 -'!$D46*100 -> 0.3346841738 | G46: =E46/'- 7 -'!$E46 -> 45.83268514 | H46: 2792461 | I46: =H46/'- 3 -'!$D46*100 -> 0.6692396505 | J46: =H46/'- 7 -'!$E46 -> 91.64774611
A48: PROVINCE | B48: =SUM(B11:B46) -> 14093972 | C48: =B48/'- 3 -'!$D48*100 -> 0.5582665019 | D48: =B48/'- 7 -'!$E48 -> 76.98756572 | E48: =SUM(E11:E46) -> 14208018 | F48: =E48/'- 3 -'!$D48*100 -> 0.5627838985 | G48: =E48/'- 7 -'!$E48 -> 77.61053588 | H48: =SUM(H11:H46) -> 22369365 | I48: =H48/'- 3 -'!$D48*100 -> 0.8860573263 | J48: =H48/'- 7 -'!$E48 -> 122.1914559
A50: WHITESHELL | B50: 0 | C50: =B50/'- 3 -'!$D50*100 -> 0 | D50: =B50/'- 7 -'!$E50 -> 0 | E50: 35000 | F50: =E50/'- 3 -'!$D50*100 -> 0.9720917162 | G50: =E50/'- 7 -'!$E50 -> 198.8636364 | H50: 15000 | I50: =H50/'- 3 -'!$D50*100 -> 0.4166107355 | J50: =H50/'- 7 -'!$E50 -> 85.22727273
A51: MITT | B51: 257448 | C51: =B51/'- 3 -'!$D51*100 -> 0.7733287491 | D51: =B51/'- 7 -'!$E51 -> 145.1228861 | E51: 303976 | F51: =E51/'- 3 -'!$D51*100 -> 0.9130907206 | G51: =E51/'- 7 -'!$E51 -> 171.3506201 | H51: 130500 | I51: =H51/'- 3 -'!$D51*100 -> 0.3919991678 | J51: =H51/'- 7 -'!$E51 -> 73.56257046
A53: (1) Excludes information technology expenses in Function 300 (Adult Learning Centres) and Function 400 (Community Education and Services) and Management Information Services in Function 500. Total expenses for Management Information Services are included on page 38 and form part of total Information Technology Expenses.

Sheet - 38 -
B2: =+'- 37 -'!B2 -> ANALYSIS OF INFORMATION TECHNOLOGY EXPENSES
B3: =OPYEAR -> OPERATING FUND 2021/2022 BUDGET
B5: INFORMATION TECHNOLOGY EXPENSES (1)
B6: MANAGEMENT INFORMATION SERVICES (2)
E7: TOTAL
D8: PER PUPIL | G8: PER PUPIL
A9: DIVISION / DISTRICT | B9: AMOUNT | C9: % | E9: AMOUNT | F9: %
A11: BEAUTIFUL PLAINS | B11: ='- 26 -'!B11 -> 15100 | C11: ='- 26 -'!C11 -> 0.06472820135 | D11: ='- 26 -'!D11 -> 7.287644788 | E11: =SUM('- 37 -'!B11,'- 37 -'!E11,'- 37 -'!H11,B11) -> 601055 | F11: =E11/'- 3 -'!D11*100 -> 2.576503912 | G11: =E11/'- 7 -'!E11 -> 290.0844595
A12: BORDER LAND | B12: ='- 26 -'!B12 -> 61654 | C12: ='- 26 -'!C12 -> 0.1764196511 | D12: ='- 26 -'!D12 -> 28.54536868 | E12: =SUM('- 37 -'!B12,'- 37 -'!E12,'- 37 -'!H12,B12) -> 1053562 | F12: =E12/'- 3 -'!D12*100 -> 3.014711786 | G12: =E12/'- 7 -'!E12 -> 487.7918013
A13: BRANDON | B13: ='- 26 -'!B13 -> 342200 | C13: ='- 26 -'!C13 -> 0.3119883009 | D13: ='- 26 -'!D13 -> 39.1197485 | E13: =SUM('- 37 -'!B13,'- 37 -'!E13,'- 37 -'!H13,B13) -> 2456800 | F13: =E13/'- 3 -'!D13*100 -> 2.239897305 | G13: =E13/'- 7 -'!E13 -> 280.8573878
A14: DSFM | B14: ='- 26 -'!B14 -> 136262 | C14: ='- 26 -'!C14 -> 0.1358560472 | D14: ='- 26 -'!D14 -> 22.47435263 | E14: =SUM('- 37 -'!B14,'- 37 -'!E14,'- 37 -'!H14,B14) -> 1889483 | F14: =E14/'- 3 -'!D14*100 -> 1.883853838 | G14: =E14/'- 7 -'!E14 -> 311.6415966
A15: EVERGREEN | B15: ='- 26 -'!B15 -> 40000 | C15: ='- 26 -'!C15 -> 0.1864104542 | D15: ='- 26 -'!D15 -> 29.73977695 | E15: =SUM('- 37 -'!B15,'- 37 -'!E15,'- 37 -'!H15,B15) -> 495912 | F15: =E15/'- 3 -'!D15*100 -> 2.311079529 | G15: =E15/'- 7 -'!E15 -> 368.7078067
A16: FLIN FLON | B16: ='- 26 -'!B16 -> 37293 | C16: ='- 26 -'!C16 -> 0.2395577384 | D16: ='- 26 -'!D16 -> 39.33860759 | E16: =SUM('- 37 -'!B16,'- 37 -'!E16,'- 37 -'!H16,B16) -> 262757 | F16: =E16/'- 3 -'!D16*100 -> 1.687862941 | G16: =E16/'- 7 -'!E16 -> 277.1698312
A17: FORT LA BOSSE | B17: ='- 26 -'!B17 -> 87440 | C17: ='- 26 -'!C17 -> 0.4470319994 | D17: ='- 26 -'!D17 -> 61.86062964 | E17: =SUM('- 37 -'!B17,'- 37 -'!E17,'- 37 -'!H17,B17) -> 503615 | F17: =E17/'- 3 -'!D17*100 -> 2.574702887 | G17: =E17/'- 7 -'!E17 -> 356.2893527
A18: FRONTIER | B18: ='- 26 -'!B18 -> 768053 | C18: ='- 26 -'!C18 -> 0.5292974231 | D18: ='- 26 -'!D18 -> 130.3331071 | E18: =SUM('- 37 -'!B18,'- 37 -'!E18,'- 37 -'!H18,B18) -> 2958829 | F18: =E18/'- 3 -'!D18*100 -> 2.039052728 | G18: =E18/'- 7 -'!E18 -> 502.0921432
A19: GARDEN VALLEY | B19: ='- 26 -'!B19 -> 166400 | C19: ='- 26 -'!C19 -> 0.3184217914 | D19: ='- 26 -'!D19 -> 39.04270296 | E19: =SUM('- 37 -'!B19,'- 37 -'!E19,'- 37 -'!H19,B19) -> 1621000 | F19: =E19/'- 3 -'!D19*100 -> 3.101933436 | G19: =E19/'- 7 -'!E19 -> 380.3378695
A20: HANOVER | B20: ='- 26 -'!B20 -> 91800 | C20: ='- 26 -'!C20 -> 0.09771591705 | D20: ='- 26 -'!D20 -> 11.25965902 | E20: =SUM('- 37 -'!B20,'- 37 -'!E20,'- 37 -'!H20,B20) -> 3449300 | F20: =E20/'- 3 -'!D20*100 -> 3.671585105 | G20: =E20/'- 7 -'!E20 -> 423.0712621
A21: INTERLAKE | B21: ='- 26 -'!B21 -> 48000 | C21: ='- 26 -'!C21 -> 0.1243694082 | D21: ='- 26 -'!D21 -> 16.80672269 | E21: =SUM('- 37 -'!B21,'- 37 -'!E21,'- 37 -'!H21,B21) -> 960889 | F21: =E21/'- 3 -'!D21*100 -> 2.48969159 | G21: =E21/'- 7 -'!E21 -> 336.4457283
A22: KELSEY | B22: ='- 26 -'!B22 -> 22500 | C22: ='- 26 -'!C22 -> 0.1092315039 | D22: ='- 26 -'!D22 -> 15.52795031 | E22: =SUM('- 37 -'!B22,'- 37 -'!E22,'- 37 -'!H22,B22) -> 412531 | F22: =E22/'- 3 -'!D22*100 -> 2.002728069 | G22: =E22/'- 7 -'!E22 -> 284.7004831
A23: LAKESHORE | B23: ='- 26 -'!B23 -> 20000 | C23: ='- 26 -'!C23 -> 0.1219180266 | D23: ='- 26 -'!D23 -> 21.45922747 | E23: =SUM('- 37 -'!B23,'- 37 -'!E23,'- 37 -'!H23,B23) -> 385750 | F23: =E23/'- 3 -'!D23*100 -> 2.351493938 | G23: =E23/'- 7 -'!E23 -> 413.8948498
A24: LORD SELKIRK | B24: ='- 26 -'!B24 -> 162826 | C24: ='- 26 -'!C24 -> 0.2749969929 | D24: ='- 26 -'!D24 -> 43.77043011 | E24: =SUM('- 37 -'!B24,'- 37 -'!E24,'- 37 -'!H24,B24) -> 2079978 | F24: =E24/'- 3 -'!D24*100 -> 3.512876907 | G24: =E24/'- 7 -'!E24 -> 559.133871
A25: LOUIS RIEL | B25: ='- 26 -'!B25 -> 1086489 | C25: ='- 26 -'!C25 -> 0.5500090336 | D25: ='- 26 -'!D25 -> 70.30926034 | E25: =SUM('- 37 -'!B25,'- 37 -'!E25,'- 37 -'!H25,B25) -> 5215301 | F25: =E25/'- 3 -'!D25*100 -> 2.640121219 | G25: =E25/'- 7 -'!E25 -> 337.4944024
A26: MOUNTAIN VIEW | B26: ='- 26 -'!B26 -> 34000 | C26: ='- 26 -'!C26 -> 0.07936252472 | D26: ='- 26 -'!D26 -> 11.21372032 | E26: =SUM('- 37 -'!B26,'- 37 -'!E26,'- 37 -'!H26,B26) -> 1273627 | F26: =E26/'- 3 -'!D26*100 -> 2.972889832 | G26: =E26/'- 7 -'!E26 -> 420.0616755
A27: MYSTERY LAKE | B27: ='- 26 -'!B27 -> 201719 | C27: ='- 26 -'!C27 -> 0.4585643292 | D27: ='- 26 -'!D27 -> 71.79123069 | E27: =SUM('- 37 -'!B27,'- 37 -'!E27,'- 37 -'!H27,B27) -> 736928 | F27: =E27/'- 3 -'!D27*100 -> 1.675245733 | G27: =E27/'- 7 -'!E27 -> 262.2706242
A28: PARK WEST | B28: ='- 26 -'!B28 -> 85050 | C28: ='- 26 -'!C28 -> 0.2940927503 | D28: ='- 26 -'!D28 -> 41.84501845 | E28: =SUM('- 37 -'!B28,'- 37 -'!E28,'- 37 -'!H28,B28) -> 925835 | F28: =E28/'- 3 -'!D28*100 -> 3.201426943 | G28: =E28/'- 7 -'!E28 -> 455.5153752
A29: PEMBINA TRAILS | B29: ='- 26 -'!B29 -> 990534 | C29: ='- 26 -'!C29 -> 0.5466912983 | D29: ='- 26 -'!D29 -> 67.47966483 | E29: =SUM('- 37 -'!B29,'- 37 -'!E29,'- 37 -'!H29,B29) -> 5487414 | F29: =E29/'- 3 -'!D29*100 -> 3.028590118 | G29: =E29/'- 7 -'!E29 -> 373.8275087
A30: PINE CREEK | B30: ='- 26 -'!B30 -> 23968 | C30: ='- 26 -'!C30 -> 0.1519012789 | D30: ='- 26 -'!D30 -> 22.54750706 | E30: =SUM('- 37 -'!B30,'- 37 -'!E30,'- 37 -'!H30,B30) -> 437610 | F30: =E30/'- 3 -'!D30*100 -> 2.773427847 | G30: =E30/'- 7 -'!E30 -> 411.6745061
A31: PORTAGE LA PRAIRIE | B31: ='- 26 -'!B31 -> 85400 | C31: ='- 26 -'!C31 -> 0.205349321 | D31: ='- 26 -'!D31 -> 25.4242334 | E31: =SUM('- 37 -'!B31,'- 37 -'!E31,'- 37 -'!H31,B31) -> 932620 | F31: =E31/'- 3 -'!D31*100 -> 2.242539622 | G31: =E31/'- 7 -'!E31 -> 277.6481096
A32: PRAIRIE ROSE | B32: ='- 26 -'!B32 -> 61000 | C32: ='- 26 -'!C32 -> 0.1899909645 | D32: ='- 26 -'!D32 -> 25.76013514 | E32: =SUM('- 37 -'!B32,'- 37 -'!E32,'- 37 -'!H32,B32) -> 715234 | F32: =E32/'- 3 -'!D32*100 -> 2.227672091 | G32: =E32/'- 7 -'!E32 -> 302.0413851
A33: PRAIRIE SPIRIT | B33: ='- 26 -'!B33 -> 40750 | C33: ='- 26 -'!C33 -> 0.1398073287 | D33: ='- 26 -'!D33 -> 19.41863236 | E33: =SUM('- 37 -'!B33,'- 37 -'!E33,'- 37 -'!H33,B33) -> 931060 | F33: =E33/'- 3 -'!D33*100 -> 3.194331569 | G33: =E33/'- 7 -'!E33 -> 443.6788182
A34: RED RIVER VALLEY | B34: ='- 26 -'!B34 -> 39220 | C34: ='- 26 -'!C34 -> 0.1201320779 | D34: ='- 26 -'!D34 -> 17.40249368 | E34: =SUM('- 37 -'!B34,'- 37 -'!E34,'- 37 -'!H34,B34) -> 652250 | F34: =E34/'- 3 -'!D34*100 -> 1.997862004 | G34: =E34/'- 7 -'!E34 -> 289.4129653
A35: RIVER EAST TRANSCONA | B35: ='- 26 -'!B35 -> 815947 | C35: ='- 26 -'!C35 -> 0.4055727325 | D35: ='- 26 -'!D35 -> 50.07038537 | E35: =SUM('- 37 -'!B35,'- 37 -'!E35,'- 37 -'!H35,B35) -> 4233359 | F35: =E35/'- 3 -'!D35*100 -> 2.104223653 | G35: =E35/'- 7 -'!E35 -> 259.7790255
A36: ROLLING RIVER | B36: ='- 26 -'!B36 -> 31500 | C36: ='- 26 -'!C36 -> 0.1279167299 | D36: ='- 26 -'!D36 -> 17.36972705 | E36: =SUM('- 37 -'!B36,'- 37 -'!E36,'- 37 -'!H36,B36) -> 792445 | F36: =E36/'- 3 -'!D36*100 -> 3.217999143 | G36: =E36/'- 7 -'!E36 -> 436.9699476
A37: SEINE RIVER | B37: ='- 26 -'!B37 -> 90500 | C37: ='- 26 -'!C37 -> 0.1610576315 | D37: ='- 26 -'!D37 -> 20.73785518 | E37: =SUM('- 37 -'!B37,'- 37 -'!E37,'- 37 -'!H37,B37) -> 1529550 | F37: =E37/'- 3 -'!D37*100 -> 2.722051936 | G37: =E37/'- 7 -'!E37 -> 350.4926673
A38: SEVEN OAKS | B38: ='- 26 -'!B38 -> 604450 | C38: ='- 26 -'!C38 -> 0.3938137807 | D38: ='- 26 -'!D38 -> 51.68492249 | E38: =SUM('- 37 -'!B38,'- 37 -'!E38,'- 37 -'!H38,B38) -> 2976640 | F38: =E38/'- 3 -'!D38*100 -> 1.939352886 | G38: =E38/'- 7 -'!E38 -> 254.5246218
A39: SOUTHWEST HORIZON | B39: ='- 26 -'!B39 -> 55900 | C39: ='- 26 -'!C39 -> 0.2342872471 | D39: ='- 26 -'!D39 -> 37.05667882 | E39: =SUM('- 37 -'!B39,'- 37 -'!E39,'- 37 -'!H39,B39) -> 410700 | F39: =E39/'- 3 -'!D39*100 -> 1.72131972 | G39: =E39/'- 7 -'!E39 -> 272.2572091
A40: ST. JAMES-ASSINIBOIA | B40: ='- 26 -'!B40 -> 408826 | C40: ='- 26 -'!C40 -> 0.365071319 | D40: ='- 26 -'!D40 -> 49.93050721 | E40: =SUM('- 37 -'!B40,'- 37 -'!E40,'- 37 -'!H40,B40) -> 2738855 | F40: =E40/'- 3 -'!D40*100 -> 2.445728518 | G40: =E40/'- 7 -'!E40 -> 334.5002992
A41: SUNRISE | B41: ='- 26 -'!B41 -> 126146 | C41: ='- 26 -'!C41 -> 0.1846414378 | D41: ='- 26 -'!D41 -> 27.89606369 | E41: =SUM('- 37 -'!B41,'- 37 -'!E41,'- 37 -'!H41,B41) -> 1415863 | F41: =E41/'- 3 -'!D41*100 -> 2.072415931 | G41: =E41/'- 7 -'!E41 -> 313.1054843
A42: SWAN VALLEY | B42: ='- 26 -'!B42 -> 17000 | C42: ='- 26 -'!C42 -> 0.07790944576 | D42: ='- 26 -'!D42 -> 12.54612546 | E42: =SUM('- 37 -'!B42,'- 37 -'!E42,'- 37 -'!H42,B42) -> 534161 | F42: =E42/'- 3 -'!D42*100 -> 2.448011027 | G42: =E42/'- 7 -'!E42 -> 394.2147601
A43: TURTLE MOUNTAIN | B43: ='- 26 -'!B43 -> 19082 | C43: ='- 26 -'!C43 -> 0.1365306686 | D43: ='- 26 -'!D43 -> 19.30399595 | E43: =SUM('- 37 -'!B43,'- 37 -'!E43,'- 37 -'!H43,B43) -> 389999 | F43: =E43/'- 3 -'!D43*100 -> 2.79042156 | G43: =E43/'- 7 -'!E43 -> 394.5361659
A44: TURTLE RIVER | B44: ='- 26 -'!B44 -> 10000 | C44: ='- 26 -'!C44 -> 0.08692968692 | D44: ='- 26 -'!D44 -> 14.85884101 | E44: =SUM('- 37 -'!B44,'- 37 -'!E44,'- 37 -'!H44,B44) -> 357818 | F44: =E44/'- 3 -'!D44*100 -> 3.110500672 | G44: =E44/'- 7 -'!E44 -> 531.6760773
A45: WESTERN | B45: ='- 26 -'!B45 -> 56475 | C45: ='- 26 -'!C45 -> 0.2385139132 | D45: ='- 26 -'!D45 -> 27.77914412 | E45: =SUM('- 37 -'!B45,'- 37 -'!E45,'- 37 -'!H45,B45) -> 560249 | F45: =E45/'- 3 -'!D45*100 -> 2.366129816 | G45: =E45/'- 7 -'!E45 -> 275.5774717
A46: WINNIPEG | B46: ='- 26 -'!B46 -> 1014604 | C46: ='- 26 -'!C46 -> 0.2431594304 | D46: ='- 26 -'!D46 -> 33.29900392 | E46: =SUM('- 37 -'!B46,'- 37 -'!E46,'- 37 -'!H46,B46) -> 6190464 | F46: =E46/'- 3 -'!D46*100 -> 1.48360316 | G46: =E46/'- 7 -'!E46 -> 203.169202
A48: PROVINCE | B48: =SUM(B11:B46) -> 7898088 | C48: ='- 26 -'!C48 -> 0.3128456591 | D48: ='- 26 -'!D48 -> 43.14288186 | E48: =SUM(E11:E46) -> 58569443 | F48: =E48/'- 3 -'!D48*100 -> 2.319953386 | G48: =E48/'- 7 -'!E48 -> 319.9324394
A50: WHITESHELL | B50: ='- 26 -'!B50 -> 9500 | C50: ='- 26 -'!C50 -> 0.2638534658 | D50: ='- 26 -'!D50 -> 53.97727273 | E50: =SUM('- 37 -'!B50,'- 37 -'!E50,'- 37 -'!H50,B50) -> 59500 | F50: =E50/'- 3 -'!D50*100 -> 1.652555918 | G50: =E50/'- 7 -'!E50 -> 338.0681818
A51: MITT | B51: ='- 26 -'!B51 -> 1508178 | C51: ='- 26 -'!C51 -> 4.530302842 | D51: ='- 26 -'!D51 -> 850.156708 | E51: =SUM('- 37 -'!B51,'- 37 -'!E51,'- 37 -'!H51,B51) -> 2200102 | F51: =E51/'- 3 -'!D51*100 -> 6.60872148 | G51: =E51/'- 7 -'!E51 -> 1240.192785
A53: (1) Excludes information technology expenses in Function 300 (Adult Learning Centres) and Function 400 (Community Education and Services).
A54: (2) Total Management Information Services expenses in Function 500 (from page 26).

Sheet - 40 -
A2: =IF(Lang=1,BA2,BB2) -> SUMMARY OF OPERATING FUND REVENUE: 2021/2022 BUDGET | BA2: =" SUMMARY"&REPLACE(REVYEAR,1,8,"") -> SUMMARY OF OPERATING FUND REVENUE: 2021/2022 BUDGET | BB2: ="SOMMAIRE DES RECETTES DU FONDS DE FONCTIONNEMENT : BUDGET "&YEAR&" - "&YEAR+1 -> SOMMAIRE DES RECETTES DU FONDS DE FONCTIONNEMENT : BUDGET 2021 - 2022
B6: % OF OPERATING FUND REVENUES
B7: GOVERNMENTS | E7: OTHER SCHOOL DIVISIONS | G7: PRIVATE ORG.'S & INDIVIDUALS
F8: FIRST NATIONS
A9: DIVISION / DISTRICT | B9: PROVINCIAL(1) | C9: FEDERAL | D9: MUNICIPAL | H9: OTHER | J9: CHECK
A11: BEAUTIFUL PLAINS | B11: ='- 41 -'!J11 -> 64.07522438 | C11: ='- 42 -'!C11 -> 0 | D11: ='- 42 -'!E11 -> 35.31726392 | E11: ='- 42 -'!G11 -> 0.1280769582 | F11: ='- 42 -'!I11 -> 0 | G11: ='- 43 -'!C11 -> 0.05976924716 | H11: ='- 43 -'!E11 -> 0.4196654997 | J11: =SUM(B11:H11) -> 100 | K11: PROVINCIAL | L11: =B48 -> 56.24831726
A12: BORDER LAND | B12: ='- 41 -'!J12 -> 57.10714031 | C12: ='- 42 -'!C12 -> 0 | D12: ='- 42 -'!E12 -> 37.8754946 | E12: ='- 42 -'!G12 -> 1.188949074 | F12: ='- 42 -'!I12 -> 2.887048104 | G12: ='- 43 -'!C12 -> 0.3524884312 | H12: ='- 43 -'!E12 -> 0.5888794824 | J12: =SUM(B12:H12) -> 100 | K12: FEDERAL | L12: =C48 -> 0.2330475273
A13: BRANDON | B13: ='- 41 -'!J13 -> 59.33061562 | C13: ='- 42 -'!C13 -> 0.02349241095 | D13: ='- 42 -'!E13 -> 39.06752975 | E13: ='- 42 -'!G13 -> 0.3923596852 | F13: ='- 42 -'!I13 -> 0.3031249459 | G13: ='- 43 -'!C13 -> 0.8006541453 | H13: ='- 43 -'!E13 -> 0.08222343832 | J13: 100 | K13: MUNICIPAL | L13: =D48 -> 37.68537201
